Workbook

Sheet Cover Page
F10: Cycle Date: | G10: =(CycDat_C5) -> 2018-12-31
F11: Run Date: | G11: =IF(Request_Date=0,"N/A",Request_Date) -> 05/15/2019
F12: Interval: | G12: =IF(OR(interval="1",interval=1),"Quarterly",IF(OR(interval="3",interval=3),"Semiannual",IF(OR(interval="2",interval=2),"Annual",))) -> Annual
B13: Page | C13: Click on links below to jump to FPR contents
B14: 1 | C14: Summary Financial Information
B15: 2 | C15: Ratio Analysis
B16: 3 | C16: Supplemental Ratios
B17: 4 | C17: Assets
B18: 5 | C18: Liabilities, Shares & Equity
B19: 6 | C19: Income Statement
B20: 7 | C20: Delinquent Loan Information 1
B21: 8 | C21: Delinquent Loan Information 2
B22: 9 | C22: Loan Losses, Bankruptcy Information, & TDRs
B23: 10 | C23: Indirect & Participation Lending
B24: 11 | C24: Real Estate Loan Information 1
B25: 12 | C25: Real Estate Loan Information 2
B26: 13 | C26: Commercial Loan Information
B27: 14 | C27: Investments, Cash, & Cash Equivalents
B28: 15 | C28: Other Investment Information
B29: 16 | C29: Supplemental Share Information, Off Balance Sheet, & Borrowings
B30: 17 | C30: Miscellaneous Information, Programs, & Services
B31: 18 | C31: Information Systems & Technology
B32: 19 | C32: Graphs 1 | D32: (Delinquency & Net Charge-offs, Loan & Share Growth, Net Worth, Return on Average Assets)
B33: 20 | C33: Graphs 2 | D33: (Loans/Assets, Net Long-Term Assets, Net Interest Margin, Cash & Short Term Investments)
C34: Parameters: | D34: =IF(_xlnm.Criteria="","N/A",_xlnm.Criteria) -> Region: Nation * Peer Group: All * Type Included: Federally Insured State Credit Union (FISCU) *
D35: =IF(CU_NUMBER>0,"",IF(RetPop=0,"Retroactive Population","")) -> 
E36: =IF(Cu_Name="","",Cu_Name) -> 
E37: =IF(Cu_Type="","", IF(Cu_Type="1", "Federal Credit Union", IF(Cu_Type="2","Credit Union", IF(Cu_Type="3", "Credit Union")))) -> 
E38: =IF(Street="","",Street) -> 
E39: =IF(City="","",City& " " & State &" " & TEXT(Zip_Code, "00000")) -> 
E40: Count of CU : | F40: =IF(CountCu_C5=0,"N/A",CountCu_C5) -> 1999
E41: Asset Range : | F41: =IF(AssetRange="","N/A",AssetRange) -> N/A
E42: Peer Group Number : | F42: =IF(Peer_Group="","N/A",IF(Peer_Group="0","N/A",Peer_Group)) -> N/A
E43: Count of CU in Peer Group : | F43: =IF(NoCu_in_Peer_Group="","N/A",NoCu_in_Peer_Group) -> N/A
E44: =ReportSource -> Report Source*: | F44: =ReportSrcText -> December-2018 Archive
B46: Charter-Region-SE-District:
B47: =IF(CU_NUMBER="","N/A",CU_NUMBER) & " - " &IF(Region="","N/A",Region) & " - " & IF(SE="","N/A",SE) & " - " & IF(District="","N/A",District) -> N/A - N/A - N/A - N/A
B49: Note to Users: The peer groups and resulting peer average ratios are based upon all federally insured credit unions within the asset range. Peer average ratios are not available for aggregate reports.
B51: The ratios on aggregate FPRs are consolidated ratios for the group of credit unions included in the report and do not represent a peer average for that group.
B53: =ReportSrcExplanation -> *This FPR's data are updated once each cycle to provide a consistant source for public disclosure.

Sheet 1. Summary Financial
C1: Summary Financial Information
A2: Return to cover | C2: For Charter : | D2: =IF(CU_NUMBER="","N/A",CU_NUMBER) -> N/A
A3: =IF(Request_Date=0,"N/A",Request_Date) -> 05/15/2019 | C3: Count of CU : | D3: =IF(CountCu_C5=0,"N/A",CountCu_C5) -> 1999
A4: ="CU Name: "&IF(Cu_Name="","N/A",Cu_Name) -> CU Name: N/A | C4: Asset Range : | D4: =IF(AssetRange="","N/A",AssetRange) -> N/A
A5: ="Peer Group: "&IF(Peer_Group="","N/A",IF(Peer_Group="0","N/A",Peer_Group)) -> Peer Group: N/A | C5: Criteria : | D5: =IF(_xlnm.Criteria="","N/A",_xlnm.Criteria) -> Region: Nation * Peer Group: All * Type Included: Federally Insured State Credit Union (FISCU) *
B6: Count of CU in Peer Group : | D6: =IF(NoCu_in_Peer_Group="","N/A",NoCu_in_Peer_Group) -> N/A | E6: =IF(CU_NUMBER>0,"",IF(RetPop=0,"Retroactive Population","")) -> 
B8: =(CycDat_C1) -> 2014-12-31 | C8: =(CycDat_C2) -> 2015-12-31 | D8: % Chg | E8: =(CycDat_C3) -> 2016-12-31 | F8: % Chg | G8: =(CycDat_C4) -> 2017-12-31 | H8: % Chg | I8: =(CycDat_C5) -> 2018-12-31 | J8: % Chg
A9: ASSETS: | B9: Amount | C9: Amount | E9: Amount | G9: Amount | I9: Amount
A10: Cash & Equivalents | B10: =A730A_C1+A730B_C1+A730C_C1 -> 47571105477 | C10: =A730A_C2+A730B_C2+A730C_C2 -> 49590925524 | D10: =IF(C10="N/A", " ", IF(B10="N/A", " ",IF(AND(B10=0,C10=0,),"N/A",IF(ABS(B10)=0, "N/A", ((C10-B10)/ABS(B10))*100)))) -> 4.245896804 | E10: =A730A_C3+A730B_C3+A730C_C3 -> 53224770306 | F10: =IF(E10="N/A", " ", IF(C10="N/A", " ",IF(AND(C10=0,E10=0,),"N/A",IF(ABS(C10)=0, "N/A", ((E10-C10)/ABS(C10))*100)))) -> 7.327640579 | G10: =A730A_C4+A730B_C4+A730C_C4 -> 53292559960 | H10: =IF(G10="N/A", " ", IF(E10="N/A", " ",IF(AND(E10=0,G10=0,),"N/A",IF(ABS(E10)=0, "N/A", ((G10-E10)/ABS(E10))*100)))) -> 0.1273648597 | I10: =A730A_C5+A730B_C5+A730C_C5 -> 52494672808 | J10: =IF(I10="N/A", " ", IF(G10="N/A", " ",IF(AND(G10=0,I10=0,),"N/A",IF(ABS(G10)=0, "N/A", ((I10-G10)/ABS(G10))*100)))) -> -1.497183008
A11: TOTAL INVESTMENTS | B11: =A799I_C1 -> 116481303658 | C11: =A799I_C2 -> 120256461276 | D11: 3.240998769 | E11: =A799I_C3 -> 117229337323 | F11: -2.517223541 | G11: =A799I_C4 -> 110770607508 | H11: -5.509482492 | I11: =A799I_C5 -> 105759512835 | J11: -4.523848687
A12: Loans Held for Sale | B12: =IF(B8<DATEVALUE("3/31/2002"),"N/A",A003_C1) -> 980491555 | C12: =IF(C8<DATEVALUE("3/31/2002"),"N/A",A003_C2) -> 974128684 | D12: -0.6489470478 | E12: =IF(E8<DATEVALUE("3/31/2002"),"N/A",A003_C3) -> 1544975345 | F12: 58.60074448 | G12: =IF(G8<DATEVALUE("3/31/2002"),"N/A",A003_C4) -> 1593776831 | H12: 3.15872264 | I12: =IF(I8<DATEVALUE("3/31/2002"),"N/A",A003_C5) -> 1096199790 | J12: -31.21999463
A14: Real Estate Loans | B14: =IF(B8>DATEVALUE("6/30/2017"),(A703A_C1+A386A_C1+A386B_C1+A718A5_C1),(A703_C1+A386_C1)) -> 177073435722 | C14: =IF(C8>DATEVALUE("6/30/2017"),(A703A_C2+A386A_C2+A386B_C2+A718A5_C2),(A703_C2+A386_C2)) -> 195869494333 | D14: 10.61483815 | E14: =IF(E8>DATEVALUE("6/30/2017"),(A703A_C3+A386A_C3+A386B_C3+A718A5_C3),(A703_C3+A386_C3)) -> 212951127168 | F14: 8.72092558 | G14: =IF(G8>DATEVALUE("6/30/2017"),(A703A_C4+A386A_C4+A386B_C4+A718A5_C4),(A703_C4+A386_C4)) -> 233055887574 | H14: 9.441020892 | I14: =IF(I8>DATEVALUE("6/30/2017"),(A703A_C5+A386A_C5+A386B_C5+A718A5_C5),(A703_C5+A386_C5)) -> 255095224984 | J14: 9.456674809
A15: Unsecured Loans | B15: =IF(B8>=DATEVALUE("3/31/2011"),(A396_C1+A397_C1+A397A_C1+A698A_C1),IF(B8>=DATEVALUE("12/31/2010"),(A396_C1+A397_C1+A397A_C1),(A396_C1+A397_C1))) -> 30861796823 | C15: =IF(C8>=DATEVALUE("3/31/2011"),(A396_C2+A397_C2+A397A_C2+A698A_C2),IF(C8>=DATEVALUE("12/31/2010"),(A396_C2+A397_C2+A397A_C2),(A396_C2+A397_C2))) -> 33471945271 | D15: 8.457538824 | E15: =IF(E8>=DATEVALUE("3/31/2011"),(A396_C3+A397_C3+A397A_C3+A698A_C3),IF(E8>=DATEVALUE("12/31/2010"),(A396_C3+A397_C3+A397A_C3),(A396_C3+A397_C3))) -> 35968419180 | F15: 7.458407 | G15: =IF(G8>=DATEVALUE("3/31/2011"),(A396_C4+A397_C4+A397A_C4+A698A_C4),IF(G8>=DATEVALUE("12/31/2010"),(A396_C4+A397_C4+A397A_C4),(A396_C4+A397_C4))) -> 38387279592 | H15: 6.724956134 | I15: =IF(I8>=DATEVALUE("3/31/2011"),(A396_C5+A397_C5+A397A_C5+A698A_C5),IF(I8>=DATEVALUE("12/31/2010"),(A396_C5+A397_C5+A397A_C5),(A396_C5+A397_C5))) -> 41096572749 | J15: 7.057788897
A16: Other Loans | B16: =IF(B8>DATEVALUE("6/30/2017"),(A385_C1+A370_C1+A002_C1+A400P_C1+A698C_C1),(IF(B8>DATEVALUE("12/31/2001"),(A698_C1+A385_C1+A370_C1+A002_C1),(A698_C1+A385_C1+A370_C1+A002_C1+A001_C1)))) -> 131003007674 | C16: =IF(C8>DATEVALUE("6/30/2017"),(A385_C2+A370_C2+A002_C2+A400P_C2+A698C_C2),(IF(C8>DATEVALUE("12/31/2001"),(A698_C2+A385_C2+A370_C2+A002_C2),(A698_C2+A385_C2+A370_C2+A002_C2+A001_C2)))) -> 152946348830 | D16: 16.75025753 | E16: =IF(E8>DATEVALUE("6/30/2017"),(A385_C3+A370_C3+A002_C3+A400P_C3+A698C_C3),(IF(E8>DATEVALUE("12/31/2001"),(A698_C3+A385_C3+A370_C3+A002_C3),(A698_C3+A385_C3+A370_C3+A002_C3+A001_C3)))) -> 175671662669 | F16: 14.85835655 | G16: =IF(G8>DATEVALUE("6/30/2017"),(A385_C4+A370_C4+A002_C4+A400P_C4+A698C_C4),(IF(G8>DATEVALUE("12/31/2001"),(A698_C4+A385_C4+A370_C4+A002_C4),(A698_C4+A385_C4+A370_C4+A002_C4+A001_C4)))) -> 195744638280 | H16: 11.42641636 | I16: =IF(I8>DATEVALUE("6/30/2017"),(A385_C5+A370_C5+A002_C5+A400P_C5+A698C_C5),(IF(I8>DATEVALUE("12/31/2001"),(A698_C5+A385_C5+A370_C5+A002_C5),(A698_C5+A385_C5+A370_C5+A002_C5+A001_C5)))) -> 214687319660 | J16: 9.677241505
A17: TOTAL LOANS | B17: =A025B_C1 -> 338938240219 | C17: =A025B_C2 -> 382287788434 | D17: 12.78980743 | E17: =A025B_C3 -> 424591209017 | F17: 11.06585715 | G17: =A025B_C4 -> 467187805446 | H17: 10.03237833 | I17: =A025B_C5 -> 510879117393 | J17: 9.351980389
A18: (Allowance for Loan & Lease Losses) | B18: =A719_C1 -> 3320255561 | C18: =A719_C2 -> 3510763581 | D18: 5.737751703 | E18: =A719_C3 -> 3561870403 | F18: 1.455718131 | G18: =A719_C4 -> 3934263250 | H18: 10.45498025 | I18: =A719_C5 -> 3987398300 | J18: 1.3505718
A19: Land And Building | B19: =A007_C1 -> 9248453839 | C19: =A007_C2 -> 9831179555 | D19: 6.300790663 | E19: =A007_C3 -> 10420700792 | F19: 5.996444615 | G19: =A007_C4 -> 11108166248 | H19: 6.597113474 | I19: =A007_C5 -> 11989569835 | J19: 7.934735287
A20: Other Fixed Assets | B20: =A008_C1 -> 1789284891 | C20: =A008_C2 -> 1967121975 | D20: 9.93900328 | E20: =A008_C3 -> 2171072653 | F20: 10.36797314 | G20: =A008_C4 -> 2235827167 | H20: 2.982604654 | I20: =A008_C5 -> 2492183684 | J20: 11.46584677
A21: NCUSIF Deposit | B21: =A794_C1 -> 4234978153 | C21: =A794_C2 -> 4538366522 | D21: 7.163870935 | E21: =A794_C3 -> 4859496358 | F21: 7.075890289 | G21: =A794_C4 -> 5251227323 | H21: 8.061143298 | I21: =A794_C5 -> 5524791437 | J21: 5.209527167
A22: All Other Assets | B22: =IF(B8>DATEVALUE("12/31/2008"), A009_C1+A009D_C1+A798A_C1, IF(B8>DATEVALUE("12/31/2003"), A009_C1+A798A_C1, A009_C1+A798_C1)) -> 10018868389 | C22: =IF(C8>DATEVALUE("12/31/2008"), A009_C2+A009D_C2+A798A_C2, IF(C8>DATEVALUE("12/31/2003"), A009_C2+A798A_C2, A009_C2+A798_C2)) -> 10330480385 | D22: 3.110251417 | E22: =IF(E8>DATEVALUE("12/31/2008"), A009_C3+A009D_C3+A798A_C3, IF(E8>DATEVALUE("12/31/2003"), A009_C3+A798A_C3, A009_C3+A798_C3)) -> 11874163129 | F22: 14.9429909 | G22: =IF(G8>DATEVALUE("12/31/2008"), A009_C4+A009D_C4+A798A_C4, IF(G8>DATEVALUE("12/31/2003"), A009_C4+A798A_C4, A009_C4+A798_C4)) -> 13024757285 | H22: 9.689896825 | I22: =IF(I8>DATEVALUE("12/31/2008"), A009_C5+A009D_C5+A798A_C5, IF(I8>DATEVALUE("12/31/2003"), A009_C5+A798A_C5, A009_C5+A798_C5)) -> 13624288899 | J22: 4.603015633
A23: TOTAL ASSETS | B23: =A010_C1 -> 525942470620 | C23: =A010_C2 -> 576265688774 | D23: 9.568198228 | E23: =A010_C3 -> 622353854520 | F23: 7.99772859 | G23: =A010_C4 -> 660530464518 | H23: 6.134228899 | I23: =A010_C5 -> 699872938381 | J23: 5.956193692
A24: LIABILITIES & CAPITAL:
A25: Dividends Payable | B25: =A820A_C1 -> 132798149 | C25: =A820A_C2 -> 142814493 | D25: =IF(C25="N/A", " ", IF(B25="N/A", " ",IF(AND(B25=0,C25=0,),"N/A",IF(ABS(B25)=0, "N/A", ((C25-B25)/ABS(B25))*100)))) -> 7.542532841 | E25: =A820A_C3 -> 145364776 | F25: =IF(E25="N/A", " ", IF(C25="N/A", " ",IF(AND(C25=0,E25=0,),"N/A",IF(ABS(C25)=0, "N/A", ((E25-C25)/ABS(C25))*100)))) -> 1.785731228 | G25: =A820A_C4 -> 155396376 | H25: =IF(G25="N/A", " ", IF(E25="N/A", " ",IF(AND(E25=0,G25=0,),"N/A",IF(ABS(E25)=0, "N/A", ((G25-E25)/ABS(E25))*100)))) -> 6.900984046 | I25: =A820A_C5 -> 197624990 | J25: =IF(I25="N/A", " ", IF(G25="N/A", " ",IF(AND(G25=0,I25=0,),"N/A",IF(ABS(G25)=0, "N/A", ((I25-G25)/ABS(G25))*100)))) -> 27.17477401
A26: Notes & Interest Payable | B26: =IF(B8>=DATEVALUE("12/31/2011"),A860C_C1-A925A_C1,A860C_C1-A925_C1) -> 13066520433 | C26: =IF(C8>=DATEVALUE("12/31/2011"),A860C_C2-A925A_C2,A860C_C2-A925_C2) -> 14886215136 | D26: 13.92639083 | E26: =IF(E8>=DATEVALUE("12/31/2011"),A860C_C3-A925A_C3,A860C_C3-A925_C3) -> 16804678365 | F26: 12.88751514 | G26: =IF(G8>=DATEVALUE("12/31/2011"),A860C_C4-A925A_C4,A860C_C4-A925_C4) -> 17685501352 | H26: 5.241534339 | I26: =IF(I8>=DATEVALUE("12/31/2011"),A860C_C5-A925A_C5,A860C_C5-A925_C5) -> 22123595959 | J26: =IF(I26="N/A", " ", IF(G26="N/A", " ",IF(AND(G26=0,I26=0,),"N/A",IF(ABS(G26)=0, "N/A", ((I26-G26)/ABS(G26))*100)))) -> 25.09453658
A27: Accounts Payable & Other Liabilities3 | B27: =IF(B8>=DATEVALUE("3/31/2014"),A825_C1+A825A_C1,A825_C1) -> 5121647287 | C27: =IF(C8>=DATEVALUE("3/31/2014"),A825_C2+A825A_C2,A825_C2) -> 5794722411 | D27: 13.14177034 | E27: =IF(E8>=DATEVALUE("3/31/2014"),A825_C3+A825A_C3,A825_C3) -> 7052886288 | F27: 21.71223724 | G27: =IF(G8>=DATEVALUE("3/31/2014"),A825_C4+A825A_C4,A825_C4) -> 7870709694 | H27: 11.59558474 | I27: =IF(I8>=DATEVALUE("3/31/2014"),A825_C5+A825A_C5,A825_C5) -> 7231886491 | J27: -8.116462528
A28: Uninsured Secondary Capital and Subordinated Debt Included in Net Worth4 | B28: =IF(B8>=DATEVALUE("12/31/2011"),A925A_C1,A925_C1) -> 71615659 | C28: =IF(C8>=DATEVALUE("12/31/2011"),A925A_C2,A925_C2) -> 33675034 | D28: -52.97811335 | E28: =IF(E8>=DATEVALUE("12/31/2011"),A925A_C3,A925_C3) -> 33899000 | F28: =IF(E28="N/A", " ", IF(C28="N/A", " ",IF(AND(C28=0,E28=0,),"N/A",IF(ABS(C28)=0, "N/A", ((E28-C28)/ABS(C28))*100)))) -> 0.6650802491 | G28: =IF(G8>=DATEVALUE("12/31/2011"),A925A_C4,A925_C4) -> 46477667 | H28: 37.10630697 | I28: =IF(I8>=DATEVALUE("12/31/2011"),A925A_C5,A925_C5) -> 52726677 | J28: 13.44518863
A29: TOTAL LIABILITIES | B29: =SUM(B25:B28) -> 18392581528 | C29: =SUM(C25:C28) -> 20857427074 | D29: 13.40130281 | E29: =SUM(E25:E28) -> 24036828429 | F29: 15.24349741 | G29: =SUM(G25:G28) -> 25758085089 | H29: 7.160914199 | I29: =SUM(I25:I28) -> 29605834117 | J29: 14.93802437
A30: Share Drafts | B30: =A902_C1 -> 63199161399 | C30: =A902_C2 -> 74132818541 | D30: 17.30031997 | E30: =A902_C3 -> 80750763046 | F30: 8.927145406 | G30: =A902_C4 -> 88059257885 | H30: 9.050682078 | I30: =A902_C5 -> 92074395436 | J30: 4.559585951
A31: Regular shares | B31: =A657_C1 -> 150779917109 | C31: =A657_C2 -> 170129215490 | D31: 12.83280874 | E31: =A657_C3 -> 186598286843 | F31: 9.680331097 | G31: =A657_C4 -> 200888392680 | H31: 7.658219204 | I31: =A657_C5 -> 212478983025 | J31: 5.769666525
A32: All Other Shares & Deposits | B32: =IF(B8<DATEVALUE("6/30/2006"),A919_C1, A911_C1+A908C_C1+A906C_C1+A630_C1+A880_C1) -> 237127444297 | C32: =IF(C8<DATEVALUE("6/30/2006"),A919_C2, A911_C2+A908C_C2+A906C_C2+A630_C2+A880_C2) -> 249630003379 | D32: 5.272506149 | E32: =IF(E8<DATEVALUE("6/30/2006"),A919_C3, A911_C3+A908C_C3+A906C_C3+A630_C3+A880_C3) -> 265409626668 | F32: 6.321204613 | G32: =IF(G8<DATEVALUE("6/30/2006"),A919_C4, A911_C4+A908C_C4+A906C_C4+A630_C4+A880_C4) -> 275859084925 | H32: 3.93710597 | I32: =IF(I8<DATEVALUE("6/30/2006"),A919_C5, A911_C5+A908C_C5+A906C_C5+A630_C5+A880_C5) -> 289717125963 | J32: 5.023594217
A33: TOTAL SHARES & DEPOSITS | B33: =A018_C1 -> 451106522805 | C33: =A018_C2 -> 493892037410 | D33: 9.48457015 | E33: =A018_C3 -> 532758676557 | F33: 7.869460571 | G33: =A018_C4 -> 564806735490 | H33: 6.015492632 | I33: =A018_C5 -> 594270504424 | J33: 5.21661076
A34: Regular Reserve | B34: =A931_C1 -> 10942081214 | C34: =A931_C2 -> 11324536927 | D34: 3.495273938 | E34: =A931_C3 -> 11797894098 | F34: 4.179925184 | G34: =A931_C4 -> 12348817154 | H34: 4.669672837 | I34: =A931_C5 -> 12684380008 | J34: 2.717368391
A35: Other Reserves | B35: =IF(B8>DATEVALUE("6/30/2009"), A658_C1+ A658A_C1+ A668_C1+A945_C1+A996_C1+A945A_C1+A945B_C1+A945C_C1, IF(B8>DATEVALUE("12/31/2008"),A658_C1+ A658A_C1+ A668_C1+A945_C1+A996_C1+A945A_C1+A945B_C1, A658_C1+ A668_C1+A945_C1+A996_C1+A945A_C1+A945B_C1)) -> 3880693221 | C35: =IF(C8>DATEVALUE("6/30/2009"), A658_C2+ A658A_C2+ A668_C2+A945_C2+A996_C2+A945A_C2+A945B_C2+A945C_C2, IF(C8>DATEVALUE("12/31/2008"),A658_C2+ A658A_C2+ A668_C2+A945_C2+A996_C2+A945A_C2+A945B_C2, A658_C2+ A668_C2+A945_C2+A996_C2+A945A_C2+A945B_C2)) -> 3968908260 | D35: 2.273177342 | E35: =IF(E8>DATEVALUE("6/30/2009"), A658_C3+ A658A_C3+ A668_C3+A945_C3+A996_C3+A945A_C3+A945B_C3+A945C_C3, IF(E8>DATEVALUE("12/31/2008"),A658_C3+ A658A_C3+ A668_C3+A945_C3+A996_C3+A945A_C3+A945B_C3, A658_C3+ A668_C3+A945_C3+A996_C3+A945A_C3+A945B_C3)) -> 3525111701 | F35: -11.18182961 | G35: =IF(G8>DATEVALUE("6/30/2009"), A658_C4+ A658A_C4+ A668_C4+A945_C4+A996_C4+A945A_C4+A945B_C4+A945C_C4, IF(G8>DATEVALUE("12/31/2008"),A658_C4+ A658A_C4+ A668_C4+A945_C4+A996_C4+A945A_C4+A945B_C4, A658_C4+ A668_C4+A945_C4+A996_C4+A945A_C4+A945B_C4)) -> 3714645452 | H35: 5.376673623 | I35: =IF(I8>DATEVALUE("6/30/2009"), A658_C5+ A658A_C5+ A668_C5+A945_C5+A996_C5+A945A_C5+A945B_C5+A945C_C5, IF(I8>DATEVALUE("12/31/2008"),A658_C5+ A658A_C5+ A668_C5+A945_C5+A996_C5+A945A_C5+A945B_C5, A658_C5+ A668_C5+A945_C5+A996_C5+A945A_C5+A945B_C5)) -> 3746386517 | J35: 0.8544843757
A36: Undivided Earnings | B36: =A940_C1+A602_C1 -> 41620591852 | C36: =A940_C2+A602_C2 -> 46222779103 | D36: 11.05747671 | E36: =A940_C3+A602_C3 -> 50235343735 | F36: 8.680924665 | G36: =A940_C4+A602_C4 -> 53902181333 | H36: 7.29931822 | I36: =A940_C5+A602_C5 -> 59565833315 | J36: 10.50727789
A37: TOTAL EQUITY | B37: =IF(B8>DATEVALUE("6/30/2009"),A658_C1+A658A_C1+A668_C1+A931_C1+A940_C1+A945_C1+A996_C1+A945A_C1+A945B_C1+A945C_C1+A602_C1, A658_C1+A658A_C1+A668_C1+A931_C1+A940_C1+A945_C1+A996_C1+A945A_C1+A945B_C1+A602_C1 ) -> 56443366287 | C37: =IF(C8>DATEVALUE("6/30/2009"),A658_C2+A658A_C2+A668_C2+A931_C2+A940_C2+A945_C2+A996_C2+A945A_C2+A945B_C2+A945C_C2+A602_C2, A658_C2+A658A_C2+A668_C2+A931_C2+A940_C2+A945_C2+A996_C2+A945A_C2+A945B_C2+A602_C2 ) -> 61516224290 | D37: =IF(C37="N/A", " ", IF(B37="N/A", " ",IF(AND(B37=0,C37=0,),"N/A",IF(ABS(B37)=0, "N/A", ((C37-B37)/ABS(B37))*100)))) -> 8.987518528 | E37: =IF(E8>DATEVALUE("6/30/2009"),A658_C3+A658A_C3+A668_C3+A931_C3+A940_C3+A945_C3+A996_C3+A945A_C3+A945B_C3+A945C_C3+A602_C3, A658_C3+A658A_C3+A668_C3+A931_C3+A940_C3+A945_C3+A996_C3+A945A_C3+A945B_C3+A602_C3 ) -> 65558349534 | F37: 6.570827925 | G37: =IF(G8>DATEVALUE("6/30/2009"),A658_C4+A658A_C4+A668_C4+A931_C4+A940_C4+A945_C4+A996_C4+A945A_C4+A945B_C4+A945C_C4+A602_C4, A658_C4+A658A_C4+A668_C4+A931_C4+A940_C4+A945_C4+A996_C4+A945A_C4+A945B_C4+A602_C4 ) -> 69965643939 | H37: =IF(G37="N/A", " ", IF(E37="N/A", " ",IF(AND(E37=0,G37=0,),"N/A",IF(ABS(E37)=0, "N/A", ((G37-E37)/ABS(E37))*100)))) -> 6.722704944 | I37: =IF(I8>DATEVALUE("6/30/2009"),A658_C5+A658A_C5+A668_C5+A931_C5+A940_C5+A945_C5+A996_C5+A945A_C5+A945B_C5+A945C_C5+A602_C5, A658_C5+A658A_C5+A668_C5+A931_C5+A940_C5+A945_C5+A996_C5+A945A_C5+A945B_C5+A602_C5 ) -> 75996599840 | J37: 8.619881933
A38: TOTAL LIABILITIES, SHARES, & EQUITY | B38: =A014_C1 -> 525942470620 | C38: =A014_C2 -> 576265688774 | D38: 9.568198228 | E38: =A014_C3 -> 622353854520 | F38: 7.99772859 | G38: =A014_C4 -> 660530464518 | H38: 6.134228899 | I38: =A014_C5 -> 699872938381 | J38: 5.956193692
A39: INCOME & EXPENSE
A40: Loan Income* | B40: =(A110_C1-A119_C1) -> 14895228970 | C40: =(A110_C2-A119_C2) -> 16210200524 | D40: =IF(C40="N/A", " ", IF(B40="N/A", " ",IF(AND(B40=0,C40=0,),"N/A",IF(ABS(B40)=0, "N/A", ((C40*Anu_C2-B40*Anu_C1)/ABS(B40*Anu_C1))*100)))) -> 8.828139243 | E40: =(A110_C3-A119_C3) -> 17559107803 | F40: =IF(E40="N/A", " ", IF(C40="N/A", " ",IF(AND(C40=0,E40=0,),"N/A",IF(ABS(C40)=0, "N/A", ((E40*Anu_C3-C40*Anu_C2)/ABS(C40*Anu_C2))*100)))) -> 8.321348505 | G40: =(A110_C4-A119_C4) -> 19280731195 | H40: =IF(G40="N/A", " ", IF(E40="N/A", " ",IF(AND(E40=0,G40=0,),"N/A",IF(ABS(E40)=0, "N/A", ((G40*Anu_C4-E40*Anu_C3)/ABS(E40*Anu_C3))*100)))) -> 9.804731603 | I40: =(A110_C5-A119_C5) -> 21885790546 | J40: =IF(I40="N/A", " ", IF(G40="N/A", " ",IF(AND(G40=0,I40=0,),"N/A",IF(ABS(G40)=0, "N/A", ((I40*Anu_C5-G40*Anu_C4)/ABS(G40*Anu_C4))*100)))) -> 13.51120621
A41: Investment Income* | B41: =(A120_C1+A124_C1) -> 1887154380 | C41: =(A120_C2+A124_C2) -> 1886420816 | D41: -0.03887143563 | E41: =(A120_C3+A124_C3) -> 2095383388 | F41: 11.07719816 | G41: =(A120_C4+A124_C4) -> 2599163383 | H41: 24.04237801 | I41: =(A120_C5+A124_C5) -> 3139652492 | J41: 20.7947339
A42: Other Income* | B42: =(A659_C1+A131_C1) -> 6659970915 | C42: =(A659_C2+A131_C2) -> 7408000878 | D42: 11.23173018 | E42: =(A659_C3+A131_C3) -> 8115570460 | F42: 9.551424111 | G42: =(A659_C4+A131_C4) -> 8491896319 | H42: 4.637084489 | I42: =(A659_C5+A131_C5) -> 9390040188 | J42: 10.5764818
A43: Total Employee Compensation & Benefits* | B43: =A210_C1 -> 7983945169 | C43: =A210_C2 -> 8749323091 | D43: 9.586462655 | E43: =A210_C3 -> 9462898238 | F43: 8.155775476 | G43: =A210_C4 -> 10105401314 | H43: 6.789707126 | I43: =A210_C5 -> 10955777034 | J43: 8.415061348
A44: Temporary Corporate CU Stabilization Expense & NCUSIF Premiums*/2 | B44: =IF(B8>=DATEVALUE("12/31/2010"),A311_C1+A311A_C1,IF(B8>=DATEVALUE("3/31/2009"),A311_C1,"N/A")) -> -350805 | C44: =IF(C8>=DATEVALUE("12/31/2010"),A311_C2+A311A_C2,IF(C8>=DATEVALUE("3/31/2009"),A311_C2,"N/A")) -> 287384 | D44: 181.9212953 | E44: =IF(E8>=DATEVALUE("12/31/2010"),A311_C3+A311A_C3,IF(E8>=DATEVALUE("3/31/2009"),A311_C3,"N/A")) -> 1399451 | F44: 386.9620438 | G44: =IF(G8>=DATEVALUE("12/31/2010"),A311_C4+A311A_C4,IF(G8>=DATEVALUE("3/31/2009"),A311_C4,"N/A")) -> -1202275 | H44: -185.9104749 | I44: =IF(I8>=DATEVALUE("12/31/2010"),A311_C5+A311A_C5,IF(I8>=DATEVALUE("3/31/2009"),A311_C5,"N/A")) -> -7967867 | J44: -562.7324863
A45: Total Other Operating Expenses* | B45: =IF(B8>=DATEVALUE("12/31/2010"),A671_C1-A210_C1-A311_C1-A311A_C1,A671_C1-A210_C1) -> 7783579799 | C45: =IF(C8>=DATEVALUE("12/31/2010"),A671_C2-A210_C2-A311_C2-A311A_C2,A671_C2-A210_C2) -> 8430539300 | D45: 8.311850302 | E45: =IF(E8>=DATEVALUE("12/31/2010"),A671_C3-A210_C3-A311_C3-A311A_C3,A671_C3-A210_C3) -> 9054410494 | F45: 7.400133868 | G45: =IF(G8>=DATEVALUE("12/31/2010"),A671_C4-A210_C4-A311_C4-A311A_C4,A671_C4-A210_C4) -> 9589472887 | H45: 5.909411699 | I45: =IF(I8>=DATEVALUE("12/31/2010"),A671_C5-A210_C5-A311_C5-A311A_C5,A671_C5-A210_C5) -> 10477474116 | J45: 9.260167263
A46: Non-operating Income & (Expense)* | B46: =IF(B8>=DATEVALUE("03/31/2014"), A440_C1+A430_C1+A420_C1+A431_C1+A421_C1, IF(B8>=DATEVALUE("09/30/2009"), A440_C1+A430_C1+A420_C1+A431_C1-A440A_C1, IF(B8>=DATEVALUE("03/31/2009"), A440_C1+A430_C1+A420_C1+A431_C1, A440_C1+A430_C1+A420_C1))) -> 291537086 | C46: =IF(C8>=DATEVALUE("03/31/2014"), A440_C2+A430_C2+A420_C2+A431_C2+A421_C2, IF(C8>=DATEVALUE("09/30/2009"), A440_C2+A430_C2+A420_C2+A431_C2-A440A_C2, IF(C8>=DATEVALUE("03/31/2009"), A440_C2+A430_C2+A420_C2+A431_C2, A440_C2+A430_C2+A420_C2))) -> 182557576 | D46: -37.38101094 | E46: =IF(E8>=DATEVALUE("03/31/2014"), A440_C3+A430_C3+A420_C3+A431_C3+A421_C3, IF(E8>=DATEVALUE("09/30/2009"), A440_C3+A430_C3+A420_C3+A431_C3-A440A_C3, IF(E8>=DATEVALUE("03/31/2009"), A440_C3+A430_C3+A420_C3+A431_C3, A440_C3+A430_C3+A420_C3))) -> 267771150 | F46: 46.67764322 | G46: =IF(G8>=DATEVALUE("03/31/2014"), A440_C4+A430_C4+A420_C4+A431_C4+A421_C4, IF(G8>=DATEVALUE("09/30/2009"), A440_C4+A430_C4+A420_C4+A431_C4-A440A_C4, IF(G8>=DATEVALUE("03/31/2009"), A440_C4+A430_C4+A420_C4+A431_C4, A440_C4+A430_C4+A420_C4))) -> 198137421 | H46: -26.00494079 | I46: =IF(I8>=DATEVALUE("03/31/2014"), A440_C5+A430_C5+A420_C5+A431_C5+A421_C5, IF(I8>=DATEVALUE("09/30/2009"), A440_C5+A430_C5+A420_C5+A431_C5-A440A_C5, IF(I8>=DATEVALUE("03/31/2009"), A440_C5+A430_C5+A420_C5+A431_C5, A440_C5+A430_C5+A420_C5))) -> 159757204 | J46: -19.37050397
A47: NCUSIF Stabilization Income* | B47: =IF(B8>=DATEVALUE("3/31/2011"), "N/A",IF(B8>DATEVALUE("6/30/2009"),A440A_C1, "N/A" )) -> N/A | C47: =IF(C8>=DATEVALUE("3/31/2011"), "N/A",IF(C8>DATEVALUE("6/30/2009"),A440A_C2, "N/A" )) -> N/A | D47: =IF(C47="N/A", " ", IF(B47="N/A", " ",IF(AND(B47=0,C47=0,),"N/A",IF(ABS(B47)=0, "N/A", ((C47*Anu_C2-B47*Anu_C1)/ABS(B47*Anu_C1))*100)))) ->  | E47: =IF(E8>=DATEVALUE("3/31/2011"), "N/A",IF(E8>DATEVALUE("6/30/2009"),A440A_C3, "N/A" )) -> N/A | G47: =IF(G8>=DATEVALUE("3/31/2011"), "N/A",IF(G8>DATEVALUE("6/30/2009"),A440A_C4, "N/A" )) -> N/A | I47: =IF(I8>=DATEVALUE("3/31/2011"), "N/A",IF(I8>DATEVALUE("6/30/2009"),A440A_C5, "N/A" )) -> N/A
A48: Provision for Loan/Lease Losses* | B48: =A300_C1 -> 1169881400 | C48: =A300_C2 -> 1601701959 | D48: 36.91148171 | E48: =A300_C3 -> 1995497959 | F48: 24.58609717 | G48: =A300_C4 -> 2638074151 | H48: 32.20129538 | I48: =A300_C5 -> 2525993073 | J48: -4.248594679
A49: Cost of Funds* | B49: =(A380_C1+A381_C1+A340_C1) -> 2585158646 | C49: =(A380_C2+A381_C2+A340_C2) -> 2749914826 | D49: 6.373155483 | E49: =(A380_C3+A381_C3+A340_C3) -> 3010746784 | F49: 9.485092248 | G49: =(A380_C4+A381_C4+A340_C4) -> 3452886549 | H49: 14.68538528 | I49: =(A380_C5+A381_C5+A340_C5) -> 4477280734 | J49: 29.66776262
A50: NET INCOME (LOSS) EXCLUDING STABILIZATION EXPENSE & NCUSIF PREMIUM */1 | B50: =IF(B8>=DATEVALUE("3/31/2009"), A660A_C1, "N/A" ) -> 4211326337 | C50: =IF(C8>=DATEVALUE("3/31/2009"), A660A_C2, "N/A" ) -> 4155700618 | D50: =IF(C50="N/A", " ", IF(B50="N/A", " ",IF(AND(B50=0,C50=0,),"N/A",IF(ABS(B50)=0, "N/A", ((C50*Anu_C2-B50*Anu_C1)/ABS(B50*Anu_C1))*100)))) -> -1.320859856 | E50: =IF(E8>=DATEVALUE("3/31/2009"), A660A_C3, "N/A" ) -> 4514279326 | F50: 8.628598183 | G50: =IF(G8>=DATEVALUE("3/31/2009"), A660A_C4, "N/A" ) -> 4784093417 | H50: 5.976902879 | I50: =IF(I8>=DATEVALUE("3/31/2009"), A660A_C5, "N/A" ) -> 6138715473 | J50: 28.31512552
A51: Net Income (Loss)* | B51: =A661A_C1 -> 4211677142 | C51: =A661A_C2 -> 4155413234 | D51: -1.335902684 | E51: =A661A_C3 -> 4512879875 | F51: 8.60243304 | G51: =A661A_C4 -> 4785295692 | H51: =IF(G51="N/A", " ", IF(E51="N/A", " ",IF(AND(E51=0,G51=0,),"N/A",IF(ABS(E51)=0, "N/A", ((G51*Anu_C4-E51*Anu_C3)/ABS(E51*Anu_C3))*100)))) -> 6.03640745 | I51: =A661A_C5 -> 6146683340 | J51: =IF(I51="N/A", " ", IF(G51="N/A", " ",IF(AND(G51=0,I51=0,),"N/A",IF(ABS(G51)=0, "N/A", ((I51*Anu_C5-G51*Anu_C4)/ABS(G51*Anu_C4))*100)))) -> 28.44939447
A52: TOTAL CU's | B52: =CountCu_C1 -> 2346 | C52: =CountCu_C2 -> 2257 | D52: =IF(C52="N/A", " ", IF(B52="N/A", " ",IF(AND(B52=0,C52=0,),"N/A",IF(ABS(B52)=0, "N/A", ((C52-B52)/ABS(B52))*100)))) -> -3.79369139 | E52: =CountCu_C3 -> 2177 | F52: =IF(E52="N/A", " ", IF(C52="N/A", " ",IF(AND(C52=0,E52=0,),"N/A",IF(ABS(C52)=0, "N/A", ((E52-C52)/ABS(C52))*100)))) -> -3.544528135 | G52: =CountCu_C4 -> 2074 | H52: =IF(G52="N/A", " ", IF(E52="N/A", " ",IF(AND(E52=0,G52=0,),"N/A",IF(ABS(E52)=0, "N/A", ((G52-E52)/ABS(E52))*100)))) -> -4.73128158 | I52: =CountCu_C5 -> 1999 | J52: =IF(I52="N/A", " ", IF(G52="N/A", " ",IF(AND(G52=0,I52=0,),"N/A",IF(ABS(G52)=0, "N/A", ((I52-G52)/ABS(G52))*100)))) -> -3.616200579
A53: * Income/Expense items are year-to-date while the related %change ratios are annualized.
A54: # Means the number is too large to display in the cell
A55: 1 Prior to September 2010, this account was named Net Income (Loss) Before NCUSIF Stabilization Expense. From December 2010 forward, NCUSIF Stabilization Income, if any, is excluded.
A56: 2 Prior to September 2010, this account was named NCUSIF Stabilization Expense. For December 2010 and forward, this account includes Temporary Corporate CU Stabilization Expense and NCUSIF Premiums.
A57: 3 March 2014 and forward includes "Non-Trading Derivative Liabilities, net."
A58: 4 December 2011 and forward includes "Subordinated Debt Included in Net Worth." | I58: 1. Summary Financial

Sheet 2. Ratios
C1: Ratio Analysis
A2: Return to cover | C2: For Charter : | D2: =IF(CU_NUMBER="","N/A",CU_NUMBER) -> N/A
A3: =IF(Request_Date=0,"N/A",Request_Date) -> 05/15/2019 | C3: Count of CU : | D3: =IF(CountCu_C5=0,"N/A",CountCu_C5) -> 1999
A4: ="CU Name: "&IF(Cu_Name="","N/A",Cu_Name) -> CU Name: N/A | C4: Asset Range : | D4: =IF(AssetRange="","N/A",AssetRange) -> N/A
A5: ="Peer Group: "&IF(Peer_Group="","N/A",IF(Peer_Group="0","N/A",Peer_Group)) -> Peer Group: N/A | C5: Criteria : | D5: =IF(_xlnm.Criteria="","N/A",_xlnm.Criteria) -> Region: Nation * Peer Group: All * Type Included: Federally Insured State Credit Union (FISCU) *
C6: Count of CU in Peer Group : | D6: =IF(NoCu_in_Peer_Group="","N/A",NoCu_in_Peer_Group) -> N/A | E6: =IF(CU_NUMBER>0,"",IF(RetPop=0,"Retroactive Population","")) ->  | F6: =(CycDat_C4) -> 2017-12-31 | I6: =(CycDat_C5) -> 2018-12-31
B8: =(CycDat_C1) -> 2014-12-31 | C8: =(CycDat_C2) -> 2015-12-31 | D8: =(CycDat_C3) -> 2016-12-31 | E8: =(CycDat_C4) -> 2017-12-31 | F8: PEER Avg | G8: Percentile** | H8: =(CycDat_C5) -> 2018-12-31 | I8: PEER Avg | J8: Percentile**
A9: CAPITAL ADEQUACY
A10: Net Worth/Total Assets | B10: =TRUNC(IF(A010_C1=0, 0, (A997_C1/A010_C1)*100),2) -> 10.89 | C10: =TRUNC(IF(A010_C2=0, 0, (A997_C2/A010_C2)*100),2) -> 10.89 | D10: =TRUNC(IF(A010_C3=0, 0, (A997_C3/A010_C3)*100),2) -> 10.8 | E10: =TRUNC(IF(A010_C4=0, 0, (A997_C4/A010_C4)*100),2) -> 10.86 | F10: =IF(CU_NUMBER="","N/A",IF(PR_1_C4=0,"N/A",TRUNC(PR_1_C4,2))) -> N/A | G10: =IF(CU_NUMBER="","N/A",IF(E10="N/A","N/A",IF(AND(E10=0,R_1_C4<>0,),R_1_C4,IF(R_1_C4=0,"N/A",R_1_C4)))) -> N/A | H10: =TRUNC(IF(A010_C5=0, 0, (A997_C5/A010_C5)*100),2) -> 11.19 | I10: =IF(CU_NUMBER="","N/A",IF(PR_1_C5=0,"N/A",TRUNC(PR_1_C5,2))) -> N/A | J10: =IF(CU_NUMBER="","N/A",IF(H10="N/A","N/A",IF(AND(H10=0,R_1_C5<>0,),R_1_C5,IF(R_1_C5=0,"N/A",R_1_C5)))) -> N/A
A11: Net Worth/Total Assets--Including Optional Total Assets Election (if used) | B11: =IF((A010A_C1+A010B_C1+A010C_C1+A010X_C1)>0,TRUNC((A997_C1/(A010A_C1+A010B_C1+A010C_C1+A010X_C1))*100,2),IF(A010_C1>0,TRUNC((A997_C1/A010_C1)*100,2),"N/A")) -> 10.93 | C11: =IF((A010A_C2+A010B_C2+A010C_C2+A010X_C2)>0,TRUNC((A997_C2/(A010A_C2+A010B_C2+A010C_C2+A010X_C2))*100,2),IF(A010_C2>0,TRUNC((A997_C2/A010_C2)*100,2),"N/A")) -> 10.94 | D11: =IF((A010A_C3+A010B_C3+A010C_C3+A010X_C3)>0,TRUNC((A997_C3/(A010A_C3+A010B_C3+A010C_C3+A010X_C3))*100,2),IF(A010_C3>0,TRUNC((A997_C3/A010_C3)*100,2),"N/A")) -> 10.84 | E11: =IF((A010A_C4+A010B_C4+A010C_C4+A010X_C4)>0,TRUNC((A997_C4/(A010A_C4+A010B_C4+A010C_C4+A010X_C4))*100,2),IF(A010_C4>0,TRUNC((A997_C4/A010_C4)*100,2),"N/A")) -> 10.89 | F11: =IF(CU_NUMBER="","N/A",IF(PR_2_C4=0,"N/A",TRUNC(PR_2_C4,2))) -> N/A | G11: =IF(CU_NUMBER="","N/A",IF(E11="N/A","N/A",IF(AND(E11=0,R_2_C4<>0,),R_2_C4,IF(R_2_C4=0,"N/A",R_2_C4)))) -> N/A | H11: =IF((A010A_C5+A010B_C5+A010C_C5+A010X_C5)>0,TRUNC((A997_C5/(A010A_C5+A010B_C5+A010C_C5+A010X_C5))*100,2),IF(A010_C5>0,TRUNC((A997_C5/A010_C5)*100,2),"N/A")) -> 11.22 | I11: =IF(CU_NUMBER="","N/A",IF(PR_2_C5=0,"N/A",TRUNC(PR_2_C5,2))) -> N/A | J11: =IF(CU_NUMBER="","N/A",IF(H11="N/A","N/A",IF(AND(H11=0,R_2_C5<>0,),R_2_C5,IF(R_2_C5=0,"N/A",R_2_C5)))) -> N/A
A12: Total Delinquent Loans / Net Worth 3 | B12: =IF(A997_C1=0,0,(A041B_C1/A997_C1)*100) -> 4.844381138 | C12: =IF(A997_C2=0,0,(A041B_C2/A997_C2)*100) -> 4.751667495 | D12: =IF(A997_C3=0,0,(A041B_C3/A997_C3)*100) -> 5.135589039 | E12: =IF(A997_C4=0,0,(A041B_C4/A997_C4)*100) -> 5.123978331 | F12: =IF(CU_NUMBER="","N/A",IF(PR_3_C4=0,"N/A",PR_3_C4)) -> N/A | G12: =IF(CU_NUMBER="","N/A",IF(E12="N/A","N/A",IF(AND(E12=0,R_3_C4<>0,),R_3_C4,IF(R_3_C4=0,"N/A",R_3_C4)))) -> N/A | H12: =IF(A997_C5=0,0,(A041B_C5/A997_C5)*100) -> 4.232317152 | I12: =IF(CU_NUMBER="","N/A",IF(PR_3_C5=0,"N/A",PR_3_C5)) -> N/A | J12: =IF(CU_NUMBER="","N/A",IF(H12="N/A","N/A",IF(AND(H12=0,R_3_C5<>0,),R_3_C5,IF(R_3_C5=0,"N/A",R_3_C5)))) -> N/A
A13: Solvency Evaluation (Estimated) | B13: =IF(B8>=DATEVALUE("12/31/2011"),(Calc((A010_C1-(A860C_C1-A925A_C1)-A825_C1-A668_C1-A820A_C1),A018_C1)*100),IF(B8>=DATEVALUE("12/31/2000"),(Calc((A010_C1-(A860C_C1-A925_C1)-A825_C1-A668_C1-A820A_C1),A018_C1)*100),(Calc((A010_C1-(A860C_C1-A925_C1)-A825_C1-A668_C1-A820_C1),A018_C1)*100))) ->  | C13: =IF(C8>=DATEVALUE("12/31/2011"),(Calc((A010_C2-(A860C_C2-A925A_C2)-A825_C2-A668_C2-A820A_C2),A018_C2)*100),IF(C8>=DATEVALUE("12/31/2000"),(Calc((A010_C2-(A860C_C2-A925_C2)-A825_C2-A668_C2-A820A_C2),A018_C2)*100),(Calc((A010_C2-(A860C_C2-A925_C2)-A825_C2-A668_C2-A820_C2),A018_C2)*100))) ->  | D13: =IF(D8>=DATEVALUE("12/31/2011"),(Calc((A010_C3-(A860C_C3-A925A_C3)-A825_C3-A668_C3-A820A_C3),A018_C3)*100),IF(D8>=DATEVALUE("12/31/2000"),(Calc((A010_C3-(A860C_C3-A925_C3)-A825_C3-A668_C3-A820A_C3),A018_C3)*100),(Calc((A010_C3-(A860C_C3-A925_C3)-A825_C3-A668_C3-A820_C3),A018_C3)*100))) ->  | E13: =IF(E8>=DATEVALUE("12/31/2011"),(Calc((A010_C4-(A860C_C4-A925A_C4)-A825_C4-A668_C4-A820A_C4),A018_C4)*100),IF(E8>=DATEVALUE("12/31/2000"),(Calc((A010_C4-(A860C_C4-A925_C4)-A825_C4-A668_C4-A820A_C4),A018_C4)*100),(Calc((A010_C4-(A860C_C4-A925_C4)-A825_C4-A668_C4-A820_C4),A018_C4)*100))) ->  | F13: =IF(CU_NUMBER="","N/A",IF(PR_4_C4=0,"N/A",PR_4_C4)) -> N/A | G13: =IF(CU_NUMBER="","N/A",IF(E13="N/A","N/A",IF(AND(E13=0,R_4_C4<>0,),R_4_C4,IF(R_4_C4=0,"N/A",R_4_C4)))) -> N/A | H13: =IF(H8>=DATEVALUE("12/31/2011"),(Calc((A010_C5-(A860C_C5-A925A_C5)-A825_C5-A668_C5-A820A_C5),A018_C5)*100),IF(H8>=DATEVALUE("12/31/2000"),(Calc((A010_C5-(A860C_C5-A925_C5)-A825_C5-A668_C5-A820A_C5),A018_C5)*100),(Calc((A010_C5-(A860C_C5-A925_C5)-A825_C5-A668_C5-A820_C5),A018_C5)*100))) ->  | I13: =IF(CU_NUMBER="","N/A",IF(PR_4_C5=0,"N/A",PR_4_C5)) -> N/A | J13: =IF(CU_NUMBER="","N/A",IF(H13="N/A","N/A",IF(AND(H13=0,R_4_C5<>0,),R_4_C5,IF(R_4_C5=0,"N/A",R_4_C5)))) -> N/A
A14: Classified Assets (Estimated) / Net Worth | B14: =IF(A997_C1=0,0,((A719_C1+A668_C1)/A997_C1)*100) -> 5.849951648 | C14: =IF(A997_C2=0,0,((A719_C2+A668_C2)/A997_C2)*100) -> 5.599413929 | D14: =IF(A997_C3=0,0,((A719_C3+A668_C3)/A997_C3)*100) -> 5.30398527 | E14: =IF(A997_C4=0,0,((A719_C4+A668_C4)/A997_C4)*100) -> 5.48964758 | F14: =IF(CU_NUMBER="","N/A",IF(PR_5_C4=0,"N/A",PR_5_C4)) -> N/A | G14: =IF(CU_NUMBER="","N/A",IF(E14="N/A","N/A",IF(AND(E14=0,R_5_C4<>0,),R_5_C4,IF(R_5_C4=0,"N/A",R_5_C4)))) -> N/A | H14: =IF(A997_C5=0,0,((A719_C5+A668_C5)/A997_C5)*100) -> 5.099353344 | I14: =IF(CU_NUMBER="","N/A",IF(PR_5_C5=0,"N/A",PR_5_C5)) -> N/A | J14: =IF(CU_NUMBER="","N/A",IF(H14="N/A","N/A",IF(AND(H14=0,R_5_C5<>0,),R_5_C5,IF(R_5_C5=0,"N/A",R_5_C5)))) -> N/A
A15: ASSET QUALITY
A16: Delinquent Loans / Total Loans 3 | B16: =IF(A025B_C1=0,0,(A041B_C1/A025B_C1)*100) -> 0.819197278 | C16: =IF(A025B_C2=0,0,(A041B_C2/A025B_C2)*100) -> 0.7807328111 | D16: =IF(A025B_C3=0,0,(A041B_C3/A025B_C3)*100) -> 0.8132419727 | E16: =IF(A025B_C4=0,0,(A041B_C4/A025B_C4)*100) -> 0.787042542 | F16: =IF(CU_NUMBER="","N/A",IF(PR_6_C4=0,"N/A",PR_6_C4)) -> N/A | G16: =IF(CU_NUMBER="","N/A",IF(E16="N/A","N/A",IF(AND(E16=0,R_6_C4<>0,),R_6_C4,IF(R_6_C4=0,"N/A",R_6_C4)))) -> N/A | H16: =IF(A025B_C5=0,0,(A041B_C5/A025B_C5)*100) -> 0.6490369146 | I16: =IF(CU_NUMBER="","N/A",IF(PR_6_C5=0,"N/A",PR_6_C5)) -> N/A | J16: =IF(CU_NUMBER="","N/A",IF(H16="N/A","N/A",IF(AND(H16=0,R_6_C5<>0,),R_6_C5,IF(R_6_C5=0,"N/A",R_6_C5)))) -> N/A
A17: * Net Charge-Offs / Average Loans | B17: =IF((A025B_C1+pA025B_C1)/2=0,0,(((A550_C1-A551_C1)/((A025B_C1+pA025B_C1)/2)*100)*Anu_C1)) -> 0.4379316329 | C17: =IF((A025B_C2+pA025B_C2)/2=0,0,(((A550_C2-A551_C2)/((A025B_C2+pA025B_C2)/2)*100)*Anu_C2)) -> 0.3956825027 | D17: =IF((A025B_C3+pA025B_C3)/2=0,0,(((A550_C3-A551_C3)/((A025B_C3+pA025B_C3)/2)*100)*Anu_C3)) -> 0.4748265351 | E17: =IF((A025B_C4+pA025B_C4)/2=0,0,(((A550_C4-A551_C4)/((A025B_C4+pA025B_C4)/2)*100)*Anu_C4)) -> 0.5027081476 | F17: =IF(CU_NUMBER="","N/A",IF(PR_7_C4=0,"N/A",PR_7_C4)) -> N/A | G17: =IF(CU_NUMBER="","N/A",IF(E17="N/A","N/A",IF(AND(E17=0,R_7_C4<>0,),R_7_C4,IF(R_7_C4=0,"N/A",R_7_C4)))) -> N/A | H17: =IF((A025B_C5+pA025B_C5)/2=0,0,(((A550_C5-A551_C5)/((A025B_C5+pA025B_C5)/2)*100)*Anu_C5)) -> 0.4553842114 | I17: =IF(CU_NUMBER="","N/A",IF(PR_7_C5=0,"N/A",PR_7_C5)) -> N/A | J17: =IF(CU_NUMBER="","N/A",IF(H17="N/A","N/A",IF(AND(H17=0,R_7_C5<>0,),R_7_C5,IF(R_7_C5=0,"N/A",R_7_C5)))) -> N/A
A18: Fair (Market) HTM Invest Value/Book Value HTM Invest. | B18: =IF(A796E_C1=0, 0,((A801_C1/A796E_C1)*100)) -> 100.1399498 | C18: =IF(A796E_C2=0, 0,((A801_C2/A796E_C2)*100)) -> 99.79662198 | D18: =IF(A796E_C3=0, 0,((A801_C3/A796E_C3)*100)) -> 99.73546488 | E18: =IF(A796E_C4=0, 0,((A801_C4/A796E_C4)*100)) -> 99.11659351 | F18: =IF(CU_NUMBER="","N/A",IF(PR_8_C4=0,"N/A",PR_8_C4)) -> N/A | G18: =IF(CU_NUMBER="","N/A",IF(E18="N/A","N/A",IF(AND(E18=0,R_8_C4<>0,),R_8_C4,IF(R_8_C4=0,"N/A",R_8_C4)))) -> N/A | H18: =IF(A796E_C5=0, 0,((A801_C5/A796E_C5)*100)) -> 98.68608756 | I18: =IF(CU_NUMBER="","N/A",IF(PR_8_C5=0,"N/A",PR_8_C5)) -> N/A | J18: =IF(CU_NUMBER="","N/A",IF(H18="N/A","N/A",IF(AND(H18=0,R_8_C5<>0,),R_8_C5,IF(R_8_C5=0,"N/A",R_8_C5)))) -> N/A
A19: Accum Unreal G/L On AFS/Cost Of AFS | B19: =IF((A797E_C1-A945_C1)=0,0, (A945_C1/(A797E_C1-A945_C1))*100) -> 0.04397851529 | C19: =IF((A797E_C2-A945_C2)=0,0, (A945_C2/(A797E_C2-A945_C2))*100) -> -0.3600861065 | D19: =IF((A797E_C3-A945_C3)=0,0, (A945_C3/(A797E_C3-A945_C3))*100) -> -0.7755700669 | E19: =IF((A797E_C4-A945_C4)=0,0, (A945_C4/(A797E_C4-A945_C4))*100) -> -0.9908842301 | F19: =IF(CU_NUMBER="","N/A",IF(PR_9_C4=0,"N/A",PR_9_C4)) -> N/A | G19: =IF(CU_NUMBER="","N/A",IF(E19="N/A","N/A",IF(AND(E19=0,R_9_C4<>0,),R_9_C4,IF(R_9_C4=0,"N/A",R_9_C4)))) -> N/A | H19: =IF((A797E_C5-A945_C5)=0,0, (A945_C5/(A797E_C5-A945_C5))*100) -> -1.641169764 | I19: =IF(CU_NUMBER="","N/A",IF(PR_9_C5=0,"N/A",PR_9_C5)) -> N/A | J19: =IF(CU_NUMBER="","N/A",IF(H19="N/A","N/A",IF(AND(H19=0,R_9_C5<>0,),R_9_C5,IF(R_9_C5=0,"N/A",R_9_C5)))) -> N/A
A20: Delinquent Loans / Assets 3 | B20: =IF(A010_C1=0,0, (A041B_C1/A010_C1)*100) -> 0.5279232983 | C20: =IF(A010_C2=0,0, (A041B_C2/A010_C2)*100) -> 0.51792884 | D20: =IF(A010_C3=0,0, (A041B_C3/A010_C3)*100) -> 0.5548216499 | E20: =IF(A010_C4=0,0, (A041B_C4/A010_C4)*100) -> 0.5566687651 | F20: =IF(CU_NUMBER="","N/A",IF(PR_10_C4=0,"N/A",PR_10_C4)) -> N/A | G20: =IF(CU_NUMBER="","N/A",IF(E20="N/A","N/A",IF(AND(E20=0,R_10_C4<>0,),R_10_C4,IF(R_10_C4=0,"N/A",R_10_C4)))) -> N/A | H20: =IF(A010_C5=0,0, (A041B_C5/A010_C5)*100) -> 0.4737708631 | I20: =IF(CU_NUMBER="","N/A",IF(PR_10_C5=0,"N/A",PR_10_C5)) -> N/A | J20: =IF(CU_NUMBER="","N/A",IF(H20="N/A","N/A",IF(AND(H20=0,R_10_C5<>0,),R_10_C5,IF(R_10_C5=0,"N/A",R_10_C5)))) -> N/A
A21: EARNINGS
A22: * Return On Average Assets | B22: =IF((A010_C1+pA010_C1)/2=0, 0, ((A661A_C1/((A010_C1+pA010_C1)/2))*100)*Anu_C1) -> 0.8285956521 | C22: =IF((A010_C2+pA010_C2)/2=0, 0, ((A661A_C2/((A010_C2+pA010_C2)/2))*100)*Anu_C2) -> 0.7540160538 | D22: =IF((A010_C3+pA010_C3)/2=0, 0, ((A661A_C3/((A010_C3+pA010_C3)/2))*100)*Anu_C3) -> 0.7530128973 | E22: =IF((A010_C4+pA010_C4)/2=0, 0, ((A661A_C4/((A010_C4+pA010_C4)/2))*100)*Anu_C4) -> 0.7460213865 | F22: =IF(CU_NUMBER="","N/A",IF(PR_11_C4=0,"N/A",PR_11_C4)) -> N/A | G22: =IF(CU_NUMBER="","N/A",IF(E22="N/A","N/A",IF(AND(E22=0,R_11_C4<>0,),R_11_C4,IF(R_11_C4=0,"N/A",R_11_C4)))) -> N/A | H22: =IF((A010_C5+pA010_C5)/2=0, 0, ((A661A_C5/((A010_C5+pA010_C5)/2))*100)*Anu_C5) -> 0.9036559784 | I22: =IF(CU_NUMBER="","N/A",IF(PR_11_C5=0,"N/A",PR_11_C5)) -> N/A | J22: =IF(CU_NUMBER="","N/A",IF(H22="N/A","N/A",IF(AND(H22=0,R_11_C5<>0,),R_11_C5,IF(R_11_C5=0,"N/A",R_11_C5)))) -> N/A
A23: * Return On Average Assets Excluding Stabilization Income/Expense & NCUSIF Premium 2 | B23: =IF(B8>=DATEVALUE("12/31/2010"),Calc(A660A_C1,(A010_C1+pA010_C1)/2)*100*Anu_C1,IF(B8>=DATEVALUE("09/30/2009"),Calc(A660A_C1-A440A_C1,(A010_C1+pA010_C1)/2)*100*Anu_C1,IF(B8>=DATEVALUE("03/31/2009"),Calc(A660A_C1,(A010_C1+pA010_C1)/2)*100*Anu_C1,"N/A"))) ->  | C23: =IF(C8>=DATEVALUE("12/31/2010"),Calc(A660A_C2,(A010_C2+pA010_C2)/2)*100*Anu_C2,IF(C8>=DATEVALUE("09/30/2009"),Calc(A660A_C2-A440A_C2,(A010_C2+pA010_C2)/2)*100*Anu_C2,IF(C8>=DATEVALUE("03/31/2009"),Calc(A660A_C2,(A010_C2+pA010_C2)/2)*100*Anu_C2,"N/A"))) ->  | D23: =IF(D8>=DATEVALUE("12/31/2010"),Calc(A660A_C3,(A010_C3+pA010_C3)/2)*100*Anu_C3,IF(D8>=DATEVALUE("09/30/2009"),Calc(A660A_C3-A440A_C3,(A010_C3+pA010_C3)/2)*100*Anu_C3,IF(D8>=DATEVALUE("03/31/2009"),Calc(A660A_C3,(A010_C3+pA010_C3)/2)*100*Anu_C3,"N/A"))) ->  | E23: =IF(E8>=DATEVALUE("12/31/2010"),Calc(A660A_C4,(A010_C4+pA010_C4)/2)*100*Anu_C4,IF(E8>=DATEVALUE("09/30/2009"),Calc(A660A_C4-A440A_C4,(A010_C4+pA010_C4)/2)*100*Anu_C4,IF(E8>=DATEVALUE("03/31/2009"),Calc(A660A_C4,(A010_C4+pA010_C4)/2)*100*Anu_C4,"N/A"))) ->  | F23: =IF(CU_NUMBER="","N/A",IF(PR_160_C4=0,"N/A",PR_160_C4)) -> N/A | G23: =IF(CU_NUMBER="","N/A",IF(E23="N/A","N/A",IF(AND(E23=0,R_160_C4<>0,),R_160_C4,IF(R_160_C4=0,"N/A",R_160_C4)))) -> N/A | H23: =IF(H8>=DATEVALUE("12/31/2010"),Calc(A660A_C5,(A010_C5+pA010_C5)/2)*100*Anu_C5,IF(H8>=DATEVALUE("09/30/2009"),Calc(A660A_C5-A440A_C5,(A010_C5+pA010_C5)/2)*100*Anu_C5,IF(H8>=DATEVALUE("03/31/2009"),Calc(A660A_C5,(A010_C5+pA010_C5)/2)*100*Anu_C5,"N/A"))) ->  | I23: =IF(CU_NUMBER="","N/A",IF(PR_160_C5=0,"N/A",PR_160_C5)) -> N/A | J23: =IF(CU_NUMBER="","N/A",IF(H23="N/A","N/A",IF(AND(H23=0,R_160_C5<>0,),R_160_C5,IF(R_160_C5=0,"N/A",R_160_C5)))) -> N/A
A24: * Gross Income/Average Assets | B24: =IF((A010_C1+pA010_C1)/2=0, 0, (((A115_C1 +A131_C1+A659_C1)/((A010_C1+pA010_C1)/2))*100)*Anu_C1) -> 4.611994738 | C24: =IF((A010_C2+pA010_C2)/2=0, 0, (((A115_C2 +A131_C2+A659_C2)/((A010_C2+pA010_C2)/2))*100)*Anu_C2) -> 4.627913884 | D24: =IF((A010_C3+pA010_C3)/2=0, 0, (((A115_C3 +A131_C3+A659_C3)/((A010_C3+pA010_C3)/2))*100)*Anu_C3) -> 4.633674097 | E24: =IF((A010_C4+pA010_C4)/2=0, 0, (((A115_C4 +A131_C4+A659_C4)/((A010_C4+pA010_C4)/2))*100)*Anu_C4) -> 4.734922775 | F24: =IF(CU_NUMBER="","N/A",IF(PR_12_C4=0,"N/A",PR_12_C4)) -> N/A | G24: =IF(CU_NUMBER="","N/A",IF(E24="N/A","N/A",IF(AND(E24=0,R_12_C4<>0,),R_12_C4,IF(R_12_C4=0,"N/A",R_12_C4)))) -> N/A | H24: =IF((A010_C5+pA010_C5)/2=0, 0, (((A115_C5 +A131_C5+A659_C5)/((A010_C5+pA010_C5)/2))*100)*Anu_C5) -> 5.059599697 | I24: =IF(CU_NUMBER="","N/A",IF(PR_12_C5=0,"N/A",PR_12_C5)) -> N/A | J24: =IF(CU_NUMBER="","N/A",IF(H24="N/A","N/A",IF(AND(H24=0,R_12_C5<>0,),R_12_C5,IF(R_12_C5=0,"N/A",R_12_C5)))) -> N/A
A25: * Yield on Average Loans | B25: =IF((A025B_C1+pA025B_C1)/2=0, 0, (((A110_C1-A119_C1)/((A025B_C1+pA025B_C1)/2))*100)*Anu_C1) -> 4.652309511 | C25: =IF((A025B_C2+pA025B_C2)/2=0, 0, (((A110_C2-A119_C2)/((A025B_C2+pA025B_C2)/2))*100)*Anu_C2) -> 4.495179009 | D25: =IF((A025B_C3+pA025B_C3)/2=0, 0, (((A110_C3-A119_C3)/((A025B_C3+pA025B_C3)/2))*100)*Anu_C3) -> 4.352352176 | E25: =IF((A025B_C4+pA025B_C4)/2=0, 0, (((A110_C4-A119_C4)/((A025B_C4+pA025B_C4)/2))*100)*Anu_C4) -> 4.324105161 | F25: =IF(CU_NUMBER="","N/A",IF(PR_13_C4=0,"N/A",PR_13_C4)) -> N/A | G25: =IF(CU_NUMBER="","N/A",IF(E25="N/A","N/A",IF(AND(E25=0,R_13_C4<>0,),R_13_C4,IF(R_13_C4=0,"N/A",R_13_C4)))) -> N/A | H25: =IF((A025B_C5+pA025B_C5)/2=0, 0, (((A110_C5-A119_C5)/((A025B_C5+pA025B_C5)/2))*100)*Anu_C5) -> 4.47531555 | I25: =IF(CU_NUMBER="","N/A",IF(PR_13_C5=0,"N/A",PR_13_C5)) -> N/A | J25: =IF(CU_NUMBER="","N/A",IF(H25="N/A","N/A",IF(AND(H25=0,R_13_C5<>0,),R_13_C5,IF(R_13_C5=0,"N/A",R_13_C5)))) -> N/A
A26: * Yield on Average Investments | B26: =IF(B8<DATEVALUE("6/30/2006"),IF((A799_C1+pA799_C1)/2=0, 0, (((A120_C1+A124_C1)/((A799_C1+pA799_C1)/2))*100)*Anu_C1),IF((A799I_C1+A730B_C1+A730C_C1+pA799I_C1+pA730B_C1+pA730C_C1)/2=0, 0, (((A120_C1+A124_C1)/((A799I_C1+A730B_C1+A730C_C1+pA799I_C1+pA730B_C1+pA730C_C1)/2))*100)*Anu_C1)) -> 1.165193295 | C26: =IF(C8<DATEVALUE("6/30/2006"),IF((A799_C2+pA799_C2)/2=0, 0, (((A120_C2+A124_C2)/((A799_C2+pA799_C2)/2))*100)*Anu_C2),IF((A799I_C2+A730B_C2+A730C_C2+pA799I_C2+pA730B_C2+pA730C_C2)/2=0, 0, (((A120_C2+A124_C2)/((A799I_C2+A730B_C2+A730C_C2+pA799I_C2+pA730B_C2+pA730C_C2)/2))*100)*Anu_C2)) -> 1.163800974 | D26: =IF(D8<DATEVALUE("6/30/2006"),IF((A799_C3+pA799_C3)/2=0, 0, (((A120_C3+A124_C3)/((A799_C3+pA799_C3)/2))*100)*Anu_C3),IF((A799I_C3+A730B_C3+A730C_C3+pA799I_C3+pA730B_C3+pA730C_C3)/2=0, 0, (((A120_C3+A124_C3)/((A799I_C3+A730B_C3+A730C_C3+pA799I_C3+pA730B_C3+pA730C_C3)/2))*100)*Anu_C3)) -> 1.269476288 | E26: =IF(E8<DATEVALUE("6/30/2006"),IF((A799_C4+pA799_C4)/2=0, 0, (((A120_C4+A124_C4)/((A799_C4+pA799_C4)/2))*100)*Anu_C4),IF((A799I_C4+A730B_C4+A730C_C4+pA799I_C4+pA730B_C4+pA730C_C4)/2=0, 0, (((A120_C4+A124_C4)/((A799I_C4+A730B_C4+A730C_C4+pA799I_C4+pA730B_C4+pA730C_C4)/2))*100)*Anu_C4)) -> 1.604900633 | F26: =IF(CU_NUMBER="","N/A",IF(PR_14_C4=0,"N/A",PR_14_C4)) -> N/A | G26: =IF(CU_NUMBER="","N/A",IF(E26="N/A","N/A",IF(AND(E26=0,R_14_C4<>0,),R_14_C4,IF(R_14_C4=0,"N/A",R_14_C4)))) -> N/A | H26: =IF(H8<DATEVALUE("6/30/2006"),IF((A799_C5+pA799_C5)/2=0, 0, (((A120_C5+A124_C5)/((A799_C5+pA799_C5)/2))*100)*Anu_C5),IF((A799I_C5+A730B_C5+A730C_C5+pA799I_C5+pA730B_C5+pA730C_C5)/2=0, 0, (((A120_C5+A124_C5)/((A799I_C5+A730B_C5+A730C_C5+pA799I_C5+pA730B_C5+pA730C_C5)/2))*100)*Anu_C5)) -> 2.01791753 | I26: =IF(CU_NUMBER="","N/A",IF(PR_14_C5=0,"N/A",PR_14_C5)) -> N/A | J26: =IF(CU_NUMBER="","N/A",IF(H26="N/A","N/A",IF(AND(H26=0,R_14_C5<>0,),R_14_C5,IF(R_14_C5=0,"N/A",R_14_C5)))) -> N/A
A27: * Fee & Other Op.Income / Avg. Assets | B27: =IF((A010_C1+pA010_C1)/2=0, 0, (((A131_C1+A659_C1)/((A010_C1+pA010_C1)/2))*100)*Anu_C1) -> 1.310267325 | C27: =IF((A010_C2+pA010_C2)/2=0, 0, (((A131_C2+A659_C2)/((A010_C2+pA010_C2)/2))*100)*Anu_C2) -> 1.344210858 | D27: =IF((A010_C3+pA010_C3)/2=0, 0, (((A131_C3+A659_C3)/((A010_C3+pA010_C3)/2))*100)*Anu_C3) -> 1.354152868 | E27: =IF((A010_C4+pA010_C4)/2=0, 0, (((A131_C4+A659_C4)/((A010_C4+pA010_C4)/2))*100)*Anu_C4) -> 1.323875613 | F27: =IF(CU_NUMBER="","N/A",IF(PR_15_C4=0,"N/A",PR_15_C4)) -> N/A | G27: =IF(CU_NUMBER="","N/A",IF(E27="N/A","N/A",IF(AND(E27=0,R_15_C4<>0,),R_15_C4,IF(R_15_C4=0,"N/A",R_15_C4)))) -> N/A | H27: =IF((A010_C5+pA010_C5)/2=0, 0, (((A131_C5+A659_C5)/((A010_C5+pA010_C5)/2))*100)*Anu_C5) -> 1.380478786 | I27: =IF(CU_NUMBER="","N/A",IF(PR_15_C5=0,"N/A",PR_15_C5)) -> N/A | J27: =IF(CU_NUMBER="","N/A",IF(H27="N/A","N/A",IF(AND(H27=0,R_15_C5<>0,),R_15_C5,IF(R_15_C5=0,"N/A",R_15_C5)))) -> N/A
A28: * Cost of Funds / Avg. Assets | B28: =IF((A010_C1+pA010_C1)/2=0, 0, (((A340_C1+A380_C1+A381_C1)/((A010_C1+pA010_C1)/2))*100)*Anu_C1) -> 0.5085981527 | C28: =IF((A010_C2+pA010_C2)/2=0, 0, (((A340_C2+A380_C2+A381_C2)/((A010_C2+pA010_C2)/2))*100)*Anu_C2) -> 0.4989828469 | D28: =IF((A010_C3+pA010_C3)/2=0, 0, (((A340_C3+A380_C3+A381_C3)/((A010_C3+pA010_C3)/2))*100)*Anu_C3) -> 0.5023690463 | E28: =IF((A010_C4+pA010_C4)/2=0, 0, (((A340_C4+A380_C4+A381_C4)/((A010_C4+pA010_C4)/2))*100)*Anu_C4) -> 0.5383005307 | F28: =IF(CU_NUMBER="","N/A",IF(PR_16_C4=0,"N/A",PR_16_C4)) -> N/A | G28: =IF(CU_NUMBER="","N/A",IF(E28="N/A","N/A",IF(AND(E28=0,R_16_C4<>0,),R_16_C4,IF(R_16_C4=0,"N/A",R_16_C4)))) -> N/A | H28: =IF((A010_C5+pA010_C5)/2=0, 0, (((A340_C5+A380_C5+A381_C5)/((A010_C5+pA010_C5)/2))*100)*Anu_C5) -> 0.6582283938 | I28: =IF(CU_NUMBER="","N/A",IF(PR_16_C5=0,"N/A",PR_16_C5)) -> N/A | J28: =IF(CU_NUMBER="","N/A",IF(H28="N/A","N/A",IF(AND(H28=0,R_16_C5<>0,),R_16_C5,IF(R_16_C5=0,"N/A",R_16_C5)))) -> N/A
A29: * Net Margin / Avg. Assets | B29: =IF((A010_C1+pA010_C1)/2=0, 0, ((((A115_C1 + A131_C1+ A659_C1)-A350_C1)/((A010_C1+pA010_C1)/2))*100)*Anu_C1) -> 4.103396586 | C29: =IF((A010_C2+pA010_C2)/2=0, 0, ((((A115_C2 + A131_C2+ A659_C2)-A350_C2)/((A010_C2+pA010_C2)/2))*100)*Anu_C2) -> 4.128931037 | D29: =IF((A010_C3+pA010_C3)/2=0, 0, ((((A115_C3 + A131_C3+ A659_C3)-A350_C3)/((A010_C3+pA010_C3)/2))*100)*Anu_C3) -> 4.131305051 | E29: =IF((A010_C4+pA010_C4)/2=0, 0, ((((A115_C4 + A131_C4+ A659_C4)-A350_C4)/((A010_C4+pA010_C4)/2))*100)*Anu_C4) -> 4.196622244 | F29: =IF(CU_NUMBER="","N/A",IF(PR_17_C4=0,"N/A",PR_17_C4)) -> N/A | G29: =IF(CU_NUMBER="","N/A",IF(E29="N/A","N/A",IF(AND(E29=0,R_17_C4<>0,),R_17_C4,IF(R_17_C4=0,"N/A",R_17_C4)))) -> N/A | H29: =IF((A010_C5+pA010_C5)/2=0, 0, ((((A115_C5 + A131_C5+ A659_C5)-A350_C5)/((A010_C5+pA010_C5)/2))*100)*Anu_C5) -> 4.401371303 | I29: =IF(CU_NUMBER="","N/A",IF(PR_17_C5=0,"N/A",PR_17_C5)) -> N/A | J29: =IF(CU_NUMBER="","N/A",IF(H29="N/A","N/A",IF(AND(H29=0,R_17_C5<>0,),R_17_C5,IF(R_17_C5=0,"N/A",R_17_C5)))) -> N/A
A30: * Operating Exp./ Avg. Assets | B30: =IF(B8>=DATEVALUE("12/31/2010"),Calc(A671_C1,(A010_C1+pA010_C1)/2)*100*Anu_C1,IF(B8>=DATEVALUE("3/31/2009"),Calc(A671_C1+A311_C1,(A010_C1+pA010_C1)/2)*100*Anu_C1,Calc(A671_C1,(A010_C1+pA010_C1)/2)*100*Anu_C1)) ->  | C30: =IF(C8>=DATEVALUE("12/31/2010"),Calc(A671_C2,(A010_C2+pA010_C2)/2)*100*Anu_C2,IF(C8>=DATEVALUE("3/31/2009"),Calc(A671_C2+A311_C2,(A010_C2+pA010_C2)/2)*100*Anu_C2,Calc(A671_C2,(A010_C2+pA010_C2)/2)*100*Anu_C2)) ->  | D30: =IF(D8>=DATEVALUE("12/31/2010"),Calc(A671_C3,(A010_C3+pA010_C3)/2)*100*Anu_C3,IF(D8>=DATEVALUE("3/31/2009"),Calc(A671_C3+A311_C3,(A010_C3+pA010_C3)/2)*100*Anu_C3,Calc(A671_C3,(A010_C3+pA010_C3)/2)*100*Anu_C3)) ->  | E30: =IF(E8>=DATEVALUE("12/31/2010"),Calc(A671_C4,(A010_C4+pA010_C4)/2)*100*Anu_C4,IF(E8>=DATEVALUE("3/31/2009"),Calc(A671_C4+A311_C4,(A010_C4+pA010_C4)/2)*100*Anu_C4,Calc(A671_C4,(A010_C4+pA010_C4)/2)*100*Anu_C4)) ->  | F30: =IF(CU_NUMBER="","N/A",IF(PR_18_C4=0,"N/A",PR_18_C4)) -> N/A | G30: =IF(CU_NUMBER="","N/A",IF(E30="N/A","N/A",IF(AND(E30=0,R_18_C4<>0,),R_18_C4,IF(R_18_C4=0,"N/A",R_18_C4)))) -> N/A | H30: =IF(H8>=DATEVALUE("12/31/2010"),Calc(A671_C5,(A010_C5+pA010_C5)/2)*100*Anu_C5,IF(H8>=DATEVALUE("3/31/2009"),Calc(A671_C5+A311_C5,(A010_C5+pA010_C5)/2)*100*Anu_C5,Calc(A671_C5,(A010_C5+pA010_C5)/2)*100*Anu_C5)) ->  | I30: =IF(CU_NUMBER="","N/A",IF(PR_18_C5=0,"N/A",PR_18_C5)) -> N/A | J30: =IF(CU_NUMBER="","N/A",IF(H30="N/A","N/A",IF(AND(H30=0,R_18_C5<>0,),R_18_C5,IF(R_18_C5=0,"N/A",R_18_C5)))) -> N/A
A31: * Provision For Loan & Lease Losses / Average Assets | B31: =IF((A010_C1+pA010_C1)/2=0, 0, ((A300_C1/((A010_C1+pA010_C1)/2))*100)*Anu_C1) -> 0.2301597698 | C31: =IF((A010_C2+pA010_C2)/2=0, 0, ((A300_C2/((A010_C2+pA010_C2)/2))*100)*Anu_C2) -> 0.290635112 | D31: =IF((A010_C3+pA010_C3)/2=0, 0, ((A300_C3/((A010_C3+pA010_C3)/2))*100)*Anu_C3) -> 0.3329660308 | E31: =IF((A010_C4+pA010_C4)/2=0, 0, ((A300_C4/((A010_C4+pA010_C4)/2))*100)*Anu_C4) -> 0.4112723356 | F31: =IF(CU_NUMBER="","N/A",IF(PR_19_C4=0,"N/A",PR_19_C4)) -> N/A | G31: =IF(CU_NUMBER="","N/A",IF(E31="N/A","N/A",IF(AND(E31=0,R_19_C4<>0,),R_19_C4,IF(R_19_C4=0,"N/A",R_19_C4)))) -> N/A | H31: =IF((A010_C5+pA010_C5)/2=0, 0, ((A300_C5/((A010_C5+pA010_C5)/2))*100)*Anu_C5) -> 0.371359417 | I31: =IF(CU_NUMBER="","N/A",IF(PR_19_C5=0,"N/A",PR_19_C5)) -> N/A | J31: =IF(CU_NUMBER="","N/A",IF(H31="N/A","N/A",IF(AND(H31=0,R_19_C5<>0,),R_19_C5,IF(R_19_C5=0,"N/A",R_19_C5)))) -> N/A
A32: * Net Interest Margin/Avg. Assets | B32: =IF((A010_C1+pA010_C1)/2=0, 0, (((A115_C1-A350_C1)/((A010_C1+pA010_C1)/2))*100)*Anu_C1) -> 2.793129261 | C32: =IF((A010_C2+pA010_C2)/2=0, 0, (((A115_C2-A350_C2)/((A010_C2+pA010_C2)/2))*100)*Anu_C2) -> 2.784720179 | D32: =IF((A010_C3+pA010_C3)/2=0, 0, (((A115_C3-A350_C3)/((A010_C3+pA010_C3)/2))*100)*Anu_C3) -> 2.777152183 | E32: =IF((A010_C4+pA010_C4)/2=0, 0, (((A115_C4-A350_C4)/((A010_C4+pA010_C4)/2))*100)*Anu_C4) -> 2.872746631 | F32: =IF(CU_NUMBER="","N/A",IF(PR_20_C4=0,"N/A",PR_20_C4)) -> N/A | G32: =IF(CU_NUMBER="","N/A",IF(E32="N/A","N/A",IF(AND(E32=0,R_20_C4<>0,),R_20_C4,IF(R_20_C4=0,"N/A",R_20_C4)))) -> N/A | H32: =IF((A010_C5+pA010_C5)/2=0, 0, (((A115_C5-A350_C5)/((A010_C5+pA010_C5)/2))*100)*Anu_C5) -> 3.020892518 | I32: =IF(CU_NUMBER="","N/A",IF(PR_20_C5=0,"N/A",PR_20_C5)) -> N/A | J32: =IF(CU_NUMBER="","N/A",IF(H32="N/A","N/A",IF(AND(H32=0,R_20_C5<>0,),R_20_C5,IF(R_20_C5=0,"N/A",R_20_C5)))) -> N/A
A33: Operating Exp./Gross Income | B33: =IF(B8>=DATEVALUE("12/31/2010"),(Calc(A671_C1,A115_C1+A131_C1+A659_C1)*100),IF(B8>=DATEVALUE("3/31/2009"),(Calc(A671_C1+A311_C1,A115_C1+A131_C1+A659_C1)*100),(Calc(A671_C1,A115_C1+A131_C1+A659_C1)*100))) ->  | C33: =IF(C8>=DATEVALUE("12/31/2010"),(Calc(A671_C2,A115_C2+A131_C2+A659_C2)*100),IF(C8>=DATEVALUE("3/31/2009"),(Calc(A671_C2+A311_C2,A115_C2+A131_C2+A659_C2)*100),(Calc(A671_C2,A115_C2+A131_C2+A659_C2)*100))) ->  | D33: =IF(D8>=DATEVALUE("12/31/2010"),(Calc(A671_C3,A115_C3+A131_C3+A659_C3)*100),IF(D8>=DATEVALUE("3/31/2009"),(Calc(A671_C3+A311_C3,A115_C3+A131_C3+A659_C3)*100),(Calc(A671_C3,A115_C3+A131_C3+A659_C3)*100))) ->  | E33: =IF(E8>=DATEVALUE("12/31/2010"),(Calc(A671_C4,A115_C4+A131_C4+A659_C4)*100),IF(E8>=DATEVALUE("3/31/2009"),(Calc(A671_C4+A311_C4,A115_C4+A131_C4+A659_C4)*100),(Calc(A671_C4,A115_C4+A131_C4+A659_C4)*100))) ->  | F33: =IF(CU_NUMBER="","N/A",IF(PR_21_C4=0,"N/A",PR_21_C4)) -> N/A | G33: =IF(CU_NUMBER="","N/A",IF(E33="N/A","N/A",IF(AND(E33=0,R_21_C4<>0,),R_21_C4,IF(R_21_C4=0,"N/A",R_21_C4)))) -> N/A | H33: =IF(H8>=DATEVALUE("12/31/2010"),(Calc(A671_C5,A115_C5+A131_C5+A659_C5)*100),IF(H8>=DATEVALUE("3/31/2009"),(Calc(A671_C5+A311_C5,A115_C5+A131_C5+A659_C5)*100),(Calc(A671_C5,A115_C5+A131_C5+A659_C5)*100))) ->  | I33: =IF(CU_NUMBER="","N/A",IF(PR_21_C5=0,"N/A",PR_21_C5)) -> N/A | J33: =IF(CU_NUMBER="","N/A",IF(H33="N/A","N/A",IF(AND(H33=0,R_21_C5<>0,),R_21_C5,IF(R_21_C5=0,"N/A",R_21_C5)))) -> N/A
A34: Fixed Assets & Foreclosed & Repossessed Assets / Total Assets 1 | B34: =IF(B8>DATEVALUE("12/31/2007"),IF(A010_C1=0, 0, ((A007_C1+A008_C1+A798A_C1+A980_C1)/A010_C1)*100), IF(B8>DATEVALUE("12/31/2003"), IF(A010_C1=0, 0, ((A007_C1+A008_C1+A798A_C1)/A010_C1)*100 ), IF(A010_C1=0,0, ( (A007_C1+A008_C1+A798_C1)/A010_C1)*100 ))) -> 2.35753988 | C34: =IF(C8>DATEVALUE("12/31/2007"),IF(A010_C2=0, 0, ((A007_C2+A008_C2+A798A_C2+A980_C2)/A010_C2)*100), IF(C8>DATEVALUE("12/31/2003"), IF(A010_C2=0, 0, ((A007_C2+A008_C2+A798A_C2)/A010_C2)*100 ), IF(A010_C2=0,0, ( (A007_C2+A008_C2+A798_C2)/A010_C2)*100 ))) -> 2.281555035 | D34: =IF(D8>DATEVALUE("12/31/2007"),IF(A010_C3=0, 0, ((A007_C3+A008_C3+A798A_C3+A980_C3)/A010_C3)*100), IF(D8>DATEVALUE("12/31/2003"), IF(A010_C3=0, 0, ((A007_C3+A008_C3+A798A_C3)/A010_C3)*100 ), IF(A010_C3=0,0, ( (A007_C3+A008_C3+A798_C3)/A010_C3)*100 ))) -> 2.256879321 | E34: =IF(E8>DATEVALUE("12/31/2007"),IF(A010_C4=0, 0, ((A007_C4+A008_C4+A798A_C4+A980_C4)/A010_C4)*100), IF(E8>DATEVALUE("12/31/2003"), IF(A010_C4=0, 0, ((A007_C4+A008_C4+A798A_C4)/A010_C4)*100 ), IF(A010_C4=0,0, ( (A007_C4+A008_C4+A798_C4)/A010_C4)*100 ))) -> 2.247929811 | F34: =IF(CU_NUMBER="","N/A",IF(PR_22_C4=0,"N/A",PR_22_C4)) -> N/A | G34: =IF(CU_NUMBER="","N/A",IF(E34="N/A","N/A",IF(AND(E34=0,R_22_C4<>0,),R_22_C4,IF(R_22_C4=0,"N/A",R_22_C4)))) -> N/A | H34: =IF(H8>DATEVALUE("12/31/2007"),IF(A010_C5=0, 0, ((A007_C5+A008_C5+A798A_C5+A980_C5)/A010_C5)*100), IF(H8>DATEVALUE("12/31/2003"), IF(A010_C5=0, 0, ((A007_C5+A008_C5+A798A_C5)/A010_C5)*100 ), IF(A010_C5=0,0, ( (A007_C5+A008_C5+A798_C5)/A010_C5)*100 ))) -> 2.292140115 | I34: =IF(CU_NUMBER="","N/A",IF(PR_22_C5=0,"N/A",PR_22_C5)) -> N/A | J34: =IF(CU_NUMBER="","N/A",IF(H34="N/A","N/A",IF(AND(H34=0,R_22_C5<>0,),R_22_C5,IF(R_22_C5=0,"N/A",R_22_C5)))) -> N/A
A35: * Net Operating Exp. /Avg. Assets | B35: =IF(B8>=DATEVALUE("12/31/2010"),Calc(A671_C1-A131_C1,(A010_C1+pA010_C1)/2)*100*Anu_C1,IF(B8>=DATEVALUE("3/31/2009"),Calc(A671_C1+A311_C1-A131_C1,(A010_C1+pA010_C1)/2)*100*Anu_C1,Calc(A671_C1-A131_C1,(A010_C1+pA010_C1)/2)*100*Anu_C1)) ->  | C35: =IF(C8>=DATEVALUE("12/31/2010"),Calc(A671_C2-A131_C2,(A010_C2+pA010_C2)/2)*100*Anu_C2,IF(C8>=DATEVALUE("3/31/2009"),Calc(A671_C2+A311_C2-A131_C2,(A010_C2+pA010_C2)/2)*100*Anu_C2,Calc(A671_C2-A131_C2,(A010_C2+pA010_C2)/2)*100*Anu_C2)) ->  | D35: =IF(D8>=DATEVALUE("12/31/2010"),Calc(A671_C3-A131_C3,(A010_C3+pA010_C3)/2)*100*Anu_C3,IF(D8>=DATEVALUE("3/31/2009"),Calc(A671_C3+A311_C3-A131_C3,(A010_C3+pA010_C3)/2)*100*Anu_C3,Calc(A671_C3-A131_C3,(A010_C3+pA010_C3)/2)*100*Anu_C3)) ->  | E35: =IF(E8>=DATEVALUE("12/31/2010"),Calc(A671_C4-A131_C4,(A010_C4+pA010_C4)/2)*100*Anu_C4,IF(E8>=DATEVALUE("3/31/2009"),Calc(A671_C4+A311_C4-A131_C4,(A010_C4+pA010_C4)/2)*100*Anu_C4,Calc(A671_C4-A131_C4,(A010_C4+pA010_C4)/2)*100*Anu_C4)) ->  | F35: =IF(CU_NUMBER="","N/A",IF(PR_23_C4=0,"N/A",PR_23_C4)) -> N/A | G35: =IF(CU_NUMBER="","N/A",IF(E35="N/A","N/A",IF(AND(E35=0,R_23_C4<>0,),R_23_C4,IF(R_23_C4=0,"N/A",R_23_C4)))) -> N/A | H35: =IF(H8>=DATEVALUE("12/31/2010"),Calc(A671_C5-A131_C5,(A010_C5+pA010_C5)/2)*100*Anu_C5,IF(H8>=DATEVALUE("3/31/2009"),Calc(A671_C5+A311_C5-A131_C5,(A010_C5+pA010_C5)/2)*100*Anu_C5,Calc(A671_C5-A131_C5,(A010_C5+pA010_C5)/2)*100*Anu_C5)) ->  | I35: =IF(CU_NUMBER="","N/A",IF(PR_23_C5=0,"N/A",PR_23_C5)) -> N/A | J35: =IF(CU_NUMBER="","N/A",IF(H35="N/A","N/A",IF(AND(H35=0,R_23_C5<>0,),R_23_C5,IF(R_23_C5=0,"N/A",R_23_C5)))) -> N/A
A36: ASSET / LIABILITY MANAGEMENT
A37: Net Long-Term Assets / Total Assets | B37: =IF(B8>DATEVALUE("6/30/2017"),Calc(A703A_C1+A386A_C1+A386B_C1-A712_C1+A400T1_C1+A799C1_C1+A799C2_C1+A799D_C1+A007_C1+A008_C1+A794_C1,A010_C1)*100,IF(B8>=DATEVALUE("3/31/2011"),Calc(A703_C1+A386_C1-A712_C1+A400T_C1-A814E_C1+A799C1_C1+A799C2_C1+A799D_C1+A007_C1+A008_C1-A718A_C1+A794_C1,A010_C1)*100,IF(B8>=DATEVALUE("3/31/2009"),Calc(A703_C1+A386_C1-A712_C1+A400A_C1+A400B_C1-A814_C1-A814A_C1-A814A1_C1+A799C1_C1+A799C2_C1+A799D_C1+A007_C1+A008_C1-A718A_C1+A794_C1,A010_C1)*100,IF(B8>=DATEVALUE("3/31/2005"),Calc(A703_C1+A386_C1-A712_C1+A400A_C1+A400B_C1-A814_C1-A814A_C1+A799C1_C1+A799C2_C1+A799D_C1+A007_C1+A008_C1-A718A_C1+A794_C1,A010_C1)*100,IF(B8>=DATEVALUE("6/30/2004"),Calc(A703_C1+A386_C1-A712_C1+A400A_C1+A400B_C1-A814_C1-A814A_C1+A799C_C1+A799D_C1+A007_C1+A008_C1-A718A_C1+A794_C1,A010_C1)*100,IF(B8>=DATEVALUE("3/31/2004"),Calc(A703_C1+A386_C1-A712_C1+A400A_C1+A400B_C1-A814_C1-A814A_C1+A799C_C1+A799D_C1+A007_C1+A008_C1-A718_C1+A794_C1,A010_C1)*100,IF(B8>=DATEVALUE("12/31/1999"),Calc(A703_C1+A386_C1-A712_C1+A042_C1+A387_C1+A799C_C1+A799D_C1+A007_C1+A008_C1-A718_C1+A794_C1,A010_C1)*100,"N/A"))))))) ->  | C37: =IF(C8>DATEVALUE("6/30/2017"),Calc(A703A_C2+A386A_C2+A386B_C2-A712_C2+A400T1_C2+A799C1_C2+A799C2_C2+A799D_C2+A007_C2+A008_C2+A794_C2,A010_C2)*100,IF(C8>=DATEVALUE("3/31/2011"),Calc(A703_C2+A386_C2-A712_C2+A400T_C2-A814E_C2+A799C1_C2+A799C2_C2+A799D_C2+A007_C2+A008_C2-A718A_C2+A794_C2,A010_C2)*100,IF(C8>=DATEVALUE("3/31/2009"),Calc(A703_C2+A386_C2-A712_C2+A400A_C2+A400B_C2-A814_C2-A814A_C2-A814A1_C2+A799C1_C2+A799C2_C2+A799D_C2+A007_C2+A008_C2-A718A_C2+A794_C2,A010_C2)*100,IF(C8>=DATEVALUE("3/31/2005"),Calc(A703_C2+A386_C2-A712_C2+A400A_C2+A400B_C2-A814_C2-A814A_C2+A799C1_C2+A799C2_C2+A799D_C2+A007_C2+A008_C2-A718A_C2+A794_C2,A010_C2)*100,IF(C8>=DATEVALUE("6/30/2004"),Calc(A703_C2+A386_C2-A712_C2+A400A_C2+A400B_C2-A814_C2-A814A_C2+A799C_C2+A799D_C2+A007_C2+A008_C2-A718A_C2+A794_C2,A010_C2)*100,IF(C8>=DATEVALUE("3/31/2004"),Calc(A703_C2+A386_C2-A712_C2+A400A_C2+A400B_C2-A814_C2-A814A_C2+A799C_C2+A799D_C2+A007_C2+A008_C2-A718_C2+A794_C2,A010_C2)*100,IF(C8>=DATEVALUE("12/31/1999"),Calc(A703_C2+A386_C2-A712_C2+A042_C2+A387_C2+A799C_C2+A799D_C2+A007_C2+A008_C2-A718_C2+A794_C2,A010_C2)*100,"N/A"))))))) ->  | D37: =IF(D8>DATEVALUE("6/30/2017"),Calc(A703A_C3+A386A_C3+A386B_C3-A712_C3+A400T1_C3+A799C1_C3+A799C2_C3+A799D_C3+A007_C3+A008_C3+A794_C3,A010_C3)*100,IF(D8>=DATEVALUE("3/31/2011"),Calc(A703_C3+A386_C3-A712_C3+A400T_C3-A814E_C3+A799C1_C3+A799C2_C3+A799D_C3+A007_C3+A008_C3-A718A_C3+A794_C3,A010_C3)*100,IF(D8>=DATEVALUE("3/31/2009"),Calc(A703_C3+A386_C3-A712_C3+A400A_C3+A400B_C3-A814_C3-A814A_C3-A814A1_C3+A799C1_C3+A799C2_C3+A799D_C3+A007_C3+A008_C3-A718A_C3+A794_C3,A010_C3)*100,IF(D8>=DATEVALUE("3/31/2005"),Calc(A703_C3+A386_C3-A712_C3+A400A_C3+A400B_C3-A814_C3-A814A_C3+A799C1_C3+A799C2_C3+A799D_C3+A007_C3+A008_C3-A718A_C3+A794_C3,A010_C3)*100,IF(D8>=DATEVALUE("6/30/2004"),Calc(A703_C3+A386_C3-A712_C3+A400A_C3+A400B_C3-A814_C3-A814A_C3+A799C_C3+A799D_C3+A007_C3+A008_C3-A718A_C3+A794_C3,A010_C3)*100,IF(D8>=DATEVALUE("3/31/2004"),Calc(A703_C3+A386_C3-A712_C3+A400A_C3+A400B_C3-A814_C3-A814A_C3+A799C_C3+A799D_C3+A007_C3+A008_C3-A718_C3+A794_C3,A010_C3)*100,IF(D8>=DATEVALUE("12/31/1999"),Calc(A703_C3+A386_C3-A712_C3+A042_C3+A387_C3+A799C_C3+A799D_C3+A007_C3+A008_C3-A718_C3+A794_C3,A010_C3)*100,"N/A"))))))) ->  | E37: =IF(E8>DATEVALUE("6/30/2017"),Calc(A703A_C4+A386A_C4+A386B_C4-A712_C4+A400T1_C4+A799C1_C4+A799C2_C4+A799D_C4+A007_C4+A008_C4+A794_C4,A010_C4)*100,IF(E8>=DATEVALUE("3/31/2011"),Calc(A703_C4+A386_C4-A712_C4+A400T_C4-A814E_C4+A799C1_C4+A799C2_C4+A799D_C4+A007_C4+A008_C4-A718A_C4+A794_C4,A010_C4)*100,IF(E8>=DATEVALUE("3/31/2009"),Calc(A703_C4+A386_C4-A712_C4+A400A_C4+A400B_C4-A814_C4-A814A_C4-A814A1_C4+A799C1_C4+A799C2_C4+A799D_C4+A007_C4+A008_C4-A718A_C4+A794_C4,A010_C4)*100,IF(E8>=DATEVALUE("3/31/2005"),Calc(A703_C4+A386_C4-A712_C4+A400A_C4+A400B_C4-A814_C4-A814A_C4+A799C1_C4+A799C2_C4+A799D_C4+A007_C4+A008_C4-A718A_C4+A794_C4,A010_C4)*100,IF(E8>=DATEVALUE("6/30/2004"),Calc(A703_C4+A386_C4-A712_C4+A400A_C4+A400B_C4-A814_C4-A814A_C4+A799C_C4+A799D_C4+A007_C4+A008_C4-A718A_C4+A794_C4,A010_C4)*100,IF(E8>=DATEVALUE("3/31/2004"),Calc(A703_C4+A386_C4-A712_C4+A400A_C4+A400B_C4-A814_C4-A814A_C4+A799C_C4+A799D_C4+A007_C4+A008_C4-A718_C4+A794_C4,A010_C4)*100,IF(E8>=DATEVALUE("12/31/1999"),Calc(A703_C4+A386_C4-A712_C4+A042_C4+A387_C4+A799C_C4+A799D_C4+A007_C4+A008_C4-A718_C4+A794_C4,A010_C4)*100,"N/A"))))))) ->  | F37: =IF(CU_NUMBER="","N/A",IF(PR_24_C4=0,"N/A",PR_24_C4)) -> N/A | G37: =IF(CU_NUMBER="","N/A",IF(E37="N/A","N/A",IF(AND(E37=0,R_24_C4<>0,),R_24_C4,IF(R_24_C4=0,"N/A",R_24_C4)))) -> N/A | H37: =IF(H8>DATEVALUE("6/30/2017"),Calc(A703A_C5+A386A_C5+A386B_C5-A712_C5+A400T1_C5+A799C1_C5+A799C2_C5+A799D_C5+A007_C5+A008_C5+A794_C5,A010_C5)*100,IF(H8>=DATEVALUE("3/31/2011"),Calc(A703_C5+A386_C5-A712_C5+A400T_C5-A814E_C5+A799C1_C5+A799C2_C5+A799D_C5+A007_C5+A008_C5-A718A_C5+A794_C5,A010_C5)*100,IF(H8>=DATEVALUE("3/31/2009"),Calc(A703_C5+A386_C5-A712_C5+A400A_C5+A400B_C5-A814_C5-A814A_C5-A814A1_C5+A799C1_C5+A799C2_C5+A799D_C5+A007_C5+A008_C5-A718A_C5+A794_C5,A010_C5)*100,IF(H8>=DATEVALUE("3/31/2005"),Calc(A703_C5+A386_C5-A712_C5+A400A_C5+A400B_C5-A814_C5-A814A_C5+A799C1_C5+A799C2_C5+A799D_C5+A007_C5+A008_C5-A718A_C5+A794_C5,A010_C5)*100,IF(H8>=DATEVALUE("6/30/2004"),Calc(A703_C5+A386_C5-A712_C5+A400A_C5+A400B_C5-A814_C5-A814A_C5+A799C_C5+A799D_C5+A007_C5+A008_C5-A718A_C5+A794_C5,A010_C5)*100,IF(H8>=DATEVALUE("3/31/2004"),Calc(A703_C5+A386_C5-A712_C5+A400A_C5+A400B_C5-A814_C5-A814A_C5+A799C_C5+A799D_C5+A007_C5+A008_C5-A718_C5+A794_C5,A010_C5)*100,IF(H8>=DATEVALUE("12/31/1999"),Calc(A703_C5+A386_C5-A712_C5+A042_C5+A387_C5+A799C_C5+A799D_C5+A007_C5+A008_C5-A718_C5+A794_C5,A010_C5)*100,"N/A"))))))) ->  | I37: =IF(CU_NUMBER="","N/A",IF(PR_24_C5=0,"N/A",PR_24_C5)) -> N/A | J37: =IF(CU_NUMBER="","N/A",IF(H37="N/A","N/A",IF(AND(H37=0,R_24_C5<>0,),R_24_C5,IF(R_24_C5=0,"N/A",R_24_C5)))) -> N/A
A38: Reg. Shares / Total Shares & Borrowings | B38: =IF(A018_C1+A860C_C1-A781_C1=0,0, (A657_C1/(A018_C1+A860C_C1-A781_C1))*100) -> 32.50988384 | C38: =IF(A018_C2+A860C_C2-A781_C2=0,0, (A657_C2/(A018_C2+A860C_C2-A781_C2))*100) -> 33.47148709 | D38: =IF(A018_C3+A860C_C3-A781_C3=0,0, (A657_C3/(A018_C3+A860C_C3-A781_C3))*100) -> 33.97338991 | E38: =IF(A018_C4+A860C_C4-A781_C4=0,0, (A657_C4/(A018_C4+A860C_C4-A781_C4))*100) -> 34.48498575 | F38: =IF(CU_NUMBER="","N/A",IF(PR_25_C4=0,"N/A",PR_25_C4)) -> N/A | G38: =IF(CU_NUMBER="","N/A",IF(E38="N/A","N/A",IF(AND(E38=0,R_25_C4<>0,),R_25_C4,IF(R_25_C4=0,"N/A",R_25_C4)))) -> N/A | H38: =IF(A018_C5+A860C_C5-A781_C5=0,0, (A657_C5/(A018_C5+A860C_C5-A781_C5))*100) -> 34.48226732 | I38: =IF(CU_NUMBER="","N/A",IF(PR_25_C5=0,"N/A",PR_25_C5)) -> N/A | J38: =IF(CU_NUMBER="","N/A",IF(H38="N/A","N/A",IF(AND(H38=0,R_25_C5<>0,),R_25_C5,IF(R_25_C5=0,"N/A",R_25_C5)))) -> N/A
A39: Total Loans / Total Shares | B39: =IF(A018_C1=0, 0, (A025B_C1/A018_C1)*100) -> 75.13485687 | C39: =IF(A018_C2=0, 0, (A025B_C2/A018_C2)*100) -> 77.40310827 | D39: =IF(A018_C3=0, 0, (A025B_C3/A018_C3)*100) -> 79.69672343 | E39: =IF(A018_C4=0, 0, (A025B_C4/A018_C4)*100) -> 82.71640122 | F39: =IF(CU_NUMBER="","N/A",IF(PR_26_C4=0,"N/A",PR_26_C4)) -> N/A | G39: =IF(CU_NUMBER="","N/A",IF(E39="N/A","N/A",IF(AND(E39=0,R_26_C4<>0,),R_26_C4,IF(R_26_C4=0,"N/A",R_26_C4)))) -> N/A | H39: =IF(A018_C5=0, 0, (A025B_C5/A018_C5)*100) -> 85.96743631 | I39: =IF(CU_NUMBER="","N/A",IF(PR_26_C5=0,"N/A",PR_26_C5)) -> N/A | J39: =IF(CU_NUMBER="","N/A",IF(H39="N/A","N/A",IF(AND(H39=0,R_26_C5<>0,),R_26_C5,IF(R_26_C5=0,"N/A",R_26_C5)))) -> N/A
A40: Total Loans / Total Assets | B40: =IF(A010_C1=0, 0, (A025B_C1/A010_C1)*100) -> 64.44397613 | C40: =IF(A010_C2=0, 0, (A025B_C2/A010_C2)*100) -> 66.33880793 | D40: =IF(A010_C3=0, 0, (A025B_C3/A010_C3)*100) -> 68.22344008 | E40: =IF(A010_C4=0, 0, (A025B_C4/A010_C4)*100) -> 70.72918367 | F40: =IF(CU_NUMBER="","N/A",IF(PR_27_C4=0,"N/A",PR_27_C4)) -> N/A | G40: =IF(CU_NUMBER="","N/A",IF(E40="N/A","N/A",IF(AND(E40=0,R_27_C4<>0,),R_27_C4,IF(R_27_C4=0,"N/A",R_27_C4)))) -> N/A | H40: =IF(A010_C5=0, 0, (A025B_C5/A010_C5)*100) -> 72.99598104 | I40: =IF(CU_NUMBER="","N/A",IF(PR_27_C5=0,"N/A",PR_27_C5)) -> N/A | J40: =IF(CU_NUMBER="","N/A",IF(H40="N/A","N/A",IF(AND(H40=0,R_27_C5<>0,),R_27_C5,IF(R_27_C5=0,"N/A",R_27_C5)))) -> N/A
A41: Cash + Short-Term Investments / Assets | B41: =IF(B8<DATEVALUE("6/30/2006"),IF(A010_C1=0, 0, ((A730A_C1+A799A_C1)/A010_C1)*100),IF(A010_C1=0, 0, ((A730A_C1+A730B_C1+A730C_C1+A799A1_C1)/A010_C1)*100)) -> 14.29523014 | C41: =IF(C8<DATEVALUE("6/30/2006"),IF(A010_C2=0, 0, ((A730A_C2+A799A_C2)/A010_C2)*100),IF(A010_C2=0, 0, ((A730A_C2+A730B_C2+A730C_C2+A799A1_C2)/A010_C2)*100)) -> 13.61502646 | D41: =IF(D8<DATEVALUE("6/30/2006"),IF(A010_C3=0, 0, ((A730A_C3+A799A_C3)/A010_C3)*100),IF(A010_C3=0, 0, ((A730A_C3+A730B_C3+A730C_C3+A799A1_C3)/A010_C3)*100)) -> 13.77552797 | E41: =IF(E8<DATEVALUE("6/30/2006"),IF(A010_C4=0, 0, ((A730A_C4+A799A_C4)/A010_C4)*100),IF(A010_C4=0, 0, ((A730A_C4+A730B_C4+A730C_C4+A799A1_C4)/A010_C4)*100)) -> 12.72658889 | F41: =IF(CU_NUMBER="","N/A",IF(PR_28_C4=0,"N/A",PR_28_C4)) -> N/A | G41: =IF(CU_NUMBER="","N/A",IF(E41="N/A","N/A",IF(AND(E41=0,R_28_C4<>0,),R_28_C4,IF(R_28_C4=0,"N/A",R_28_C4)))) -> N/A | H41: =IF(H8<DATEVALUE("6/30/2006"),IF(A010_C5=0, 0, ((A730A_C5+A799A_C5)/A010_C5)*100),IF(A010_C5=0, 0, ((A730A_C5+A730B_C5+A730C_C5+A799A1_C5)/A010_C5)*100)) -> 12.00518723 | I41: =IF(CU_NUMBER="","N/A",IF(PR_28_C5=0,"N/A",PR_28_C5)) -> N/A | J41: =IF(CU_NUMBER="","N/A",IF(H41="N/A","N/A",IF(AND(H41=0,R_28_C5<>0,),R_28_C5,IF(R_28_C5=0,"N/A",R_28_C5)))) -> N/A
A42: Total Shares, Dep. & Borrs / Earning Assets | B42: =IF(B8<DATEVALUE("6/30/2006"),(IF((A025B_C1+A799_C1-A781_C1)=0,0,((A018_C1+A860C_C1-A781_C1)/(A025B_C1+A799_C1-A781_C1))*100)), (IF((A025B_C1+A799I_C1+A730B_C1+A730C_C1-A781_C1)=0,0,((A018_C1+A860C_C1-A781_C1)/(A025B_C1+A799I_C1+A730B_C1+A730C_C1-A781_C1))*100))) -> 93.16627564 | C42: =IF(C8<DATEVALUE("6/30/2006"),(IF((A025B_C2+A799_C2-A781_C2)=0,0,((A018_C2+A860C_C2-A781_C2)/(A025B_C2+A799_C2-A781_C2))*100)), (IF((A025B_C2+A799I_C2+A730B_C2+A730C_C2-A781_C2)=0,0,((A018_C2+A860C_C2-A781_C2)/(A025B_C2+A799I_C2+A730B_C2+A730C_C2-A781_C2))*100))) -> 92.98723331 | D42: =IF(D8<DATEVALUE("6/30/2006"),(IF((A025B_C3+A799_C3-A781_C3)=0,0,((A018_C3+A860C_C3-A781_C3)/(A025B_C3+A799_C3-A781_C3))*100)), (IF((A025B_C3+A799I_C3+A730B_C3+A730C_C3-A781_C3)=0,0,((A018_C3+A860C_C3-A781_C3)/(A025B_C3+A799I_C3+A730B_C3+A730C_C3-A781_C3))*100))) -> 93.17139667 | E42: =IF(E8<DATEVALUE("6/30/2006"),(IF((A025B_C4+A799_C4-A781_C4)=0,0,((A018_C4+A860C_C4-A781_C4)/(A025B_C4+A799_C4-A781_C4))*100)), (IF((A025B_C4+A799I_C4+A730B_C4+A730C_C4-A781_C4)=0,0,((A018_C4+A860C_C4-A781_C4)/(A025B_C4+A799I_C4+A730B_C4+A730C_C4-A781_C4))*100))) -> 93.08254102 | F42: =IF(CU_NUMBER="","N/A",IF(PR_29_C4=0,"N/A",PR_29_C4)) -> N/A | G42: =IF(CU_NUMBER="","N/A",IF(E42="N/A","N/A",IF(AND(E42=0,R_29_C4<>0,),R_29_C4,IF(R_29_C4=0,"N/A",R_29_C4)))) -> N/A | H42: =IF(H8<DATEVALUE("6/30/2006"),(IF((A025B_C5+A799_C5-A781_C5)=0,0,((A018_C5+A860C_C5-A781_C5)/(A025B_C5+A799_C5-A781_C5))*100)), (IF((A025B_C5+A799I_C5+A730B_C5+A730C_C5-A781_C5)=0,0,((A018_C5+A860C_C5-A781_C5)/(A025B_C5+A799I_C5+A730B_C5+A730C_C5-A781_C5))*100))) -> 92.91770487 | I42: =IF(CU_NUMBER="","N/A",IF(PR_29_C5=0,"N/A",PR_29_C5)) -> N/A | J42: =IF(CU_NUMBER="","N/A",IF(H42="N/A","N/A",IF(AND(H42=0,R_29_C5<>0,),R_29_C5,IF(R_29_C5=0,"N/A",R_29_C5)))) -> N/A
A43: Reg Shares + Share Drafts / Total Shares & Borrs | B43: =(IF((A018_C1+A860C_C1-A781_C1)=0,0,((A902_C1+A657_C1)/(A018_C1+A860C_C1-A781_C1))*100)) -> 46.13634971 | C43: =(IF((A018_C2+A860C_C2-A781_C2)=0,0,((A902_C2+A657_C2)/(A018_C2+A860C_C2-A781_C2))*100)) -> 48.05649338 | D43: =(IF((A018_C3+A860C_C3-A781_C3)=0,0,((A902_C3+A657_C3)/(A018_C3+A860C_C3-A781_C3))*100)) -> 48.67543892 | E43: =(IF((A018_C4+A860C_C4-A781_C4)=0,0,((A902_C4+A657_C4)/(A018_C4+A860C_C4-A781_C4))*100)) -> 49.60145023 | F43: =IF(CU_NUMBER="","N/A",IF(PR_30_C4=0,"N/A",PR_30_C4)) -> N/A | G43: =IF(CU_NUMBER="","N/A",IF(E43="N/A","N/A",IF(AND(E43=0,R_30_C4<>0,),R_30_C4,IF(R_30_C4=0,"N/A",R_30_C4)))) -> N/A | H43: =(IF((A018_C5+A860C_C5-A781_C5)=0,0,((A902_C5+A657_C5)/(A018_C5+A860C_C5-A781_C5))*100)) -> 49.42461067 | I43: =IF(CU_NUMBER="","N/A",IF(PR_30_C5=0,"N/A",PR_30_C5)) -> N/A | J43: =IF(CU_NUMBER="","N/A",IF(H43="N/A","N/A",IF(AND(H43=0,R_30_C5<>0,),R_30_C5,IF(R_30_C5=0,"N/A",R_30_C5)))) -> N/A
A44: Borrowings / Total Shares & Net Worth | B44: =IF((A018_C1+A997_C1)=0, 0, (((A860C_C1-A781_C1))/(A018_C1+A997_C1))*100) -> 2.496083643 | C44: =IF((A018_C2+A997_C2)=0, 0, (((A860C_C2-A781_C2))/(A018_C2+A997_C2))*100) -> 2.584670573 | D44: =IF((A018_C3+A997_C3)=0, 0, (((A860C_C3-A781_C3))/(A018_C3+A997_C3))*100) -> 2.748305882 | E44: =IF((A018_C4+A997_C4)=0, 0, (((A860C_C4-A781_C4))/(A018_C4+A997_C4))*100) -> 2.785564823 | F44: =IF(CU_NUMBER="","N/A",IF(PR_31_C4=0,"N/A",PR_31_C4)) -> N/A | G44: =IF(CU_NUMBER="","N/A",IF(E44="N/A","N/A",IF(AND(E44=0,R_31_C4<>0,),R_31_C4,IF(R_31_C4=0,"N/A",R_31_C4)))) -> N/A | H44: =IF((A018_C5+A997_C5)=0, 0, (((A860C_C5-A781_C5))/(A018_C5+A997_C5))*100) -> 3.260010653 | I44: =IF(CU_NUMBER="","N/A",IF(PR_31_C5=0,"N/A",PR_31_C5)) -> N/A | J44: =IF(CU_NUMBER="","N/A",IF(H44="N/A","N/A",IF(AND(H44=0,R_31_C5<>0,),R_31_C5,IF(R_31_C5=0,"N/A",R_31_C5)))) -> N/A
A45: PRODUCTIVITY
A46: Members / Potential Members | B46: =IF(A084_C1=0,0,(A083_C1/A084_C1)*100) -> 3.705232539 | C46: =IF(A084_C2=0,0,(A083_C2/A084_C2)*100) -> 3.417113505 | D46: =IF(A084_C3=0,0,(A083_C3/A084_C3)*100) -> 3.353814203 | E46: =IF(A084_C4=0,0,(A083_C4/A084_C4)*100) -> 3.10078173 | F46: =IF(CU_NUMBER="","N/A",IF(PR_32_C4=0,"N/A",PR_32_C4)) -> N/A | G46: =IF(CU_NUMBER="","N/A",IF(E46="N/A","N/A",IF(AND(E46=0,R_32_C4<>0,),R_32_C4,IF(R_32_C4=0,"N/A",R_32_C4)))) -> N/A | H46: =IF(A084_C5=0,0,(A083_C5/A084_C5)*100) -> 2.935464915 | I46: =IF(CU_NUMBER="","N/A",IF(PR_32_C5=0,"N/A",PR_32_C5)) -> N/A | J46: =IF(CU_NUMBER="","N/A",IF(H46="N/A","N/A",IF(AND(H46=0,R_32_C5<>0,),R_32_C5,IF(R_32_C5=0,"N/A",R_32_C5)))) -> N/A
A47: Borrowers / Members | B47: =IF(A083_C1=0,0,(A025A_C1/A083_C1)*100) -> 53.68029508 | C47: =IF(A083_C2=0,0,(A025A_C2/A083_C2)*100) -> 54.9152511 | D47: =IF(A083_C3=0,0,(A025A_C3/A083_C3)*100) -> 56.44019907 | E47: =IF(A083_C4=0,0,(A025A_C4/A083_C4)*100) -> 57.63775702 | F47: =IF(CU_NUMBER="","N/A",IF(PR_33_C4=0,"N/A",PR_33_C4)) -> N/A | G47: =IF(CU_NUMBER="","N/A",IF(E47="N/A","N/A",IF(AND(E47=0,R_33_C4<>0,),R_33_C4,IF(R_33_C4=0,"N/A",R_33_C4)))) -> N/A | H47: =IF(A083_C5=0,0,(A025A_C5/A083_C5)*100) -> 58.3057563 | I47: =IF(CU_NUMBER="","N/A",IF(PR_33_C5=0,"N/A",PR_33_C5)) -> N/A | J47: =IF(CU_NUMBER="","N/A",IF(H47="N/A","N/A",IF(AND(H47=0,R_33_C5<>0,),R_33_C5,IF(R_33_C5=0,"N/A",R_33_C5)))) -> N/A
A48: Members / Full-Time Employees | B48: =IF((A564A_C1+A564B_C1/2)=0,0, A083_C1/(A564A_C1+A564B_C1/2)) -> 381.8739573 | C48: =IF((A564A_C2+A564B_C2/2)=0,0, A083_C2/(A564A_C2+A564B_C2/2)) -> 379.6193055 | D48: =IF((A564A_C3+A564B_C3/2)=0,0, A083_C3/(A564A_C3+A564B_C3/2)) -> 377.8912503 | E48: =IF((A564A_C4+A564B_C4/2)=0,0, A083_C4/(A564A_C4+A564B_C4/2)) -> 379.7753514 | F48: =IF(CU_NUMBER="","N/A",IF(PR_34_C4=0,"N/A",PR_34_C4)) -> N/A | G48: =IF(CU_NUMBER="","N/A",IF(E48="N/A","N/A",IF(AND(E48=0,R_34_C4<>0,),R_34_C4,IF(R_34_C4=0,"N/A",R_34_C4)))) -> N/A | H48: =IF((A564A_C5+A564B_C5/2)=0,0, A083_C5/(A564A_C5+A564B_C5/2)) -> 380.0091237 | I48: =IF(CU_NUMBER="","N/A",IF(PR_34_C5=0,"N/A",PR_34_C5)) -> N/A | J48: =IF(CU_NUMBER="","N/A",IF(H48="N/A","N/A",IF(AND(H48=0,R_34_C5<>0,),R_34_C5,IF(R_34_C5=0,"N/A",R_34_C5)))) -> N/A
A49: Avg. Shares Per Member | B49: =IF(A083_C1=0,0,A018_C1/A083_C1) -> 9834.47029 | C49: =IF(A083_C2=0,0,A018_C2/A083_C2) -> 10210.92015 | D49: =IF(A083_C3=0,0,A018_C3/A083_C3) -> 10611.68029 | E49: =IF(A083_C4=0,0,A018_C4/A083_C4) -> 10807.40732 | F49: =IF(CU_NUMBER="","N/A",IF(PR_35_C4=0,"N/A",PR_35_C4)) -> N/A | G49: =IF(CU_NUMBER="","N/A",IF(E49="N/A","N/A",IF(AND(E49=0,R_35_C4<>0,),R_35_C4,IF(R_35_C4=0,"N/A",R_35_C4)))) -> N/A | H49: =IF(A083_C5=0,0,A018_C5/A083_C5) -> 10825.40229 | I49: =IF(CU_NUMBER="","N/A",IF(PR_35_C5=0,"N/A",PR_35_C5)) -> N/A | J49: =IF(CU_NUMBER="","N/A",IF(H49="N/A","N/A",IF(AND(H49=0,R_35_C5<>0,),R_35_C5,IF(R_35_C5=0,"N/A",R_35_C5)))) -> N/A
A50: Avg. Loan Balance | B50: =IF(A025A_C1=0,0,A025B_C1/A025A_C1) -> 13765.04202 | C50: =IF(A025A_C2=0,0,A025B_C2/A025A_C2) -> 14392.30345 | D50: =IF(A025A_C3=0,0,A025B_C3/A025A_C3) -> 14984.28714 | E50: =IF(A025A_C4=0,0,A025B_C4/A025A_C4) -> 15509.79578 | F50: =IF(CU_NUMBER="","N/A",IF(PR_36_C4=0,"N/A",PR_36_C4)) -> N/A | G50: =IF(CU_NUMBER="","N/A",IF(E50="N/A","N/A",IF(AND(E50=0,R_36_C4<>0,),R_36_C4,IF(R_36_C4=0,"N/A",R_36_C4)))) -> N/A | H50: =IF(A025A_C5=0,0,A025B_C5/A025A_C5) -> 15961.23849 | I50: =IF(CU_NUMBER="","N/A",IF(PR_36_C5=0,"N/A",PR_36_C5)) -> N/A | J50: =IF(CU_NUMBER="","N/A",IF(H50="N/A","N/A",IF(AND(H50=0,R_36_C5<>0,),R_36_C5,IF(R_36_C5=0,"N/A",R_36_C5)))) -> N/A
A51: * Salary And Benefits / Full-Time Empl. | B51: =IF(A564A_C1+A564B_C1/2=0,0, (A210_C1/(A564A_C1+A564B_C1/2))*Anu_C1) -> 66467.51668 | C51: =IF(A564A_C2+A564B_C2/2=0,0, (A210_C2/(A564A_C2+A564B_C2/2))*Anu_C2) -> 68668.18997 | D51: =IF(A564A_C3+A564B_C3/2=0,0, (A210_C3/(A564A_C3+A564B_C3/2))*Anu_C3) -> 71226.99653 | E51: =IF(A564A_C4+A564B_C4/2=0,0, (A210_C4/(A564A_C4+A564B_C4/2))*Anu_C4) -> 73434.81285 | F51: =IF(CU_NUMBER="","N/A",IF(PR_37_C4=0,"N/A",PR_37_C4)) -> N/A | G51: =IF(CU_NUMBER="","N/A",IF(E51="N/A","N/A",IF(AND(E51=0,R_37_C4<>0,),R_37_C4,IF(R_37_C4=0,"N/A",R_37_C4)))) -> N/A | H51: =IF(A564A_C5+A564B_C5/2=0,0, (A210_C5/(A564A_C5+A564B_C5/2))*Anu_C5) -> 75839.78232 | I51: =IF(CU_NUMBER="","N/A",IF(PR_37_C5=0,"N/A",PR_37_C5)) -> N/A | J51: =IF(CU_NUMBER="","N/A",IF(H51="N/A","N/A",IF(AND(H51=0,R_37_C5<>0,),R_37_C5,IF(R_37_C5=0,"N/A",R_37_C5)))) -> N/A
A52: OTHER RATIOS
A53: * Net Worth Growth | B53: =IF(B8<DATEVALUE("3/31/2001"),IF(A010_C1=0,0,IF(ABS(pA658_C1+pA668_C1+pA925_C1+pA931_C1+pA940_C1)=0, 0, ((((A658_C1+A668_C1+A925_C1+A931_C1+A940_C1+A602_C1)-(pA658_C1+pA668_C1+pA925_C1+pA931_C1+pA940_C1))/ABS(pA658_C1+pA668_C1+pA925_C1+pA931_C1+pA940_C1))*100)*Anu_C1)),IF(A010_C1=0,0,IF(ABS(pA997_C1)=0, 0, (((A997_C1-pA997_C1)/ABS(pA997_C1))*100)*Anu_C1))) -> 9.423628865 | C53: =IF(C8<DATEVALUE("3/31/2001"),IF(A010_C2=0,0,IF(ABS(pA658_C2+pA668_C2+pA925_C2+pA931_C2+pA940_C2)=0, 0, ((((A658_C2+A668_C2+A925_C2+A931_C2+A940_C2+A602_C2)-(pA658_C2+pA668_C2+pA925_C2+pA931_C2+pA940_C2))/ABS(pA658_C2+pA668_C2+pA925_C2+pA931_C2+pA940_C2))*100)*Anu_C2)),IF(A010_C2=0,0,IF(ABS(pA997_C2)=0, 0, (((A997_C2-pA997_C2)/ABS(pA997_C2))*100)*Anu_C2))) -> 9.591292208 | D53: =IF(D8<DATEVALUE("3/31/2001"),IF(A010_C3=0,0,IF(ABS(pA658_C3+pA668_C3+pA925_C3+pA931_C3+pA940_C3)=0, 0, ((((A658_C3+A668_C3+A925_C3+A931_C3+A940_C3+A602_C3)-(pA658_C3+pA668_C3+pA925_C3+pA931_C3+pA940_C3))/ABS(pA658_C3+pA668_C3+pA925_C3+pA931_C3+pA940_C3))*100)*Anu_C3)),IF(A010_C3=0,0,IF(ABS(pA997_C3)=0, 0, (((A997_C3-pA997_C3)/ABS(pA997_C3))*100)*Anu_C3))) -> 7.041874499 | E53: =IF(E8<DATEVALUE("3/31/2001"),IF(A010_C4=0,0,IF(ABS(pA658_C4+pA668_C4+pA925_C4+pA931_C4+pA940_C4)=0, 0, ((((A658_C4+A668_C4+A925_C4+A931_C4+A940_C4+A602_C4)-(pA658_C4+pA668_C4+pA925_C4+pA931_C4+pA940_C4))/ABS(pA658_C4+pA668_C4+pA925_C4+pA931_C4+pA940_C4))*100)*Anu_C4)),IF(A010_C4=0,0,IF(ABS(pA997_C4)=0, 0, (((A997_C4-pA997_C4)/ABS(pA997_C4))*100)*Anu_C4))) -> 6.728867661 | F53: =IF(CU_NUMBER="","N/A",IF(PR_38_C4=0,"N/A",PR_38_C4)) -> N/A | G53: =IF(CU_NUMBER="","N/A",IF(E53="N/A","N/A",IF(AND(E53=0,R_38_C4<>0,),R_38_C4,IF(R_38_C4=0,"N/A",R_38_C4)))) -> N/A | H53: =IF(H8<DATEVALUE("3/31/2001"),IF(A010_C5=0,0,IF(ABS(pA658_C5+pA668_C5+pA925_C5+pA931_C5+pA940_C5)=0, 0, ((((A658_C5+A668_C5+A925_C5+A931_C5+A940_C5+A602_C5)-(pA658_C5+pA668_C5+pA925_C5+pA931_C5+pA940_C5))/ABS(pA658_C5+pA668_C5+pA925_C5+pA931_C5+pA940_C5))*100)*Anu_C5)),IF(A010_C5=0,0,IF(ABS(pA997_C5)=0, 0, (((A997_C5-pA997_C5)/ABS(pA997_C5))*100)*Anu_C5))) -> 9.175935796 | I53: =IF(CU_NUMBER="","N/A",IF(PR_38_C5=0,"N/A",PR_38_C5)) -> N/A | J53: =IF(CU_NUMBER="","N/A",IF(H53="N/A","N/A",IF(AND(H53=0,R_38_C5<>0,),R_38_C5,IF(R_38_C5=0,"N/A",R_38_C5)))) -> N/A
A54: * Market (Share) Growth | B54: =IF(A010_C1=0,0,IF(pA018_C1=0, 0, (((A018_C1-pA018_C1)/pA018_C1)*100)*Anu_C1)) -> 6.245353341 | C54: =IF(A010_C2=0,0,IF(pA018_C2=0, 0, (((A018_C2-pA018_C2)/pA018_C2)*100)*Anu_C2)) -> 9.48457015 | D54: =IF(A010_C3=0,0,IF(pA018_C3=0, 0, (((A018_C3-pA018_C3)/pA018_C3)*100)*Anu_C3)) -> 7.869460571 | E54: =IF(A010_C4=0,0,IF(pA018_C4=0, 0, (((A018_C4-pA018_C4)/pA018_C4)*100)*Anu_C4)) -> 6.015492632 | F54: =IF(CU_NUMBER="","N/A",IF(PR_39_C4=0,"N/A",PR_39_C4)) -> N/A | G54: =IF(CU_NUMBER="","N/A",IF(E54="N/A","N/A",IF(AND(E54=0,R_39_C4<>0,),R_39_C4,IF(R_39_C4=0,"N/A",R_39_C4)))) -> N/A | H54: =IF(A010_C5=0,0,IF(pA018_C5=0, 0, (((A018_C5-pA018_C5)/pA018_C5)*100)*Anu_C5)) -> 5.21661076 | I54: =IF(CU_NUMBER="","N/A",IF(PR_39_C5=0,"N/A",PR_39_C5)) -> N/A | J54: =IF(CU_NUMBER="","N/A",IF(H54="N/A","N/A",IF(AND(H54=0,R_39_C5<>0,),R_39_C5,IF(R_39_C5=0,"N/A",R_39_C5)))) -> N/A
A55: * Loan Growth | B55: =IF(A010_C1=0,0,IF(pA025B_C1=0, 0, (((A025B_C1-pA025B_C1)/pA025B_C1)*100)*Anu_C1)) -> 12.45509765 | C55: =IF(A010_C2=0,0,IF(pA025B_C2=0, 0, (((A025B_C2-pA025B_C2)/pA025B_C2)*100)*Anu_C2)) -> 12.78980743 | D55: =IF(A010_C3=0,0,IF(pA025B_C3=0, 0, (((A025B_C3-pA025B_C3)/pA025B_C3)*100)*Anu_C3)) -> 11.06585715 | E55: =IF(A010_C4=0,0,IF(pA025B_C4=0, 0, (((A025B_C4-pA025B_C4)/pA025B_C4)*100)*Anu_C4)) -> 10.03237833 | F55: =IF(CU_NUMBER="","N/A",IF(PR_40_C4=0,"N/A",PR_40_C4)) -> N/A | G55: =IF(CU_NUMBER="","N/A",IF(E55="N/A","N/A",IF(AND(E55=0,R_40_C4<>0,),R_40_C4,IF(R_40_C4=0,"N/A",R_40_C4)))) -> N/A | H55: =IF(A010_C5=0,0,IF(pA025B_C5=0, 0, (((A025B_C5-pA025B_C5)/pA025B_C5)*100)*Anu_C5)) -> 9.351980389 | I55: =IF(CU_NUMBER="","N/A",IF(PR_40_C5=0,"N/A",PR_40_C5)) -> N/A | J55: =IF(CU_NUMBER="","N/A",IF(H55="N/A","N/A",IF(AND(H55=0,R_40_C5<>0,),R_40_C5,IF(R_40_C5=0,"N/A",R_40_C5)))) -> N/A
A56: * Asset Growth | B56: =IF(A010_C1=0,0,IF(pA010_C1=0,0, (((A010_C1-pA010_C1)/pA010_C1)*100)*Anu_C1)) -> 7.195290015 | C56: =IF(A010_C2=0,0,IF(pA010_C2=0,0, (((A010_C2-pA010_C2)/pA010_C2)*100)*Anu_C2)) -> 9.568198228 | D56: =IF(A010_C3=0,0,IF(pA010_C3=0,0, (((A010_C3-pA010_C3)/pA010_C3)*100)*Anu_C3)) -> 7.99772859 | E56: =IF(A010_C4=0,0,IF(pA010_C4=0,0, (((A010_C4-pA010_C4)/pA010_C4)*100)*Anu_C4)) -> 6.134228899 | F56: =IF(CU_NUMBER="","N/A",IF(PR_41_C4=0,"N/A",PR_41_C4)) -> N/A | G56: =IF(CU_NUMBER="","N/A",IF(E56="N/A","N/A",IF(AND(E56=0,R_41_C4<>0,),R_41_C4,IF(R_41_C4=0,"N/A",R_41_C4)))) -> N/A | H56: =IF(A010_C5=0,0,IF(pA010_C5=0,0, (((A010_C5-pA010_C5)/pA010_C5)*100)*Anu_C5)) -> 5.956193692 | I56: =IF(CU_NUMBER="","N/A",IF(PR_41_C5=0,"N/A",PR_41_C5)) -> N/A | J56: =IF(CU_NUMBER="","N/A",IF(H56="N/A","N/A",IF(AND(H56=0,R_41_C5<>0,),R_41_C5,IF(R_41_C5=0,"N/A",R_41_C5)))) -> N/A
A57: * Investment Growth | B57: =IF(B8<DATEVALUE("6/30/2006"),(IF(A010_C1=0,0,IF((pA799_C1-pA781_C1)=0,0, ((((A799_C1-A781_C1)-(pA799_C1-pA781_C1))/(pA799_C1-pA781_C1))*100)*Anu_C1))), (IF(A010_C1=0,0,IF((pA799I_C1+pA730B_C1+pA730C_C1-pA781_C1)=0,0, ((((A799I_C1+A730B_C1+A730C_C1-A781_C1)-(pA799I_C1+pA730B_C1+pA730C_C1-pA781_C1))/(pA799I_C1+pA730B_C1+pA730C_C1-pA781_C1))*100)*Anu_C1)))) -> -3.20627416 | C57: =IF(C8<DATEVALUE("6/30/2006"),(IF(A010_C2=0,0,IF((pA799_C2-pA781_C2)=0,0, ((((A799_C2-A781_C2)-(pA799_C2-pA781_C2))/(pA799_C2-pA781_C2))*100)*Anu_C2))), (IF(A010_C2=0,0,IF((pA799I_C2+pA730B_C2+pA730C_C2-pA781_C2)=0,0, ((((A799I_C2+A730B_C2+A730C_C2-A781_C2)-(pA799I_C2+pA730B_C2+pA730C_C2-pA781_C2))/(pA799I_C2+pA730B_C2+pA730C_C2-pA781_C2))*100)*Anu_C2)))) -> 3.428818075 | D57: =IF(D8<DATEVALUE("6/30/2006"),(IF(A010_C3=0,0,IF((pA799_C3-pA781_C3)=0,0, ((((A799_C3-A781_C3)-(pA799_C3-pA781_C3))/(pA799_C3-pA781_C3))*100)*Anu_C3))), (IF(A010_C3=0,0,IF((pA799I_C3+pA730B_C3+pA730C_C3-pA781_C3)=0,0, ((((A799I_C3+A730B_C3+A730C_C3-A781_C3)-(pA799I_C3+pA730B_C3+pA730C_C3-pA781_C3))/(pA799I_C3+pA730B_C3+pA730C_C3-pA781_C3))*100)*Anu_C3)))) -> 0.3566127123 | E57: =IF(E8<DATEVALUE("6/30/2006"),(IF(A010_C4=0,0,IF((pA799_C4-pA781_C4)=0,0, ((((A799_C4-A781_C4)-(pA799_C4-pA781_C4))/(pA799_C4-pA781_C4))*100)*Anu_C4))), (IF(A010_C4=0,0,IF((pA799I_C4+pA730B_C4+pA730C_C4-pA781_C4)=0,0, ((((A799I_C4+A730B_C4+A730C_C4-A781_C4)-(pA799I_C4+pA730B_C4+pA730C_C4-pA781_C4))/(pA799I_C4+pA730B_C4+pA730C_C4-pA781_C4))*100)*Anu_C4)))) -> -3.801739792 | F57: =IF(CU_NUMBER="","N/A",IF(PR_42_C4=0,"N/A",PR_42_C4)) -> N/A | G57: =IF(CU_NUMBER="","N/A",IF(E57="N/A","N/A",IF(AND(E57=0,R_42_C4<>0,),R_42_C4,IF(R_42_C4=0,"N/A",R_42_C4)))) -> N/A | H57: =IF(H8<DATEVALUE("6/30/2006"),(IF(A010_C5=0,0,IF((pA799_C5-pA781_C5)=0,0, ((((A799_C5-A781_C5)-(pA799_C5-pA781_C5))/(pA799_C5-pA781_C5))*100)*Anu_C5))), (IF(A010_C5=0,0,IF((pA799I_C5+pA730B_C5+pA730C_C5-pA781_C5)=0,0, ((((A799I_C5+A730B_C5+A730C_C5-A781_C5)-(pA799I_C5+pA730B_C5+pA730C_C5-pA781_C5))/(pA799I_C5+pA730B_C5+pA730C_C5-pA781_C5))*100)*Anu_C5)))) -> -4.006768199 | I57: =IF(CU_NUMBER="","N/A",IF(PR_42_C5=0,"N/A",PR_42_C5)) -> N/A | J57: =IF(CU_NUMBER="","N/A",IF(H57="N/A","N/A",IF(AND(H57=0,R_42_C5<>0,),R_42_C5,IF(R_42_C5=0,"N/A",R_42_C5)))) -> N/A
A58: * Membership Growth | B58: =IF(A010_C1=0,0,IF(pA083_C1=0,0, (((A083_C1-pA083_C1)/pA083_C1)*100)*Anu_C1)) -> 4.760638849 | C58: =IF(A010_C2=0,0,IF(pA083_C2=0,0, (((A083_C2-pA083_C2)/pA083_C2)*100)*Anu_C2)) -> 5.448161079 | D58: =IF(A010_C3=0,0,IF(pA083_C3=0,0, (((A083_C3-pA083_C3)/pA083_C3)*100)*Anu_C3)) -> 3.7956684 | E58: =IF(A010_C4=0,0,IF(pA083_C4=0,0, (((A083_C4-pA083_C4)/pA083_C4)*100)*Anu_C4)) -> 4.095504085 | F58: =IF(CU_NUMBER="","N/A",IF(PR_80_C4=0,"N/A",PR_80_C4)) -> N/A | G58: =IF(CU_NUMBER="","N/A",IF(E58="N/A","N/A",IF(AND(E58=0,R_80_C4<>0,),R_80_C4,IF(R_80_C4=0,"N/A",R_80_C4)))) -> N/A | H58: =IF(A010_C5=0,0,IF(pA083_C5=0,0, (((A083_C5-pA083_C5)/pA083_C5)*100)*Anu_C5)) -> 5.041710201 | I58: =IF(CU_NUMBER="","N/A",IF(PR_80_C5=0,"N/A",PR_80_C5)) -> N/A | J58: =IF(CU_NUMBER="","N/A",IF(H58="N/A","N/A",IF(AND(H58=0,R_80_C5<>0,),R_80_C5,IF(R_80_C5=0,"N/A",R_80_C5)))) -> N/A
A59: * Annualization factor: March = 4; June = 2; September =4/3; December = 1 (or no annualizing)
A60: **Percentile Rankings and Peer Average Ratios are produced once a quarter after the data collection is complete. Subsequent corrections to data after this date are not reflected in the Percentile Rank or the Peer Average Ratios until the next cycle.
A61: Percentile Rankings show where the credit union stands in relation to its peers in key areas of performance. To arrive at the percentile ranking, all data for all credit unions in a peer group are arranged in order from highest (100) to lowest (0) value. The percentile ranking assigned to the credit union is a measure of the relative standing of that ratio in the entire range of ratios. A high or low ranking does not imply good or bad performance. However, when reviewed in relation to other available data, users may draw conclusions as to the importance of the percentile rank to the credit union's financial performance.
A62: 1 For periods before 2004, the Fixed Assets & Foreclosed and Repossessed assets did not include repossessed vehicles.
A63: 2 Prior to September 2010, this ratio was named Return on Assets Prior to NCUSIF Stabilization Income/Expense. From December 2010 forward, NCUSIF Premium Expense is also excluded from ROA.
A64: 3 The NCUA Board approved a regulatory/policy change in May 2012 revising the delinquency reporting requirements for troubled debt restructured (TDR) loans. This policy change may result in a decline in delinquent loans reported as of June 2012. | J64: 2. Ratios

Sheet 3. Supplemental Ratios
C1: Supplemental Ratio Analysis
A2: Return to cover | C2: For Charter : | D2: =IF(CU_NUMBER="","N/A",CU_NUMBER) -> N/A
A3: =IF(Request_Date=0,"N/A",Request_Date) -> 05/15/2019 | C3: Count of CU : | D3: =IF(CountCu_C5=0,"N/A",CountCu_C5) -> 1999
A4: ="CU Name: "&IF(Cu_Name="","N/A",Cu_Name) -> CU Name: N/A | C4: Asset Range : | D4: =IF(AssetRange="","N/A",AssetRange) -> N/A
A5: ="Peer Group: "&IF(Peer_Group="","N/A",IF(Peer_Group="0","N/A",Peer_Group)) -> Peer Group: N/A | C5: Criteria : | D5: =IF(_xlnm.Criteria="","N/A",_xlnm.Criteria) -> Region: Nation * Peer Group: All * Type Included: Federally Insured State Credit Union (FISCU) *
C6: Count of CU in Peer Group : | D6: =IF(NoCu_in_Peer_Group="","N/A",NoCu_in_Peer_Group) -> N/A | E6: =IF(CU_NUMBER>0,"",IF(RetPop=0,"Retroactive Population","")) -> 
B8: =(CycDat_C1) -> 2014-12-31 | C8: =(CycDat_C2) -> 2015-12-31 | D8: =(CycDat_C3) -> 2016-12-31 | E8: =(CycDat_C4) -> 2017-12-31 | F8: =(CycDat_C5) -> 2018-12-31
A9: OTHER DELINQUENCY RATIOS 1
A10: Credit Cards DQ >= 60 Days / Total Credit Card Loans | B10: =IF(A396_C1=0,0,(A045B_C1/A396_C1)*100) -> 0.769356339 | C10: =IF(A396_C2=0,0,(A045B_C2/A396_C2)*100) -> 0.7803628116 | D10: =IF(A396_C3=0,0,(A045B_C3/A396_C3)*100) -> 0.8676713969 | E10: =IF(A396_C4=0,0,(A045B_C4/A396_C4)*100) -> 0.9304377144 | F10: =IF(A396_C5=0,0,(A045B_C5/A396_C5)*100) -> 0.9729038677
A11: PAL Loans DQ >= 60 Days / Total PAL Loans | B11: =IF(B8<DATEVALUE("12/31/2010"),"N/A",IF(A397A_C1=0,0,(A130B_C1 /A397A_C1) *100)) -> 0 | C11: =IF(C8<DATEVALUE("12/31/2010"),"N/A", IF(A397A_C2=0,0,(A130B_C2 /A397A_C2) *100)) -> 0 | D11: =IF(D8<DATEVALUE("12/31/2010"),"N/A",IF(A397A_C3=0,0,(A130B_C3 /A397A_C3) *100)) -> 0 | E11: =IF(E8<DATEVALUE("12/31/2010"),"N/A",IF(A397A_C4=0,0,(A130B_C4 /A397A_C4) *100)) -> 0 | F11: =IF(F8<DATEVALUE("12/31/2010"),"N/A",IF(A397A_C5=0,0,(A130B_C5 /A397A_C5) *100)) -> 0
A12: Non-Federally Guaranteed Student Loans Delinquent >= 60 Days / Total Non-Federally Guaranteed Student Loans | B12: =IF(B8<DATEVALUE("3/31/2011"),"N/A",IF(A698A_C1=0,0,(A041T_C1/A698A_C1)*100)) -> 1.274351232 | C12: =IF(C8<DATEVALUE("3/31/2011"),"N/A",IF(A698A_C2=0,0,(A041T_C2/A698A_C2)*100)) -> 1.161962713 | D12: =IF(D8<DATEVALUE("3/31/2011"),"N/A",IF(A698A_C3=0,0,(A041T_C3/A698A_C3)*100)) -> 1.043651686 | E12: =IF(E8<DATEVALUE("3/31/2011"),"N/A",IF(A698A_C4=0,0,(A041T_C4/A698A_C4)*100)) -> 1.053003811 | F12: =IF(F8<DATEVALUE("3/31/2011"),"N/A",IF(A698A_C5=0,0,(A041T_C5/A698A_C5)*100)) -> 1.297024969
A13: New Vehicle Loans >= 60 Days/ Total New Vehicle Loans | B13: =IF(B8<DATEVALUE("6/30/2013"),"N/A", IF((A385_C1)=0,0,(A041C1_C1/A385_C1)*100)) -> 0.3864794547 | C13: =IF(C8<DATEVALUE("6/30/2013"),"N/A", IF((A385_C2)=0,0,(A041C1_C2/A385_C2)*100)) -> 0.3947785416 | D13: =IF(D8<DATEVALUE("6/30/2013"),"N/A", IF((A385_C3)=0,0,(A041C1_C3/A385_C3)*100)) -> 0.4161765958 | E13: =IF(E8<DATEVALUE("6/30/2013"),"N/A", IF((A385_C4)=0,0,(A041C1_C4/A385_C4)*100)) -> 0.4199156609 | F13: =IF(F8<DATEVALUE("6/30/2013"),"N/A", IF((A385_C5)=0,0,(A041C1_C5/A385_C5)*100)) -> 0.4138404615
A14: Used Vehicle Loans >= 60 Days/ Total Used Vehicle Loans | B14: =IF(B8<DATEVALUE("6/30/2013"),"N/A",IF(A370_C1=0,0,(A041C2_C1 / A370_C1)*100)) -> 0.7726478633 | C14: =IF(C8<DATEVALUE("6/30/2013"),"N/A",IF(A370_C2=0,0,(A041C2_C2 / A370_C2)*100)) -> 0.776625522 | D14: =IF(D8<DATEVALUE("6/30/2013"),"N/A",IF(A370_C3=0,0,(A041C2_C3 / A370_C3)*100)) -> 0.8189196417 | E14: =IF(E8<DATEVALUE("6/30/2013"),"N/A",IF(A370_C4=0,0,(A041C2_C4 / A370_C4)*100)) -> 0.814430664 | F14: =IF(F8<DATEVALUE("6/30/2013"),"N/A",IF(A370_C5=0,0,(A041C2_C5 / A370_C5)*100)) -> 0.7670750405
A15: Total Vehicle Loans >= 60 Days/ Total Vehicle Loans | B15: =IF(B8<DATEVALUE("6/30/2013"),"N/A",IF((A385_C1 + A370_C1 )=0,0,(A041C1_C1 +A041C2_C1) / (A385_C1 + A370_C1 ) * 100)) -> 0.6323877911 | C15: =IF(C8<DATEVALUE("6/30/2013"),"N/A",IF((A385_C2 + A370_C2 )=0,0,(A041C1_C2 +A041C2_C2) / (A385_C2 + A370_C2 ) * 100)) -> 0.6343116639 | D15: =IF(D8<DATEVALUE("6/30/2013"),"N/A",IF((A385_C3 + A370_C3)=0,0,(A041C1_C3 +A041C2_C3) / (A385_C3 + A370_C3) * 100)) -> 0.6635608754 | E15: =IF(E8<DATEVALUE("6/30/2013"),"N/A",IF((A385_C4 + A370_C4)=0,0,(A041C1_C4 +A041C2_C4) / (A385_C4 + A370_C4) * 100)) -> 0.6589849353 | F15: =IF(F8<DATEVALUE("6/30/2013"),"N/A",IF((A385_C5 + A370_C5)=0,0,(A041C1_C5 +A041C2_C5) / (A385_C5 + A370_C5) * 100)) -> 0.6260682137
A16: Leases Receivable Delinquent >= 60 Days / Total Leases Receivable | B16: =IF(B8<DATEVALUE("6/30/2006"),"N/A", IF((A002_C1)=0,0,(A041D_C1/(A002_C1))*100)) -> 0.1587346362 | C16: =IF(C8<DATEVALUE("6/30/2006"),"N/A", IF((A002_C2)=0,0,(A041D_C2/(A002_C2))*100)) -> 0.1979966834 | D16: =IF(D8<DATEVALUE("6/30/2006"),"N/A", IF((A002_C3)=0,0,(A041D_C3/(A002_C3))*100)) -> 0.2314316261 | E16: =IF(E8<DATEVALUE("6/30/2006"),"N/A", IF((A002_C4)=0,0,(A041D_C4/(A002_C4))*100)) -> 0.2294752269 | F16: =IF(F8<DATEVALUE("6/30/2006"),"N/A", IF((A002_C5)=0,0,(A041D_C5/(A002_C5))*100)) -> 0.261099092
A17: All Other Loans >= 60 Days / Total All Other Loans | B17: =IF(B8>DATEVALUE("6/30/2017"), Calc(A041C_C1,A698C_C1+A400P_C1+A397_C1)*100,IF(B8<DATEVALUE("6/30/2013"),"N/A", Calc(A041C_C1,A698_C1+A397_C1)*100)) ->  | C17: =IF(C8>DATEVALUE("6/30/2017"), Calc(A041C_C2,A698C_C2+A400P_C2+A397_C2)*100,IF(C8<DATEVALUE("6/30/2013"),"N/A", Calc(A041C_C2,A698_C2+A397_C2)*100)) ->  | D17: =IF(D8>DATEVALUE("6/30/2017"), Calc(A041C_C3,A698C_C3+A400P_C3+A397_C3)*100,IF(D8<DATEVALUE("6/30/2013"),"N/A", Calc(A041C_C3,A698_C3+A397_C3)*100)) ->  | E17: =IF(E8>DATEVALUE("6/30/2017"), Calc(A041C_C4,A698C_C4+A400P_C4+A397_C4)*100,IF(E8<DATEVALUE("6/30/2013"),"N/A", Calc(A041C_C4,A698_C4+A397_C4)*100)) ->  | F17: =IF(F8>DATEVALUE("6/30/2017"), Calc(A041C_C5,A698C_C5+A400P_C5+A397_C5)*100,IF(F8<DATEVALUE("6/30/2013"),"N/A", Calc(A041C_C5,A698_C5+A397_C5)*100)) -> 
A18: TDR Consumer Lns Not Secured by RE Delinquent >= 60 Days / TDR Consumer Lns Not Secured by RE | B18: =IF(B8<DATEVALUE("12/31/2012"),"N/A", IF(A1011D_C1=0,0,(A041X_C1/A1011D_C1)*100)) -> 11.55365202 | C18: =IF(C8<DATEVALUE("12/31/2012"),"N/A", IF(A1011D_C2=0,0,(A041X_C2/A1011D_C2)*100)) -> 11.69602481 | D18: =IF(D8<DATEVALUE("12/31/2012"),"N/A", IF(A1011D_C3=0,0,(A041X_C3/A1011D_C3)*100)) -> 11.53675706 | E18: =IF(E8<DATEVALUE("12/31/2012"),"N/A", IF(A1011D_C4=0,0,(A041X_C4/A1011D_C4)*100)) -> 12.0131721 | F18: =IF(F8<DATEVALUE("12/31/2012"),"N/A", IF(A1011D_C5=0,0,(A041X_C5/A1011D_C5)*100)) -> 13.50823932
A19: Indirect Loans Delinquent >= 60 Days / Total Indirect Loans | B19: =IF(B8<DATEVALUE("6/30/2006"),"N/A", IF((A618A_C1)=0,0,(A041E_C1/(A618A_C1))*100)) -> 0.7184915482 | C19: =IF(C8<DATEVALUE("6/30/2006"),"N/A", IF((A618A_C2)=0,0,(A041E_C2/(A618A_C2))*100)) -> 0.6906721083 | D19: =IF(D8<DATEVALUE("6/30/2006"),"N/A", IF((A618A_C3)=0,0,(A041E_C3/(A618A_C3))*100)) -> 0.6994218538 | E19: =IF(E8<DATEVALUE("6/30/2006"),"N/A", IF((A618A_C4)=0,0,(A041E_C4/(A618A_C4))*100)) -> 0.6733615394 | F19: =IF(F8<DATEVALUE("6/30/2006"),"N/A", IF((A618A_C5)=0,0,(A041E_C5/(A618A_C5))*100)) -> 0.6291438385
A20: Participation Loans Delinquent >= 60 Days / Total Participation Loans | B20: =IF(B8<DATEVALUE("06/30/2006"),"N/A",IF(B8>DATEVALUE("12/31/2008"),IF(A619B_C1+A691E_C1=0,0,(A041F_C1/(A619B_C1+A691E_C1))*100 ),IF(A619_C1=0,0,(A041F_C1/(A619_C1))*100 ))) -> 0.8796256587 | C20: =IF(C8<DATEVALUE("06/30/2006"),"N/A",IF(C8>DATEVALUE("12/31/2008"),IF(A619B_C2+A691E_C2=0,0,(A041F_C2/(A619B_C2+A691E_C2))*100 ),IF(A619_C2=0,0,(A041F_C2/(A619_C2))*100 ))) -> 0.6188170709 | D20: =IF(D8<DATEVALUE("06/30/2006"),"N/A",IF(D8>DATEVALUE("12/31/2008"),IF(A619B_C3+A691E_C3=0,0,(A041F_C3/(A619B_C3+A691E_C3))*100 ),IF(A619_C3=0,0,(A041F_C3/(A619_C3))*100 ))) -> 0.5534582648 | E20: =IF(E8<DATEVALUE("06/30/2006"),"N/A",IF(E8>DATEVALUE("12/31/2008"),IF(A619B_C4+A691E_C4=0,0,(A041F_C4/(A619B_C4+A691E_C4))*100 ),IF(A619_C4=0,0,(A041F_C4/(A619_C4))*100 ))) -> 0.6429987561 | F20: =IF(F8<DATEVALUE("06/30/2006"),"N/A",IF(F8>DATEVALUE("12/31/2008"),IF(A619B_C5+A691E_C5=0,0,(A041F_C5/(A619B_C5+A691E_C5))*100 ),IF(A619_C5=0,0,(A041F_C5/(A619_C5))*100 ))) -> 0.5400038381
A21: Commercial Loans Delinquent >= 30 Days / Total Commercial Loans 2 | B21: =IF(B8>DATEVALUE("6/30/2017"), Calc(A020G3_C1 + A020G4_C1 +A020P3_C1 + A020P4_C1 + A041G3_C1 + A041G4_C1 + A041P3_C1 + A041P4_C1, A400T1_C1)*100,IF(B8>=DATEVALUE("6/30/2013"),IF((A400T_C1-A814E_C1)=0,0,((A020G1_C1+A020G2_C1+A020P1_C1+A020P2_C1+A041G1_C1+A041G2_C1+A041P1_C1+A041P2_C1)/(A400T_C1-A814E_C1))*100),IF(B8>=DATEVALUE("3/31/2011"),Calc(A020G_C1+A020H_C1+A020P_C1+A041G_C1+A041H_C1+A041P_C1,A400T_C1-A814E_C1)*100,IF(B8>=DATEVALUE("3/31/2009"),Calc(A020G_C1+A020H_C1+A020P_C1+A041G_C1+A041H_C1+A041P_C1,A400A_C1+A400B_C1-A814_C1-A814A_C1-A814A1_C1)*100,IF(B8>=DATEVALUE("6/30/2006"),Calc(A020G_C1+A020H_C1+A041G_C1+A041H_C1,A400A_C1+A400B_C1-A814_C1-A814A_C1)*100,IF(B8>=DATEVALUE("3/31/2004"),Calc(A126E_C1,A400A_C1+A400B_C1-A814_C1-A814A_C1)*100,IF(B8>=DATEVALUE("12/31/1995"),Calc(A125E_C1+A126E_C1,A400_C1)*100,"N/A"))))) )) -> 1.801050761 | C21: =IF(C8>DATEVALUE("6/30/2017"), Calc(A020G3_C2 + A020G4_C2 +A020P3_C2 + A020P4_C2 + A041G3_C2 + A041G4_C2 + A041P3_C2 + A041P4_C2, A400T1_C2)*100,IF(C8>=DATEVALUE("6/30/2013"),IF((A400T_C2-A814E_C2)=0,0,((A020G1_C2+A020G2_C2+A020P1_C2+A020P2_C2+A041G1_C2+A041G2_C2+A041P1_C2+A041P2_C2)/(A400T_C2-A814E_C2))*100),IF(C8>=DATEVALUE("3/31/2011"),Calc(A020G_C2+A020H_C2+A020P_C2+A041G_C2+A041H_C2+A041P_C2,A400T_C2-A814E_C2)*100,IF(C8>=DATEVALUE("3/31/2009"),Calc(A020G_C2+A020H_C2+A020P_C2+A041G_C2+A041H_C2+A041P_C2,A400A_C2+A400B_C2-A814_C2-A814A_C2-A814A1_C2)*100,IF(C8>=DATEVALUE("6/30/2006"),Calc(A020G_C2+A020H_C2+A041G_C2+A041H_C2,A400A_C2+A400B_C2-A814_C2-A814A_C2)*100,IF(C8>=DATEVALUE("3/31/2004"),Calc(A126E_C2,A400A_C2+A400B_C2-A814_C2-A814A_C2)*100,IF(C8>=DATEVALUE("12/31/1995"),Calc(A125E_C2+A126E_C2,A400_C2)*100,"N/A"))))) )) -> 2.263345451 | D21: =IF(D8>DATEVALUE("6/30/2017"), Calc(A020G3_C3 + A020G4_C3 +A020P3_C3 + A020P4_C3 + A041G3_C3 + A041G4_C3 + A041P3_C3 + A041P4_C3, A400T1_C3)*100,IF(D8>=DATEVALUE("6/30/2013"),IF((A400T_C3-A814E_C3)=0,0,((A020G1_C3+A020G2_C3+A020P1_C3+A020P2_C3+A041G1_C3+A041G2_C3+A041P1_C3+A041P2_C3)/(A400T_C3-A814E_C3))*100),IF(D8>=DATEVALUE("3/31/2011"),Calc(A020G_C3+A020H_C3+A020P_C3+A041G_C3+A041H_C3+A041P_C3,A400T_C3-A814E_C3)*100,IF(D8>=DATEVALUE("3/31/2009"),Calc(A020G_C3+A020H_C3+A020P_C3+A041G_C3+A041H_C3+A041P_C3,A400A_C3+A400B_C3-A814_C3-A814A_C3-A814A1_C3)*100,IF(D8>=DATEVALUE("6/30/2006"),Calc(A020G_C3+A020H_C3+A041G_C3+A041H_C3,A400A_C3+A400B_C3-A814_C3-A814A_C3)*100,IF(D8>=DATEVALUE("3/31/2004"),Calc(A126E_C3,A400A_C3+A400B_C3-A814_C3-A814A_C3)*100,IF(D8>=DATEVALUE("12/31/1995"),Calc(A125E_C3+A126E_C3,A400_C3)*100,"N/A"))))) )) -> 2.785957351 | E21: =IF(E8>DATEVALUE("6/30/2017"), Calc(A020G3_C4 + A020G4_C4 +A020P3_C4 + A020P4_C4 + A041G3_C4 + A041G4_C4 + A041P3_C4 + A041P4_C4, A400T1_C4)*100,IF(E8>=DATEVALUE("6/30/2013"),IF((A400T_C4-A814E_C4)=0,0,((A020G1_C4+A020G2_C4+A020P1_C4+A020P2_C4+A041G1_C4+A041G2_C4+A041P1_C4+A041P2_C4)/(A400T_C4-A814E_C4))*100),IF(E8>=DATEVALUE("3/31/2011"),Calc(A020G_C4+A020H_C4+A020P_C4+A041G_C4+A041H_C4+A041P_C4,A400T_C4-A814E_C4)*100,IF(E8>=DATEVALUE("3/31/2009"),Calc(A020G_C4+A020H_C4+A020P_C4+A041G_C4+A041H_C4+A041P_C4,A400A_C4+A400B_C4-A814_C4-A814A_C4-A814A1_C4)*100,IF(E8>=DATEVALUE("6/30/2006"),Calc(A020G_C4+A020H_C4+A041G_C4+A041H_C4,A400A_C4+A400B_C4-A814_C4-A814A_C4)*100,IF(E8>=DATEVALUE("3/31/2004"),Calc(A126E_C4,A400A_C4+A400B_C4-A814_C4-A814A_C4)*100,IF(E8>=DATEVALUE("12/31/1995"),Calc(A125E_C4+A126E_C4,A400_C4)*100,"N/A"))))) )) ->  | F21: =IF(F8>DATEVALUE("6/30/2017"), Calc(A020G3_C5 + A020G4_C5 +A020P3_C5 + A020P4_C5 + A041G3_C5 + A041G4_C5 + A041P3_C5 + A041P4_C5, A400T1_C5)*100,IF(F8>=DATEVALUE("6/30/2013"),IF((A400T_C5-A814E_C5)=0,0,((A020G1_C5+A020G2_C5+A020P1_C5+A020P2_C5+A041G1_C5+A041G2_C5+A041P1_C5+A041P2_C5)/(A400T_C5-A814E_C5))*100),IF(F8>=DATEVALUE("3/31/2011"),Calc(A020G_C5+A020H_C5+A020P_C5+A041G_C5+A041H_C5+A041P_C5,A400T_C5-A814E_C5)*100,IF(F8>=DATEVALUE("3/31/2009"),Calc(A020G_C5+A020H_C5+A020P_C5+A041G_C5+A041H_C5+A041P_C5,A400A_C5+A400B_C5-A814_C5-A814A_C5-A814A1_C5)*100,IF(F8>=DATEVALUE("6/30/2006"),Calc(A020G_C5+A020H_C5+A041G_C5+A041H_C5,A400A_C5+A400B_C5-A814_C5-A814A_C5)*100,IF(F8>=DATEVALUE("3/31/2004"),Calc(A126E_C5,A400A_C5+A400B_C5-A814_C5-A814A_C5)*100,IF(F8>=DATEVALUE("12/31/1995"),Calc(A125E_C5+A126E_C5,A400_C5)*100,"N/A"))))) )) -> 
A22: Commercial Loans Delinquent >= 60 Days / Total Commercial Loans 2 | B22: =IF(B8>DATEVALUE("6/30/2017"), Calc(A041G3_C1 + A041G4_C1 + A041P3_C1 + A041P4_C1,A400T1_C1) * 100,IF(B8>=DATEVALUE("6/30/2013"),IF((A400T_C1-A814E_C1)=0,0,((A041G1_C1+A041G2_C1+A041P1_C1+A041P2_C1)/(A400T_C1-A814E_C1))*100),IF(B8>=DATEVALUE("3/31/2011"),Calc(A041G_C1+A041H_C1+A041P_C1,A400T_C1-A814E_C1)*100,IF(B8>=DATEVALUE("3/31/2009"),Calc(A041G_C1+A041H_C1+A041P_C1,A400A_C1+A400B_C1-A814_C1-A814A_C1-A814A1_C1)*100,IF(B8>=DATEVALUE("6/30/2006"),Calc(A041G_C1+A041H_C1,A400A_C1+A400B_C1-A814_C1-A814A_C1)*100,IF(B8>=DATEVALUE("3/31/2004"),Calc(A126B_C1+A126C_C1+A126D_C1,A400A_C1+A400B_C1-A814_C1-A814A_C1)*100,IF(B8>=DATEVALUE("12/31/2005"),Calc(A125B_C1+A125C_C1+A125D_C1+A126B_C1+A126C_C1+A126D_C1,A400_C1)*100,"N/A"))))))) -> 0.8805613364 | C22: =IF(C8>DATEVALUE("6/30/2017"), Calc(A041G3_C2 + A041G4_C2 + A041P3_C2 + A041P4_C2,A400T1_C2) * 100,IF(C8>=DATEVALUE("6/30/2013"),IF((A400T_C2-A814E_C2)=0,0,((A041G1_C2+A041G2_C2+A041P1_C2+A041P2_C2)/(A400T_C2-A814E_C2))*100),IF(C8>=DATEVALUE("3/31/2011"),Calc(A041G_C2+A041H_C2+A041P_C2,A400T_C2-A814E_C2)*100,IF(C8>=DATEVALUE("3/31/2009"),Calc(A041G_C2+A041H_C2+A041P_C2,A400A_C2+A400B_C2-A814_C2-A814A_C2-A814A1_C2)*100,IF(C8>=DATEVALUE("6/30/2006"),Calc(A041G_C2+A041H_C2,A400A_C2+A400B_C2-A814_C2-A814A_C2)*100,IF(C8>=DATEVALUE("3/31/2004"),Calc(A126B_C2+A126C_C2+A126D_C2,A400A_C2+A400B_C2-A814_C2-A814A_C2)*100,IF(C8>=DATEVALUE("12/31/2005"),Calc(A125B_C2+A125C_C2+A125D_C2+A126B_C2+A126C_C2+A126D_C2,A400_C2)*100,"N/A"))))))) -> 1.289135632 | D22: =IF(D8>DATEVALUE("6/30/2017"), Calc(A041G3_C3 + A041G4_C3 + A041P3_C3 + A041P4_C3,A400T1_C3) * 100,IF(D8>=DATEVALUE("6/30/2013"),IF((A400T_C3-A814E_C3)=0,0,((A041G1_C3+A041G2_C3+A041P1_C3+A041P2_C3)/(A400T_C3-A814E_C3))*100),IF(D8>=DATEVALUE("3/31/2011"),Calc(A041G_C3+A041H_C3+A041P_C3,A400T_C3-A814E_C3)*100,IF(D8>=DATEVALUE("3/31/2009"),Calc(A041G_C3+A041H_C3+A041P_C3,A400A_C3+A400B_C3-A814_C3-A814A_C3-A814A1_C3)*100,IF(D8>=DATEVALUE("6/30/2006"),Calc(A041G_C3+A041H_C3,A400A_C3+A400B_C3-A814_C3-A814A_C3)*100,IF(D8>=DATEVALUE("3/31/2004"),Calc(A126B_C3+A126C_C3+A126D_C3,A400A_C3+A400B_C3-A814_C3-A814A_C3)*100,IF(D8>=DATEVALUE("12/31/2005"),Calc(A125B_C3+A125C_C3+A125D_C3+A126B_C3+A126C_C3+A126D_C3,A400_C3)*100,"N/A"))))))) -> 2.081005067 | E22: =IF(E8>DATEVALUE("6/30/2017"), Calc(A041G3_C4 + A041G4_C4 + A041P3_C4 + A041P4_C4,A400T1_C4) * 100,IF(E8>=DATEVALUE("6/30/2013"),IF((A400T_C4-A814E_C4)=0,0,((A041G1_C4+A041G2_C4+A041P1_C4+A041P2_C4)/(A400T_C4-A814E_C4))*100),IF(E8>=DATEVALUE("3/31/2011"),Calc(A041G_C4+A041H_C4+A041P_C4,A400T_C4-A814E_C4)*100,IF(E8>=DATEVALUE("3/31/2009"),Calc(A041G_C4+A041H_C4+A041P_C4,A400A_C4+A400B_C4-A814_C4-A814A_C4-A814A1_C4)*100,IF(E8>=DATEVALUE("6/30/2006"),Calc(A041G_C4+A041H_C4,A400A_C4+A400B_C4-A814_C4-A814A_C4)*100,IF(E8>=DATEVALUE("3/31/2004"),Calc(A126B_C4+A126C_C4+A126D_C4,A400A_C4+A400B_C4-A814_C4-A814A_C4)*100,IF(E8>=DATEVALUE("12/31/2005"),Calc(A125B_C4+A125C_C4+A125D_C4+A126B_C4+A126C_C4+A126D_C4,A400_C4)*100,"N/A"))))))) ->  | F22: =IF(F8>DATEVALUE("6/30/2017"), Calc(A041G3_C5 + A041G4_C5 + A041P3_C5 + A041P4_C5,A400T1_C5) * 100,IF(F8>=DATEVALUE("6/30/2013"),IF((A400T_C5-A814E_C5)=0,0,((A041G1_C5+A041G2_C5+A041P1_C5+A041P2_C5)/(A400T_C5-A814E_C5))*100),IF(F8>=DATEVALUE("3/31/2011"),Calc(A041G_C5+A041H_C5+A041P_C5,A400T_C5-A814E_C5)*100,IF(F8>=DATEVALUE("3/31/2009"),Calc(A041G_C5+A041H_C5+A041P_C5,A400A_C5+A400B_C5-A814_C5-A814A_C5-A814A1_C5)*100,IF(F8>=DATEVALUE("6/30/2006"),Calc(A041G_C5+A041H_C5,A400A_C5+A400B_C5-A814_C5-A814A_C5)*100,IF(F8>=DATEVALUE("3/31/2004"),Calc(A126B_C5+A126C_C5+A126D_C5,A400A_C5+A400B_C5-A814_C5-A814A_C5)*100,IF(F8>=DATEVALUE("12/31/2005"),Calc(A125B_C5+A125C_C5+A125D_C5+A126B_C5+A126C_C5+A126D_C5,A400_C5)*100,"N/A"))))))) -> 
A23: TDR Commercial Lns Not Secured by RE Delinquent >= 60 Days / TDR Commercial Lns Not Secured by RE 2 | B23: =IF(B8>DATEVALUE("6/30/2017"),Calc(A041Y1_C1,A1011G_C1)*100, IF(B8<DATEVALUE("12/31/2012"),"N/A", IF(A1011E_C1=0,0,(A041Y_C1/A1011E_C1)*100))) -> 7.021737529 | C23: =IF(C8>DATEVALUE("6/30/2017"),Calc(A041Y1_C2,A1011G_C2)*100, IF(C8<DATEVALUE("12/31/2012"),"N/A", IF(A1011E_C2=0,0,(A041Y_C2/A1011E_C2)*100))) -> 10.96515416 | D23: =IF(D8>DATEVALUE("6/30/2017"),Calc(A041Y1_C3,A1011G_C3)*100, IF(D8<DATEVALUE("12/31/2012"),"N/A", IF(A1011E_C3=0,0,(A041Y_C3/A1011E_C3)*100))) -> 42.12190965 | E23: =IF(E8>DATEVALUE("6/30/2017"),Calc(A041Y1_C4,A1011G_C4)*100, IF(E8<DATEVALUE("12/31/2012"),"N/A", IF(A1011E_C4=0,0,(A041Y_C4/A1011E_C4)*100))) ->  | F23: =IF(F8>DATEVALUE("6/30/2017"),Calc(A041Y1_C5,A1011G_C5)*100, IF(F8<DATEVALUE("12/31/2012"),"N/A", IF(A1011E_C5=0,0,(A041Y_C5/A1011E_C5)*100))) -> 
A24: Loans Held For Sale Delinquent >= 60 Days / Loans Held for Sale | B24: =IF(B8<DATEVALUE("6/30/2013"),"N/A", IF(A003_C1=0,0,(A071J_C1/A003_C1)*100)) -> 0.07929818427 | C24: =IF(C8<DATEVALUE("6/30/2013"),"N/A", IF(A003_C2=0,0,(A071J_C2/A003_C2)*100)) -> 0.01319538189 | D24: =IF(D8<DATEVALUE("6/30/2013"),"N/A", IF(A003_C3=0,0,(A071J_C3/A003_C3)*100)) -> 0 | E24: =IF(E8<DATEVALUE("6/30/2013"),"N/A", IF(A003_C4=0,0,(A071J_C4/A003_C4)*100)) -> 0 | F24: =IF(F8<DATEVALUE("6/30/2013"),"N/A", IF(A003_C5=0,0,(A071J_C5/A003_C5)*100)) -> 0
A25: Allowance for Loan & Lease Losses to Delinquent Loans | B25: =IF(B8>DATEVALUE("3/31/2004"),Calc(A719_C1,A041B_C1)*100,"N/A") ->  | C25: =IF(C8>DATEVALUE("3/31/2004"),Calc(A719_C2,A041B_C2)*100,"N/A") ->  | D25: =IF(D8>DATEVALUE("3/31/2004"),Calc(A719_C3,A041B_C3)*100,"N/A") ->  | E25: =IF(E8>DATEVALUE("3/31/2004"),Calc(A719_C4,A041B_C4)*100,"N/A") ->  | F25: =IF(F8>DATEVALUE("3/31/2004"),Calc(A719_C5,A041B_C5)*100,"N/A") -> 
A26: REAL ESTATE LOAN DELINQUENCY 1
A27: 1st Mortgage Fixed and Hybrid/Balloon (> 5 years) Delinquent >= 60 Days / Total 1st Mtg Fixed and Hybrid/Balloon > 5 years | B27: =IF(B8>=DATEVALUE("06/30/2006"),Calc(A713A_C1,A704A_C1+A704B_C1+A704C_C1+A704E_C1)*100,IF(B8>=DATEVALUE("03/31/2004"),Calc(A713_C1,A704A_C1+A704B_C1+A704C_C1+A704E_C1)*100,"N/A")) ->  | C27: =IF(C8>=DATEVALUE("6/30/2006"),Calc(A713A_C2,A704A_C2+A704B_C2+A704C_C2+A704E_C2)*100,Calc(A713_C2,A704A_C2+A704B_C2+A704C_C2+A704E_C2)*100) ->  | D27: =IF(D8>=DATEVALUE("6/30/2006"),Calc(A713A_C3,A704A_C3+A704B_C3+A704C_C3+A704E_C3)*100,Calc(A713_C3,A704A_C3+A704B_C3+A704C_C3+A704E_C3)*100) ->  | E27: =IF(E8>=DATEVALUE("6/30/2006"),Calc(A713A_C4,A704A_C4+A704B_C4+A704C_C4+A704E_C4)*100,Calc(A713_C4,A704A_C4+A704B_C4+A704C_C4+A704E_C4)*100) ->  | F27: =IF(F8>=DATEVALUE("6/30/2006"),Calc(A713A_C5,A704A_C5+A704B_C5+A704C_C5+A704E_C5)*100,Calc(A713_C5,A704A_C5+A704B_C5+A704C_C5+A704E_C5)*100) -> 
A28: 1st Mortgage Adjustable Rate and Hybrid/Balloon (< 5 years) Delinquent >= 60 Days / Total 1st Mtg Adjustable Rate and Hybrid/Balloon < 5 years | B28: =IF(B8>=DATEVALUE("06/30/2006"),Calc(A714A_C1,A705A_C1+A705B_C1+A704D_C1)*100,IF(B8>=DATEVALUE("03/31/2004"),Calc(A772_C1+A773_C1+A774_C1,A705A_C1+A705B_C1+A704D_C1)*100,"N/A")) ->  | C28: =IF(C8>=DATEVALUE("06/30/2006"),Calc(A714A_C2,A705A_C2+A705B_C2+A704D_C2)*100,IF(C8>=DATEVALUE("03/31/2004"),Calc(A772_C2+A773_C2+A774_C2,A705A_C2+A705B_C2+A704D_C2)*100,"N/A")) ->  | D28: =IF(D8>=DATEVALUE("06/30/2006"),Calc(A714A_C3,A705A_C3+A705B_C3+A704D_C3)*100,IF(D8>=DATEVALUE("03/31/2004"),Calc(A772_C3+A773_C3+A774_C3,A705A_C3+A705B_C3+A704D_C3)*100,"N/A")) ->  | E28: =IF(E8>=DATEVALUE("06/30/2006"),Calc(A714A_C4,A705A_C4+A705B_C4+A704D_C4)*100,IF(E8>=DATEVALUE("03/31/2004"),Calc(A772_C4+A773_C4+A774_C4,A705A_C4+A705B_C4+A704D_C4)*100,"N/A")) ->  | F28: =IF(F8>=DATEVALUE("06/30/2006"),Calc(A714A_C5,A705A_C5+A705B_C5+A704D_C5)*100,IF(F8>=DATEVALUE("03/31/2004"),Calc(A772_C5+A773_C5+A774_C5,A705A_C5+A705B_C5+A704D_C5)*100,"N/A")) -> 
A29: Other Real Estate Fixed/Hybrid/Balloon Loans Delinquent >= 60 Days / Total Other RE Fixed/Hybrid/Balloon Loans | B29: =IF(B8<DATEVALUE("6/30/2006"),IF((A706_C1+A708B_C1)=0,0,((A756_C1+A757_C1+A758_C1)/(A706_C1+A708B_C1))*100), IF((A706_C1+A708B_C1)=0,0,((A715A_C1)/(A706_C1+A708B_C1))*100)) -> 0.925639927 | C29: =IF(C8<DATEVALUE("6/30/2006"),IF((A706_C2+A708B_C2)=0,0,((A756_C2+A757_C2+A758_C2)/(A706_C2+A708B_C2))*100), IF((A706_C2+A708B_C2)=0,0,((A715A_C2)/(A706_C2+A708B_C2))*100)) -> 0.79672808 | D29: =IF(D8<DATEVALUE("6/30/2006"),IF((A706_C3+A708B_C3)=0,0,((A756_C3+A757_C3+A758_C3)/(A706_C3+A708B_C3))*100), IF((A706_C3+A708B_C3)=0,0,((A715A_C3)/(A706_C3+A708B_C3))*100)) -> 0.6496714733 | E29: =IF(E8<DATEVALUE("6/30/2006"),IF((A706_C4+A708B_C4)=0,0,((A756_C4+A757_C4+A758_C4)/(A706_C4+A708B_C4))*100), IF((A706_C4+A708B_C4)=0,0,((A715A_C4)/(A706_C4+A708B_C4))*100)) -> 0.5464283821 | F29: =IF(F8<DATEVALUE("6/30/2006"),IF((A706_C5+A708B_C5)=0,0,((A756_C5+A757_C5+A758_C5)/(A706_C5+A708B_C5))*100), IF((A706_C5+A708B_C5)=0,0,((A715A_C5)/(A706_C5+A708B_C5))*100)) -> 0.5110014829
A30: Other Real Estate Adjustable Rate Loans Delinquent >= 60 Days / Total Other RE Adjustable Rate Loans | B30: =IF(B8<DATEVALUE("6/30/2006"),IF((A707_C1+A708_C1+A709_C1)=0,0,((A776_C1+A777_C1+A778_C1)/(A707_C1+A708_C1+A709_C1))*100), IF((A707_C1+A708_C1+A709_C1)=0,0,((A716A_C1)/(A707_C1+A708_C1+A709_C1))*100)) -> 0.5487805 | C30: =IF(C8<DATEVALUE("6/30/2006"),IF((A707_C2+A708_C2+A709_C2)=0,0,((A776_C2+A777_C2+A778_C2)/(A707_C2+A708_C2+A709_C2))*100), IF((A707_C2+A708_C2+A709_C2)=0,0,((A716A_C2)/(A707_C2+A708_C2+A709_C2))*100)) -> 0.4802875608 | D30: =IF(D8<DATEVALUE("6/30/2006"),IF((A707_C3+A708_C3+A709_C3)=0,0,((A776_C3+A777_C3+A778_C3)/(A707_C3+A708_C3+A709_C3))*100), IF((A707_C3+A708_C3+A709_C3)=0,0,((A716A_C3)/(A707_C3+A708_C3+A709_C3))*100)) -> 0.4341746608 | E30: =IF(E8<DATEVALUE("6/30/2006"),IF((A707_C4+A708_C4+A709_C4)=0,0,((A776_C4+A777_C4+A778_C4)/(A707_C4+A708_C4+A709_C4))*100), IF((A707_C4+A708_C4+A709_C4)=0,0,((A716A_C4)/(A707_C4+A708_C4+A709_C4))*100)) -> 0.4121575426 | F30: =IF(F8<DATEVALUE("6/30/2006"),IF((A707_C5+A708_C5+A709_C5)=0,0,((A776_C5+A777_C5+A778_C5)/(A707_C5+A708_C5+A709_C5))*100), IF((A707_C5+A708_C5+A709_C5)=0,0,((A716A_C5)/(A707_C5+A708_C5+A709_C5))*100)) -> 0.4124393832
A31: Total Interest Only Payment Option First & Other RE Loans Delinquent >= 60 Days / Total Int Only and Pmt Opt First & Other RE Loans | B31: =IF(B8<DATEVALUE("3/31/2009"),"N/A", IF((A704C1_C1+ A704D2_C1)=0,0,((A041I_C1+A041M_C1)/(A704C1_C1+ A704D2_C1))*100)) -> 0.5696203624 | C31: =IF(C8<DATEVALUE("3/31/2009"),"N/A", IF((A704C1_C2+A704D2_C2)=0,0,((A041I_C2+A041M_C2)/(A704C1_C2+A704D2_C2))*100)) -> 0.548180033 | D31: =IF(D8<DATEVALUE("3/31/2009"),"N/A", IF((A704C1_C3+A704D2_C3)=0,0,((A041I_C3+A041M_C3)/(A704C1_C3+A704D2_C3))*100)) -> 0.3712603389 | E31: =IF(E8<DATEVALUE("3/31/2009"),"N/A", IF((A704C1_C4+A704D2_C4)=0,0,((A041I_C4+A041M_C4)/(A704C1_C4+A704D2_C4))*100)) -> 0.3419459016 | F31: =IF(F8<DATEVALUE("3/31/2009"),"N/A", IF((A704C1_C5+A704D2_C5)=0,0,((A041I_C5+A041M_C5)/(A704C1_C5+A704D2_C5))*100)) -> 0.3043535748
A32: Total TDR 1st and Other RE Delinquent >= 60 Days / Total TDR 1st and Other Loans | B32: =IF(B8<DATEVALUE("12/31/2012"),"N/A", IF((A1011A_C1+A1011B_C1)=0,0, ((A041U_C1+A041V_C1) / (A1011A_C1+A1011B_C1))*100)) -> 10.21758611 | C32: =IF(C8<DATEVALUE("12/31/2012"),"N/A", IF((A1011A_C2+A1011B_C2)=0,0, ((A041U_C2+A041V_C2) / (A1011A_C2+A1011B_C2))*100)) -> 9.738514573 | D32: =IF(D8<DATEVALUE("12/31/2012"),"N/A", IF((A1011A_C3+A1011B_C3)=0,0, ((A041U_C3+A041V_C3) / (A1011A_C3+A1011B_C3))*100)) -> 8.9710524 | E32: =IF(E8<DATEVALUE("12/31/2012"),"N/A", IF((A1011A_C4+A1011B_C4)=0,0, ((A041U_C4+A041V_C4) / (A1011A_C4+A1011B_C4))*100)) -> 9.713920744 | F32: =IF(F8<DATEVALUE("12/31/2012"),"N/A", IF((A1011A_C5+A1011B_C5)=0,0, ((A041U_C5+A041V_C5) / (A1011A_C5+A1011B_C5))*100)) -> 9.807016204
A33: TDR RE Lns also Reported as Commercial Loans Delinquent >= 60 Days / Total TDR RE Lns also Reported as Commercial Loans | B33: =IF(B8>DATEVALUE("6/30/2017"), IF((A1011F_C1)=0,0,((A041W1_C1) / (A1011F_C1))*100),IF(B8<DATEVALUE("12/31/2012"),"N/A", IF((A1011C_C1)=0,0,((A041W_C1) / (A1011C_C1))*100))) -> 7.863011418 | C33: =IF(C8>DATEVALUE("6/30/2017"), IF((A1011F_C2)=0,0,((A041W1_C2) / (A1011F_C2))*100),IF(C8<DATEVALUE("12/31/2012"),"N/A", IF((A1011C_C2)=0,0,((A041W_C2) / (A1011C_C2))*100))) -> 6.407070358 | D33: =IF(D8>DATEVALUE("6/30/2017"), IF((A1011F_C3)=0,0,((A041W1_C3) / (A1011F_C3))*100),IF(D8<DATEVALUE("12/31/2012"),"N/A", IF((A1011C_C3)=0,0,((A041W_C3) / (A1011C_C3))*100))) -> 5.451835984 | E33: =IF(E8>DATEVALUE("6/30/2017"), IF((A1011F_C4)=0,0,((A041W1_C4) / (A1011F_C4))*100),IF(E8<DATEVALUE("12/31/2012"),"N/A", IF((A1011C_C4)=0,0,((A041W_C4) / (A1011C_C4))*100))) -> 8.382997017 | F33: =IF(F8>DATEVALUE("6/30/2017"), IF((A1011F_C5)=0,0,((A041W1_C5) / (A1011F_C5))*100),IF(F8<DATEVALUE("12/31/2012"),"N/A", IF((A1011C_C5)=0,0,((A041W_C5) / (A1011C_C5))*100))) -> 5.516376172
A34: Total Real Estate Loans DQ>= 30 Days / Total Real Estate Loans | B34: =IF( B8<DATEVALUE("6/30/2006"), IF(A710_C1=0,0,((A713_C1+A714_C1+A715_C1+A716_C1)/A710_C1)*100), IF(A710_C1=0,0,((A713A_C1+A714A_C1+A715A_C1+A716A_C1+A751_C1+A771_C1+A755_C1+A775_C1)/A710_C1)*100)) -> 2.004705807 | C34: =IF( C8<DATEVALUE("6/30/2006"), IF(A710_C2=0,0,((A713_C2+A714_C2+A715_C2+A716_C2)/A710_C2)*100), IF(A710_C2=0,0,((A713A_C2+A714A_C2+A715A_C2+A716A_C2+A751_C2+A771_C2+A755_C2+A775_C2)/A710_C2)*100)) -> 1.691400695 | D34: =IF( D8<DATEVALUE("6/30/2006"), IF(A710_C3=0,0,((A713_C3+A714_C3+A715_C3+A716_C3)/A710_C3)*100), IF(A710_C3=0,0,((A713A_C3+A714A_C3+A715A_C3+A716A_C3+A751_C3+A771_C3+A755_C3+A775_C3)/A710_C3)*100)) -> 1.484698089 | E34: =IF( E8<DATEVALUE("6/30/2006"), IF(A710_C4=0,0,((A713_C4+A714_C4+A715_C4+A716_C4)/A710_C4)*100), IF(A710_C4=0,0,((A713A_C4+A714A_C4+A715A_C4+A716A_C4+A751_C4+A771_C4+A755_C4+A775_C4)/A710_C4)*100)) -> 1.428298194 | F34: =IF( F8<DATEVALUE("6/30/2006"), IF(A710_C5=0,0,((A713_C5+A714_C5+A715_C5+A716_C5)/A710_C5)*100), IF(A710_C5=0,0,((A713A_C5+A714A_C5+A715A_C5+A716A_C5+A751_C5+A771_C5+A755_C5+A775_C5)/A710_C5)*100)) -> 1.35992621
A35: Total Real Estate Loans DQ >= 60 Days / Total Real Estate Loans | B35: =IF(B8<DATEVALUE("6/30/2006"),(IF(A710_C1=0,0,((A752_C1+A753_C1+A754_C1+A756_C1+A757_C1+A758_C1+A772_C1+A773_C1+A774_C1+A776_C1+A777_C1+A778_C1)/A710_C1)*100)),(IF(A710_C1=0,0,((A713A_C1+A714A_C1+A715A_C1+A716A_C1)/A710_C1)*100))) -> 0.9139369457 | C35: =IF(C8<DATEVALUE("6/30/2006"),(IF(A710_C2=0,0,((A752_C2+A753_C2+A754_C2+A756_C2+A757_C2+A758_C2+A772_C2+A773_C2+A774_C2+A776_C2+A777_C2+A778_C2)/A710_C2)*100)),(IF(A710_C2=0,0,((A713A_C2+A714A_C2+A715A_C2+A716A_C2)/A710_C2)*100))) -> 0.7515414414 | D35: =IF(D8<DATEVALUE("6/30/2006"),(IF(A710_C3=0,0,((A752_C3+A753_C3+A754_C3+A756_C3+A757_C3+A758_C3+A772_C3+A773_C3+A774_C3+A776_C3+A777_C3+A778_C3)/A710_C3)*100)),(IF(A710_C3=0,0,((A713A_C3+A714A_C3+A715A_C3+A716A_C3)/A710_C3)*100))) -> 0.6208276982 | E35: =IF(E8<DATEVALUE("6/30/2006"),(IF(A710_C4=0,0,((A752_C4+A753_C4+A754_C4+A756_C4+A757_C4+A758_C4+A772_C4+A773_C4+A774_C4+A776_C4+A777_C4+A778_C4)/A710_C4)*100)),(IF(A710_C4=0,0,((A713A_C4+A714A_C4+A715A_C4+A716A_C4)/A710_C4)*100))) -> 0.6070032204 | F35: =IF(F8<DATEVALUE("6/30/2006"),(IF(A710_C5=0,0,((A752_C5+A753_C5+A754_C5+A756_C5+A757_C5+A758_C5+A772_C5+A773_C5+A774_C5+A776_C5+A777_C5+A778_C5)/A710_C5)*100)),(IF(A710_C5=0,0,((A713A_C5+A714A_C5+A715A_C5+A716A_C5)/A710_C5)*100))) -> 0.5470298419
A36: MISCELLANEOUS LOAN LOSS RATIOS
A37: Charge Offs Due To Bankruptcy (YTD) / Total Charge Offs (YTD) | B37: =IF(A550_C1=0,0,(A682_C1/A550_C1)*100) -> 19.22283344 | C37: =IF(A550_C2=0,0,(A682_C2/A550_C2)*100) -> 16.80571862 | D37: =IF(A550_C3=0,0,(A682_C3/A550_C3)*100) -> 13.87558694 | E37: =IF(A550_C4=0,0,(A682_C4/A550_C4)*100) -> 13.4775875 | F37: =IF(A550_C5=0,0,(A682_C5/A550_C5)*100) -> 13.87251825
A38: * Net Charge Offs - Credit Cards / Avg Credit Card Loans | B38: =IF(B8<DATEVALUE("3/31/2004"),"N/A",IF((A396_C1+pA396_C1)/2=0, 0, (((A680_C1-A681_C1)/((A396_C1+pA396_C1)/2))*100)*Anu_C1)) -> 1.636581693 | C38: =IF(C8<DATEVALUE("3/31/2004"),"N/A",IF((A396_C2+pA396_C2)/2=0, 0, (((A680_C2-A681_C2)/((A396_C2+pA396_C2)/2))*100)*Anu_C2)) -> 1.516668338 | D38: =IF(D8<DATEVALUE("3/31/2004"),"N/A",IF((A396_C3+pA396_C3)/2=0, 0, (((A680_C3-A681_C3)/((A396_C3+pA396_C3)/2))*100)*Anu_C3)) -> 1.670515883 | E38: =IF(E8<DATEVALUE("3/31/2004"),"N/A",IF((A396_C4+pA396_C4)/2=0, 0, (((A680_C4-A681_C4)/((A396_C4+pA396_C4)/2))*100)*Anu_C4)) -> 1.903197218 | F38: =IF(F8<DATEVALUE("3/31/2004"),"N/A",IF((A396_C5+pA396_C5)/2=0, 0, (((A680_C5-A681_C5)/((A396_C5+pA396_C5)/2))*100)*Anu_C5)) -> 2.060151334
A39: * Net Charge Offs - Non-Federally Guaranteed Student Loans / Avg Non-Federally Guaranteed Student Loans | B39: =IF(B8<DATEVALUE("3/31/2012"),"N/A", IF((A698A_C1+pA698A_C1)=0,0, ( ((A550T_C1-A551T_C1)/((A698A_C1+pA698A_C1)/2)) *100)*Anu_C1)) -> 0.2447408516 | C39: =IF(C8<DATEVALUE("3/31/2012"),"N/A", IF((A698A_C2+pA698A_C2)=0,0, ( ((A550T_C2-A551T_C2)/((A698A_C2+pA698A_C2)/2)) *100)*Anu_C2)) -> 0.1872196426 | D39: =IF(D8<DATEVALUE("3/31/2012"),"N/A", IF((A698A_C3+pA698A_C3)=0,0, ( ((A550T_C3-A551T_C3)/((A698A_C3+pA698A_C3)/2)) *100)*Anu_C3)) -> 1.410942966 | E39: =IF(E8<DATEVALUE("3/31/2012"),"N/A", IF((A698A_C4+pA698A_C4)=0,0, ( ((A550T_C4-A551T_C4)/((A698A_C4+pA698A_C4)/2)) *100)*Anu_C4)) -> 0.9922231275 | F39: =IF(F8<DATEVALUE("3/31/2012"),"N/A", IF((A698A_C5+pA698A_C5)=0,0, ( ((A550T_C5-A551T_C5)/((A698A_C5+pA698A_C5)/2)) *100)*Anu_C5)) -> 0.4392778112
A40: * Net Charge Offs - Total Vehicle Loans / Avg Total Vehicle Loans | B40: =IF(B8<DATEVALUE("6/30/2013"),"N/A",IF((pA385_C1+pA370_C1+A385_C1+A370_C1)=0,0,((A550C1_C1+A550C2_C1-A551C1_C1-A551C2_C1)/((pA385_C1+pA370_C1+A385_C1+A370_C1)/2))*100)*Anu_C1) -> 0.4954692092 | C40: =IF(C8<DATEVALUE("6/30/2013"),"N/A",IF((pA385_C2+pA370_C2+A385_C2+A370_C2)=0,0,((A550C1_C2+A550C2_C2-A551C1_C2-A551C2_C2)/((pA385_C2+pA370_C2+A385_C2+A370_C2)/2))*100)*Anu_C2) -> 0.5052644365 | D40: =IF(D8<DATEVALUE("6/30/2013"),"N/A",IF((pA385_C3+pA370_C3+A385_C3+A370_C3)=0,0,((A550C1_C3+A550C2_C3-A551C1_C3-A551C2_C3)/((pA385_C3+pA370_C3+A385_C3+A370_C3)/2))*100)*Anu_C3) -> 0.5714965364 | E40: =IF(E8<DATEVALUE("6/30/2013"),"N/A",IF((pA385_C4+pA370_C4+A385_C4+A370_C4)=0,0,((A550C1_C4+A550C2_C4-A551C1_C4-A551C2_C4)/((pA385_C4+pA370_C4+A385_C4+A370_C4)/2))*100)*Anu_C4) -> 0.6205045641 | F40: =IF(F8<DATEVALUE("6/30/2013"),"N/A",IF((pA385_C5+pA370_C5+A385_C5+A370_C5)=0,0,((A550C1_C5+A550C2_C5-A551C1_C5-A551C2_C5)/((pA385_C5+pA370_C5+A385_C5+A370_C5)/2))*100)*Anu_C5) -> 0.6007439933
A41: * Net Charge Offs - Total Real Estate Loans / Avg Total Real Estate Loans | B41: =IF((A710_C1+pA710_C1)/2=0, 0, (((A548_C1+A549_C1-A607_C1-A608_C1)/((A710_C1+pA710_C1)/2))*100)*Anu_C1) -> 0.1722494973 | C41: =IF((A710_C2+pA710_C2)/2=0, 0, (((A548_C2+A549_C2-A607_C2-A608_C2)/((A710_C2+pA710_C2)/2))*100)*Anu_C2) -> 0.08764937036 | D41: =IF((A710_C3+pA710_C3)/2=0, 0, (((A548_C3+A549_C3-A607_C3-A608_C3)/((A710_C3+pA710_C3)/2))*100)*Anu_C3) -> 0.04810987549 | E41: =IF((A710_C4+pA710_C4)/2=0, 0, (((A548_C4+A549_C4-A607_C4-A608_C4)/((A710_C4+pA710_C4)/2))*100)*Anu_C4) -> 0.01917858759 | F41: =IF((A710_C5+pA710_C5)/2=0, 0, (((A548_C5+A549_C5-A607_C5-A608_C5)/((A710_C5+pA710_C5)/2))*100)*Anu_C5) -> 0.0133583639
A42: * Net Charge Offs - 1st Mortgage Loans / Avg 1st Mortgage Loans | B42: =IF(B8<DATEVALUE("6/30/2006"),"N/A",IF((pA703_C1+A703_C1)/2=0, 0, (((A548_C1-A607_C1)/((pA703_C1+A703_C1)/2))*100)*Anu_C1)) -> 0.1500916979 | C42: =IF(C8<DATEVALUE("6/30/2006"),"N/A",IF((pA703_C2+A703_C2)/2=0, 0, (((A548_C2-A607_C2)/((pA703_C2+A703_C2)/2))*100)*Anu_C2)) -> 0.07944051629 | D42: =IF(D8<DATEVALUE("6/30/2006"),"N/A",IF((pA703_C3+A703_C3)/2=0, 0, (((A548_C3-A607_C3)/((pA703_C3+A703_C3)/2))*100)*Anu_C3)) -> 0.05004676444 | E42: =IF(E8<DATEVALUE("6/30/2006"),"N/A",IF((pA703_C4+A703_C4)/2=0, 0, (((A548_C4-A607_C4)/((pA703_C4+A703_C4)/2))*100)*Anu_C4)) -> 0.02552642958 | F42: =IF(F8<DATEVALUE("6/30/2006"),"N/A",IF((pA703_C5+A703_C5)/2=0, 0, (((A548_C5-A607_C5)/((pA703_C5+A703_C5)/2))*100)*Anu_C5)) -> 0.01913204171
A43: * Net Charge Offs - Other RE Loans/ Avg Other RE Loans | B43: =IF(B8<DATEVALUE("6/30/2006"),"N/A",IF((pA386_C1+A386_C1)/2=0, 0, (((A549_C1-A608_C1)/((pA386_C1+A386_C1)/2))*100)*Anu_C1)) -> 0.2684664318 | C43: =IF(C8<DATEVALUE("6/30/2006"),"N/A",IF((pA386_C2+A386_C2)/2=0, 0, (((A549_C2-A608_C2)/((pA386_C2+A386_C2)/2))*100)*Anu_C2)) -> 0.1252472547 | D43: =IF(D8<DATEVALUE("6/30/2006"),"N/A",IF((pA386_C3+A386_C3)/2=0, 0, (((A549_C3-A608_C3)/((pA386_C3+A386_C3)/2))*100)*Anu_C3)) -> 0.03862534517 | E43: =IF(E8<DATEVALUE("6/30/2006"),"N/A",IF((pA386_C4+A386_C4)/2=0, 0, (((A549_C4-A608_C4)/((pA386_C4+A386_C4)/2))*100)*Anu_C4)) -> -0.01391501297 | F43: =IF(F8<DATEVALUE("6/30/2006"),"N/A",IF((pA386_C5+A386_C5)/2=0, 0, (((A549_C5-A608_C5)/((pA386_C5+A386_C5)/2))*100)*Anu_C5)) -> -0.01757567699
A44: * Net Charge Offs - Interest Only and Payment Option First & Other RE Loans / Avg Interest Only and Payment Option First & Other RE Loans | B44: =IF(B8<DATEVALUE("3/31/2010"),"N/A",IF((pA704C1_C1+pA704D2_C1+A704C1_C1+A704D2_C1)=0,0,(((A550I_C1-A551I_C1)+(A550M_C1-A551M_C1))/((pA704C1_C1+pA704D2_C1+A704C1_C1+A704D2_C1)/2)*100)*Anu_C1)) -> 0.4188080428 | C44: =IF(C8<DATEVALUE("3/31/2010"),"N/A",IF((pA704C1_C2+pA704D2_C2+A704C1_C2+A704D2_C2)=0,0,(((A550I_C2-A551I_C2)+(A550M_C2-A551M_C2))/((pA704C1_C2+pA704D2_C2+A704C1_C2+A704D2_C2)/2)*100)*Anu_C2)) -> 0.1494121421 | D44: =IF(D8<DATEVALUE("3/31/2010"),"N/A",IF((pA704C1_C3+pA704D2_C3+A704C1_C3+A704D2_C3)=0,0,(((A550I_C3-A551I_C3)+(A550M_C3-A551M_C3))/((pA704C1_C3+pA704D2_C3+A704C1_C3+A704D2_C3)/2)*100)*Anu_C3)) -> 0.03519151387 | E44: =IF(E8<DATEVALUE("3/31/2010"),"N/A",IF((pA704C1_C4+pA704D2_C4+A704C1_C4+A704D2_C4)=0,0,(((A550I_C4-A551I_C4)+(A550M_C4-A551M_C4))/((pA704C1_C4+pA704D2_C4+A704C1_C4+A704D2_C4)/2)*100)*Anu_C4)) -> 0.0006242862594 | F44: =IF(F8<DATEVALUE("3/31/2010"),"N/A",IF((pA704C1_C5+pA704D2_C5+A704C1_C5+A704D2_C5)=0,0,(((A550I_C5-A551I_C5)+(A550M_C5-A551M_C5))/((pA704C1_C5+pA704D2_C5+A704C1_C5+A704D2_C5)/2)*100)*Anu_C5)) -> -0.01154212959
A45: * Net Charge Offs - Leases Receivable / Avg Leases Receivable | B45: =IF(B8<DATEVALUE("6/30/2006"),"N/A",IF((pA002_C1+A002_C1)/2=0, 0, (((A550D_C1-A551D_C1)/((pA002_C1+A002_C1)/2))*100)*Anu_C1)) -> 0.2080795078 | C45: =IF(C8<DATEVALUE("6/30/2006"),"N/A",IF((pA002_C2+A002_C2)/2=0, 0, (((A550D_C2-A551D_C2)/((pA002_C2+A002_C2)/2))*100)*Anu_C2)) -> 0.2323338038 | D45: =IF(D8<DATEVALUE("6/30/2006"),"N/A",IF((pA002_C3+A002_C3)/2=0, 0, (((A550D_C3-A551D_C3)/((pA002_C3+A002_C3)/2))*100)*Anu_C3)) -> 0.3091303312 | E45: =IF(E8<DATEVALUE("6/30/2006"),"N/A",IF((pA002_C4+A002_C4)/2=0, 0, (((A550D_C4-A551D_C4)/((pA002_C4+A002_C4)/2))*100)*Anu_C4)) -> 0.4008526055 | F45: =IF(F8<DATEVALUE("6/30/2006"),"N/A",IF((pA002_C5+A002_C5)/2=0, 0, (((A550D_C5-A551D_C5)/((pA002_C5+A002_C5)/2))*100)*Anu_C5)) -> 0.3578338712
A46: * Net Charge Offs - Indirect Loans / Avg Indirect Loans | B46: =IF(B8<DATEVALUE("6/30/2006"),"N/A",IF((pA618A_C1+A618A_C1)/2=0, 0, (((A550E_C1-A551E_C1)/((pA618A_C1+A618A_C1)/2))*100)*Anu_C1)) -> 0.635495358 | C46: =IF(C8<DATEVALUE("6/30/2006"),"N/A",IF((pA618A_C2+A618A_C2)/2=0, 0, (((A550E_C2-A551E_C2)/((pA618A_C2+A618A_C2)/2))*100)*Anu_C2)) -> 0.6204109823 | D46: =IF(D8<DATEVALUE("6/30/2006"),"N/A",IF((pA618A_C3+A618A_C3)/2=0, 0, (((A550E_C3-A551E_C3)/((pA618A_C3+A618A_C3)/2))*100)*Anu_C3)) -> 0.648767143 | E46: =IF(E8<DATEVALUE("6/30/2006"),"N/A",IF((pA618A_C4+A618A_C4)/2=0, 0, (((A550E_C4-A551E_C4)/((pA618A_C4+A618A_C4)/2))*100)*Anu_C4)) -> 0.6789852755 | F46: =IF(F8<DATEVALUE("6/30/2006"),"N/A",IF((pA618A_C5+A618A_C5)/2=0, 0, (((A550E_C5-A551E_C5)/((pA618A_C5+A618A_C5)/2))*100)*Anu_C5)) -> 0.6333953241
A47: * Net Charge Offs - Participation Loans / Avg Participation Loans | B47: =IF(B8<DATEVALUE("6/30/2006"),"N/A",IF(B8>=DATEVALUE("03/31/2010"),Calc(A550F_C1-A551F_C1,(pA619B_C1+A619B_C1+pA691E_C1+A691E_C1)/2)*100*Anu_C1,IF(B8>=DATEVALUE("03/31/2009"),Calc(A550F_C1-A551F_C1,(pA619_C1+A619B_C1+A691E_C1)/2)*100*Anu_C1,Calc(A550F_C1-A551F_C1,(pA619_C1+A619_C1)/2)*100*Anu_C1))) ->  | C47: =IF(C8<DATEVALUE("6/30/2006"),"N/A",IF(C8>=DATEVALUE("03/31/2010"),Calc(A550F_C2-A551F_C2,(pA619B_C2+A619B_C2+pA691E_C2+A691E_C2)/2)*100*Anu_C2,IF(C8>=DATEVALUE("03/31/2009"),Calc(A550F_C2-A551F_C2,(pA619_C2+A619B_C2+A691E_C2)/2)*100*Anu_C2,Calc(A550F_C2-A551F_C2,(pA619_C2+A619_C2)/2)*100*Anu_C2))) ->  | D47: =IF(D8<DATEVALUE("6/30/2006"),"N/A",IF(D8>=DATEVALUE("03/31/2010"),Calc(A550F_C3-A551F_C3,(pA619B_C3+A619B_C3+pA691E_C3+A691E_C3)/2)*100*Anu_C3,IF(D8>=DATEVALUE("03/31/2009"),Calc(A550F_C3-A551F_C3,(pA619_C3+A619B_C3+A691E_C3)/2)*100*Anu_C3,Calc(A550F_C3-A551F_C3,(pA619_C3+A619_C3)/2)*100*Anu_C3))) ->  | E47: =IF(E8<DATEVALUE("6/30/2006"),"N/A",IF(E8>=DATEVALUE("03/31/2010"),Calc(A550F_C4-A551F_C4,(pA619B_C4+A619B_C4+pA691E_C4+A691E_C4)/2)*100*Anu_C4,IF(E8>=DATEVALUE("03/31/2009"),Calc(A550F_C4-A551F_C4,(pA619_C4+A619B_C4+A691E_C4)/2)*100*Anu_C4,Calc(A550F_C4-A551F_C4,(pA619_C4+A619_C4)/2)*100*Anu_C4))) ->  | F47: =IF(F8<DATEVALUE("6/30/2006"),"N/A",IF(F8>=DATEVALUE("03/31/2010"),Calc(A550F_C5-A551F_C5,(pA619B_C5+A619B_C5+pA691E_C5+A691E_C5)/2)*100*Anu_C5,IF(F8>=DATEVALUE("03/31/2009"),Calc(A550F_C5-A551F_C5,(pA619_C5+A619B_C5+A691E_C5)/2)*100*Anu_C5,Calc(A550F_C5-A551F_C5,(pA619_C5+A619_C5)/2)*100*Anu_C5))) -> 
A48: * Net Charge Offs - Commercial Loans / Avg Commercial Loans 2 | B48: =IF(B8>DATEVALUE("12/31/2017"),Calc((A550G3_C1 + A550G4_C1 + A550P3_C1 + A550P4_C1 - A551G3_C1 - A551G4_C1 -A551P3_C1 - A551P4_C1), (A400T1_C1+pA400T1_C1)/2) * 100*Anu_C1,(IF(B8>DATEVALUE("6/30/2017"),Calc((A550G3_C1 + A550G4_C1 + A550P3_C1 + A550P4_C1 - A551G3_C1 - A551G4_C1 -A551P3_C1 - A551P4_C1), (( A400T1_C1+pA400T_C1) - pA814E_C1)/2) * 100*Anu_C1,IF(B8>=DATEVALUE("6/30/2013"),IF(((A400T_C1-A814E_C1)+(pA400T_C1-pA814E_C1))=0,0,((A550G1_C1+A550G2_C1+A550P1_C1+A550P2_C1-A551G1_C1-A551G2_C1-A551P1_C1-A551P2_C1)/(((A400T_C1-A814E_C1)+(pA400T_C1-pA814E_C1))/2))*100)*Anu_C1,IF(B8>=DATEVALUE("3/31/2012"),Calc(A550G_C1+A550H_C1+A550P_C1-A551G_C1-A551H_C1-A551P_C1,(A400T_C1-A814E_C1+pA400T_C1-pA814E_C1)/2)*100*Anu_C1,IF(B8>=DATEVALUE("3/31/2011"),Calc(A550G_C1+A550H_C1+A550P_C1-A551G_C1-A551H_C1-A551P_C1,(A400T_C1-A814E_C1+pA400A_C1+pA400B_C1-pA814_C1-pA814A_C1-pA814A1_C1)/2)*100*Anu_C1,IF(B8>=DATEVALUE("3/31/2010"),Calc(A550G_C1+A550H_C1+A550P_C1-A551G_C1-A551H_C1-A551P_C1,(A400A_C1+A400B_C1-A814_C1-A814A_C1-A814A1_C1+pA400A_C1+pA400B_C1-pA814_C1-pA814A_C1-pA814A1_C1)/2)*100*Anu_C1,IF(B8>=DATEVALUE("3/31/2009"),Calc(A550G_C1+A550H_C1+A550P_C1-A551G_C1-A551H_C1-A551P_C1,(A400A_C1+A400B_C1-A814_C1-A814A_C1-A814A1_C1+pA400A_C1+pA400B_C1-pA814_C1-pA814A_C1)/2)*100*Anu_C1,"N/A")))))))) -> 0.3692324695 | C48: =IF(C8>DATEVALUE("12/31/2017"),Calc((A550G3_C2 + A550G4_C2 + A550P3_C2 + A550P4_C2 - A551G3_C2 - A551G4_C2 -A551P3_C2 - A551P4_C2), (A400T1_C2+pA400T1_C2)/2) * 100*Anu_C2,(IF(C8>DATEVALUE("6/30/2017"),Calc((A550G3_C2 + A550G4_C2 + A550P3_C2 + A550P4_C2 - A551G3_C2 - A551G4_C2 -A551P3_C2 - A551P4_C2), (( A400T1_C2+pA400T_C2) - pA814E_C2)/2) * 100*Anu_C2,IF(C8>=DATEVALUE("6/30/2013"),IF(((A400T_C2-A814E_C2)+(pA400T_C2-pA814E_C2))=0,0,((A550G1_C2+A550G2_C2+A550P1_C2+A550P2_C2-A551G1_C2-A551G2_C2-A551P1_C2-A551P2_C2)/(((A400T_C2-A814E_C2)+(pA400T_C2-pA814E_C2))/2))*100)*Anu_C2,IF(C8>=DATEVALUE("3/31/2012"),Calc(A550G_C2+A550H_C2+A550P_C2-A551G_C2-A551H_C2-A551P_C2,(A400T_C2-A814E_C2+pA400T_C2-pA814E_C2)/2)*100*Anu_C2,IF(C8>=DATEVALUE("3/31/2011"),Calc(A550G_C2+A550H_C2+A550P_C2-A551G_C2-A551H_C2-A551P_C2,(A400T_C2-A814E_C2+pA400A_C2+pA400B_C2-pA814_C2-pA814A_C2-pA814A1_C2)/2)*100*Anu_C2,IF(C8>=DATEVALUE("3/31/2010"),Calc(A550G_C2+A550H_C2+A550P_C2-A551G_C2-A551H_C2-A551P_C2,(A400A_C2+A400B_C2-A814_C2-A814A_C2-A814A1_C2+pA400A_C2+pA400B_C2-pA814_C2-pA814A_C2-pA814A1_C2)/2)*100*Anu_C2,IF(C8>=DATEVALUE("3/31/2009"),Calc(A550G_C2+A550H_C2+A550P_C2-A551G_C2-A551H_C2-A551P_C2,(A400A_C2+A400B_C2-A814_C2-A814A_C2-A814A1_C2+pA400A_C2+pA400B_C2-pA814_C2-pA814A_C2)/2)*100*Anu_C2,"N/A")))))))) -> 0.1742662374 | D48: =IF(D8>DATEVALUE("12/31/2017"),Calc((A550G3_C3 + A550G4_C3 + A550P3_C3 + A550P4_C3 - A551G3_C3 - A551G4_C3 -A551P3_C3 - A551P4_C3), (A400T1_C3+pA400T1_C3)/2) * 100*Anu_C3,(IF(D8>DATEVALUE("6/30/2017"),Calc((A550G3_C3 + A550G4_C3 + A550P3_C3 + A550P4_C3 - A551G3_C3 - A551G4_C3 -A551P3_C3 - A551P4_C3), (( A400T1_C3+pA400T_C3) - pA814E_C3)/2) * 100*Anu_C3,IF(D8>=DATEVALUE("6/30/2013"),IF(((A400T_C3-A814E_C3)+(pA400T_C3-pA814E_C3))=0,0,((A550G1_C3+A550G2_C3+A550P1_C3+A550P2_C3-A551G1_C3-A551G2_C3-A551P1_C3-A551P2_C3)/(((A400T_C3-A814E_C3)+(pA400T_C3-pA814E_C3))/2))*100)*Anu_C3,IF(D8>=DATEVALUE("3/31/2012"),Calc(A550G_C3+A550H_C3+A550P_C3-A551G_C3-A551H_C3-A551P_C3,(A400T_C3-A814E_C3+pA400T_C3-pA814E_C3)/2)*100*Anu_C3,IF(D8>=DATEVALUE("3/31/2011"),Calc(A550G_C3+A550H_C3+A550P_C3-A551G_C3-A551H_C3-A551P_C3,(A400T_C3-A814E_C3+pA400A_C3+pA400B_C3-pA814_C3-pA814A_C3-pA814A1_C3)/2)*100*Anu_C3,IF(D8>=DATEVALUE("3/31/2010"),Calc(A550G_C3+A550H_C3+A550P_C3-A551G_C3-A551H_C3-A551P_C3,(A400A_C3+A400B_C3-A814_C3-A814A_C3-A814A1_C3+pA400A_C3+pA400B_C3-pA814_C3-pA814A_C3-pA814A1_C3)/2)*100*Anu_C3,IF(D8>=DATEVALUE("3/31/2009"),Calc(A550G_C3+A550H_C3+A550P_C3-A551G_C3-A551H_C3-A551P_C3,(A400A_C3+A400B_C3-A814_C3-A814A_C3-A814A1_C3+pA400A_C3+pA400B_C3-pA814_C3-pA814A_C3)/2)*100*Anu_C3,"N/A")))))))) -> 0.8062528734 | E48: =IF(E8>DATEVALUE("12/31/2017"),Calc((A550G3_C4 + A550G4_C4 + A550P3_C4 + A550P4_C4 - A551G3_C4 - A551G4_C4 -A551P3_C4 - A551P4_C4), (A400T1_C4+pA400T1_C4)/2) * 100*Anu_C4,(IF(E8>DATEVALUE("6/30/2017"),Calc((A550G3_C4 + A550G4_C4 + A550P3_C4 + A550P4_C4 - A551G3_C4 - A551G4_C4 -A551P3_C4 - A551P4_C4), (( A400T1_C4+pA400T_C4) - pA814E_C4)/2) * 100*Anu_C4,IF(E8>=DATEVALUE("6/30/2013"),IF(((A400T_C4-A814E_C4)+(pA400T_C4-pA814E_C4))=0,0,((A550G1_C4+A550G2_C4+A550P1_C4+A550P2_C4-A551G1_C4-A551G2_C4-A551P1_C4-A551P2_C4)/(((A400T_C4-A814E_C4)+(pA400T_C4-pA814E_C4))/2))*100)*Anu_C4,IF(E8>=DATEVALUE("3/31/2012"),Calc(A550G_C4+A550H_C4+A550P_C4-A551G_C4-A551H_C4-A551P_C4,(A400T_C4-A814E_C4+pA400T_C4-pA814E_C4)/2)*100*Anu_C4,IF(E8>=DATEVALUE("3/31/2011"),Calc(A550G_C4+A550H_C4+A550P_C4-A551G_C4-A551H_C4-A551P_C4,(A400T_C4-A814E_C4+pA400A_C4+pA400B_C4-pA814_C4-pA814A_C4-pA814A1_C4)/2)*100*Anu_C4,IF(E8>=DATEVALUE("3/31/2010"),Calc(A550G_C4+A550H_C4+A550P_C4-A551G_C4-A551H_C4-A551P_C4,(A400A_C4+A400B_C4-A814_C4-A814A_C4-A814A1_C4+pA400A_C4+pA400B_C4-pA814_C4-pA814A_C4-pA814A1_C4)/2)*100*Anu_C4,IF(E8>=DATEVALUE("3/31/2009"),Calc(A550G_C4+A550H_C4+A550P_C4-A551G_C4-A551H_C4-A551P_C4,(A400A_C4+A400B_C4-A814_C4-A814A_C4-A814A1_C4+pA400A_C4+pA400B_C4-pA814_C4-pA814A_C4)/2)*100*Anu_C4,"N/A")))))))) ->  | F48: =IF(F8>DATEVALUE("12/31/2017"),Calc((A550G3_C5 + A550G4_C5 + A550P3_C5 + A550P4_C5 - A551G3_C5 - A551G4_C5 -A551P3_C5 - A551P4_C5), (A400T1_C5+pA400T1_C5)/2) * 100*Anu_C5,(IF(F8>DATEVALUE("6/30/2017"),Calc((A550G3_C5 + A550G4_C5 + A550P3_C5 + A550P4_C5 - A551G3_C5 - A551G4_C5 -A551P3_C5 - A551P4_C5), (( A400T1_C5+pA400T_C5) - pA814E_C5)/2) * 100*Anu_C5,IF(F8>=DATEVALUE("6/30/2013"),IF(((A400T_C5-A814E_C5)+(pA400T_C5-pA814E_C5))=0,0,((A550G1_C5+A550G2_C5+A550P1_C5+A550P2_C5-A551G1_C5-A551G2_C5-A551P1_C5-A551P2_C5)/(((A400T_C5-A814E_C5)+(pA400T_C5-pA814E_C5))/2))*100)*Anu_C5,IF(F8>=DATEVALUE("3/31/2012"),Calc(A550G_C5+A550H_C5+A550P_C5-A551G_C5-A551H_C5-A551P_C5,(A400T_C5-A814E_C5+pA400T_C5-pA814E_C5)/2)*100*Anu_C5,IF(F8>=DATEVALUE("3/31/2011"),Calc(A550G_C5+A550H_C5+A550P_C5-A551G_C5-A551H_C5-A551P_C5,(A400T_C5-A814E_C5+pA400A_C5+pA400B_C5-pA814_C5-pA814A_C5-pA814A1_C5)/2)*100*Anu_C5,IF(F8>=DATEVALUE("3/31/2010"),Calc(A550G_C5+A550H_C5+A550P_C5-A551G_C5-A551H_C5-A551P_C5,(A400A_C5+A400B_C5-A814_C5-A814A_C5-A814A1_C5+pA400A_C5+pA400B_C5-pA814_C5-pA814A_C5-pA814A1_C5)/2)*100*Anu_C5,IF(F8>=DATEVALUE("3/31/2009"),Calc(A550G_C5+A550H_C5+A550P_C5-A551G_C5-A551H_C5-A551P_C5,(A400A_C5+A400B_C5-A814_C5-A814A_C5-A814A1_C5+pA400A_C5+pA400B_C5-pA814_C5-pA814A_C5)/2)*100*Anu_C5,"N/A")))))))) -> 
A49: SPECIALIZED LENDING RATIOS
A50: Indirect Loans Outstanding / Total Loans | B50: =IF(B8<DATEVALUE("3/31/2004"),"N/A",IF((A025B_C1)=0,0,(A618A_C1/(A025B_C1))*100)) -> 18.26894311 | C50: =IF(C8<DATEVALUE("3/31/2004"),"N/A",IF((A025B_C2)=0,0,(A618A_C2/(A025B_C2))*100)) -> 19.89884415 | D50: =IF(D8<DATEVALUE("3/31/2004"),"N/A",IF((A025B_C3)=0,0,(A618A_C3/(A025B_C3))*100)) -> 21.86443893 | E50: =IF(E8<DATEVALUE("3/31/2004"),"N/A",IF((A025B_C4)=0,0,(A618A_C4/(A025B_C4))*100)) -> 23.29846593 | F50: =IF(F8<DATEVALUE("3/31/2004"),"N/A",IF((A025B_C5)=0,0,(A618A_C5/(A025B_C5))*100)) -> 24.54151253
A51: Participation Loans Outstanding / Total Loans | B51: =IF(B8>DATEVALUE("12/31/2008"),IF(A025B_C1=0, 0, ((A619B_C1+A691E_C1)/A025B_C1)*100), IF(A025B_C1=0, 0, (A619_C1/A025B_C1)*100 )) -> 3.155212457 | C51: =IF(C8>DATEVALUE("12/31/2008"),IF(A025B_C2=0, 0, ((A619B_C2+A691E_C2)/A025B_C2)*100), IF(A025B_C2=0, 0, (A619_C2/A025B_C2)*100 )) -> 3.320545109 | D51: =IF(D8>DATEVALUE("12/31/2008"),IF(A025B_C3=0, 0, ((A619B_C3+A691E_C3)/A025B_C3)*100), IF(A025B_C3=0, 0, (A619_C3/A025B_C3)*100 )) -> 3.591713773 | E51: =IF(E8>DATEVALUE("12/31/2008"),IF(A025B_C4=0, 0, ((A619B_C4+A691E_C4)/A025B_C4)*100), IF(A025B_C4=0, 0, (A619_C4/A025B_C4)*100 )) -> 3.806792731 | F51: =IF(F8>DATEVALUE("12/31/2008"),IF(A025B_C5=0, 0, ((A619B_C5+A691E_C5)/A025B_C5)*100), IF(A025B_C5=0, 0, (A619_C5/A025B_C5)*100 )) -> 3.785580876
A52: Participation Loans Purchased YTD / Total Loans Granted YTD | B52: =IF(B8<DATEVALUE("3/31/2003"),"N/A",IF(A031B_C1=0,0,(A690_C1/A031B_C1)*100)) -> 2.734039129 | C52: =IF(C8<DATEVALUE("3/31/2003"),"N/A",IF(A031B_C2=0,0,(A690_C2/A031B_C2)*100)) -> 2.637687794 | D52: =IF(D8<DATEVALUE("3/31/2003"),"N/A",IF(A031B_C3=0,0,(A690_C3/A031B_C3)*100)) -> 2.646026317 | E52: =IF(E8<DATEVALUE("3/31/2003"),"N/A",IF(A031B_C4=0,0,(A690_C4/A031B_C4)*100)) -> 2.817418388 | F52: =IF(F8<DATEVALUE("3/31/2003"),"N/A",IF(A031B_C5=0,0,(A690_C5/A031B_C5)*100)) -> 2.311040311
A53: * Participation Loans Sold YTD / Total Assets | B53: =IF(B8<DATEVALUE("3/31/2003"),"N/A",IF(A010_C1=0, 0, ((A691_C1/A010_C1)*100)*Anu_C1)) -> 0.4681828015 | C53: =IF(C8<DATEVALUE("3/31/2003"),"N/A",IF(A010_C2=0, 0, ((A691_C2/A010_C2)*100)*Anu_C2)) -> 0.4720179266 | D53: =IF(D8<DATEVALUE("3/31/2003"),"N/A",IF(A010_C3=0, 0, ((A691_C3/A010_C3)*100)*Anu_C3)) -> 0.6254807852 | E53: =IF(E8<DATEVALUE("3/31/2003"),"N/A",IF(A010_C4=0, 0, ((A691_C4/A010_C4)*100)*Anu_C4)) -> 0.6248681135 | F53: =IF(F8<DATEVALUE("3/31/2003"),"N/A",IF(A010_C5=0, 0, ((A691_C5/A010_C5)*100)*Anu_C5)) -> 0.653665794
A54: Total Commercial Loans / Total Assets 2 | B54: =IF(B8>DATEVALUE("6/30/2017"), Calc(A400T1_C1,A010_C1)*100, IF(B8>=DATEVALUE("3/31/2011"),Calc(A400T_C1-A814E_C1,A010_C1)*100,IF(B8>=DATEVALUE("3/31/2009"),Calc(A400A_C1+A400B_C1-A814_C1-A814A_C1-A814A1_C1,A010_C1)*100,IF(B8>=DATEVALUE("3/31/2004"),Calc(A400A_C1+A400B_C1-A814_C1-A814A_C1,A010_C1)*100,IF(B8>=DATEVALUE("3/31/1995"),Calc(A400_C1,A010_C1)*100,"N/A"))))) ->  | C54: =IF(C8>DATEVALUE("6/30/2017"), Calc(A400T1_C2,A010_C2)*100, IF(C8>=DATEVALUE("3/31/2011"),Calc(A400T_C2-A814E_C2,A010_C2)*100,IF(C8>=DATEVALUE("3/31/2009"),Calc(A400A_C2+A400B_C2-A814_C2-A814A_C2-A814A1_C2,A010_C2)*100,IF(C8>=DATEVALUE("3/31/2004"),Calc(A400A_C2+A400B_C2-A814_C2-A814A_C2,A010_C2)*100,IF(C8>=DATEVALUE("3/31/1995"),Calc(A400_C2,A010_C2)*100,"N/A"))))) ->  | D54: =IF(D8>DATEVALUE("6/30/2017"), Calc(A400T1_C3,A010_C3)*100, IF(D8>=DATEVALUE("3/31/2011"),Calc(A400T_C3-A814E_C3,A010_C3)*100,IF(D8>=DATEVALUE("3/31/2009"),Calc(A400A_C3+A400B_C3-A814_C3-A814A_C3-A814A1_C3,A010_C3)*100,IF(D8>=DATEVALUE("3/31/2004"),Calc(A400A_C3+A400B_C3-A814_C3-A814A_C3,A010_C3)*100,IF(D8>=DATEVALUE("3/31/1995"),Calc(A400_C3,A010_C3)*100,"N/A"))))) ->  | E54: =IF(E8>DATEVALUE("6/30/2017"), Calc(A400T1_C4,A010_C4)*100, IF(E8>=DATEVALUE("3/31/2011"),Calc(A400T_C4-A814E_C4,A010_C4)*100,IF(E8>=DATEVALUE("3/31/2009"),Calc(A400A_C4+A400B_C4-A814_C4-A814A_C4-A814A1_C4,A010_C4)*100,IF(E8>=DATEVALUE("3/31/2004"),Calc(A400A_C4+A400B_C4-A814_C4-A814A_C4,A010_C4)*100,IF(E8>=DATEVALUE("3/31/1995"),Calc(A400_C4,A010_C4)*100,"N/A"))))) ->  | F54: =IF(F8>DATEVALUE("6/30/2017"), Calc(A400T1_C5,A010_C5)*100, IF(F8>=DATEVALUE("3/31/2011"),Calc(A400T_C5-A814E_C5,A010_C5)*100,IF(F8>=DATEVALUE("3/31/2009"),Calc(A400A_C5+A400B_C5-A814_C5-A814A_C5-A814A1_C5,A010_C5)*100,IF(F8>=DATEVALUE("3/31/2004"),Calc(A400A_C5+A400B_C5-A814_C5-A814A_C5,A010_C5)*100,IF(F8>=DATEVALUE("3/31/1995"),Calc(A400_C5,A010_C5)*100,"N/A"))))) -> 
A55: Loans Purchased From Other Financial Institutions and Other Sources YTD / Loans Granted YTD | B55: =IF(B8>=DATEVALUE("3/31/2011"),Calc(A615_C1+A613_C1,A031B_C1)*100,IF(B8>=DATEVALUE("3/31/1996"),Calc(A615_C1,A031B_C1)*100,"N/A")) ->  | C55: =IF(C8>=DATEVALUE("3/31/2011"),Calc(A615_C2+A613_C2,A031B_C2)*100,IF(C8>=DATEVALUE("3/31/1996"),Calc(A615_C2,A031B_C2)*100,"N/A")) ->  | D55: =IF(D8>=DATEVALUE("3/31/2011"),Calc(A615_C3+A613_C3,A031B_C3)*100,IF(D8>=DATEVALUE("3/31/1996"),Calc(A615_C3,A031B_C3)*100,"N/A")) ->  | E55: =IF(E8>=DATEVALUE("3/31/2011"),Calc(A615_C4+A613_C4,A031B_C4)*100,IF(E8>=DATEVALUE("3/31/1996"),Calc(A615_C4,A031B_C4)*100,"N/A")) ->  | F55: =IF(F8>=DATEVALUE("3/31/2011"),Calc(A615_C5+A613_C5,A031B_C5)*100,IF(F8>=DATEVALUE("3/31/1996"),Calc(A615_C5,A031B_C5)*100,"N/A")) -> 
A56: Non-Federally Guaranteed Student Loans in Deferral Status / Total Non-Federally Guaranteed Student Loans | B56: =IF(B8<DATEVALUE("6/30/2013"),"N/A",IF(A698A_C1=0,0,(A698B_C1/A698A_C1)*100)) -> 29.31757377 | C56: =IF(C8<DATEVALUE("6/30/2013"),"N/A",IF(A698A_C2=0,0,(A698B_C2/A698A_C2)*100)) -> 27.57591153 | D56: =IF(D8<DATEVALUE("6/30/2013"),"N/A",IF(A698A_C3=0,0,(A698B_C3/A698A_C3)*100)) -> 24.34631441 | E56: =IF(E8<DATEVALUE("6/30/2013"),"N/A",IF(A698A_C4=0,0,(A698B_C4/A698A_C4)*100)) -> 23.72405506 | F56: =IF(F8<DATEVALUE("6/30/2013"),"N/A",IF(A698A_C5=0,0,(A698B_C5/A698A_C5)*100)) -> 21.73738593
A57: REAL ESTATE LENDING RATIOS
A58: Total Fixed Rate Real Estate / Total Assets | B58: =IF(B8>DATEVALUE("12/31/2007"),IF(A010_C1=0, 0, ((A704A_C1+A704B_C1+A704C_C1+A704E_C1+A706_C1+ A708B_C1)/A010_C1)*100), IF(B8>DATEVALUE("12/31/2003"), IF(A010_C1=0, 0, ((A704A_C1+ A704B_C1+A704C_C1+A704E_C1+A706_C1+A708B_C1+A709_C1)/A010_C1)*100 ), IF(A010_C1=0,0, ( (A704_C1+A706_C1+ A709_C1)/A010_C1)*100 ))) -> 20.4822179 | C58: =IF(C8>DATEVALUE("12/31/2007"),IF(A010_C2=0, 0, ((A704A_C2+A704B_C2+A704C_C2+A704E_C2+A706_C2+ A708B_C2)/A010_C2)*100), IF(C8>DATEVALUE("12/31/2003"), IF(A010_C2=0, 0, ((A704A_C2+ A704B_C2+A704C_C2+A704E_C2+A706_C2+A708B_C2+A709_C2)/A010_C2)*100 ), IF(A010_C2=0,0, ( (A704_C2+A706_C2+ A709_C2)/A010_C2)*100 ))) -> 20.89469869 | D58: =IF(D8>DATEVALUE("12/31/2007"),IF(A010_C3=0, 0, ((A704A_C3+A704B_C3+A704C_C3+A704E_C3+A706_C3+ A708B_C3)/A010_C3)*100), IF(D8>DATEVALUE("12/31/2003"), IF(A010_C3=0, 0, ((A704A_C3+ A704B_C3+A704C_C3+A704E_C3+A706_C3+A708B_C3+A709_C3)/A010_C3)*100 ), IF(A010_C3=0,0, ( (A704_C3+A706_C3+ A709_C3)/A010_C3)*100 ))) -> 21.26839192 | E58: =IF(E8>DATEVALUE("12/31/2007"),IF(A010_C4=0, 0, ((A704A_C4+A704B_C4+A704C_C4+A704E_C4+A706_C4+ A708B_C4)/A010_C4)*100), IF(E8>DATEVALUE("12/31/2003"), IF(A010_C4=0, 0, ((A704A_C4+ A704B_C4+A704C_C4+A704E_C4+A706_C4+A708B_C4+A709_C4)/A010_C4)*100 ), IF(A010_C4=0,0, ( (A704_C4+A706_C4+ A709_C4)/A010_C4)*100 ))) -> 22.28016791 | F58: =IF(F8>DATEVALUE("12/31/2007"),IF(A010_C5=0, 0, ((A704A_C5+A704B_C5+A704C_C5+A704E_C5+A706_C5+ A708B_C5)/A010_C5)*100), IF(F8>DATEVALUE("12/31/2003"), IF(A010_C5=0, 0, ((A704A_C5+ A704B_C5+A704C_C5+A704E_C5+A706_C5+A708B_C5+A709_C5)/A010_C5)*100 ), IF(A010_C5=0,0, ( (A704_C5+A706_C5+ A709_C5)/A010_C5)*100 ))) -> 23.1912229
A59: Total Fixed Rate Real Estate / Total Loans | B59: =IF(B8>DATEVALUE("12/31/2007"),IF(A025B_C1=0, 0, ((A704A_C1+A704B_C1+A704C_C1+A704E_C1+A706_C1+A708B_C1)/A025B_C1)*100), IF(B8>DATEVALUE("12/31/2003"), IF(A025B_C1=0, 0, ((A704A_C1+A704B_C1+A704C_C1+A704E_C1+A706_C1+A708B_C1+A709_C1)/A025B_C1)*100 ), IF(A025B_C1=0,0, ( A704_C1+A706_C1+A709_C1)/A025B_C1)*100 )) -> 31.78298288 | C59: =IF(C8>DATEVALUE("12/31/2007"),IF(A025B_C2=0, 0, ((A704A_C2+A704B_C2+A704C_C2+A704E_C2+A706_C2+A708B_C2)/A025B_C2)*100), IF(C8>DATEVALUE("12/31/2003"), IF(A025B_C2=0, 0, ((A704A_C2+A704B_C2+A704C_C2+A704E_C2+A706_C2+A708B_C2+A709_C2)/A025B_C2)*100 ), IF(A025B_C2=0,0, ( A704_C2+A706_C2+A709_C2)/A025B_C2)*100 )) -> 31.49694626 | D59: =IF(D8>DATEVALUE("12/31/2007"),IF(A025B_C3=0, 0, ((A704A_C3+A704B_C3+A704C_C3+A704E_C3+A706_C3+A708B_C3)/A025B_C3)*100), IF(D8>DATEVALUE("12/31/2003"), IF(A025B_C3=0, 0, ((A704A_C3+A704B_C3+A704C_C3+A704E_C3+A706_C3+A708B_C3+A709_C3)/A025B_C3)*100 ), IF(A025B_C3=0,0, ( A704_C3+A706_C3+A709_C3)/A025B_C3)*100 )) -> 31.1746108 | E59: =IF(E8>DATEVALUE("12/31/2007"),IF(A025B_C4=0, 0, ((A704A_C4+A704B_C4+A704C_C4+A704E_C4+A706_C4+A708B_C4)/A025B_C4)*100), IF(E8>DATEVALUE("12/31/2003"), IF(A025B_C4=0, 0, ((A704A_C4+A704B_C4+A704C_C4+A704E_C4+A706_C4+A708B_C4+A709_C4)/A025B_C4)*100 ), IF(A025B_C4=0,0, ( A704_C4+A706_C4+A709_C4)/A025B_C4)*100 )) -> 31.50067166 | F59: =IF(F8>DATEVALUE("12/31/2007"),IF(A025B_C5=0, 0, ((A704A_C5+A704B_C5+A704C_C5+A704E_C5+A706_C5+A708B_C5)/A025B_C5)*100), IF(F8>DATEVALUE("12/31/2003"), IF(A025B_C5=0, 0, ((A704A_C5+A704B_C5+A704C_C5+A704E_C5+A706_C5+A708B_C5+A709_C5)/A025B_C5)*100 ), IF(A025B_C5=0,0, ( A704_C5+A706_C5+ A709_C5)/A025B_C5)*100 )) -> 31.77054759
A60: Total Fixed Rate RE Granted YTD / Total Loans Granted YTD | B60: =IF(B8>DATEVALUE("12/31/2007"),IF(A031B_C1=0, 0, ((A720A_C1+A720B_C1+A720C_C1+A720E_C1+A722_C1+A724B_C1)/A031B_C1)*100), IF(B8>DATEVALUE("12/31/2003"), IF(A031B_C1=0, 0, ((A720A_C1+A720B_C1+A720C_C1+A720E_C1+A722_C1+A724B_C1+A725_C1)/A031B_C1)*100 ), IF(A031B_C1=0,0, ((A720_C1+A722_C1+A725_C1)/A031B_C1)*100 ))) -> 21.12800137 | C60: =IF(C8>DATEVALUE("12/31/2007"),IF(A031B_C2=0, 0, ((A720A_C2+A720B_C2+A720C_C2+A720E_C2+A722_C2+A724B_C2)/A031B_C2)*100), IF(C8>DATEVALUE("12/31/2003"), IF(A031B_C2=0, 0, ((A720A_C2+A720B_C2+A720C_C2+A720E_C2+A722_C2+A724B_C2+A725_C2)/A031B_C2)*100 ), IF(A031B_C2=0,0, ((A720_C2+A722_C2+A725_C2)/A031B_C2)*100 ))) -> 25.90863826 | D60: =IF(D8>DATEVALUE("12/31/2007"),IF(A031B_C3=0, 0, ((A720A_C3+A720B_C3+A720C_C3+A720E_C3+A722_C3+A724B_C3)/A031B_C3)*100), IF(D8>DATEVALUE("12/31/2003"), IF(A031B_C3=0, 0, ((A720A_C3+A720B_C3+A720C_C3+A720E_C3+A722_C3+A724B_C3+A725_C3)/A031B_C3)*100 ), IF(A031B_C3=0,0, ((A720_C3+A722_C3+A725_C3)/A031B_C3)*100 ))) -> 27.09762152 | E60: =IF(E8>DATEVALUE("12/31/2007"),IF(A031B_C4=0, 0, ((A720A_C4+A720B_C4+A720C_C4+A720E_C4+A722_C4+A724B_C4)/A031B_C4)*100), IF(E8>DATEVALUE("12/31/2003"), IF(A031B_C4=0, 0, ((A720A_C4+A720B_C4+A720C_C4+A720E_C4+A722_C4+A724B_C4+A725_C4)/A031B_C4)*100 ), IF(A031B_C4=0,0, ((A720_C4+A722_C4+A725_C4)/A031B_C4)*100 ))) -> 24.36754205 | F60: =IF(F8>DATEVALUE("12/31/2007"),IF(A031B_C5=0, 0, ((A720A_C5+A720B_C5+A720C_C5+A720E_C5+A722_C5+A724B_C5)/A031B_C5)*100), IF(F8>DATEVALUE("12/31/2003"), IF(A031B_C5=0, 0, ((A720A_C5+A720B_C5+A720C_C5+A720E_C5+A722_C5+A724B_C5+A725_C5)/A031B_C5)*100 ), IF(A031B_C5=0,0, ((A720_C5+A722_C5+A725_C5)/A031B_C5)*100 ))) -> 23.05748619
A61: First Mtg RE Loans Sold YTD/ First Mtg RE Loans Granted YTD | B61: =IF(B8>DATEVALUE("12/31/2003"),IF((A720A_C1+A720B_C1+A720C_C1+A720D_C1+A720E_C1+A721A_C1+A721B_C1)=0,0,(A736_C1/(A720A_C1+A720B_C1+A720C_C1+A720D_C1+A720E_C1+A721A_C1+A721B_C1))*100),IF((A720_C1+A721_C1)=0,0,(A736_C1/(A720_C1+A721_C1))*100)) -> 32.44296272 | C61: =IF(C8>DATEVALUE("12/31/2003"),IF((A720A_C2+A720B_C2+A720C_C2+A720D_C2+A720E_C2+A721A_C2+A721B_C2)=0,0,(A736_C2/(A720A_C2+A720B_C2+A720C_C2+A720D_C2+A720E_C2+A721A_C2+A721B_C2))*100),IF((A720_C2+A721_C2)=0,0,(A736_C2/(A720_C2+A721_C2))*100)) -> 37.08525289 | D61: =IF(D8>DATEVALUE("12/31/2003"),IF((A720A_C3+A720B_C3+A720C_C3+A720D_C3+A720E_C3+A721A_C3+A721B_C3)=0,0,(A736_C3/(A720A_C3+A720B_C3+A720C_C3+A720D_C3+A720E_C3+A721A_C3+A721B_C3))*100),IF((A720_C3+A721_C3)=0,0,(A736_C3/(A720_C3+A721_C3))*100)) -> 37.88578878 | E61: =IF(E8>DATEVALUE("12/31/2003"),IF((A720A_C4+A720B_C4+A720C_C4+A720D_C4+A720E_C4+A721A_C4+A721B_C4)=0,0,(A736_C4/(A720A_C4+A720B_C4+A720C_C4+A720D_C4+A720E_C4+A721A_C4+A721B_C4))*100),IF((A720_C4+A721_C4)=0,0,(A736_C4/(A720_C4+A721_C4))*100)) -> 31.31316078 | F61: =IF(F8>DATEVALUE("12/31/2003"),IF((A720A_C5+A720B_C5+A720C_C5+A720D_C5+A720E_C5+A721A_C5+A721B_C5)=0,0,(A736_C5/(A720A_C5+A720B_C5+A720C_C5+A720D_C5+A720E_C5+A721A_C5+A721B_C5))*100),IF((A720_C5+A721_C5)=0,0,(A736_C5/(A720_C5+A721_C5))*100)) -> 29.71046554
A62: Interest Only & Payment Option First & Other RE / Total Assets | B62: =IF(B8<DATEVALUE("3/31/2009"),"N/A",IF(A010_C1=0,0,((A704C1_C1+A704D2_C1)/A010_C1)*100)) -> 2.056073655 | C62: =IF(C8<DATEVALUE("3/31/2009"),"N/A",IF(A010_C2=0,0,((A704C1_C2+A704D2_C2)/A010_C2)*100)) -> 2.085595722 | D62: =IF(D8<DATEVALUE("3/31/2009"),"N/A",IF(A010_C3=0,0,((A704C1_C3+A704D2_C3)/A010_C3)*100)) -> 2.118211371 | E62: =IF(E8<DATEVALUE("3/31/2009"),"N/A",IF(A010_C4=0,0,((A704C1_C4+A704D2_C4)/A010_C4)*100)) -> 2.160339449 | F62: =IF(F8<DATEVALUE("3/31/2009"),"N/A",IF(A010_C5=0,0,((A704C1_C5+A704D2_C5)/A010_C5)*100)) -> 2.317082341
A63: Interest Only & Payment Option First & Other RE / Net Worth | B63: =IF(B8<DATEVALUE("3/31/2009"),"N/A",IF(A997_C1=0,0,((A704C1_C1+A704D2_C1)/A997_C1)*100)) -> 18.86714314 | C63: =IF(C8<DATEVALUE("3/31/2009"),"N/A",IF(A997_C2=0,0,((A704C1_C2+A704D2_C2)/A997_C2)*100)) -> 19.13401347 | D63: =IF(D8<DATEVALUE("3/31/2009"),"N/A",IF(A997_C3=0,0,((A704C1_C3+A704D2_C3)/A997_C3)*100)) -> 19.60677472 | E63: =IF(E8<DATEVALUE("3/31/2009"),"N/A",IF(A997_C4=0,0,((A704C1_C4+A704D2_C4)/A997_C4)*100)) -> 19.88531281 | F63: =IF(F8<DATEVALUE("3/31/2009"),"N/A",IF(A997_C5=0,0,((A704C1_C5+A704D2_C5)/A997_C5)*100)) -> 20.69909337
A64: MISCELLANEOUS RATIOS
A65: Mortgage Servicing Rights / Net Worth | B65: =IF(B8<DATEVALUE("3/31/2003"),"N/A",IF(A997_C1=0, 0, (A779_C1/A997_C1)*100)) -> 0.8424098027 | C65: =IF(C8<DATEVALUE("3/31/2003"),"N/A",IF(A997_C2=0, 0, (A779_C2/A997_C2)*100)) -> 0.8587161283 | D65: =IF(D8<DATEVALUE("3/31/2003"),"N/A",IF(A997_C3=0, 0, (A779_C3/A997_C3)*100)) -> 0.8732117618 | E65: =IF(E8<DATEVALUE("3/31/2003"),"N/A",IF(A997_C4=0, 0, (A779_C4/A997_C4)*100)) -> 0.8636251378 | F65: =IF(F8<DATEVALUE("3/31/2003"),"N/A",IF(A997_C5=0, 0, (A779_C5/A997_C5)*100)) -> 0.8389937025
A66: Unused Commitments / Cash & ST Investments | B66: =IF(B8>=DATEVALUE("03/31/2010"),Calc(A816A_C1,A730A_C1+A730B_C1+A730C_C1+A799A1_C1)*100,IF(B8>=DATEVALUE("12/31/2009"),Calc(A814_C1+A814A_C1+A814A1_C1+A811_C1+A811A_C1+A811B_C1+A811C_C1+A812_C1+A813_C1+A815_C1+A816_C1+A822_C1,A730A_C1+A730B_C1+A730C_C1+A799A1_C1)*100,IF(B8>=DATEVALUE("03/31/2009"),Calc(A814_C1+A814A_C1+A814A1_C1+A811_C1+A811A_C1+A812_C1+A813_C1+A815_C1+A816_C1+A822_C1,A730A_C1+A730B_C1+A730C_C1+A799A1_C1)*100,IF(B8>=DATEVALUE("6/30/2006"),Calc(A814_C1+A814A_C1+A811_C1+A812_C1+A813_C1+A815_C1+A816_C1+A822_C1,A730A_C1+A730B_C1+A730C_C1+A799A1_C1)*100,IF(B8>=DATEVALUE("03/31/2005"),Calc(A814_C1+A814A_C1+A811_C1+A812_C1+A813_C1+A815_C1+A816_C1+A822_C1,A730A_C1+A799A_C1)*100,Calc(A814_C1+A814A_C1+A811_C1+A812_C1+A813_C1+A815_C1+A816_C1,A730A_C1+A799A_C1)*100))))) ->  | C66: =IF(C8>=DATEVALUE("03/31/2010"),Calc(A816A_C2,A730A_C2+A730B_C2+A730C_C2+A799A1_C2)*100,IF(C8>=DATEVALUE("12/31/2009"),Calc(A814_C2+A814A_C2+A814A1_C2+A811_C2+A811A_C2+A811B_C2+A811C_C2+A812_C2+A813_C2+A815_C2+A816_C2+A822_C2,A730A_C2+A730B_C2+A730C_C2+A799A1_C2)*100,IF(C8>=DATEVALUE("03/31/2009"),Calc(A814_C2+A814A_C2+A814A1_C2+A811_C2+A811A_C2+A812_C2+A813_C2+A815_C2+A816_C2+A822_C2,A730A_C2+A730B_C2+A730C_C2+A799A1_C2)*100,IF(C8>=DATEVALUE("6/30/2006"),Calc(A814_C2+A814A_C2+A811_C2+A812_C2+A813_C2+A815_C2+A816_C2+A822_C2,A730A_C2+A730B_C2+A730C_C2+A799A1_C2)*100,IF(C8>=DATEVALUE("03/31/2005"),Calc(A814_C2+A814A_C2+A811_C2+A812_C2+A813_C2+A815_C2+A816_C2+A822_C2,A730A_C2+A799A_C2)*100,Calc(A814_C2+A814A_C2+A811_C2+A812_C2+A813_C2+A815_C2+A816_C2,A730A_C2+A799A_C2)*100))))) ->  | D66: =IF(D8>=DATEVALUE("03/31/2010"),Calc(A816A_C3,A730A_C3+A730B_C3+A730C_C3+A799A1_C3)*100,IF(D8>=DATEVALUE("12/31/2009"),Calc(A814_C3+A814A_C3+A814A1_C3+A811_C3+A811A_C3+A811B_C3+A811C_C3+A812_C3+A813_C3+A815_C3+A816_C3+A822_C3,A730A_C3+A730B_C3+A730C_C3+A799A1_C3)*100,IF(D8>=DATEVALUE("03/31/2009"),Calc(A814_C3+A814A_C3+A814A1_C3+A811_C3+A811A_C3+A812_C3+A813_C3+A815_C3+A816_C3+A822_C3,A730A_C3+A730B_C3+A730C_C3+A799A1_C3)*100,IF(D8>=DATEVALUE("6/30/2006"),Calc(A814_C3+A814A_C3+A811_C3+A812_C3+A813_C3+A815_C3+A816_C3+A822_C3,A730A_C3+A730B_C3+A730C_C3+A799A1_C3)*100,IF(D8>=DATEVALUE("03/31/2005"),Calc(A814_C3+A814A_C3+A811_C3+A812_C3+A813_C3+A815_C3+A816_C3+A822_C3,A730A_C3+A799A_C3)*100,Calc(A814_C3+A814A_C3+A811_C3+A812_C3+A813_C3+A815_C3+A816_C3,A730A_C3+A799A_C3)*100))))) ->  | E66: =IF(E8>=DATEVALUE("03/31/2010"),Calc(A816A_C4,A730A_C4+A730B_C4+A730C_C4+A799A1_C4)*100,IF(E8>=DATEVALUE("12/31/2009"),Calc(A814_C4+A814A_C4+A814A1_C4+A811_C4+A811A_C4+A811B_C4+A811C_C4+A812_C4+A813_C4+A815_C4+A816_C4+A822_C4,A730A_C4+A730B_C4+A730C_C4+A799A1_C4)*100,IF(E8>=DATEVALUE("03/31/2009"),Calc(A814_C4+A814A_C4+A814A1_C4+A811_C4+A811A_C4+A812_C4+A813_C4+A815_C4+A816_C4+A822_C4,A730A_C4+A730B_C4+A730C_C4+A799A1_C4)*100,IF(E8>=DATEVALUE("6/30/2006"),Calc(A814_C4+A814A_C4+A811_C4+A812_C4+A813_C4+A815_C4+A816_C4+A822_C4,A730A_C4+A730B_C4+A730C_C4+A799A1_C4)*100,IF(E8>=DATEVALUE("03/31/2005"),Calc(A814_C4+A814A_C4+A811_C4+A812_C4+A813_C4+A815_C4+A816_C4+A822_C4,A730A_C4+A799A_C4)*100,Calc(A814_C4+A814A_C4+A811_C4+A812_C4+A813_C4+A815_C4+A816_C4,A730A_C4+A799A_C4)*100))))) ->  | F66: =IF(F8>=DATEVALUE("03/31/2010"),Calc(A816A_C5,A730A_C5+A730B_C5+A730C_C5+A799A1_C5)*100,IF(F8>=DATEVALUE("12/31/2009"),Calc(A814_C5+A814A_C5+A814A1_C5+A811_C5+A811A_C5+A811B_C5+A811C_C5+A812_C5+A813_C5+A815_C5+A816_C5+A822_C5,A730A_C5+A730B_C5+A730C_C5+A799A1_C5)*100,IF(F8>=DATEVALUE("03/31/2009"),Calc(A814_C5+A814A_C5+A814A1_C5+A811_C5+A811A_C5+A812_C5+A813_C5+A815_C5+A816_C5+A822_C5,A730A_C5+A730B_C5+A730C_C5+A799A1_C5)*100,IF(F8>=DATEVALUE("6/30/2006"),Calc(A814_C5+A814A_C5+A811_C5+A812_C5+A813_C5+A815_C5+A816_C5+A822_C5,A730A_C5+A730B_C5+A730C_C5+A799A1_C5)*100,IF(F8>=DATEVALUE("03/31/2005"),Calc(A814_C5+A814A_C5+A811_C5+A812_C5+A813_C5+A815_C5+A816_C5+A822_C5,A730A_C5+A799A_C5)*100,Calc(A814_C5+A814A_C5+A811_C5+A812_C5+A813_C5+A815_C5+A816_C5,A730A_C5+A799A_C5)*100))))) -> 
A67: Complex Assets / Total Assets | B67: =IF(B8<DATEVALUE("3/31/2004"),"N/A",IF(B8<DATEVALUE("3/31/2008"),IF(A010_C1=0,0,((A705A_C1+A705B_C1+A707_C1+A708_C1+A704C_C1+A704D_C1+A732_C1+A733_C1+A733A_C1)/A010_C1)*100),IF(A010_C1=0,0,((A705A_C1+A705B_C1+A707_C1+A708_C1+A704C_C1+A704D_C1+A742C2_C1+A981_C1)/A010_C1)*100))) -> 24.71142996 | C67: =IF(C8<DATEVALUE("3/31/2004"),"N/A",IF(C8<DATEVALUE("3/31/2008"),IF(A010_C2=0,0,((A705A_C2+A705B_C2+A707_C2+A708_C2+A704C_C2+A704D_C2+A732_C2+A733_C2+A733A_C2)/A010_C2)*100),IF(A010_C2=0,0,((A705A_C2+A705B_C2+A707_C2+A708_C2+A704C_C2+A704D_C2+A742C2_C2+A981_C2)/A010_C2)*100))) -> 24.07895001 | D67: =IF(D8<DATEVALUE("3/31/2004"),"N/A",IF(D8<DATEVALUE("3/31/2008"),IF(A010_C3=0,0,((A705A_C3+A705B_C3+A707_C3+A708_C3+A704C_C3+A704D_C3+A732_C3+A733_C3+A733A_C3)/A010_C3)*100),IF(A010_C3=0,0,((A705A_C3+A705B_C3+A707_C3+A708_C3+A704C_C3+A704D_C3+A742C2_C3+A981_C3)/A010_C3)*100))) -> 23.84114109 | E67: =IF(E8<DATEVALUE("3/31/2004"),"N/A",IF(E8<DATEVALUE("3/31/2008"),IF(A010_C4=0,0,((A705A_C4+A705B_C4+A707_C4+A708_C4+A704C_C4+A704D_C4+A732_C4+A733_C4+A733A_C4)/A010_C4)*100),IF(A010_C4=0,0,((A705A_C4+A705B_C4+A707_C4+A708_C4+A704C_C4+A704D_C4+A742C2_C4+A981_C4)/A010_C4)*100))) -> 23.99066395 | F67: =IF(F8<DATEVALUE("3/31/2004"),"N/A",IF(F8<DATEVALUE("3/31/2008"),IF(A010_C5=0,0,((A705A_C5+A705B_C5+A707_C5+A708_C5+A704C_C5+A704D_C5+A732_C5+A733_C5+A733A_C5)/A010_C5)*100),IF(A010_C5=0,0,((A705A_C5+A705B_C5+A707_C5+A708_C5+A704C_C5+A704D_C5+A742C2_C5+A981_C5)/A010_C5)*100))) -> 24.35686942
A68: Short Term Liabilities / Total Shares and Deposits plus Borrowings | B68: =IF(B8<DATEVALUE("3/31/2005"),"N/A",IF((A018_C1+A860C_C1-A781_C1)=0,0,((A908A_C1+A906A_C1+A630A_C1+A880A_C1+A058A_C1+A867A_C1+A011A_C1+A883A_C1+A911_C1)/(A018_C1+A860C_C1-A781_C1))*100)) -> 41.87280465 | C68: =IF(C8<DATEVALUE("3/31/2005"),"N/A",IF((A018_C2+A860C_C2-A781_C2)=0,0,((A908A_C2+A906A_C2+A630A_C2+A880A_C2+A058A_C2+A867A_C2+A011A_C2+A883A_C2+A911_C2)/(A018_C2+A860C_C2-A781_C2))*100)) -> 40.60203823 | D68: =IF(D8<DATEVALUE("3/31/2005"),"N/A",IF((A018_C3+A860C_C3-A781_C3)=0,0,((A908A_C3+A906A_C3+A630A_C3+A880A_C3+A058A_C3+A867A_C3+A011A_C3+A883A_C3+A911_C3)/(A018_C3+A860C_C3-A781_C3))*100)) -> 39.7790185 | E68: =IF(E8<DATEVALUE("3/31/2005"),"N/A",IF((A018_C4+A860C_C4-A781_C4)=0,0,((A908A_C4+A906A_C4+A630A_C4+A880A_C4+A058A_C4+A867A_C4+A011A_C4+A883A_C4+A911_C4)/(A018_C4+A860C_C4-A781_C4))*100)) -> 38.98959018 | F68: =IF(F8<DATEVALUE("3/31/2005"),"N/A",IF((A018_C5+A860C_C5-A781_C5)=0,0,((A908A_C5+A906A_C5+A630A_C5+A880A_C5+A058A_C5+A867A_C5+A011A_C5+A883A_C5+A911_C5)/(A018_C5+A860C_C5-A781_C5))*100)) -> 38.24678763
A69: * Annualization factor: March = 4; June = 2; September =4/3; December = 1 (or no annualizing)
A70: **Percentile Rankings and Peer Average Ratios are not calculated for Supplemental Ratios.
A71: # Means the number is too large to display in the cell
A72: 1 The NCUA Board approved a regulatory/policy change in May 2012 revising the delinquency reporting requirements for troubled debt restructured (TDR) loans. This policy change may result in a decline in delinquent loans reported as of June 2012.
A73: 2 Reporting requirements for loans were changed with September 2017 cycle to accommodate the regulatory definition of commercial loans. This policy change may cause fluctuations from prior cycles. | F73: 3. Supplemental Ratios

Sheet 4. Assets
C1: Assets
A2: Return to cover | C2: For Charter : | D2: =IF(CU_NUMBER="","N/A",CU_NUMBER) -> N/A
A3: =IF(Request_Date=0,"N/A",Request_Date) -> 05/15/2019 | C3: Count of CU : | D3: =IF(CountCu_C5=0,"N/A",CountCu_C5) -> 1999
A4: ="CU Name: "&IF(Cu_Name="","N/A",Cu_Name) -> CU Name: N/A | C4: Asset Range : | D4: =IF(AssetRange="","N/A",AssetRange) -> N/A
A5: ="Peer Group: "&IF(Peer_Group="","N/A",IF(Peer_Group="0","N/A",Peer_Group)) -> Peer Group: N/A | C5: Criteria : | D5: =IF(_xlnm.Criteria="","N/A",_xlnm.Criteria) -> Region: Nation * Peer Group: All * Type Included: Federally Insured State Credit Union (FISCU) *
C6: Count of CU in Peer Group : | D6: =IF(NoCu_in_Peer_Group="","N/A",NoCu_in_Peer_Group) -> N/A | E6: =IF(CU_NUMBER>0,"",IF(RetPop=0,"Retroactive Population","")) -> 
B8: =(CycDat_C1) -> 2014-12-31 | C8: =(CycDat_C2) -> 2015-12-31 | D8: % Chg | E8: =(CycDat_C3) -> 2016-12-31 | F8: % Chg | G8: =(CycDat_C4) -> 2017-12-31 | H8: % Chg | I8: =(CycDat_C5) -> 2018-12-31 | J8: % Chg
A9: ASSETS
A10: CASH:
A11: Cash On Hand | B11: =A730A_C1 -> 4726578275 | C11: =A730A_C2 -> 4990499485 | D11: =IF(C11="N/A", " ", IF(B11="N/A", " ",IF(AND(B11=0,C11=0,),"N/A",IF(ABS(B11)=0, "N/A", ((C11-B11)/ABS(B11))*100)))) -> 5.583768948 | E11: =A730A_C3 -> 5193227936 | F11: =IF(E11="N/A", " ", IF(C11="N/A", " ",IF(AND(C11=0,E11=0,),"N/A",IF(ABS(C11)=0, "N/A", ((E11-C11)/ABS(C11))*100)))) -> 4.062287785 | G11: =A730A_C4 -> 5420706469 | H11: =IF(G11="N/A", " ", IF(E11="N/A", " ",IF(AND(E11=0,G11=0,),"N/A",IF(ABS(E11)=0, "N/A", ((G11-E11)/ABS(E11))*100)))) -> 4.380291715 | I11: =A730A_C5 -> 5719163377 | J11: =IF(I11="N/A", " ", IF(G11="N/A", " ",IF(AND(G11=0,I11=0,),"N/A",IF(ABS(G11)=0, "N/A", ((I11-G11)/ABS(G11))*100)))) -> 5.505867357
A12: Cash On Deposit | B12: =A730B_C1 -> 40900127349 | C12: =A730B_C2 -> 42363947213 | D12: =IF(C12="N/A", " ", IF(B12="N/A", " ",IF(AND(B12=0,C12=0,),"N/A",IF(ABS(B12)=0, "N/A", ((C12-B12)/ABS(B12))*100)))) -> 3.579010529 | E12: =A730B_C3 -> 46085794941 | F12: =IF(E12="N/A", " ", IF(C12="N/A", " ",IF(AND(C12=0,E12=0,),"N/A",IF(ABS(C12)=0, "N/A", ((E12-C12)/ABS(C12))*100)))) -> 8.785413005 | G12: =A730B_C4 -> 45858051798 | H12: =IF(G12="N/A", " ", IF(E12="N/A", " ",IF(AND(E12=0,G12=0,),"N/A",IF(ABS(E12)=0, "N/A", ((G12-E12)/ABS(E12))*100)))) -> -0.4941721051 | I12: =A730B_C5 -> 45064116410 | J12: =IF(I12="N/A", " ", IF(G12="N/A", " ",IF(AND(G12=0,I12=0,),"N/A",IF(ABS(G12)=0, "N/A", ((I12-G12)/ABS(G12))*100)))) -> -1.73128896
A13: Cash Equivalents | B13: =A730C_C1 -> 1944399853 | C13: =A730C_C2 -> 2236478826 | D13: =IF(C13="N/A", " ", IF(B13="N/A", " ",IF(AND(B13=0,C13=0,),"N/A",IF(ABS(B13)=0, "N/A", ((C13-B13)/ABS(B13))*100)))) -> 15.02154881 | E13: =A730C_C3 -> 1945747429 | F13: =IF(E13="N/A", " ", IF(C13="N/A", " ",IF(AND(C13=0,E13=0,),"N/A",IF(ABS(C13)=0, "N/A", ((E13-C13)/ABS(C13))*100)))) -> -12.99951485 | G13: =A730C_C4 -> 2013801693 | H13: =IF(G13="N/A", " ", IF(E13="N/A", " ",IF(AND(E13=0,G13=0,),"N/A",IF(ABS(E13)=0, "N/A", ((G13-E13)/ABS(E13))*100)))) -> 3.49758982 | I13: =A730C_C5 -> 1711393021 | J13: =IF(I13="N/A", " ", IF(G13="N/A", " ",IF(AND(G13=0,I13=0,),"N/A",IF(ABS(G13)=0, "N/A", ((I13-G13)/ABS(G13))*100)))) -> -15.01680493
A14: TOTAL CASH & EQUIVALENTS | B14: =A730A_C1+A730B_C1+A730C_C1 -> 47571105477 | C14: =A730A_C2+A730B_C2+A730C_C2 -> 49590925524 | D14: =IF(C14="N/A", " ", IF(B14="N/A", " ",IF(AND(B14=0,C14=0,),"N/A",IF(ABS(B14)=0, "N/A", ((C14-B14)/ABS(B14))*100)))) -> 4.245896804 | E14: =A730A_C3+A730B_C3+A730C_C3 -> 53224770306 | F14: =IF(E14="N/A", " ", IF(C14="N/A", " ",IF(AND(C14=0,E14=0,),"N/A",IF(ABS(C14)=0, "N/A", ((E14-C14)/ABS(C14))*100)))) -> 7.327640579 | G14: =A730A_C4+A730B_C4+A730C_C4 -> 53292559960 | H14: =IF(G14="N/A", " ", IF(E14="N/A", " ",IF(AND(E14=0,G14=0,),"N/A",IF(ABS(E14)=0, "N/A", ((G14-E14)/ABS(E14))*100)))) -> 0.1273648597 | I14: =A730A_C5+A730B_C5+A730C_C5 -> 52494672808 | J14: =IF(I14="N/A", " ", IF(G14="N/A", " ",IF(AND(G14=0,I14=0,),"N/A",IF(ABS(G14)=0, "N/A", ((I14-G14)/ABS(G14))*100)))) -> -1.497183008
A16: INVESTMENTS:
A17: Trading Securities | B17: =A965_C1 -> 251043716 | C17: =A965_C2 -> 230039728 | D17: =IF(C17="N/A", " ", IF(B17="N/A", " ",IF(AND(B17=0,C17=0,),"N/A",IF(ABS(B17)=0, "N/A", ((C17-B17)/ABS(B17))*100)))) -> -8.366665509 | E17: =A965_C3 -> 333017243 | F17: =IF(E17="N/A", " ", IF(C17="N/A", " ",IF(AND(C17=0,E17=0,),"N/A",IF(ABS(C17)=0, "N/A", ((E17-C17)/ABS(C17))*100)))) -> 44.76510031 | G17: =A965_C4 -> 404164185 | H17: =IF(G17="N/A", " ", IF(E17="N/A", " ",IF(AND(E17=0,G17=0,),"N/A",IF(ABS(E17)=0, "N/A", ((G17-E17)/ABS(E17))*100)))) -> 21.36434179 | I17: =A965_C5 -> 412870984 | J17: =IF(I17="N/A", " ", IF(G17="N/A", " ",IF(AND(G17=0,I17=0,),"N/A",IF(ABS(G17)=0, "N/A", ((I17-G17)/ABS(G17))*100)))) -> 2.154272774
A18: Available for Sale Securities | B18: =A797E_C1 -> 74121355316 | C18: =A797E_C2 -> 80133227146 | D18: 8.110849841 | E18: =A797E_C3 -> 79607369072 | F18: -0.6562297473 | G18: =A797E_C4 -> 76425676011 | H18: -3.996731833 | I18: =A797E_C5 -> 74942924748 | J18: -1.940121881
A19: Held-to-Maturity Securities | B19: =A796E_C1 -> 19971817693 | C19: =A796E_C2 -> 17573406104 | D19: -12.00897998 | E19: =A796E_C3 -> 15336751222 | F19: -12.72749784 | G19: =A796E_C4 -> 13844296177 | H19: -9.731233319 | I19: =A796E_C5 -> 12248942680 | J19: -11.52354353
A20: Deposits in Commercial Banks, S&Ls, Savings Banks | B20: =A744C_C1 -> 15883623819 | C20: =A744C_C2 -> 15436250143 | D20: -2.816571842 | E20: =A744C_C3 -> 14494467204 | F20: -6.101112189 | G20: =A744C_C4 -> 12398020413 | H20: -14.4637727 | I20: =A744C_C5 -> 10272176404 | J20: -17.14664066
A21: Loans to, Deposits in, and Investments in Natural Person Credit Unions 2 | B21: =A672C_C1 -> 1668982540 | C21: =A672C_C2 -> 2154624830 | D21: 29.09810488 | E21: =A672C_C3 -> 2723338520 | F21: 26.39502163 | G21: =A672C_C4 -> 2905782031 | H21: 6.699259371 | I21: =A672C_C5 -> 3112709046 | J21: 7.121216003
A22: Total MCSD/Nonperpetual Contributed Capital and PIC/Perpetual Contributed Capital | B22: =A769A_C1+A769B_C1 -> 732831346 | C22: =A769A_C2+A769B_C2 -> 743193197 | D22: 1.413947569 | E22: =A769A_C3+A769B_C3 -> 677296710 | F22: -8.866669833 | G22: =A769A_C4+A769B_C4 -> 672609634 | H22: -0.6920269847 | I22: =A769A_C5+A769B_C5 -> 674447456 | J22: 0.2732375374
A23: All Other Investments in Corporate Cus | B23: =A652C_C1 -> 702053701 | C23: =A652C_C2 -> 672418065 | D23: -4.221277654 | E23: =A652C_C3 -> 738807810 | F23: 9.873283967 | G23: =A652C_C4 -> 751455499 | H23: 1.711905157 | I23: =A652C_C5 -> 827375356 | J23: 10.10304098
A24: All Other Investments 2 | B24: =IF(B8<DATEVALUE("3/31/2006"),A767_C1-A672C_C1, A766E_C1) -> 3149595527 | C24: =IF(C8<DATEVALUE("3/31/2006"),A767_C2-A672C_C2, A766E_C2) -> 3313302063 | D24: 5.197700295 | E24: =IF(E8<DATEVALUE("3/31/2006"),A767_C3-A672C_C3, A766E_C3) -> 3318289542 | F24: 0.1505289559 | G24: =IF(G8<DATEVALUE("3/31/2006"),A767_C4-A672C_C4, A766E_C4) -> 3368603558 | H24: 1.516263586 | I24: =IF(I8<DATEVALUE("3/31/2006"),A767_C5-A672C_C5, A766E_C5) -> 3268066161 | J24: -2.984542267
A25: TOTAL INVESTMENTS | B25: =A799I_C1 -> 116481303658 | C25: =A799I_C2 -> 120256461276 | D25: 3.240998769 | E25: =A799I_C3 -> 117229337323 | F25: -2.517223541 | G25: =A799I_C4 -> 110770607508 | H25: -5.509482492 | I25: =A799I_C5 -> 105759512835 | J25: -4.523848687
A27: LOANS HELD FOR SALE | B27: =IF(B8<DATEVALUE("3/31/2002"),"N/A",A003_C1) -> 980491555 | C27: =IF(C8<DATEVALUE("3/31/2002"),"N/A",A003_C2) -> 974128684 | D27: =IF(C27="N/A", " ", IF(B27="N/A", " ",IF(AND(B27=0,C27=0,),"N/A",IF(ABS(B27)=0, "N/A", ((C27-B27)/ABS(B27))*100)))) -> -0.6489470478 | E27: =IF(E8<DATEVALUE("3/31/2002"),"N/A",A003_C3) -> 1544975345 | F27: =IF(E27="N/A", " ", IF(C27="N/A", " ",IF(AND(C27=0,E27=0,),"N/A",IF(ABS(C27)=0, "N/A", ((E27-C27)/ABS(C27))*100)))) -> 58.60074448 | G27: =IF(G8<DATEVALUE("3/31/2002"),"N/A",A003_C4) -> 1593776831 | H27: =IF(G27="N/A", " ", IF(E27="N/A", " ",IF(AND(E27=0,G27=0,),"N/A",IF(ABS(E27)=0, "N/A", ((G27-E27)/ABS(E27))*100)))) -> 3.15872264 | I27: =IF(I8<DATEVALUE("3/31/2002"),"N/A",A003_C5) -> 1096199790 | J27: =IF(I27="N/A", " ", IF(G27="N/A", " ",IF(AND(G27=0,I27=0,),"N/A",IF(ABS(G27)=0, "N/A", ((I27-G27)/ABS(G27))*100)))) -> -31.21999463
A29: LOANS AND LEASES:
A30: Unsecured Credit Card Loans | B30: =A396_C1 -> 17312297599 | C30: =A396_C2 -> 18555855924 | D30: =IF(C30="N/A", " ", IF(B30="N/A", " ",IF(AND(B30=0,C30=0,),"N/A",IF(ABS(B30)=0, "N/A", ((C30-B30)/ABS(B30))*100)))) -> 7.183092353 | E30: =A396_C3 -> 19821469580 | F30: =IF(E30="N/A", " ", IF(C30="N/A", " ",IF(AND(C30=0,E30=0,),"N/A",IF(ABS(C30)=0, "N/A", ((E30-C30)/ABS(C30))*100)))) -> 6.82056199 | G30: =A396_C4 -> 21088995960 | H30: =IF(G30="N/A", " ", IF(E30="N/A", " ",IF(AND(E30=0,G30=0,),"N/A",IF(ABS(E30)=0, "N/A", ((G30-E30)/ABS(E30))*100)))) -> 6.394714453 | I30: =A396_C5 -> 22285534800 | J30: =IF(I30="N/A", " ", IF(G30="N/A", " ",IF(AND(G30=0,I30=0,),"N/A",IF(ABS(G30)=0, "N/A", ((I30-G30)/ABS(G30))*100)))) -> 5.67375916
A31: All Other Unsecured Loans/Lines of Credit | B31: =A397_C1 -> 12202627924 | C31: =A397_C2 -> 13429961969 | D31: 10.0579486 | E31: =A397_C3 -> 14538381796 | F31: 8.253335561 | G31: =A397_C4 -> 15523600122 | H31: 6.776671158 | I31: =A397_C5 -> 16900453142 | J31: 8.869418235
A32: Payday Alternative Loans (PAL Loans) (FCUs only) | B32: =IF(B8>=DATEVALUE("12/31/2010"),A397A_C1,"N/A") -> 0 | C32: =IF(C8>=DATEVALUE("12/31/2010"),A397A_C2,"N/A") -> 0 | D32: N/A | E32: =IF(E8>=DATEVALUE("12/31/2010"),A397A_C3,"N/A") -> 0 | F32: N/A | G32: =IF(G8>=DATEVALUE("12/31/2010"),A397A_C4,"N/A") -> 0 | H32: N/A | I32: =IF(I8>=DATEVALUE("12/31/2010"),A397A_C5,"N/A") -> 0 | J32: N/A
A33: Non-Federally Guaranteed Student Loans | B33: =IF(B8>=DATEVALUE("3/31/2011"),A698A_C1,"N/A") -> 1346871300 | C33: =IF(C8>=DATEVALUE("3/31/2011"),A698A_C2,"N/A") -> 1486127378 | D33: 10.33922677 | E33: =IF(E8>=DATEVALUE("3/31/2011"),A698A_C3,"N/A") -> 1608567804 | F33: 8.238891754 | G33: =IF(G8>=DATEVALUE("3/31/2011"),A698A_C4,"N/A") -> 1774683510 | H33: 10.32693217 | I33: =IF(I8>=DATEVALUE("3/31/2011"),A698A_C5,"N/A") -> 1910584807 | J33: 7.657776513
A34: New Vehicle Loans | B34: =A385_C1 -> 40680888751 | C34: =A385_C2 -> 48863789358 | D34: 20.1148521 | E34: =A385_C3 -> 58423376383 | F34: 19.56374475 | G34: =A385_C4 -> 66870956988 | H34: 14.45924753 | I34: =A385_C5 -> 74732768731 | J34: 11.75669094
A35: Used Vehicle Loans | B35: =A370_C1 -> 71323003942 | C35: =A370_C2 -> 82244246538 | D35: 15.31237047 | E35: =A370_C3 -> 93029992587 | F35: 13.11428641 | G35: =A370_C4 -> 102844840452 | H35: 10.55019741 | I35: =A370_C5 -> 112479430097 | J35: 9.36808264
A36: Leases Receivable | B36: =A002_C1 -> 553245984 | C36: =A002_C2 -> 684476617 | D36: 23.72012392 | E36: =A002_C3 -> 873270881 | F36: 27.58228102 | G36: =A002_C4 -> 1111984520 | H36: 27.33557756 | I36: =A002_C5 -> 1141719405 | J36: 2.674037675
A37: All Other Secured Non-Real Estate Loans/Lines of Credit 3 | B37: =IF(B8>DATEVALUE("6/30/2017"), A698C_C1,IF(B8<DATEVALUE("03/31/2002"),A698_C1+A001_C1,A698_C1)) -> 18445868997 | C37: =IF(C8>DATEVALUE("6/30/2017"), A698C_C2,IF(C8<DATEVALUE("03/31/2002"),A698_C2+A001_C2,A698_C2)) -> 21153836317 | D37: =IF(C37="N/A", " ", IF(B37="N/A", " ",IF(AND(B37=0,C37=0,),"N/A",IF(ABS(B37)=0, "N/A", ((C37-B37)/ABS(B37))*100)))) -> 14.68061668 | E37: =IF(E8>DATEVALUE("6/30/2017"), A698C_C3,IF(E8<DATEVALUE("03/31/2002"),A698_C3+A001_C3,A698_C3)) -> 23345022818 | F37: =IF(E37="N/A", " ", IF(C37="N/A", " ",IF(AND(C37=0,E37=0,),"N/A",IF(ABS(C37)=0, "N/A", ((E37-C37)/ABS(C37))*100)))) -> 10.358341 | G37: =IF(G8>DATEVALUE("6/30/2017"), A698C_C4,IF(G8<DATEVALUE("03/31/2002"),A698_C4+A001_C4,A698_C4)) -> 20182355587 | H37: =IF(G37="N/A", " ", IF(E37="N/A", " ",IF(AND(E37=0,G37=0,),"N/A",IF(ABS(E37)=0, "N/A", ((G37-E37)/ABS(E37))*100)))) -> -13.54750113 | I37: =IF(I8>DATEVALUE("6/30/2017"), A698C_C5,IF(I8<DATEVALUE("03/31/2002"),A698_C5+A001_C5,A698_C5)) -> 22344823188 | J37: =IF(I37="N/A", " ", IF(G37="N/A", " ",IF(AND(G37=0,I37=0,),"N/A",IF(ABS(G37)=0, "N/A", ((I37-G37)/ABS(G37))*100)))) -> 10.71464424
A38: Total Loans/Lines of Credit Secured by 1st Lien 1-4 Family Residential Properties 3 | B38: =IF(B8>DATEVALUE("6/30/2017"), A703A_C1, A703_C1) -> 144512886213 | C38: =IF(C8>DATEVALUE("6/30/2017"), A703A_C2, A703_C2) -> 161596337824 | D38: 11.82140365 | E38: =IF(E8>DATEVALUE("6/30/2017"), A703A_C3, A703_C3) -> 177894883824 | F38: 10.08596248 | G38: =IF(G8>DATEVALUE("6/30/2017"), A703A_C4, A703_C4) -> 166448482000 | H38: -6.434362573 | I38: =IF(I8>DATEVALUE("6/30/2017"), A703A_C5, A703_C5) -> 181178204684 | J38: 8.849418455
A39: Total Loans/Lines of Credit Secured by Junior Lien 1-4 Family Residential Properties 3 | B39: =IF(B8>DATEVALUE("6/30/2017"), A386A_C1, A386_C1) -> 32560549509 | C39: =IF(C8>DATEVALUE("6/30/2017"), A386A_C2, A386_C2) -> 34273156509 | D39: 5.259760741 | E39: =IF(E8>DATEVALUE("6/30/2017"), A386A_C3, A386_C3) -> 35056243344 | F39: 2.284840134 | G39: =IF(G8>DATEVALUE("6/30/2017"), A386A_C4, A386_C4) -> 29827227422 | H39: -14.91607606 | I39: =IF(I8>DATEVALUE("6/30/2017"), A386A_C5, A386_C5) -> 36431325924 | J39: 22.1411746
A40: All Other Real Estate Loans/Lines of Credit 3 | B40: =IF(B8>DATEVALUE("6/30/2017"), A386B_C1,"N/A") -> N/A | C40: =IF(C8>DATEVALUE("6/30/2017"), A386B_C2,"N/A") -> N/A | E40: =IF(E8>DATEVALUE("6/30/2017"), A386B_C3,"N/A") -> N/A | G40: =IF(G8>DATEVALUE("6/30/2017"), A386B_C4,"N/A") -> 6169074106 | I40: =IF(I8>DATEVALUE("6/30/2017"), A386B_C5,"N/A") -> 1859018281 | J40: -69.86552197
A41: Commercial Loans/Lines of Credit Real Estate Secured 3 | B41: =IF(B8>DATEVALUE("6/30/2017"), A718A5_C1,"N/A") -> N/A | C41: =IF(C8>DATEVALUE("6/30/2017"), A718A5_C2,"N/A") -> N/A | E41: =IF(E8>DATEVALUE("6/30/2017"), A718A5_C3,"N/A") -> N/A | G41: =IF(G8>DATEVALUE("6/30/2017"), A718A5_C4,"N/A") -> 30611104046 | I41: =IF(I8>DATEVALUE("6/30/2017"), A718A5_C5,"N/A") -> 35626676095 | J41: 16.38481265
A42: Commercial Loans/Lines of Credit Not Real Estate Secured 3 | B42: =IF(B8>DATEVALUE("6/30/2017"), A400P_C1,"N/A") -> N/A | C42: =IF(C8>DATEVALUE("6/30/2017"), A400P_C2,"N/A") -> N/A | E42: =IF(E8>DATEVALUE("6/30/2017"), A400P_C3,"N/A") -> N/A | G42: =IF(G8>DATEVALUE("6/30/2017"), A400P_C4,"N/A") -> 4734500733 | I42: =IF(I8>DATEVALUE("6/30/2017"), A400P_C5,"N/A") -> 3988578239 | J42: -15.75504021
A43: TOTAL LOANS & LEASES | B43: =A025B_C1 -> 338938240219 | C43: =A025B_C2 -> 382287788434 | D43: 12.78980743 | E43: =A025B_C3 -> 424591209017 | F43: 11.06585715 | G43: =A025B_C4 -> 467187805446 | H43: 10.03237833 | I43: =A025B_C5 -> 510879117393 | J43: 9.351980389
A44: (ALLOWANCE FOR LOAN & LEASE LOSSES) | B44: =A719_C1 -> 3320255561 | C44: =A719_C2 -> 3510763581 | D44: 5.737751703 | E44: =A719_C3 -> 3561870403 | F44: 1.455718131 | G44: =A719_C4 -> 3934263250 | H44: 10.45498025 | I44: =A719_C5 -> 3987398300 | J44: 1.3505718
A45: Foreclosed Real Estate | B45: =IF(B8<DATEVALUE("6/30/2006"),"N/A",A798A1_C1) -> 476425034 | C45: =IF(C8<DATEVALUE("6/30/2006"),"N/A",A798A1_C2) -> 350561913 | D45: =IF(C45="N/A", " ", IF(B45="N/A", " ",IF(AND(B45=0,C45=0,),"N/A",IF(ABS(B45)=0, "N/A", ((C45-B45)/ABS(B45))*100)))) -> -26.41824254 | E45: =IF(E8<DATEVALUE("6/30/2006"),"N/A",A798A1_C3) -> 238811246 | F45: =IF(E45="N/A", " ", IF(C45="N/A", " ",IF(AND(C45=0,E45=0,),"N/A",IF(ABS(C45)=0, "N/A", ((E45-C45)/ABS(C45))*100)))) -> -31.87758363 | G45: =IF(G8<DATEVALUE("6/30/2006"),"N/A",A798A1_C4) -> 188186366 | H45: =IF(G45="N/A", " ", IF(E45="N/A", " ",IF(AND(E45=0,G45=0,),"N/A",IF(ABS(E45)=0, "N/A", ((G45-E45)/ABS(E45))*100)))) -> -21.19870017 | I45: =IF(I8<DATEVALUE("6/30/2006"),"N/A",A798A1_C5) -> 154149007 | J45: =IF(I45="N/A", " ", IF(G45="N/A", " ",IF(AND(G45=0,I45=0,),"N/A",IF(ABS(G45)=0, "N/A", ((I45-G45)/ABS(G45))*100)))) -> -18.08704835
A46: Repossesed Autos | B46: =IF(B8<DATEVALUE("6/30/2006"),"N/A",A798A2_C1) -> 90685811 | C46: =IF(C8<DATEVALUE("6/30/2006"),"N/A",A798A2_C2) -> 116890632 | D46: 28.89627463 | E46: =IF(E8<DATEVALUE("6/30/2006"),"N/A",A798A2_C3) -> 142295638 | F46: 21.73399661 | G46: =IF(G8<DATEVALUE("6/30/2006"),"N/A",A798A2_C4) -> 134736103 | H46: -5.312555681 | I46: =IF(I8<DATEVALUE("6/30/2006"),"N/A",A798A2_C5) -> 136486697 | J46: 1.299276112
A47: Foreclosed and Repossessed Other Assets | B47: =IF(B8<DATEVALUE("6/30/2006"),"N/A",A798A3_C1) -> 10072335 | C47: =IF(C8<DATEVALUE("6/30/2006"),"N/A",A798A3_C2) -> 15955541 | D47: 58.40955449 | E47: =IF(E8<DATEVALUE("6/30/2006"),"N/A",A798A3_C3) -> 29060587 | F47: 82.13476434 | G47: =IF(G8<DATEVALUE("6/30/2006"),"N/A",A798A3_C4) -> 76811852 | H47: 164.3162439 | I47: =IF(I8<DATEVALUE("6/30/2006"),"N/A",A798A3_C5) -> 36439933 | J47: -52.55949173
A48: TOTAL FORECLOSED and REPOSSESSED ASSETS 1 | B48: =IF(B8<DATEVALUE("3/31/2004"),A798_C1,A798A_C1) -> 577183180 | C48: =IF(C8<DATEVALUE("3/31/2004"),A798_C2,A798A_C2) -> 483408086 | D48: -16.24702473 | E48: =IF(E8<DATEVALUE("3/31/2004"),A798_C3,A798A_C3) -> 410167471 | F48: -15.15088744 | G48: =IF(G8<DATEVALUE("3/31/2004"),A798_C4,A798A_C4) -> 399734321 | H48: -2.543631745 | I48: =IF(I8<DATEVALUE("3/31/2004"),A798_C5,A798A_C5) -> 327075637 | J48: -18.17674395
A49: Land and Building | B49: =A007_C1 -> 9248453839 | C49: =A007_C2 -> 9831179555 | D49: 6.300790663 | E49: =A007_C3 -> 10420700792 | F49: 5.996444615 | G49: =A007_C4 -> 11108166248 | H49: 6.597113474 | I49: =A007_C5 -> 11989569835 | J49: 7.934735287
A50: Other Fixed Assets | B50: =A008_C1 -> 1789284891 | C50: =A008_C2 -> 1967121975 | D50: 9.93900328 | E50: =A008_C3 -> 2171072653 | F50: 10.36797314 | G50: =A008_C4 -> 2235827167 | H50: 2.982604654 | I50: =A008_C5 -> 2492183684 | J50: 11.46584677
A51: NCUA Share Insurance Capitalization Deposit | B51: =A794_C1 -> 4234978153 | C51: =A794_C2 -> 4538366522 | D51: 7.163870935 | E51: =A794_C3 -> 4859496358 | F51: 7.075890289 | G51: =A794_C4 -> 5251227323 | H51: 8.061143298 | I51: =A794_C5 -> 5524791437 | J51: 5.209527167
A52: Identifiable Intangible Assets | B52: =IF(B8>DATEVALUE("12/31/2008"),A009D1_C1, "N/A") -> 116058838 | C52: =IF(C8>DATEVALUE("12/31/2008"),A009D1_C2, "N/A") -> 132846955 | D52: =IF(C52="N/A", " ", IF(B52="N/A", " ",IF(AND(B52=0,C52=0,),"N/A",IF(ABS(B52)=0, "N/A", ((C52-B52)/ABS(B52))*100)))) -> 14.46517757 | E52: =IF(E8>DATEVALUE("12/31/2008"),A009D1_C3, "N/A") -> 139299644 | F52: =IF(E52="N/A", " ", IF(C52="N/A", " ",IF(AND(C52=0,E52=0,),"N/A",IF(ABS(C52)=0, "N/A", ((E52-C52)/ABS(C52))*100)))) -> 4.857235155 | G52: =IF(G8>DATEVALUE("12/31/2008"),A009D1_C4, "N/A") -> 151778912 | H52: =IF(G52="N/A", " ", IF(E52="N/A", " ",IF(AND(E52=0,G52=0,),"N/A",IF(ABS(E52)=0, "N/A", ((G52-E52)/ABS(E52))*100)))) -> 8.95857853 | I52: =IF(I8>DATEVALUE("12/31/2008"),A009D1_C5, "N/A") -> 174143962 | J52: =IF(I52="N/A", " ", IF(G52="N/A", " ",IF(AND(G52=0,I52=0,),"N/A",IF(ABS(G52)=0, "N/A", ((I52-G52)/ABS(G52))*100)))) -> 14.73528154
A53: Goodwill | B53: =IF(B8>DATEVALUE("12/31/2008"),A009D2_C1, "N/A") -> 331775511 | C53: =IF(C8>DATEVALUE("12/31/2008"),A009D2_C2, "N/A") -> 353679248 | D53: 6.601975213 | E53: =IF(E8>DATEVALUE("12/31/2008"),A009D2_C3, "N/A") -> 371082164 | F53: 4.920536361 | G53: =IF(G8>DATEVALUE("12/31/2008"),A009D2_C4, "N/A") -> 412551566 | H53: 11.17526144 | I53: =IF(I8>DATEVALUE("12/31/2008"),A009D2_C5, "N/A") -> 509631517 | J53: 23.53159193
A54: TOTAL INTANGIBLE ASSETS | B54: =IF(B8>DATEVALUE("12/31/2008"),A009D_C1, "N/A") -> 447834349 | C54: =IF(C8>DATEVALUE("12/31/2008"),A009D_C2, "N/A") -> 486526203 | D54: 8.639769166 | E54: =IF(E8>DATEVALUE("12/31/2008"),A009D_C3, "N/A") -> 510381808 | F54: 4.90325184 | G54: =IF(G8>DATEVALUE("12/31/2008"),A009D_C4, "N/A") -> 564330478 | H54: 10.57025724 | I54: =IF(I8>DATEVALUE("12/31/2008"),A009D_C5, "N/A") -> 683775479 | J54: 21.16578949
A55: Accrued Interest on Loans | B55: =IF(B8<DATEVALUE("6/30/2006"),"N/A",A009A_C1) -> 981671366 | C55: =IF(C8<DATEVALUE("6/30/2006"),"N/A",A009A_C2) -> 1062179616 | D55: 8.201140706 | E55: =IF(E8<DATEVALUE("6/30/2006"),"N/A",A009A_C3) -> 1155477276 | F55: 8.783604825 | G55: =IF(G8<DATEVALUE("6/30/2006"),"N/A",A009A_C4) -> 1318920878 | H55: 14.14511608 | I55: =IF(I8<DATEVALUE("6/30/2006"),"N/A",A009A_C5) -> 1461926068 | J55: 10.84259051
A56: Accrued Interest on Investments | B56: =IF(B8<DATEVALUE("6/30/2006"),"N/A",A009B_C1) -> 311184198 | C56: =IF(C8<DATEVALUE("6/30/2006"),"N/A",A009B_C2) -> 322836165 | D56: =IF(C56="N/A", " ", IF(B56="N/A", " ",IF(AND(B56=0,C56=0,),"N/A",IF(ABS(B56)=0, "N/A", ((C56-B56)/ABS(B56))*100)))) -> 3.744395466 | E56: =IF(E8<DATEVALUE("6/30/2006"),"N/A",A009B_C3) -> 361328249 | F56: =IF(E56="N/A", " ", IF(C56="N/A", " ",IF(AND(C56=0,E56=0,),"N/A",IF(ABS(C56)=0, "N/A", ((E56-C56)/ABS(C56))*100)))) -> 11.92310161 | G56: =IF(G8<DATEVALUE("6/30/2006"),"N/A",A009B_C4) -> 373703765 | H56: =IF(G56="N/A", " ", IF(E56="N/A", " ",IF(AND(E56=0,G56=0,),"N/A",IF(ABS(E56)=0, "N/A", ((G56-E56)/ABS(E56))*100)))) -> 3.425006496 | I56: =IF(I8<DATEVALUE("6/30/2006"),"N/A",A009B_C5) -> 367417082 | J56: =IF(I56="N/A", " ", IF(G56="N/A", " ",IF(AND(G56=0,I56=0,),"N/A",IF(ABS(G56)=0, "N/A", ((I56-G56)/ABS(G56))*100)))) -> -1.682263758
A57: Non-Trading Derivative Assets, net | B57: =IF(B8<DATEVALUE("3/31/2014"),"N/A",A009E_C1) -> 40210538 | C57: =IF(C8<DATEVALUE("3/31/2014"),"N/A",A009E_C2) -> 20468425 | D57: -49.09686361 | E57: =IF(E8<DATEVALUE("3/31/2014"),"N/A",A009E_C3) -> 76148378 | F57: 272.0285171 | G57: =IF(G8<DATEVALUE("3/31/2014"),"N/A",A009E_C4) -> 41052107 | H57: -46.08932182 | I57: =IF(I8<DATEVALUE("3/31/2014"),"N/A",A009E_C5) -> 74959766 | J57: 82.59663505
A58: All Other Assets | B58: =IF(B8<DATEVALUE("6/30/2006"),"N/A",A009C_C1) -> 7660784758 | C58: =IF(C8<DATEVALUE("6/30/2006"),"N/A",A009C_C2) -> 7955061890 | D58: 3.841344474 | E58: =IF(E8<DATEVALUE("6/30/2006"),"N/A",A009C_C3) -> 9360659947 | F58: 17.66922843 | G58: =IF(G8<DATEVALUE("6/30/2006"),"N/A",A009C_C4) -> 10327015736 | H58: 10.3235861 | I58: =IF(I8<DATEVALUE("6/30/2006"),"N/A",A009C_C5) -> 10709134867 | J58: 3.700189297
A59: TOTAL OTHER ASSETS | B59: =A009_C1 -> 8993850860 | C59: =A009_C2 -> 9360546096 | D59: 4.077177193 | E59: =A009_C3 -> 10953613850 | F59: 17.01896169 | G59: =A009_C4 -> 12060692486 | H59: 10.10697155 | I59: =A009_C5 -> 12613437783 | J59: 4.583031179
A61: TOTAL ASSETS | B61: =A010_C1 -> 525942470620 | C61: =A010_C2 -> 576265688774 | D61: =IF(C61="N/A", " ", IF(B61="N/A", " ",IF(AND(B61=0,C61=0,),"N/A",IF(ABS(B61)=0, "N/A", ((C61-B61)/ABS(B61))*100)))) -> 9.568198228 | E61: =A010_C3 -> 622353854520 | F61: =IF(E61="N/A", " ", IF(C61="N/A", " ",IF(AND(C61=0,E61=0,),"N/A",IF(ABS(C61)=0, "N/A", ((E61-C61)/ABS(C61))*100)))) -> 7.99772859 | G61: =A010_C4 -> 660530464518 | H61: =IF(G61="N/A", " ", IF(E61="N/A", " ",IF(AND(E61=0,G61=0,),"N/A",IF(ABS(E61)=0, "N/A", ((G61-E61)/ABS(E61))*100)))) -> 6.134228899 | I61: =A010_C5 -> 699872938381 | J61: =IF(I61="N/A", " ", IF(G61="N/A", " ",IF(AND(G61=0,I61=0,),"N/A",IF(ABS(G61)=0, "N/A", ((I61-G61)/ABS(G61))*100)))) -> 5.956193692
A62: TOTAL CU's | B62: =CountCu_C1 -> 2346 | C62: =CountCu_C2 -> 2257 | D62: =IF(C62="N/A", " ", IF(B62="N/A", " ",IF(AND(B62=0,C62=0,),"N/A",IF(ABS(B62)=0, "N/A", ((C62-B62)/ABS(B62))*100)))) -> -3.79369139 | E62: =CountCu_C3 -> 2177 | F62: =IF(E62="N/A", " ", IF(C62="N/A", " ",IF(AND(C62=0,E62=0,),"N/A",IF(ABS(C62)=0, "N/A", ((E62-C62)/ABS(C62))*100)))) -> -3.544528135 | G62: =CountCu_C4 -> 2074 | H62: =IF(G62="N/A", " ", IF(E62="N/A", " ",IF(AND(E62=0,G62=0,),"N/A",IF(ABS(E62)=0, "N/A", ((G62-E62)/ABS(E62))*100)))) -> -4.73128158 | I62: =CountCu_C5 -> 1999 | J62: =IF(I62="N/A", " ", IF(G62="N/A", " ",IF(AND(G62=0,I62=0,),"N/A",IF(ABS(G62)=0, "N/A", ((I62-G62)/ABS(G62))*100)))) -> -3.616200579
A63: # Means the number is too large to display in the cell
A64: 1 OTHER RE OWNED PRIOR TO 2004
A65: 2 LOANS TO, DEPOSITS IN, AND INVESTMENTS IN NATURAL PERSON CUs INCLUDED IN ALL OTHER INVESTMENTS PRIOR TO JUNE 2006 FOR SHORT FORM FILERS
A66: 3 Reporting requirements for loans were changed with September 2017 cycle to accommodate the regulatory definition of commercial loans. This policy change may cause fluctuations from prior cycles. | J66: 4. Assets

Sheet 5. LiabShEquity
C1: Liabilities, Shares & Equity
A2: Return to cover | C2: For Charter : | D2: =IF(CU_NUMBER="","N/A",CU_NUMBER) -> N/A
A3: =IF(Request_Date=0,"N/A",Request_Date) -> 05/15/2019 | C3: Count of CU : | D3: =IF(CountCu_C5=0,"N/A",CountCu_C5) -> 1999
A4: ="CU Name: "&IF(Cu_Name="","N/A",Cu_Name) -> CU Name: N/A | C4: Asset Range : | D4: =IF(AssetRange="","N/A",AssetRange) -> N/A
A5: ="Peer Group: "&IF(Peer_Group="","N/A",IF(Peer_Group="0","N/A",Peer_Group)) -> Peer Group: N/A | C5: Criteria : | D5: =IF(_xlnm.Criteria="","N/A",_xlnm.Criteria) -> Region: Nation * Peer Group: All * Type Included: Federally Insured State Credit Union (FISCU) *
C6: Count of CU in Peer Group : | D6: =IF(NoCu_in_Peer_Group="","N/A",NoCu_in_Peer_Group) -> N/A | E6: =IF(CU_NUMBER>0,"",IF(RetPop=0,"Retroactive Population","")) -> 
B8: =(CycDat_C1) -> 2014-12-31 | C8: =(CycDat_C2) -> 2015-12-31 | D8: % Chg | E8: =(CycDat_C3) -> 2016-12-31 | F8: % Chg | G8: =(CycDat_C4) -> 2017-12-31 | H8: % Chg | I8: =(CycDat_C5) -> 2018-12-31 | J8: % Chg
A9: LIABILITIES, SHARES AND EQUITY
A10: LIABILITIES:
A11: Other Borrowings | B11: N/A | C11: N/A | D11: =IF(C11="N/A", " ", IF(B11="N/A", " ",IF(AND(B11=0,C11=0,),"N/A",IF(ABS(B11)=0, "N/A", ((C11-B11)/ABS(B11))*100)))) ->  | E11: N/A | F11: =IF(E11="N/A", " ", IF(C11="N/A", " ",IF(AND(C11=0,E11=0,),"N/A",IF(ABS(C11)=0, "N/A", ((E11-C11)/ABS(C11))*100)))) ->  | G11: N/A | H11: =IF(G11="N/A", " ", IF(E11="N/A", " ",IF(AND(E11=0,G11=0,),"N/A",IF(ABS(E11)=0, "N/A", ((G11-E11)/ABS(E11))*100)))) ->  | I11: N/A | J11: =IF(I11="N/A", " ", IF(G11="N/A", " ",IF(AND(G11=0,I11=0,),"N/A",IF(ABS(G11)=0, "N/A", ((I11-G11)/ABS(G11))*100)))) -> 
A12: Other Notes, Promissory Notes, Interest Payable, & Draws Against Lines of Credit | B12: =A011C_C1+A883C_C1 -> 12569033901 | C12: =A011C_C2+A883C_C2 -> 14441334404 | D12: =IF(C12="N/A", " ", IF(B12="N/A", " ",IF(AND(B12=0,C12=0,),"N/A",IF(ABS(B12)=0, "N/A", ((C12-B12)/ABS(B12))*100)))) -> 14.89613695 | E12: =A011C_C3+A883C_C3 -> 16454769606 | F12: =IF(E12="N/A", " ", IF(C12="N/A", " ",IF(AND(C12=0,E12=0,),"N/A",IF(ABS(C12)=0, "N/A", ((E12-C12)/ABS(C12))*100)))) -> 13.94216868 | G12: =A011C_C4+A883C_C4 -> 17657339678 | H12: =IF(G12="N/A", " ", IF(E12="N/A", " ",IF(AND(E12=0,G12=0,),"N/A",IF(ABS(E12)=0, "N/A", ((G12-E12)/ABS(E12))*100)))) -> 7.308337344 | I12: =A011C_C5+A883C_C5 -> 21861136901 | J12: =IF(I12="N/A", " ", IF(G12="N/A", " ",IF(AND(G12=0,I12=0,),"N/A",IF(ABS(G12)=0, "N/A", ((I12-G12)/ABS(G12))*100)))) -> 23.8076477
A13: Borrowing Repurchase Transactions | B13: =A058C_C1 -> 496290532 | C13: =A058C_C2 -> 443474469 | D13: =IF(C13="N/A", " ", IF(B13="N/A", " ",IF(AND(B13=0,C13=0,),"N/A",IF(ABS(B13)=0, "N/A", ((C13-B13)/ABS(B13))*100)))) -> -10.64216615 | E13: =A058C_C3 -> 348668759 | F13: =IF(E13="N/A", " ", IF(C13="N/A", " ",IF(AND(C13=0,E13=0,),"N/A",IF(ABS(C13)=0, "N/A", ((E13-C13)/ABS(C13))*100)))) -> -21.37794092 | G13: =A058C_C4 -> 26598403 | H13: =IF(G13="N/A", " ", IF(E13="N/A", " ",IF(AND(E13=0,G13=0,),"N/A",IF(ABS(E13)=0, "N/A", ((G13-E13)/ABS(E13))*100)))) -> -92.37144071 | I13: =A058C_C5 -> 262035725 | J13: =IF(I13="N/A", " ", IF(G13="N/A", " ",IF(AND(G13=0,I13=0,),"N/A",IF(ABS(G13)=0, "N/A", ((I13-G13)/ABS(G13))*100)))) -> 885.1558569
A14: Subordinated Debt | B14: =A867C_C1 -> 1196000 | C14: =A867C_C2 -> 1406263 | D14: 17.58051839 | E14: =A867C_C3 -> 1240000 | F14: -11.82303737 | G14: =A867C_C4 -> 1563271 | H14: 26.07024194 | I14: =A867C_C5 -> 423333 | J14: -72.92005033
A15: Uninsured Secondary Capital and Subordinated Debt Included in Net Worth 3 | B15: =IF(B8>=DATEVALUE("12/31/2011"),A925A_C1,A925_C1) -> 71615659 | C15: =IF(C8>=DATEVALUE("12/31/2011"),A925A_C2,A925_C2) -> 33675034 | D15: =IF(C15="N/A", " ", IF(B15="N/A", " ",IF(AND(B15=0,C15=0,),"N/A",IF(ABS(B15)=0, "N/A", ((C15-B15)/ABS(B15))*100)))) -> -52.97811335 | E15: =IF(E8>=DATEVALUE("12/31/2011"),A925A_C3,A925_C3) -> 33899000 | F15: =IF(E15="N/A", " ", IF(C15="N/A", " ",IF(AND(C15=0,E15=0,),"N/A",IF(ABS(C15)=0, "N/A", ((E15-C15)/ABS(C15))*100)))) -> 0.6650802491 | G15: =IF(G8>=DATEVALUE("12/31/2011"),A925A_C4,A925_C4) -> 46477667 | H15: =IF(G15="N/A", " ", IF(E15="N/A", " ",IF(AND(E15=0,G15=0,),"N/A",IF(ABS(E15)=0, "N/A", ((G15-E15)/ABS(E15))*100)))) -> 37.10630697 | I15: =IF(I8>=DATEVALUE("12/31/2011"),A925A_C5,A925_C5) -> 52726677 | J15: =IF(I15="N/A", " ", IF(G15="N/A", " ",IF(AND(G15=0,I15=0,),"N/A",IF(ABS(G15)=0, "N/A", ((I15-G15)/ABS(G15))*100)))) -> 13.44518863
A16: Non-Trading Derivative Liabilities, net | B16: =IF(B8<DATEVALUE("3/31/2014"),"N/A",A825A_C1) -> 14566966 | C16: =IF(C8<DATEVALUE("3/31/2014"),"N/A",A825A_C2) -> 24602432 | D16: =IF(C16="N/A", " ", IF(B16="N/A", " ",IF(AND(B16=0,C16=0,),"N/A",IF(ABS(B16)=0, "N/A", ((C16-B16)/ABS(B16))*100)))) -> 68.89194359 | E16: =IF(E8<DATEVALUE("3/31/2014"),"N/A",A825A_C3) -> 16903165 | F16: =IF(E16="N/A", " ", IF(C16="N/A", " ",IF(AND(C16=0,E16=0,),"N/A",IF(ABS(C16)=0, "N/A", ((E16-C16)/ABS(C16))*100)))) -> -31.29473948 | G16: =IF(G8<DATEVALUE("3/31/2014"),"N/A",A825A_C4) -> 8597148 | H16: =IF(G16="N/A", " ", IF(E16="N/A", " ",IF(AND(E16=0,G16=0,),"N/A",IF(ABS(E16)=0, "N/A", ((G16-E16)/ABS(E16))*100)))) -> -49.13882696 | I16: =IF(I8<DATEVALUE("3/31/2014"),"N/A",A825A_C5) -> 11054843 | J16: =IF(I16="N/A", " ", IF(G16="N/A", " ",IF(AND(G16=0,I16=0,),"N/A",IF(ABS(G16)=0, "N/A", ((I16-G16)/ABS(G16))*100)))) -> 28.58732919
A17: Accrued Dividends and Interest Payable | B17: =A820A_C1 -> 132798149 | C17: =A820A_C2 -> 142814493 | D17: 7.542532841 | E17: =A820A_C3 -> 145364776 | F17: 1.785731228 | G17: =A820A_C4 -> 155396376 | H17: 6.900984046 | I17: =A820A_C5 -> 197624990 | J17: 27.17477401
A18: Accounts Payable & Other Liabilities | B18: =A825_C1 -> 5107080321 | C18: =A825_C2 -> 5770119979 | D18: 12.98275367 | E18: =A825_C3 -> 7035983123 | F18: 21.93824649 | G18: =A825_C4 -> 7862112546 | H18: 11.74149239 | I18: =A825_C5 -> 7220831648 | J18: -8.156597788
A19: TOTAL LIABILITIES | B19: =SUM(B11:B18) -> 18392581528 | C19: =SUM(C11:C18) -> 20857427074 | D19: 13.40130281 | E19: =SUM(E11:E18) -> 24036828429 | F19: 15.24349741 | G19: =SUM(G11:G18) -> 25758085089 | H19: 7.160914199 | I19: =SUM(I11:I18) -> 29605834117 | J19: 14.93802437
A21: SHARES AND DEPOSITS
A22: Share Drafts | B22: =A902_C1 -> 63199161399 | C22: =A902_C2 -> 74132818541 | D22: 17.30031997 | E22: =A902_C3 -> 80750763046 | F22: 8.927145406 | G22: =A902_C4 -> 88059257885 | H22: 9.050682078 | I22: =A902_C5 -> 92074395436 | J22: 4.559585951
A23: Regular Shares | B23: =A657_C1 -> 150779917109 | C23: =A657_C2 -> 170129215490 | D23: 12.83280874 | E23: =A657_C3 -> 186598286843 | F23: 9.680331097 | G23: =A657_C4 -> 200888392680 | H23: 7.658219204 | I23: =A657_C5 -> 212478983025 | J23: 5.769666525
A24: Money Market Shares | B24: =A911_C1 -> 110891398257 | C24: =A911_C2 -> 120080537540 | D24: 8.28661143 | E24: =A911_C3 -> 129164838511 | F24: 7.565173472 | G24: =A911_C4 -> 134883630785 | H24: 4.427514748 | I24: =A911_C5 -> 135721187663 | J24: 0.6209477556
A25: Share Certificates | B25: =A908C_C1 -> 84033501681 | C25: =A908C_C2 -> 85786886917 | D25: 2.086531206 | E25: =A908C_C3 -> 90499873539 | F25: 5.49383104 | G25: =A908C_C4 -> 94623791981 | H25: 4.556822326 | I25: =A908C_C5 -> 106878044926 | J25: 12.95049869
A26: IRA/KEOGH Accounts | B26: =A906C_C1 -> 36214164255 | C26: =A906C_C2 -> 36702401631 | D26: 1.348194515 | E26: =A906C_C3 -> 37399232648 | F26: 1.898597874 | G26: =A906C_C4 -> 37036873263 | H26: -0.9688952402 | I26: =A906C_C5 -> 36690539934 | J26: -0.9351041232
A27: All Other Shares 1 | B27: =A630_C1 -> 3196208842 | C27: =A630_C2 -> 3350138964 | D27: 4.816022031 | E27: =A630_C3 -> 3602390068 | F27: 7.529571361 | G27: =A630_C4 -> 3627042731 | H27: 0.6843418546 | I27: =A630_C5 -> 4160250754 | J27: 14.70090271
A28: Non-Member Deposits | B28: =A880_C1 -> 2792171262 | C28: =A880_C2 -> 3710038327 | D28: 32.87287845 | E28: =A880_C3 -> 4743291902 | F28: 27.85021296 | G28: =A880_C4 -> 5687746165 | H28: 19.9113671 | I28: =A880_C5 -> 6267102686 | J28: 10.18604741
A29: TOTAL SHARES AND DEPOSITS | B29: =A018_C1 -> 451106522805 | C29: =A018_C2 -> 493892037410 | D29: 9.48457015 | E29: =A018_C3 -> 532758676557 | F29: 7.869460571 | G29: =A018_C4 -> 564806735490 | H29: 6.015492632 | I29: =A018_C5 -> 594270504424 | J29: 5.21661076
A31: EQUITY:
A32: Undivided Earnings | B32: =A940_C1 -> 41620591852 | C32: =A940_C2 -> 46222779103 | D32: 11.05747671 | E32: =A940_C3 -> 50235343735 | F32: 8.680924665 | G32: =A940_C4 -> 53902181333 | H32: 7.29931822 | I32: =A940_C5 -> 59565833315 | J32: 10.50727789
A33: Regular Reserves | B33: =A931_C1 -> 10942081214 | C33: =A931_C2 -> 11324536927 | D33: 3.495273938 | E33: =A931_C3 -> 11797894098 | F33: 4.179925184 | G33: =A931_C4 -> 12348817154 | H33: 4.669672837 | I33: =A931_C5 -> 12684380008 | J33: 2.717368391
A34: Appropriation For Non-Conforming Investments (SCU Only) | B34: =A668_C1 -> 32663292 | C34: =A668_C2 -> 6374246 | D34: -80.48498602 | E34: =A668_C3 -> 4306059 | F34: -32.44598655 | G34: =A668_C4 -> 5107778 | H34: 18.61839329 | I34: =A668_C5 -> 7672231 | J34: 50.20682183
A35: Other Reserves | B35: =A658_C1 -> 3505996831 | C35: =A658_C2 -> 3649286866 | D35: 4.086998417 | E35: =A658_C3 -> 3454182464 | F35: -5.346370652 | G35: =A658_C4 -> 3301427653 | H35: -4.422314472 | I35: =A658_C5 -> 3695796205 | J35: 11.94539434
A36: Equity Acquired in Merger | B36: =IF(B8>DATEVALUE("12/31/2008"),A658A_C1, "N/A") -> 1102672932 | C36: =IF(C8>DATEVALUE("12/31/2008"),A658A_C2, "N/A") -> 1537657639 | D36: 39.44820757 | E36: =IF(E8>DATEVALUE("12/31/2008"),A658A_C3, "N/A") -> 1657834666 | F36: 7.815590672 | G36: =IF(G8>DATEVALUE("12/31/2008"),A658A_C4, "N/A") -> 2139406620 | H36: 29.04824974 | I36: =IF(I8>DATEVALUE("12/31/2008"),A658A_C5, "N/A") -> 2306888063 | J36: 7.828406318
A37: Miscellaneous Equity | B37: =A996_C1 -> 5773737 | C37: =A996_C2 -> 6060842 | D37: 4.972602666 | E37: =A996_C3 -> 10563716 | F37: 74.29452871 | G37: =A996_C4 -> 2746407 | H37: -74.00150667 | I37: =A996_C5 -> 4567261 | J37: 66.29949603
A38: Accumulated Unrealized G/L on AFS Securities | B38: =A945_C1 -> 32583142 | C38: =A945_C2 -> -289591396 | D38: -988.7767668 | E38: =A945_C3 -> -622236808 | F38: -114.8671599 | G38: =A945_C4 -> -764868937 | H38: -22.9224834 | I38: =A945_C5 -> -1250462839 | J38: -63.48720395
A39: Accumulated Unrealized Losses for OTTI (due to other factors) on HTM Debt Securities | B39: =IF(B8>DATEVALUE("6/30/2009"),A945C_C1, "N/A") -> -2035370 | C39: =IF(C8>DATEVALUE("6/30/2009"),A945C_C2, "N/A") -> 0 | D39: 100 | E39: =IF(E8>DATEVALUE("6/30/2009"),A945C_C3, "N/A") -> 0 | F39: N/A | G39: =IF(G8>DATEVALUE("6/30/2009"),A945C_C4, "N/A") -> -906936 | H39: N/A | I39: =IF(I8>DATEVALUE("6/30/2009"),A945C_C5, "N/A") -> -6963 | J39: 99.23225013
A40: Accumulated Unrealized G/L on Cash Flow Hedges | B40: =A945A_C1 -> -16609366 | C40: =A945A_C2 -> -27222322 | D40: -63.89741788 | E40: =A945A_C3 -> -6955238 | F40: 74.45023977 | G40: =A945A_C4 -> 12788668 | H40: 283.8710336 | I40: =A945A_C5 -> 45245027 | J40: 253.7899881
A41: Other Comprehensive Income | B41: =A945B_C1 -> -780351977 | C41: =A945B_C2 -> -913657615 | D41: -17.08275777 | E41: =A945B_C3 -> -972583158 | F41: -6.449411906 | G41: =A945B_C4 -> -981055801 | H41: -0.8711484391 | I41: =A945B_C5 -> -1063312468 | J41: -8.38450442
A42: Net Income | B42: =A602_C1 -> 0 | C42: =A602_C2 -> 0 | D42: N/A | E42: =A602_C3 -> 0 | F42: N/A | G42: =A602_C4 -> 0 | H42: N/A | I42: =A602_C5 -> 0 | J42: N/A
A43: EQUITY TOTAL | B43: =SUM(B32:B42) -> 56443366287 | C43: =SUM(C32:C42) -> 61516224290 | D43: 8.987518528 | E43: =SUM(E32:E42) -> 65558349534 | F43: 6.570827925 | G43: =SUM(G32:G42) -> 69965643939 | H43: 6.722704944 | I43: =SUM(I32:I42) -> 75996599840 | J43: 8.619881933
A45: TOTAL SHARES & EQUITY | B45: =SUM(B29:B42) -> 507549889092 | C45: =SUM(C29:C42) -> 555408261700 | D45: 9.42929427 | E45: =SUM(E29:E42) -> 598317026091 | F45: 7.725625877 | G45: =SUM(G29:G42) -> 634772379429 | H45: 6.092982775 | I45: =SUM(I29:I42) -> 670267104264 | J45: 5.591724843
A47: TOTAL LIABILITIES, SHARES, & EQUITY | B47: =A014_C1 -> 525942470620 | C47: =A014_C2 -> 576265688774 | D47: 9.568198228 | E47: =A014_C3 -> 622353854520 | F47: 7.99772859 | G47: =A014_C4 -> 660530464518 | H47: 6.134228899 | I47: =A014_C5 -> 699872938381 | J47: 5.956193692
A49: NCUA INSURED SAVINGS 2
A50: Uninsured Shares | B50: =IF(B8>DATEVALUE("9/30/2008"),A065A4_C1, A065_C1) -> 21947511015 | C50: =IF(C8>DATEVALUE("9/30/2008"),A065A4_C2, A065_C2) -> 25652846534 | D50: 16.88271402 | E50: =IF(E8>DATEVALUE("9/30/2008"),A065A4_C3, A065_C3) -> 30176078521 | F50: 17.63247592 | G50: =IF(G8>DATEVALUE("9/30/2008"),A065A4_C4, A065_C4) -> 33561927985 | H50: 11.2203097 | I50: =IF(I8>DATEVALUE("9/30/2008"),A065A4_C5, A065_C5) -> 37447443956 | J50: 11.57715365
A51: Uninsured Non-Member Deposits | B51: =IF(B8>DATEVALUE("9/30/2008"),A067A2_C1, A067_C1) -> 792537775 | C51: =IF(C8>DATEVALUE("9/30/2008"),A067A2_C2, A067_C2) -> 928926065 | D51: 17.20905858 | E51: =IF(E8>DATEVALUE("9/30/2008"),A067A2_C3, A067_C3) -> 1105494401 | F51: 19.00779219 | G51: =IF(G8>DATEVALUE("9/30/2008"),A067A2_C4, A067_C4) -> 1193566127 | H51: 7.966727459 | I51: =IF(I8>DATEVALUE("9/30/2008"),A067A2_C5, A067_C5) -> 1058954987 | J51: -11.27806302
A52: Total Uninsured Shares & Deposits | B52: =IF(B8>DATEVALUE("9/30/2008"),A068A_C1, A068_C1) -> 22740048790 | C52: =IF(C8>DATEVALUE("9/30/2008"),A068A_C2, A068_C2) -> 26581772599 | D52: 16.8940878 | E52: =IF(E8>DATEVALUE("9/30/2008"),A068A_C3, A068_C3) -> 31281572922 | F52: 17.68053769 | G52: =IF(G8>DATEVALUE("9/30/2008"),A068A_C4, A068_C4) -> 34755494112 | H52: 11.10532772 | I52: =IF(I8>DATEVALUE("9/30/2008"),A068A_C5, A068_C5) -> 38506398943 | J52: 10.79226444
A53: Insured Shares & Deposits | B53: =IF(B8>DATEVALUE("9/30/2008"),A069A_C1, A069_C1) -> 428366474015 | C53: =IF(C8>DATEVALUE("9/30/2008"),A069A_C2, A069_C2) -> 467310264811 | D53: 9.091232194 | E53: =IF(E8>DATEVALUE("9/30/2008"),A069A_C3, A069_C3) -> 501477103635 | F53: 7.311382051 | G53: =IF(G8>DATEVALUE("9/30/2008"),A069A_C4, A069_C4) -> 530051241378 | H53: 5.697994492 | I53: =IF(I8>DATEVALUE("9/30/2008"),A069A_C5, A069_C5) -> 555764105481 | J53: 4.851014788
A54: TOTAL NET WORTH | B54: =IF(B8>DATEVALUE("09/3/2000"),A997_C1, A931_C1+A668_C1+A658_C1+A925_C1+A940_C1+A602_C1) -> 57315325920 | C54: =IF(C8>DATEVALUE("09/30/2000"),A997_C2, A931_C2+A668_C2+A658_C2+A925_C2+A940_C2+A602_C2) -> 62812606309 | D54: 9.591292208 | E54: =IF(E8>DATEVALUE("09/30/2000"),A997_C3, A931_C3+A668_C3+A658_C3+A925_C3+A940_C3+A602_C3) -> 67235791215 | F54: =IF(E54="N/A", " ", IF(C54="N/A", " ",IF(AND(C54=0,E54=0,),"N/A",IF(ABS(C54)=0, "N/A", ((E54-C54)/ABS(C54))*100)))) -> 7.041874499 | G54: =IF(G8>DATEVALUE("09/30/2000"),A997_C4, A931_C4+A668_C4+A658_C4+A925_C4+A940_C4+A602_C4) -> 71759998627 | H54: 6.728867661 | I54: =IF(I8>DATEVALUE("09/30/2000"),A997_C5, A931_C5+A668_C5+A658_C5+A925_C5+A940_C5+A602_C5) -> 78344650028 | J54: 9.175935796
A55: # Means the number is too large to display in the cell
A56: 1 PRIOR TO JUNE 2006, INCLUDED MONEY MKT, SHARE CERTS, IRA/KEOGHs, AND NONMEMBER SHARES FOR SHORT FORM FILERS
A57: 2 October 3, 2008 and forward, the NCUSIF coverage increased to $250,000 for all accounts.
A58: 3 December 2011 and forward includes "Subordinated Debt Included in Net Worth." | J58: 5. LiabShEquity

Sheet 6. IncExp
C1: Income Statement
A2: Return to cover | C2: For Charter : | D2: =IF(CU_NUMBER="","N/A",CU_NUMBER) -> N/A
A3: =IF(Request_Date=0,"N/A",Request_Date) -> 05/15/2019 | C3: Count of CU : | D3: =IF(CountCu_C5=0,"N/A",CountCu_C5) -> 1999
A4: ="CU Name: "&IF(Cu_Name="","N/A",Cu_Name) -> CU Name: N/A | C4: Asset Range : | D4: =IF(AssetRange="","N/A",AssetRange) -> N/A
A5: ="Peer Group: "&IF(Peer_Group="","N/A",IF(Peer_Group="0","N/A",Peer_Group)) -> Peer Group: N/A | C5: Criteria : | D5: =IF(_xlnm.Criteria="","N/A",_xlnm.Criteria) -> Region: Nation * Peer Group: All * Type Included: Federally Insured State Credit Union (FISCU) *
C6: Count of CU in Peer Group : | D6: =IF(NoCu_in_Peer_Group="","N/A",NoCu_in_Peer_Group) -> N/A | E6: =IF(CU_NUMBER>0,"",IF(RetPop=0,"Retroactive Population","")) -> 
B8: =(CycDat_C1) -> 2014-12-31 | C8: =(CycDat_C2) -> 2015-12-31 | D8: % Chg | E8: =(CycDat_C3) -> 2016-12-31 | F8: % Chg | G8: =(CycDat_C4) -> 2017-12-31 | H8: % Chg | I8: =(CycDat_C5) -> 2018-12-31 | J8: % Chg
A9: * INCOME AND EXPENSE
A10: INTEREST INCOME:
A11: Interest on Loans | B11: =A110_C1 -> 14944891341 | C11: =A110_C2 -> 16248603662 | D11: =IF(C11="N/A", " ", IF(B11="N/A", " ",IF(AND(B11=0,C11=0,),"N/A",IF(ABS(B11)=0, "N/A", ((C11*Anu_C2-B11*Anu_C1)/ABS(B11*Anu_C1))*100)))) -> 8.723464703 | E11: =A110_C3 -> 17600114440 | F11: =IF(E11="N/A", " ", IF(C11="N/A", " ",IF(AND(C11=0,E11=0,),"N/A",IF(ABS(C11)=0, "N/A", ((E11*Anu_C3-C11*Anu_C2)/ABS(C11*Anu_C2))*100)))) -> 8.317704131 | G11: =A110_C4 -> 19324060490 | H11: =IF(G11="N/A", " ", IF(E11="N/A", " ",IF(AND(E11=0,G11=0,),"N/A",IF(ABS(E11)=0, "N/A", ((G11*Anu_C4-E11*Anu_C3)/ABS(E11*Anu_C3))*100)))) -> 9.795084321 | I11: =A110_C5 -> 21932276022 | J11: =IF(I11="N/A", " ", IF(G11="N/A", " ",IF(AND(G11=0,I11=0,),"N/A",IF(ABS(G11)=0, "N/A", ((I11*Anu_C5-G11*Anu_C4)/ABS(G11*Anu_C4))*100)))) -> 13.49724367
A12: Less Interest Refund | B12: =A119_C1 -> 49662371 | C12: =A119_C2 -> 38403138 | D12: =IF(C12="N/A", " ", IF(B12="N/A", " ",IF(AND(B12=0,C12=0,),"N/A",IF(ABS(B12)=0, "N/A", ((C12*Anu_C2-B12*Anu_C1)/ABS(B12*Anu_C1))*100)))) -> -22.67155751 | E12: =A119_C3 -> 41006637 | F12: =IF(E12="N/A", " ", IF(C12="N/A", " ",IF(AND(C12=0,E12=0,),"N/A",IF(ABS(C12)=0, "N/A", ((E12*Anu_C3-C12*Anu_C2)/ABS(C12*Anu_C2))*100)))) -> 6.779391309 | G12: =A119_C4 -> 43329295 | H12: =IF(G12="N/A", " ", IF(E12="N/A", " ",IF(AND(E12=0,G12=0,),"N/A",IF(ABS(E12)=0, "N/A", ((G12*Anu_C4-E12*Anu_C3)/ABS(E12*Anu_C3))*100)))) -> 5.664102618 | I12: =A119_C5 -> 46485476 | J12: =IF(I12="N/A", " ", IF(G12="N/A", " ",IF(AND(G12=0,I12=0,),"N/A",IF(ABS(G12)=0, "N/A", ((I12*Anu_C5-G12*Anu_C4)/ABS(G12*Anu_C4))*100)))) -> 7.284173444
A13: Income from Investments | B13: =A120_C1 -> 1885440811 | C13: =A120_C2 -> 1889259053 | D13: =IF(C13="N/A", " ", IF(B13="N/A", " ",IF(AND(B13=0,C13=0,),"N/A",IF(ABS(B13)=0, "N/A", ((C13*Anu_C2-B13*Anu_C1)/ABS(B13*Anu_C1))*100)))) -> 0.2025118995 | E13: =A120_C3 -> 2085829668 | F13: =IF(E13="N/A", " ", IF(C13="N/A", " ",IF(AND(C13=0,E13=0,),"N/A",IF(ABS(C13)=0, "N/A", ((E13*Anu_C3-C13*Anu_C2)/ABS(C13*Anu_C2))*100)))) -> 10.40464063 | G13: =A120_C4 -> 2584597153 | H13: =IF(G13="N/A", " ", IF(E13="N/A", " ",IF(AND(E13=0,G13=0,),"N/A",IF(ABS(E13)=0, "N/A", ((G13*Anu_C4-E13*Anu_C3)/ABS(E13*Anu_C3))*100)))) -> 23.91218673 | I13: =A120_C5 -> 3155535439 | J13: =IF(I13="N/A", " ", IF(G13="N/A", " ",IF(AND(G13=0,I13=0,),"N/A",IF(ABS(G13)=0, "N/A", ((I13*Anu_C5-G13*Anu_C4)/ABS(G13*Anu_C4))*100)))) -> 22.09002998
A14: Income from Trading | B14: =A124_C1 -> 1713569 | C14: =A124_C2 -> -2838237 | D14: =IF(C14="N/A", " ", IF(B14="N/A", " ",IF(AND(B14=0,C14=0,),"N/A",IF(ABS(B14)=0, "N/A", ((C14*Anu_C2-B14*Anu_C1)/ABS(B14*Anu_C1))*100)))) -> -265.6330734 | E14: =A124_C3 -> 9553720 | F14: =IF(E14="N/A", " ", IF(C14="N/A", " ",IF(AND(C14=0,E14=0,),"N/A",IF(ABS(C14)=0, "N/A", ((E14*Anu_C3-C14*Anu_C2)/ABS(C14*Anu_C2))*100)))) -> 436.607549 | G14: =A124_C4 -> 14566230 | H14: =IF(G14="N/A", " ", IF(E14="N/A", " ",IF(AND(E14=0,G14=0,),"N/A",IF(ABS(E14)=0, "N/A", ((G14*Anu_C4-E14*Anu_C3)/ABS(E14*Anu_C3))*100)))) -> 52.46657846 | I14: =A124_C5 -> -15882947 | J14: =IF(I14="N/A", " ", IF(G14="N/A", " ",IF(AND(G14=0,I14=0,),"N/A",IF(ABS(G14)=0, "N/A", ((I14*Anu_C5-G14*Anu_C4)/ABS(G14*Anu_C4))*100)))) -> -209.0395181
A15: TOTAL INTEREST INCOME | B15: =A115_C1 -> 16782383350 | C15: =A115_C2 -> 18096621340 | D15: =IF(C15="N/A", " ", IF(B15="N/A", " ",IF(AND(B15=0,C15=0,),"N/A",IF(ABS(B15)=0, "N/A", ((C15*Anu_C2-B15*Anu_C1)/ABS(B15*Anu_C1))*100)))) -> 7.831056904 | E15: =A115_C3 -> 19654491191 | F15: =IF(E15="N/A", " ", IF(C15="N/A", " ",IF(AND(C15=0,E15=0,),"N/A",IF(ABS(C15)=0, "N/A", ((E15*Anu_C3-C15*Anu_C2)/ABS(C15*Anu_C2))*100)))) -> 8.608622691 | G15: =A115_C4 -> 21879894578 | H15: =IF(G15="N/A", " ", IF(E15="N/A", " ",IF(AND(E15=0,G15=0,),"N/A",IF(ABS(E15)=0, "N/A", ((G15*Anu_C4-E15*Anu_C3)/ABS(E15*Anu_C3))*100)))) -> 11.32262019 | I15: =A115_C5 -> 25025443038 | J15: =IF(I15="N/A", " ", IF(G15="N/A", " ",IF(AND(G15=0,I15=0,),"N/A",IF(ABS(G15)=0, "N/A", ((I15*Anu_C5-G15*Anu_C4)/ABS(G15*Anu_C4))*100)))) -> 14.37643335
A16: INTEREST EXPENSE:
A17: Dividends | B17: =A380_C1 -> 1793117251 | C17: =A380_C2 -> 1931239972 | D17: =IF(C17="N/A", " ", IF(B17="N/A", " ",IF(AND(B17=0,C17=0,),"N/A",IF(ABS(B17)=0, "N/A", ((C17*Anu_C2-B17*Anu_C1)/ABS(B17*Anu_C1))*100)))) -> 7.702938607 | E17: =A380_C3 -> 2085132230 | F17: =IF(E17="N/A", " ", IF(C17="N/A", " ",IF(AND(C17=0,E17=0,),"N/A",IF(ABS(C17)=0, "N/A", ((E17*Anu_C3-C17*Anu_C2)/ABS(C17*Anu_C2))*100)))) -> 7.968572535 | G17: =A380_C4 -> 2344080631 | H17: =IF(G17="N/A", " ", IF(E17="N/A", " ",IF(AND(E17=0,G17=0,),"N/A",IF(ABS(E17)=0, "N/A", ((G17*Anu_C4-E17*Anu_C3)/ABS(E17*Anu_C3))*100)))) -> 12.41879998 | I17: =A380_C5 -> 3047556766 | J17: =IF(I17="N/A", " ", IF(G17="N/A", " ",IF(AND(G17=0,I17=0,),"N/A",IF(ABS(G17)=0, "N/A", ((I17*Anu_C5-G17*Anu_C4)/ABS(G17*Anu_C4))*100)))) -> 30.01074817
A18: Interest on Deposits | B18: =A381_C1 -> 572308853 | C18: =A381_C2 -> 562686536 | D18: -1.681315421 | E18: =A381_C3 -> 629378629 | F18: 11.85244159 | G18: =A381_C4 -> 698067644 | H18: 10.91378255 | I18: =A381_C5 -> 880679574 | J18: 26.15963246
A19: Interest on Borrowed Money | B19: =A340_C1 -> 219732542 | C19: =A340_C2 -> 255988318 | D19: 16.49995748 | E19: =A340_C3 -> 296235925 | F19: 15.72243894 | G19: =A340_C4 -> 410738274 | H19: 38.65241834 | I19: =A340_C5 -> 549044394 | J19: 33.67256688
A20: TOTAL INTEREST EXPENSE | B20: =A350_C1 -> 2585158646 | C20: =A350_C2 -> 2749914826 | D20: 6.373155483 | E20: =A350_C3 -> 3010746784 | F20: 9.485092248 | G20: =A350_C4 -> 3452886549 | H20: 14.68538528 | I20: =A350_C5 -> 4477280734 | J20: 29.66776262
A21: PROVISION FOR LOAN & LEASE LOSSES | B21: =A300_C1 -> 1169881400 | C21: =A300_C2 -> 1601701959 | D21: 36.91148171 | E21: =A300_C3 -> 1995497959 | F21: 24.58609717 | G21: =A300_C4 -> 2638074151 | H21: 32.20129538 | I21: =A300_C5 -> 2525993073 | J21: -4.248594679
A22: NET INTEREST INCOME AFTER PLL | B22: =A116_C1 -> 13027343304 | C22: =A116_C2 -> 13745004555 | D22: 5.508884154 | E22: =A116_C3 -> 14648246448 | F22: 6.571419379 | G22: =A116_C4 -> 15788933878 | H22: 7.78719442 | I22: =A116_C5 -> 18022169231 | J22: 14.14430746
A23: NON-INTEREST INCOME:
A24: Fee Income | B24: =A131_C1 -> 3410847172 | C24: =A131_C2 -> 3629623178 | D24: =IF(C24="N/A", " ", IF(B24="N/A", " ",IF(AND(B24=0,C24=0,),"N/A",IF(ABS(B24)=0, "N/A", ((C24*Anu_C2-B24*Anu_C1)/ABS(B24*Anu_C1))*100)))) -> 6.414125142 | E24: =A131_C3 -> 3835200246 | F24: =IF(E24="N/A", " ", IF(C24="N/A", " ",IF(AND(C24=0,E24=0,),"N/A",IF(ABS(C24)=0, "N/A", ((E24*Anu_C3-C24*Anu_C2)/ABS(C24*Anu_C2))*100)))) -> 5.663868063 | G24: =A131_C4 -> 3995534706 | H24: =IF(G24="N/A", " ", IF(E24="N/A", " ",IF(AND(E24=0,G24=0,),"N/A",IF(ABS(E24)=0, "N/A", ((G24*Anu_C4-E24*Anu_C3)/ABS(E24*Anu_C3))*100)))) -> 4.180602047 | I24: =A131_C5 -> 4260085637 | J24: =IF(I24="N/A", " ", IF(G24="N/A", " ",IF(AND(G24=0,I24=0,),"N/A",IF(ABS(G24)=0, "N/A", ((I24*Anu_C5-G24*Anu_C4)/ABS(G24*Anu_C4))*100)))) -> 6.621164637
A25: Other Operating Income | B25: =A659_C1 -> 3249123743 | C25: =A659_C2 -> 3778377700 | D25: 16.28912897 | E25: =A659_C3 -> 4280370214 | F25: 13.28592729 | G25: =A659_C4 -> 4496361613 | H25: 5.046091534 | I25: =A659_C5 -> 5129954551 | J25: 14.09123626
A26: Gain (Loss) on Investments | B26: =A420_C1 -> 203149194 | C26: =A420_C2 -> 95719660 | D26: -52.88208724 | E26: =A420_C3 -> 153086329 | F26: 59.93196069 | G26: =A420_C4 -> 70391605 | H26: -54.0183598 | I26: =A420_C5 -> 21806428 | J26: -69.0212661
A27: Gain (Loss) on Non-Trading Derivatives | B27: =A421_C1 -> 463461 | C27: =A421_C2 -> 509332 | D27: =IF(C27="N/A", " ", IF(B27="N/A", " ",IF(AND(B27=0,C27=0,),"N/A",IF(ABS(B27)=0, "N/A", ((C27*Anu_C2-B27*Anu_C1)/ABS(B27*Anu_C1))*100)))) -> 9.897488678 | E27: =A421_C3 -> 25082470 | F27: =IF(E27="N/A", " ", IF(C27="N/A", " ",IF(AND(C27=0,E27=0,),"N/A",IF(ABS(C27)=0, "N/A", ((E27*Anu_C3-C27*Anu_C2)/ABS(C27*Anu_C2))*100)))) -> 4824.581609 | G27: =A421_C4 -> 11494952 | H27: =IF(G27="N/A", " ", IF(E27="N/A", " ",IF(AND(E27=0,G27=0,),"N/A",IF(ABS(E27)=0, "N/A", ((G27*Anu_C4-E27*Anu_C3)/ABS(E27*Anu_C3))*100)))) -> -54.17137148 | I27: =A421_C5 -> 11243915 | J27: =IF(I27="N/A", " ", IF(G27="N/A", " ",IF(AND(G27=0,I27=0,),"N/A",IF(ABS(G27)=0, "N/A", ((I27*Anu_C5-G27*Anu_C4)/ABS(G27*Anu_C4))*100)))) -> -2.183889067
A28: Gain (Loss) on Disposition of Assets | B28: =A430_C1 -> 15214390 | C28: =A430_C2 -> -5483094 | D28: -136.0388685 | E28: =A430_C3 -> -4233818 | F28: 22.78414341 | G28: =A430_C4 -> 12205377 | H28: 388.2829871 | I28: =A430_C5 -> 9057525 | J28: -25.79069864
A29: Gain from Bargain Purchase (Merger) | B29: =IF(B8>DATEVALUE("12/31/2008"),A431_C1,"N/A" ) -> 44475209 | C29: =IF(C8>DATEVALUE("12/31/2008"),A431_C2,"N/A" ) -> 19064277 | D29: -57.13504798 | E29: =IF(E8>DATEVALUE("12/31/2008"),A431_C3,"N/A" ) -> 16372431 | F29: -14.1198431 | G29: =IF(G8>DATEVALUE("12/31/2008"),A431_C4,"N/A" ) -> 27963935 | H29: 70.79891801 | I29: =IF(I8>DATEVALUE("12/31/2008"),A431_C5,"N/A" ) -> 5612995 | J29: -79.92773549
A30: Other Non-Oper Income/(Expense) | B30: =IF(B8>DATEVALUE("6/30/2009"),A440_C1-A440A_C1,A440_C1 ) -> 28234832 | C30: =IF(C8>DATEVALUE("6/30/2009"),A440_C2-A440A_C2,A440_C2 ) -> 72747401 | D30: 157.6512621 | E30: =IF(E8>DATEVALUE("6/30/2009"),A440_C3-A440A_C3,A440_C3) -> 77463738 | F30: 6.483169069 | G30: =IF(G8>DATEVALUE("6/30/2009"),A440_C4-A440A_C4,A440_C4 ) -> 76081552 | H30: -1.784300675 | I30: =IF(I8>DATEVALUE("6/30/2009"),A440_C5-A440A_C5,A440_C5 ) -> 112036341 | J30: 47.25822233
A31: NCUSIF Stabilization Income | B31: =IF(B8>DATEVALUE("6/30/2009"),A440A_C1,"N/A" ) -> 0 | C31: =IF(C8>DATEVALUE("6/30/2009"),A440A_C2,"N/A" ) -> 0 | D31: N/A | E31: =IF(E8>DATEVALUE("6/30/2009"),A440A_C3,"N/A" ) -> 0 | F31: N/A | G31: =IF(G8>DATEVALUE("6/30/2009"),A440A_C4,"N/A" ) -> 0 | H31: N/A | I31: =IF(I8>DATEVALUE("6/30/2009"),A440A_C5,"N/A" ) -> 0 | J31: N/A
A32: TOTAL NON-INTEREST INCOME | B32: =A117_C1 -> 6951508001 | C32: =A117_C2 -> 7590558454 | D32: 9.192975868 | E32: =A117_C3 -> 8383341610 | F32: 10.4443324 | G32: =A117_C4 -> 8690033740 | H32: 3.658351816 | I32: =A117_C5 -> 9549797392 | J32: 9.893674498
A33: NON-INTEREST EXPENSE
A34: Total Employee Compensation & Benefits | B34: =A210_C1 -> 7983945169 | C34: =A210_C2 -> 8749323091 | D34: =IF(C34="N/A", " ", IF(B34="N/A", " ",IF(AND(B34=0,C34=0,),"N/A",IF(ABS(B34)=0, "N/A", ((C34*Anu_C2-B34*Anu_C1)/ABS(B34*Anu_C1))*100)))) -> 9.586462655 | E34: =A210_C3 -> 9462898238 | F34: =IF(E34="N/A", " ", IF(C34="N/A", " ",IF(AND(C34=0,E34=0,),"N/A",IF(ABS(C34)=0, "N/A", ((E34*Anu_C3-C34*Anu_C2)/ABS(C34*Anu_C2))*100)))) -> 8.155775476 | G34: =A210_C4 -> 10105401314 | H34: =IF(G34="N/A", " ", IF(E34="N/A", " ",IF(AND(E34=0,G34=0,),"N/A",IF(ABS(E34)=0, "N/A", ((G34*Anu_C4-E34*Anu_C3)/ABS(E34*Anu_C3))*100)))) -> 6.789707126 | I34: =A210_C5 -> 10955777034 | J34: =IF(I34="N/A", " ", IF(G34="N/A", " ",IF(AND(G34=0,I34=0,),"N/A",IF(ABS(G34)=0, "N/A", ((I34*Anu_C5-G34*Anu_C4)/ABS(G34*Anu_C4))*100)))) -> 8.415061348
A35: Travel, Conference Expense | B35: =A230_C1 -> 165770384 | C35: =A230_C2 -> 180382986 | D35: 8.814965404 | E35: =A230_C3 -> 187517223 | F35: 3.95504984 | G35: =A230_C4 -> 200371931 | H35: 6.855214574 | I35: =A230_C5 -> 220591660 | J35: 10.09109854
A36: Office Occupancy | B36: =A250_C1 -> 1171761835 | C36: =A250_C2 -> 1231379411 | D36: 5.087857807 | E36: =A250_C3 -> 1296608578 | F36: 5.297243597 | G36: =A250_C4 -> 1354809462 | H36: 4.488701138 | I36: =A250_C5 -> 1460254314 | J36: 7.78300233
A37: Office Operation Expense | B37: =A260_C1 -> 3004494514 | C37: =A260_C2 -> 3277616093 | D37: 9.090433606 | E37: =A260_C3 -> 3538330719 | F37: 7.95439791 | G37: =A260_C4 -> 3702388617 | H37: 4.636590275 | I37: =A260_C5 -> 4012416553 | J37: 8.37372756
A38: Educational and Promotion | B38: =A270_C1 -> 623357343 | C38: =A270_C2 -> 666148625 | D38: 6.864647137 | E38: =A270_C3 -> 715357883 | F38: 7.387128961 | G38: =A270_C4 -> 775154281 | H38: 8.358948636 | I38: =A270_C5 -> 870137478 | J38: 12.25345706
A39: Loan Servicing Expense | B39: =A280_C1 -> 1032803696 | C39: =A280_C2 -> 1131902744 | D39: 9.595148467 | E39: =A280_C3 -> 1233008402 | F39: 8.932362655 | G39: =A280_C4 -> 1324036397 | H39: 7.382593245 | I39: =A280_C5 -> 1465831541 | J39: 10.70930862
A40: Professional, Outside Service | B40: =A290_C1 -> 1229626331 | C40: =A290_C2 -> 1332844018 | D40: 8.394232003 | E40: =A290_C3 -> 1436867732 | F40: 7.804642749 | G40: =A290_C4 -> 1544096188 | H40: 7.462653215 | I40: =A290_C5 -> 1688766424 | J40: 9.369250253
A41: Member Insurance 1 | B41: =IF(B8>=DATEVALUE("12/31/2010"),"N/A",A310_C1) -> N/A | C41: =IF(C8>=DATEVALUE("12/31/2010"),"N/A",A310_C2) -> N/A | E41: =IF(E8>=DATEVALUE("12/31/2010"),"N/A",A310_C3) -> N/A | G41: =IF(G8>=DATEVALUE("12/31/2010"),"N/A",A310_C4) -> N/A | I41: =IF(I8>=DATEVALUE("12/31/2010"),"N/A",A310_C5) -> N/A
A42: Member Insurance - NCUSIF Premium 2 | B42: =IF(B8>=DATEVALUE("12/31/2010"),A311A_C1,"N/A") -> -485710 | C42: =IF(C8>=DATEVALUE("12/31/2010"),A311A_C2,"N/A") -> 286132 | D42: 158.9100492 | E42: =IF(E8>=DATEVALUE("12/31/2010"),A311A_C3,"N/A") -> 1392958 | F42: 386.8235639 | G42: =IF(G8>=DATEVALUE("12/31/2010"),A311A_C4,"N/A") -> -1202295 | H42: -186.3123655 | I42: =IF(I8>=DATEVALUE("12/31/2010"),A311A_C5,"N/A") -> -7991560 | J42: -564.6921097
A43: Member Insurance - Temporary Corporate CU Stabilization Fund 3 | B43: =IF(B8>=DATEVALUE("3/31/2009"),A311_C1,"N/A" ) -> 134905 | C43: =IF(C8>=DATEVALUE("3/31/2009"),A311_C2,"N/A" ) -> 1252 | D43: -99.07193951 | E43: =IF(E8>=DATEVALUE("3/31/2009"),A311_C3,"N/A" ) -> 6493 | F43: 418.6102236 | G43: =IF(G8>=DATEVALUE("3/31/2009"),A311_C4,"N/A" ) -> 20 | H43: -99.69197597 | I43: =IF(I8>=DATEVALUE("3/31/2009"),A311_C5,"N/A" ) -> 23693 | J43: 118365
A44: Member Insurance - Other | B44: =IF(B8>=DATEVALUE("12/31/2010"),A310A_C1,"N/A") -> 14957668 | C44: =IF(C8>=DATEVALUE("12/31/2010"),A310A_C2,"N/A") -> 8019640 | D44: -46.38442303 | E44: =IF(E8>=DATEVALUE("12/31/2010"),A310A_C3,"N/A") -> 7584135 | F44: -5.43048067 | G44: =IF(G8>=DATEVALUE("12/31/2010"),A310A_C4,"N/A") -> 7579827 | H44: -0.05680278634 | I44: =IF(I8>=DATEVALUE("12/31/2010"),A310A_C5,"N/A") -> 8114809 | J44: 7.057971112
A45: Operating Fees | B45: =A320_C1 -> 63778806 | C45: =A320_C2 -> 67327854 | D45: 5.564619695 | E45: =A320_C3 -> 67222226 | F45: -0.1568860341 | G45: =A320_C4 -> 70970684 | H45: 5.576218199 | I45: =A320_C5 -> 74404167 | J45: 4.837889121
A46: Misc Operating Expense | B46: =A360_C1 -> 477029222 | C46: =A360_C2 -> 534917929 | D46: 12.13525384 | E46: =A360_C3 -> 571913596 | F46: 6.916138905 | G46: =A360_C4 -> 610065500 | H46: 6.670920969 | I46: =A360_C5 -> 676957170 | J46: 10.96467019
A47: TOTAL NON-INTEREST EXPENSE | B47: =IF(B8>=DATEVALUE("12/31/2010"),A671_C1,IF(B8>=DATEVALUE("3/31/2009"),A311_C1+A671_C1,A671_C1)) -> 15767174163 | C47: =IF(C8>=DATEVALUE("12/31/2010"),A671_C2,IF(C8>=DATEVALUE("3/31/2009"),A311_C2+A671_C2,A671_C2)) -> 17180149775 | D47: 8.961501899 | E47: =IF(E8>=DATEVALUE("12/31/2010"),A671_C3,IF(E8>=DATEVALUE("3/31/2009"),A311_C3+A671_C3,A671_C3)) -> 18518708183 | F47: 7.791308141 | G47: =IF(G8>=DATEVALUE("12/31/2010"),A671_C4,IF(G8>=DATEVALUE("3/31/2009"),A311_C4+A671_C4,A671_C4)) -> 19693671926 | H47: 6.34473923 | I47: =IF(I8>=DATEVALUE("12/31/2010"),A671_C5,IF(I8>=DATEVALUE("3/31/2009"),A311_C5+A671_C5,A671_C5)) -> 21425283283 | J47: 8.792729784
A48: NET INCOME (LOSS) EXCLUDING STABILIZATION EXPENSE AND NCUSIF PREMIUMS */4 | B48: =IF(B8>DATEVALUE("12/31/2008"),A660A_C1,"N/A" ) -> 4211326337 | C48: =IF(C8>DATEVALUE("12/31/2008"),A660A_C2,"N/A" ) -> 4155700618 | D48: -1.320859856 | E48: =IF(E8>DATEVALUE("12/31/2008"),A660A_C3,"N/A" ) -> 4514279326 | F48: 8.628598183 | G48: =IF(G8>DATEVALUE("12/31/2008"),A660A_C4,"N/A" ) -> 4784093417 | H48: 5.976902879 | I48: =IF(I8>DATEVALUE("12/31/2008"),A660A_C5,"N/A" ) -> 6138715473 | J48: 28.31512552
A49: NET INCOME (LOSS) | B49: =A661A_C1 -> 4211677142 | C49: =A661A_C2 -> 4155413234 | D49: -1.335902684 | E49: =A661A_C3 -> 4512879875 | F49: 8.60243304 | G49: =A661A_C4 -> 4785295692 | H49: 6.03640745 | I49: =A661A_C5 -> 6146683340 | J49: 28.44939447
A50: RESERVE TRANSFERS:
A51: Transfer to Regular Reserve | B51: =A393_C1 -> 325343737 | C51: =A393_C2 -> 453275149 | D51: =IF(C51="N/A", " ", IF(B51="N/A", " ",IF(AND(B51=0,C51=0,),"N/A",IF(ABS(B51)=0, "N/A", ((C51*Anu_C2-B51*Anu_C1)/ABS(B51*Anu_C1))*100)))) -> 39.32192246 | E51: =A393_C3 -> 524376017 | F51: =IF(E51="N/A", " ", IF(C51="N/A", " ",IF(AND(C51=0,E51=0,),"N/A",IF(ABS(C51)=0, "N/A", ((E51*Anu_C3-C51*Anu_C2)/ABS(C51*Anu_C2))*100)))) -> 15.68602827 | G51: =A393_C4 -> 799076206 | H51: =IF(G51="N/A", " ", IF(E51="N/A", " ",IF(AND(E51=0,G51=0,),"N/A",IF(ABS(E51)=0, "N/A", ((G51*Anu_C4-E51*Anu_C3)/ABS(E51*Anu_C3))*100)))) -> 52.38610846 | I51: =A393_C5 -> 478966840 | J51: =IF(I51="N/A", " ", IF(G51="N/A", " ",IF(AND(G51=0,I51=0,),"N/A",IF(ABS(G51)=0, "N/A", ((I51*Anu_C5-G51*Anu_C4)/ABS(G51*Anu_C4))*100)))) -> -40.05992965
A52: * All Income/Expense amounts are year-to-date while the related % change ratios are annualized.
A53: # Means the number is too large to display in the cell
A54: 1 From September 2009 to December 2010, this account includes NCUSIF Premium Expense.
A55: 2 For December 2010 forward, this account includes only NCUSIF Premium Expense.
A56: 3 From March 2009 to June 2009, this account was named NCUSIF Stabilization Expense and included the NCUSIF Premium Expense. For September 2009 and forward, this account only includes only the Temporary Corporate CU Stabilization Expense (see footnotes 1 & 2).
A57: 4 Prior to September 2010, this account was named Net Income (Loss) Before NCUSIF Stabilization Expense. From December 2010 forward, NCUSIF Stabilization Income, if any, is excluded. | J57: 6. IncExp

Sheet 7.DelqLnInfo 1
C1: Delinquent Loan Information 1
A2: Return to cover | C2: For Charter : | D2: =IF(CU_NUMBER="","N/A",CU_NUMBER) -> N/A
A3: =IF(Request_Date=0,"N/A",Request_Date) -> 05/15/2019 | C3: Count of CU : | D3: =IF(CountCu_C5=0,"N/A",CountCu_C5) -> 1999
A4: ="CU Name: "&IF(Cu_Name="","N/A",Cu_Name) -> CU Name: N/A | C4: Asset Range : | D4: =IF(AssetRange="","N/A",AssetRange) -> N/A
A5: ="Peer Group: "&IF(Peer_Group="","N/A",IF(Peer_Group="0","N/A",Peer_Group)) -> Peer Group: N/A | C5: Criteria : | D5: =IF(_xlnm.Criteria="","N/A",_xlnm.Criteria) -> Region: Nation * Peer Group: All * Type Included: Federally Insured State Credit Union (FISCU) *
C6: Count of CU in Peer Group : | D6: =IF(NoCu_in_Peer_Group="","N/A",NoCu_in_Peer_Group) -> N/A | E6: =IF(CU_NUMBER>0,"",IF(RetPop=0,"Retroactive Population","")) -> 
B8: =(CycDat_C1) -> 2014-12-31 | C8: =(CycDat_C2) -> 2015-12-31 | D8: % Chg | E8: =(CycDat_C3) -> 2016-12-31 | F8: % Chg | G8: =(CycDat_C4) -> 2017-12-31 | H8: % Chg | I8: =(CycDat_C5) -> 2018-12-31 | J8: % Chg
A9: DELINQUENCY SUMMARY - ALL LOAN TYPES 1
A10: 30 to 59 Days Delinquent | B10: =IF(B8<DATEVALUE("3/31/2004"),"N/A",A020B_C1) -> 3874875368 | C10: =IF(C8<DATEVALUE("3/31/2004"),"N/A",A020B_C2) -> 4100431519 | D10: =IF(C10="N/A", " ", IF(B10="N/A", " ",IF(AND(B10=0,C10=0,),"N/A",IF(ABS(B10)=0, "N/A", ((C10-B10)/ABS(B10))*100)))) -> 5.820991118 | E10: =IF(E8<DATEVALUE("3/31/2004"),"N/A",A020B_C3) -> 4397336554 | F10: =IF(E10="N/A", " ", IF(C10="N/A", " ",IF(AND(C10=0,E10=0,),"N/A",IF(ABS(C10)=0, "N/A", ((E10-C10)/ABS(C10))*100)))) -> 7.240824133 | G10: =IF(G8<DATEVALUE("3/31/2004"),"N/A",A020B_C4) -> 4732208375 | H10: =IF(G10="N/A", " ", IF(E10="N/A", " ",IF(AND(E10=0,G10=0,),"N/A",IF(ABS(E10)=0, "N/A", ((G10-E10)/ABS(E10))*100)))) -> 7.615332984 | I10: =IF(I8<DATEVALUE("3/31/2004"),"N/A",A020B_C5) -> 5026729323 | J10: =IF(I10="N/A", " ", IF(G10="N/A", " ",IF(AND(G10=0,I10=0,),"N/A",IF(ABS(G10)=0, "N/A", ((I10-G10)/ABS(G10))*100)))) -> 6.223752732
A11: 60 to 179 Days Delinquent | B11: =A021B_C1 -> 1930799088 | C11: =A021B_C2 -> 2139155169 | D11: =IF(C11="N/A", " ", IF(B11="N/A", " ",IF(AND(B11=0,C11=0,),"N/A",IF(ABS(B11)=0, "N/A", ((C11-B11)/ABS(B11))*100)))) -> 10.79118393 | E11: =A021B_C3 -> 2402509246 | F11: =IF(E11="N/A", " ", IF(C11="N/A", " ",IF(AND(C11=0,E11=0,),"N/A",IF(ABS(C11)=0, "N/A", ((E11-C11)/ABS(C11))*100)))) -> 12.31112548 | G11: =A021B_C4 -> 2552181879 | H11: =IF(G11="N/A", " ", IF(E11="N/A", " ",IF(AND(E11=0,G11=0,),"N/A",IF(ABS(E11)=0, "N/A", ((G11-E11)/ABS(E11))*100)))) -> 6.229846285 | I11: =A021B_C5 -> 2538328737 | J11: =IF(I11="N/A", " ", IF(G11="N/A", " ",IF(AND(G11=0,I11=0,),"N/A",IF(ABS(G11)=0, "N/A", ((I11-G11)/ABS(G11))*100)))) -> -0.5427960332
A12: 180 to 359 Days Delinquent | B12: =A022B_C1 -> 490425645 | C12: =A022B_C2 -> 530667054 | D12: =IF(C12="N/A", " ", IF(B12="N/A", " ",IF(AND(B12=0,C12=0,),"N/A",IF(ABS(B12)=0, "N/A", ((C12-B12)/ABS(B12))*100)))) -> 8.205404715 | E12: =A022B_C3 -> 686972073 | F12: =IF(E12="N/A", " ", IF(C12="N/A", " ",IF(AND(C12=0,E12=0,),"N/A",IF(ABS(C12)=0, "N/A", ((E12-C12)/ABS(C12))*100)))) -> 29.45444188 | G12: =A022B_C4 -> 577744366 | H12: -15.89987589 | I12: =A022B_C5 -> 495961804 | J12: -14.15549278
A13: > = 360 Days Delinquent | B13: =A023B_C1 -> 355348105 | C13: =A023B_C2 -> 314823974 | D13: -11.4040656 | E13: =A023B_C3 -> 363472605 | F13: =IF(E13="N/A", " ", IF(C13="N/A", " ",IF(AND(C13=0,E13=0,),"N/A",IF(ABS(C13)=0, "N/A", ((E13-C13)/ABS(C13))*100)))) -> 15.45264498 | G13: =A023B_C4 -> 547040535 | H13: 50.5039245 | I13: =A023B_C5 -> 281503520 | J13: -48.54064699
A14: Total Del Loans - All Types (> = 60 Days) | B14: =A041B_C1 -> 2776572838 | C14: =A041B_C2 -> 2984646197 | D14: 7.493891612 | E14: =A041B_C3 -> 3452953924 | F14: 15.69056083 | G14: =A041B_C4 -> 3676966780 | H14: 6.487571538 | I14: =A041B_C5 -> 3315794061 | J14: -9.822572262
A15: % Delinquent Loans / Total Loans | B15: =Calc(A041B_C1,A025B_C1) * 100 ->  | C15: =Calc(A041B_C2,A025B_C2) * 100 ->  | D15: =IF(C15="N/A", " ", IF(B15="N/A", " ",IF(AND(B15=0,C15=0,),"N/A",IF(ABS(B15)=0, "N/A", ((C15-B15)/ABS(B15))*100)))) ->  | E15: =Calc(A041B_C3,A025B_C3) * 100 ->  | F15: =IF(E15="N/A", " ", IF(C15="N/A", " ",IF(AND(C15=0,E15=0,),"N/A",IF(ABS(C15)=0, "N/A", ((E15-C15)/ABS(C15))*100)))) ->  | G15: =Calc(A041B_C4,A025B_C4) * 100 ->  | H15: =IF(G15="N/A", " ", IF(E15="N/A", " ",IF(AND(E15=0,G15=0,),"N/A",IF(ABS(E15)=0, "N/A", ((G15-E15)/ABS(E15))*100)))) ->  | I15: =Calc(A041B_C5,A025B_C5) * 100 ->  | J15: =IF(I15="N/A", " ", IF(G15="N/A", " ",IF(AND(G15=0,I15=0,),"N/A",IF(ABS(G15)=0, "N/A", ((I15-G15)/ABS(G15))*100)))) -> 
A16: DELINQUENT LOANS BY CATEGORY:
A17: Unsecured Credit Card Loans
A18: 30 to 59 Days Delinquent | B18: =IF(B8<DATEVALUE("3/31/2004"),"N/A",A024B_C1) -> 147036070 | C18: =IF(C8<DATEVALUE("3/31/2004"),"N/A",A024B_C2) -> 157455942 | D18: 7.086609429 | E18: =IF(E8<DATEVALUE("3/31/2004"),"N/A",A024B_C3) -> 174153282 | F18: 10.60445213 | G18: =IF(G8<DATEVALUE("3/31/2004"),"N/A",A024B_C4) -> 198439192 | H18: 13.94513484 | I18: =IF(I8<DATEVALUE("3/31/2004"),"N/A",A024B_C5) -> 220409063 | J18: 11.07133665
A19: 60 to 179 Days Delinquent | B19: =A026B_C1 -> 119421692 | C19: =A026B_C2 -> 130929590 | D19: 9.636354842 | E19: =A026B_C3 -> 157165680 | F19: 20.03831983 | G19: =A026B_C4 -> 178704501 | H19: 13.70453206 | I19: =A026B_C5 -> 200364150 | J19: 12.12037127
A20: 180 to 359 Days Delinquent | B20: =A027B_C1 -> 12820722 | C20: =A027B_C2 -> 12898601 | D20: 0.6074462889 | E20: =A027B_C3 -> 13820025 | F20: 7.143596426 | G20: =A027B_C4 -> 16519430 | H20: 19.53256235 | I20: =A027B_C5 -> 15171876 | J20: -8.157387997
A21: > = 360 Days Delinquent | B21: =A028B_C1 -> 950845 | C21: =A028B_C2 -> 974808 | D21: 2.520179419 | E21: =A028B_C3 -> 999517 | F21: 2.534755562 | G21: =A028B_C4 -> 996041 | H21: -0.3477679719 | I21: =A028B_C5 -> 1280804 | J21: 28.58948577
A22: Total Del Credit Card Lns (> = 60 Days) | B22: =A045B_C1 -> 133193259 | C22: =A045B_C2 -> 144802999 | D22: 8.716462145 | E22: =A045B_C3 -> 171985222 | F22: 18.77186466 | G22: =A045B_C4 -> 196219972 | H22: 14.09118162 | I22: =A045B_C5 -> 216816830 | J22: 10.49682037
A23: %Credit Cards DQ >= 60 Days / Total Credit Card Loans | B23: =IF(A396_C1=0,0,(A045B_C1/A396_C1)*100) -> 0.769356339 | C23: =IF(A396_C2=0,0,(A045B_C2/A396_C2)*100) -> 0.7803628116 | D23: 1.430607904 | E23: =IF(A396_C3=0,0,(A045B_C3/A396_C3)*100) -> 0.8676713969 | F23: 11.18820427 | G23: =IF(A396_C4=0,0,(A045B_C4/A396_C4)*100) -> 0.9304377144 | H23: 7.23388113 | I23: =IF(A396_C5=0,0,(A045B_C5/A396_C5)*100) -> 0.9729038677 | J23: 4.564104895
A24: Payday Alternative Loans (PAL Loans) FCU Only
A25: 30 to 59 Days Delinquent | B25: =IF(B8<DATEVALUE("12/31/2010"), "N/A", A089B_C1) -> 0 | C25: =IF(C8<DATEVALUE("12/31/2010"), "N/A", A089B_C2) -> 0 | D25: =IF(C25="N/A", " ", IF(B25="N/A", " ",IF(AND(B25=0,C25=0,),"N/A",IF(ABS(B25)=0, "N/A", ((C25-B25)/ABS(B25))*100)))) -> N/A | E25: =IF(E8<DATEVALUE("12/31/2010"), "N/A", A089B_C3) -> 0 | F25: N/A | G25: =IF(G8<DATEVALUE("12/31/2010"), "N/A", A089B_C4) -> 0 | H25: N/A | I25: =IF(I8<DATEVALUE("12/31/2010"), "N/A", A089B_C5) -> 0 | J25: N/A
A26: 60 to 179 Days Delinquent | B26: =IF(B8<DATEVALUE("12/31/2010"), "N/A", A127B_C1) -> 0 | C26: =IF(C8<DATEVALUE("12/31/2010"), "N/A", A127B_C2) -> 0 | D26: N/A | E26: =IF(E8<DATEVALUE("12/31/2010"), "N/A", A127B_C3) -> 0 | F26: N/A | G26: =IF(G8<DATEVALUE("12/31/2010"), "N/A", A127B_C4) -> 0 | H26: N/A | I26: =IF(I8<DATEVALUE("12/31/2010"), "N/A", A127B_C5) -> 0 | J26: N/A
A27: 180 to 359 Days Delinquent | B27: =IF(B8<DATEVALUE("12/31/2010"), "N/A", A128B_C1) -> 0 | C27: =IF(C8<DATEVALUE("12/31/2010"), "N/A", A128B_C2) -> 0 | D27: N/A | E27: =IF(E8<DATEVALUE("12/31/2010"), "N/A", A128B_C3) -> 0 | F27: N/A | G27: =IF(G8<DATEVALUE("12/31/2010"), "N/A", A128B_C4) -> 0 | H27: N/A | I27: =IF(I8<DATEVALUE("12/31/2010"), "N/A", A128B_C5) -> 0 | J27: N/A
A28: > = 360 Days Delinquent | B28: =IF(B8<DATEVALUE("12/31/2010"), "N/A", A129B_C1) -> 0 | C28: =IF(C8<DATEVALUE("12/31/2010"), "N/A", A129B_C2) -> 0 | D28: N/A | E28: =IF(E8<DATEVALUE("12/31/2010"), "N/A", A129B_C3) -> 0 | F28: N/A | G28: =IF(G8<DATEVALUE("12/31/2010"), "N/A", A129B_C4) -> 0 | H28: N/A | I28: =IF(I8<DATEVALUE("12/31/2010"), "N/A", A129B_C5) -> 0 | J28: N/A
A29: Total Del PAL Lns (> = 60 Days) | B29: =IF(B8<DATEVALUE("12/31/2010"), "N/A", A130B_C1) -> 0 | C29: =IF(C8<DATEVALUE("12/31/2010"), "N/A", A130B_C2) -> 0 | D29: N/A | E29: =IF(E8<DATEVALUE("12/31/2010"), "N/A", A130B_C3) -> 0 | F29: N/A | G29: =IF(G8<DATEVALUE("12/31/2010"), "N/A", A130B_C4) -> 0 | H29: N/A | I29: =IF(I8<DATEVALUE("12/31/2010"), "N/A", A130B_C5) -> 0 | J29: N/A
A30: %PAL Loans DQ >= 60 Days / Total PAL Loans | B30: =IF(B8<DATEVALUE("12/31/2010"), "N/A",Calc(A130B_C1,A397A_C1) * 100) ->  | C30: =IF(C8<DATEVALUE("12/31/2010"), "N/A",Calc(A130B_C2,A397A_C2) * 100) ->  | E30: =IF(E8<DATEVALUE("12/31/2010"), "N/A",Calc(A130B_C3,A397A_C3) * 100) ->  | G30: =IF(G8<DATEVALUE("12/31/2010"), "N/A",Calc(A130B_C4,A397A_C4) * 100) ->  | I30: =IF(I8<DATEVALUE("12/31/2010"), "N/A",Calc(A130B_C5,A397A_C5) * 100) -> 
A31: Non-Federally Guaranteed Student Loans
A32: 30 to 59 Days Delinquent | B32: =IF(B8<DATEVALUE("03/31/2011"), "N/A", A020T_C1) -> 15437594 | C32: =IF(C8<DATEVALUE("03/31/2011"), "N/A", A020T_C2) -> 17000768 | D32: 10.12576183 | E32: =IF(E8<DATEVALUE("03/31/2011"), "N/A", A020T_C3) -> 17715285 | F32: 4.202851306 | G32: =IF(G8<DATEVALUE("03/31/2011"), "N/A", A020T_C4) -> 19763503 | H32: 11.56186875 | I32: =IF(I8<DATEVALUE("03/31/2011"), "N/A", A020T_C5) -> 17840340 | J32: -9.730881211
A33: 60 to 179 Days Delinquent | B33: =IF(B8<DATEVALUE("03/31/2011"), "N/A", A021T_C1) -> 14649648 | C33: =IF(C8<DATEVALUE("03/31/2011"), "N/A", A021T_C2) -> 14794633 | D33: 0.9896824825 | E33: =IF(E8<DATEVALUE("03/31/2011"), "N/A", A021T_C3) -> 14671406 | F33: -0.8329169098 | G33: =IF(G8<DATEVALUE("03/31/2011"), "N/A", A021T_C4) -> 14899370 | H33: 1.553797911 | I33: =IF(I8<DATEVALUE("03/31/2011"), "N/A", A021T_C5) -> 20705503 | J33: 38.96898325
A34: 180 to 359 Days Delinquent | B34: =IF(B8<DATEVALUE("03/31/2011"), "N/A", A022T_C1) -> 1874547 | C34: =IF(C8<DATEVALUE("03/31/2011"), "N/A", A022T_C2) -> 2052675 | D34: 9.502455793 | E34: =IF(E8<DATEVALUE("03/31/2011"), "N/A", A022T_C3) -> 1760585 | F34: -14.22972463 | G34: =IF(G8<DATEVALUE("03/31/2011"), "N/A", A022T_C4) -> 3553409 | H34: 101.8311527 | I34: =IF(I8<DATEVALUE("03/31/2011"), "N/A", A022T_C5) -> 3317819 | J34: -6.629971388
A35: > = 360 Days Delinquent | B35: =IF(B8<DATEVALUE("03/31/2011"), "N/A", A023T_C1) -> 639676 | C35: =IF(C8<DATEVALUE("03/31/2011"), "N/A", A023T_C2) -> 420938 | D35: -34.19512378 | E35: =IF(E8<DATEVALUE("03/31/2011"), "N/A", A023T_C3) -> 355854 | F35: -15.46165944 | G35: =IF(G8<DATEVALUE("03/31/2011"), "N/A", A023T_C4) -> 234706 | H35: -34.04429907 | I35: =IF(I8<DATEVALUE("03/31/2011"), "N/A", A023T_C5) -> 757440 | J35: 222.7186352
A36: Total Del Non-Federally Guaranteed Student Loans (> = 60 Days) | B36: =IF(B8<DATEVALUE("03/31/2011"), "N/A", A041T_C1) -> 17163871 | C36: =IF(C8<DATEVALUE("03/31/2011"), "N/A", A041T_C2) -> 17268246 | D36: 0.6081087419 | E36: =IF(E8<DATEVALUE("03/31/2011"), "N/A", A041T_C3) -> 16787845 | F36: -2.781990713 | G36: =IF(G8<DATEVALUE("03/31/2011"), "N/A", A041T_C4) -> 18687485 | H36: 11.3155679 | I36: =IF(I8<DATEVALUE("03/31/2011"), "N/A", A041T_C5) -> 24780762 | J36: 32.60619072
A37: %Non-Federally Guaranteed Student Loans Delinquent >= 60 Days / Total Non-Federally Guaranteed Student Loans | B37: =IF(B8<DATEVALUE("3/31/2011"),"N/A",Calc(A041T_C1,A698A_C1)*100) ->  | C37: =IF(C8<DATEVALUE("3/31/2011"),"N/A",Calc(A041T_C2,A698A_C2)*100) ->  | E37: =IF(E8<DATEVALUE("3/31/2011"),"N/A",Calc(A041T_C3,A698A_C3)*100) ->  | G37: =IF(G8<DATEVALUE("3/31/2011"),"N/A",Calc(A041T_C4,A698A_C4)*100) ->  | I37: =IF(I8<DATEVALUE("3/31/2011"),"N/A",Calc(A041T_C5,A698A_C5)*100) -> 
A38: New Vehicle Loans
A39: 30 to 59 Days Delinquent | B39: =IF(B8<DATEVALUE("06/30/2013"), "N/A", A020C1_C1) -> 356700238 | C39: =IF(C8<DATEVALUE("06/30/2013"), "N/A", A020C1_C2) -> 434682854 | D39: 21.86222707 | E39: =IF(E8<DATEVALUE("06/30/2013"), "N/A", A020C1_C3) -> 540522833 | F39: 24.34878165 | G39: =IF(G8<DATEVALUE("06/30/2013"), "N/A", A020C1_C4) -> 626661672 | H39: 15.93620727 | I39: =IF(I8<DATEVALUE("06/30/2013"), "N/A", A020C1_C5) -> 677945713 | J39: 8.18368879
A40: 60 to 179 Days Delinquent | B40: =IF(B8<DATEVALUE("06/30/2013"), "N/A", A021C1_C1) -> 133350510 | C40: =IF(C8<DATEVALUE("06/30/2013"), "N/A", A021C1_C2) -> 167492320 | D40: 25.60305919 | E40: =IF(E8<DATEVALUE("06/30/2013"), "N/A", A021C1_C3) -> 208655721 | F40: 24.57629162 | G40: =IF(G8<DATEVALUE("06/30/2013"), "N/A", A021C1_C4) -> 242668858 | H40: 16.30108048 | I40: =IF(I8<DATEVALUE("06/30/2013"), "N/A", A021C1_C5) -> 269372126 | J40: 11.00399459
A41: 180 to 359 Days Delinquent | B41: =IF(B8<DATEVALUE("06/30/2013"), "N/A", A022C1_C1) -> 18569502 | C41: =IF(C8<DATEVALUE("06/30/2013"), "N/A", A022C1_C2) -> 20537386 | D41: 10.59739782 | E41: =IF(E8<DATEVALUE("06/30/2013"), "N/A", A022C1_C3) -> 29810738 | F41: 45.15351662 | G41: =IF(G8<DATEVALUE("06/30/2013"), "N/A", A022C1_C4) -> 31218469 | H41: 4.722227944 | I41: =IF(I8<DATEVALUE("06/30/2013"), "N/A", A022C1_C5) -> 32799964 | J41: 5.065895448
A42: > = 360 Days Delinquent | B42: =IF(B8<DATEVALUE("06/30/2013"), "N/A", A023C1_C1) -> 5303265 | C42: =IF(C8<DATEVALUE("06/30/2013"), "N/A", A023C1_C2) -> 4874049 | D42: -8.093429237 | E42: =IF(E8<DATEVALUE("06/30/2013"), "N/A", A023C1_C3) -> 4677960 | F42: -4.02312328 | G42: =IF(G8<DATEVALUE("06/30/2013"), "N/A", A023C1_C4) -> 6914294 | H42: 47.80575294 | I42: =IF(I8<DATEVALUE("06/30/2013"), "N/A", A023C1_C5) -> 7102345 | J42: 2.719742609
A43: Total Del New Vehicle Lns (> = 60 Days) | B43: =IF(B8<DATEVALUE("06/30/2013"), "N/A", A041C1_C1) -> 157223277 | C43: =IF(C8<DATEVALUE("06/30/2013"), "N/A", A041C1_C2) -> 192903755 | D43: 22.69414471 | E43: =IF(E8<DATEVALUE("06/30/2013"), "N/A", A041C1_C3) -> 243144419 | F43: 26.04441992 | G43: =IF(G8<DATEVALUE("06/30/2013"), "N/A", A041C1_C4) -> 280801621 | H43: 15.48758641 | I43: =IF(I8<DATEVALUE("06/30/2013"), "N/A", A041C1_C5) -> 309274435 | J43: 10.13983249
A44: %New Vehicle Loans >= 60 Days/ Total New Vehicle Loans | B44: =IF(B8<DATEVALUE("6/30/2013"),"N/A",Calc(A041C1_C1,A385_C1)*100) ->  | C44: =IF(C8<DATEVALUE("6/30/2013"),"N/A",Calc(A041C1_C2,A385_C2)*100) ->  | E44: =IF(E8<DATEVALUE("6/30/2013"),"N/A",Calc(A041C1_C3,A385_C3)*100) ->  | G44: =IF(G8<DATEVALUE("6/30/2013"),"N/A",Calc(A041C1_C4,A385_C4)*100) ->  | I44: =IF(I8<DATEVALUE("6/30/2013"),"N/A",Calc(A041C1_C5,A385_C5)*100) -> 
A45: Used Vehicle Loans
A46: 30 to 59 Days Delinquent | B46: =IF(B8<DATEVALUE("06/30/2013"), "N/A", A020C2_C1) -> 1058890647 | C46: =IF(C8<DATEVALUE("06/30/2013"), "N/A", A020C2_C2) -> 1187881903 | D46: 12.18173533 | E46: =IF(E8<DATEVALUE("06/30/2013"), "N/A", A020C2_C3) -> 1382611771 | F46: 16.39303263 | G46: =IF(G8<DATEVALUE("06/30/2013"), "N/A", A020C2_C4) -> 1532528773 | H46: 10.84302949 | I46: =IF(I8<DATEVALUE("06/30/2013"), "N/A", A020C2_C5) -> 1584071405 | J46: 3.363240737
A47: 60 to 179 Days Delinquent | B47: =IF(B8<DATEVALUE("06/30/2013"), "N/A", A021C2_C1) -> 461537866 | C47: =IF(C8<DATEVALUE("06/30/2013"), "N/A", A021C2_C2) -> 537998810 | D47: 16.56655924 | E47: =IF(E8<DATEVALUE("06/30/2013"), "N/A", A021C2_C3) -> 641036827 | F47: 19.15209013 | G47: =IF(G8<DATEVALUE("06/30/2013"), "N/A", A021C2_C4) -> 704114391 | H47: 9.839928276 | I47: =IF(I8<DATEVALUE("06/30/2013"), "N/A", A021C2_C5) -> 730367183 | J47: 3.728483942
A48: 180 to 359 Days Delinquent | B48: =IF(B8<DATEVALUE("06/30/2013"), "N/A", A022C2_C1) -> 73694919 | C48: =IF(C8<DATEVALUE("06/30/2013"), "N/A", A022C2_C2) -> 84986619 | D48: 15.32222323 | E48: =IF(E8<DATEVALUE("06/30/2013"), "N/A", A022C2_C3) -> 102986733 | F48: 21.17993893 | G48: =IF(G8<DATEVALUE("06/30/2013"), "N/A", A022C2_C4) -> 113690505 | H48: 10.39335037 | I48: =IF(I8<DATEVALUE("06/30/2013"), "N/A", A022C2_C5) -> 110886365 | J48: -2.466468066
A49: > = 360 Days Delinquent | B49: =IF(B8<DATEVALUE("06/30/2013"), "N/A", A023C2_C1) -> 15842881 | C49: =IF(C8<DATEVALUE("06/30/2013"), "N/A", A023C2_C2) -> 15744380 | D49: -0.6217366652 | E49: =IF(E8<DATEVALUE("06/30/2013"), "N/A", A023C2_C3) -> 17817322 | F49: 13.16623455 | G49: =IF(G8<DATEVALUE("06/30/2013"), "N/A", A023C2_C4) -> 19795021 | H49: 11.09986675 | I49: =IF(I8<DATEVALUE("06/30/2013"), "N/A", A023C2_C5) -> 21548086 | J49: 8.85609063
A50: Total Del Used Vehicle Lns (> = 60 Days) | B50: =IF(B8<DATEVALUE("06/30/2013"), "N/A", A041C2_C1) -> 551075666 | C50: =IF(C8<DATEVALUE("06/30/2013"), "N/A", A041C2_C2) -> 638729809 | D50: 15.90600863 | E50: =IF(E8<DATEVALUE("06/30/2013"), "N/A", A041C2_C3) -> 761840882 | F50: 19.27435846 | G50: =IF(G8<DATEVALUE("06/30/2013"), "N/A", A041C2_C4) -> 837599917 | H50: 9.94420709 | I50: =IF(I8<DATEVALUE("06/30/2013"), "N/A", A041C2_C5) -> 862801634 | J50: 3.008801277
A51: %Used Vehicle Loans >= 60 Days/ Total Used Vehicle Loans | B51: =IF(B8<DATEVALUE("06/30/2013"),"N/A",Calc(A041C2_C1,A370_C1)*100) ->  | C51: =IF(C8<DATEVALUE("06/30/2013"),"N/A",Calc(A041C2_C2,A370_C2)*100) ->  | E51: =IF(E8<DATEVALUE("06/30/2013"),"N/A",Calc(A041C2_C3,A370_C3)*100) ->  | G51: =IF(G8<DATEVALUE("06/30/2013"),"N/A",Calc(A041C2_C4,A370_C4)*100) ->  | I51: =IF(I8<DATEVALUE("06/30/2013"),"N/A",Calc(A041C2_C5,A370_C5)*100) -> 
A53: % Total New & Used Vehicle Loans > = 60 Days/ Total New & Used Vehicle Loans | B53: =IF(B8<DATEVALUE("06/30/2013"),"N/A",(Calc((A041C1_C1 + A041C2_C1), (A385_C1 + A370_C1) )*100)) ->  | C53: =IF(C8<DATEVALUE("06/30/2013"),"N/A",(Calc((A041C1_C2 + A041C2_C2), (A385_C2 + A370_C2) )*100)) ->  | D53: =IF(C53="N/A", " ", IF(B53="N/A", " ",IF(AND(B53=0,C53=0,),"N/A",IF(ABS(B53)=0, "N/A", ((C53-B53)/ABS(B53))*100)))) ->  | E53: =IF(E8<DATEVALUE("06/30/2013"),"N/A",(Calc((A041C1_C3 + A041C2_C3), (A385_C3 + A370_C3))*100)) ->  | F53: =IF(E53="N/A", " ", IF(C53="N/A", " ",IF(AND(C53=0,E53=0,),"N/A",IF(ABS(C53)=0, "N/A", ((E53-C53)/ABS(C53))*100)))) ->  | G53: =IF(G8<DATEVALUE("06/30/2013"),"N/A",(Calc((A041C1_C4 + A041C2_C4), (A385_C4 + A370_C4))*100)) ->  | H53: =IF(G53="N/A", " ", IF(E53="N/A", " ",IF(AND(E53=0,G53=0,),"N/A",IF(ABS(E53)=0, "N/A", ((G53-E53)/ABS(E53))*100)))) ->  | I53: =IF(I8<DATEVALUE("06/30/2013"),"N/A",(Calc((A041C1_C5 + A041C2_C5), (A385_C5 + A370_C5))*100)) ->  | J53: =IF(I53="N/A", " ", IF(G53="N/A", " ",IF(AND(G53=0,I53=0,),"N/A",IF(ABS(G53)=0, "N/A", ((I53-G53)/ABS(G53))*100)))) -> 
A55: Leases Receivable
A56: 30 to 59 Days Delinquent | B56: =IF(B8<DATEVALUE("6/30/2006"),"N/A",A020D_C1) -> 3967795 | C56: =IF(C8<DATEVALUE("6/30/2006"),"N/A",A020D_C2) -> 5684369 | D56: 43.26266856 | E56: =IF(E8<DATEVALUE("6/30/2006"),"N/A",A020D_C3) -> 6273267 | F56: 10.35995376 | G56: =IF(G8<DATEVALUE("6/30/2006"),"N/A",A020D_C4) -> 10225379 | H56: 62.99926338 | I56: =IF(I8<DATEVALUE("6/30/2006"),"N/A",A020D_C5) -> 10537046 | J56: 3.047975043
A57: 60 to 179 Days Delinquent | B57: =IF(B8<DATEVALUE("6/30/2006"),"N/A",A021D_C1) -> 878193 | C57: =IF(C8<DATEVALUE("6/30/2006"),"N/A",A021D_C2) -> 1183114 | D57: 34.7214109 | E57: =IF(E8<DATEVALUE("6/30/2006"),"N/A",A021D_C3) -> 1966532 | F57: 66.21661142 | G57: =IF(G8<DATEVALUE("6/30/2006"),"N/A",A021D_C4) -> 2360959 | H57: 20.05698356 | I57: =IF(I8<DATEVALUE("6/30/2006"),"N/A",A021D_C5) -> 2702508 | J57: 14.46653669
A58: 180 to 359 Days Delinquent | B58: =IF(B8<DATEVALUE("6/30/2006"),"N/A",A022D_C1) -> 0 | C58: =IF(C8<DATEVALUE("6/30/2006"),"N/A",A022D_C2) -> 172127 | D58: N/A | E58: =IF(E8<DATEVALUE("6/30/2006"),"N/A",A022D_C3) -> 54493 | F58: -68.34139908 | G58: =IF(G8<DATEVALUE("6/30/2006"),"N/A",A022D_C4) -> 190770 | H58: 250.0816619 | I58: =IF(I8<DATEVALUE("6/30/2006"),"N/A",A022D_C5) -> 235533 | J58: 23.46438119
A59: > = 360 Days Delinquent | B59: =IF(B8<DATEVALUE("6/30/2006"),"N/A",A023D_C1) -> 0 | C59: =IF(C8<DATEVALUE("6/30/2006"),"N/A",A023D_C2) -> 0 | D59: N/A | E59: =IF(E8<DATEVALUE("6/30/2006"),"N/A",A023D_C3) -> 0 | F59: N/A | G59: =IF(G8<DATEVALUE("6/30/2006"),"N/A",A023D_C4) -> 0 | H59: N/A | I59: =IF(I8<DATEVALUE("6/30/2006"),"N/A",A023D_C5) -> 42978 | J59: N/A
A60: Total Del Leases Receivable (> = 60 Days) | B60: =IF(B8<DATEVALUE("6/30/2006"),"N/A",A041D_C1) -> 878193 | C60: =IF(C8<DATEVALUE("6/30/2006"),"N/A",A041D_C2) -> 1355241 | D60: 54.32154435 | E60: =IF(E8<DATEVALUE("6/30/2006"),"N/A",A041D_C3) -> 2021025 | F60: 49.12661291 | G60: =IF(G8<DATEVALUE("6/30/2006"),"N/A",A041D_C4) -> 2551729 | H60: 26.25915068 | I60: =IF(I8<DATEVALUE("6/30/2006"),"N/A",A041D_C5) -> 2981019 | J60: 16.82349497
A61: %Leases Receivable Delinquent >= 60 Days / Total Leases Receivable | B61: =IF(B8<DATEVALUE("6/30/2006"),"N/A", IF((A002_C1)=0,0,(A041D_C1/(A002_C1))*100)) -> 0.1587346362 | C61: =IF(C8<DATEVALUE("6/30/2006"),"N/A", IF((A002_C2)=0,0,(A041D_C2/(A002_C2))*100)) -> 0.1979966834 | D61: 24.734392 | E61: =IF(E8<DATEVALUE("6/30/2006"),"N/A", IF((A002_C3)=0,0,(A041D_C3/(A002_C3))*100)) -> 0.2314316261 | F61: 16.88661757 | G61: =IF(G8<DATEVALUE("6/30/2006"),"N/A", IF((A002_C4)=0,0,(A041D_C4/(A002_C4))*100)) -> 0.2294752269 | H61: -0.8453465276 | I61: =IF(I8<DATEVALUE("6/30/2006"),"N/A", IF((A002_C5)=0,0,(A041D_C5/(A002_C5))*100)) -> 0.261099092 | J61: 13.78094951
A62: All Other Loans 2
A63: 30 to 59 Days Delinquent | B63: =IF(B8<DATEVALUE("6/30/2013"),"N/A", A020C_C1) -> 361381126 | C63: =IF(C8<DATEVALUE("6/30/2013"),"N/A", A020C_C2) -> 456828115 | D63: =IF(C63="N/A", " ", IF(B63="N/A", " ",IF(AND(B63=0,C63=0,),"N/A",IF(ABS(B63)=0, "N/A", ((C63-B63)/ABS(B63))*100)))) -> 26.41172494 | E63: =IF(E8<DATEVALUE("6/30/2013"),"N/A", A020C_C3) -> 436438382 | F63: =IF(E63="N/A", " ", IF(C63="N/A", " ",IF(AND(C63=0,E63=0,),"N/A",IF(ABS(C63)=0, "N/A", ((E63-C63)/ABS(C63))*100)))) -> -4.463327087 | G63: =IF(G8<DATEVALUE("6/30/2013"),"N/A", A020C_C4) -> 430513565 | H63: =IF(G63="N/A", " ", IF(E63="N/A", " ",IF(AND(E63=0,G63=0,),"N/A",IF(ABS(E63)=0, "N/A", ((G63-E63)/ABS(E63))*100)))) -> -1.357538027 | I63: =IF(I8<DATEVALUE("6/30/2013"),"N/A", A020C_C5) -> 442265938 | J63: =IF(I63="N/A", " ", IF(G63="N/A", " ",IF(AND(G63=0,I63=0,),"N/A",IF(ABS(G63)=0, "N/A", ((I63-G63)/ABS(G63))*100)))) -> 2.729849639
A64: 60 to 179 Days Delinquent | B64: =IF(B8<DATEVALUE("6/30/2013"),"N/A", A021C_C1) -> 222406829 | C64: =IF(C8<DATEVALUE("6/30/2013"),"N/A", A021C_C2) -> 374331406 | D64: 68.30931302 | E64: =IF(E8<DATEVALUE("6/30/2013"),"N/A", A021C_C3) -> 523755469 | F64: 39.91758656 | G64: =IF(G8<DATEVALUE("6/30/2013"),"N/A", A021C_C4) -> 418496714 | H64: -20.09692714 | I64: =IF(I8<DATEVALUE("6/30/2013"),"N/A", A021C_C5) -> 351668144 | J64: -15.96872037
A65: 180 to 359 Days Delinquent | B65: =IF(B8<DATEVALUE("6/30/2013"),"N/A", A022C_C1) -> 58260302 | C65: =IF(C8<DATEVALUE("6/30/2013"),"N/A", A022C_C2) -> 123497735 | D65: 111.9757893 | E65: =IF(E8<DATEVALUE("6/30/2013"),"N/A", A022C_C3) -> 287728816 | F65: 132.9830713 | G65: =IF(G8<DATEVALUE("6/30/2013"),"N/A", A022C_C4) -> 173428985 | H65: -39.72484668 | I65: =IF(I8<DATEVALUE("6/30/2013"),"N/A", A022C_C5) -> 84252121 | J65: -51.41981544
A66: > = 360 Days Delinquent | B66: =IF(B8<DATEVALUE("6/30/2013"),"N/A", A023C_C1) -> 18031891 | C66: =IF(C8<DATEVALUE("6/30/2013"),"N/A", A023C_C2) -> 19716585 | D66: 9.342858162 | E66: =IF(E8<DATEVALUE("6/30/2013"),"N/A", A023C_C3) -> 123630665 | F66: 527.038937 | G66: =IF(G8<DATEVALUE("6/30/2013"),"N/A", A023C_C4) -> 334523614 | H66: 170.5830418 | I66: =IF(I8<DATEVALUE("6/30/2013"),"N/A", A023C_C5) -> 67772110 | J66: -79.74070972
A67: Total Del All Other Loans (> = 60 Days) | B67: =IF(B8<DATEVALUE("6/30/2013"),"N/A", A041C_C1) -> 298699022 | C67: =IF(C8<DATEVALUE("6/30/2013"),"N/A", A041C_C2) -> 517545726 | D67: 73.26662891 | E67: =IF(E8<DATEVALUE("6/30/2013"),"N/A", A041C_C3) -> 935114950 | F67: 80.68257606 | G67: =IF(G8<DATEVALUE("6/30/2013"),"N/A", A041C_C4) -> 926449313 | H67: -0.9266921676 | I67: =IF(I8<DATEVALUE("6/30/2013"),"N/A", A041C_C5) -> 503692375 | J67: -45.63195547
A68: %All Other Loans >= 60 Days / Total All Other Loans | B68: =IF(B8>DATEVALUE("6/30/2017"), Calc(A041C_C1,A698C_C1+A400P_C1+A397_C1)*100,IF(B8<DATEVALUE("6/30/2013"),"N/A", Calc(A041C_C1,A698_C1+A397_C1)*100)) ->  | C68: =IF(C8>DATEVALUE("6/30/2017"), Calc(A041C_C2,A698C_C2+A400P_C2+A397_C2)*100,IF(C8<DATEVALUE("6/30/2013"),"N/A", Calc(A041C_C2,A698_C2+A397_C2)*100)) ->  | E68: =IF(E8>DATEVALUE("6/30/2017"), Calc(A041C_C3,A698C_C3+A400P_C3+A397_C3)*100,IF(G8<DATEVALUE("6/30/2013"),"N/A", Calc(A041C_C3,A698_C3+A397_C3)*100)) ->  | G68: =IF(G8>DATEVALUE("6/30/2017"), Calc(A041C_C4,A698C_C4+A400P_C4+A397_C4)*100,IF(E8<DATEVALUE("6/30/2013"),"N/A", Calc(A041C_C4,A698_C4+A397_C4)*100)) ->  | I68: =IF(I8>DATEVALUE("6/30/2017"), Calc(A041C_C5,A698C_C5+A400P_C5+A397_C5)*100,IF(I8<DATEVALUE("6/30/2013"),"N/A", Calc(A041C_C5,A698_C5+A397_C5)*100)) -> 
A69: # Means the number is too large to display in the cell
A70: 1 The NCUA Board approved a regulatory/policy change in May 2012 revising the delinquency reporting requirements for troubled debt restructured (TDR) loans. This policy change may result in a decline in delinquent loans reported as of June 2012.
A71: 2 As of June 2013, added delinquency for New & Used Vehicle Loans in June 2013. Delinquent New/Used Auto Loans are no longer included in "All Other Loans" delinquency. | J71: 7. Delinquent Loan Information 1

Sheet 8.DelqLnInfo 2
C1: Delinquent Loan Information 2
A2: Return to cover | C2: For Charter : | D2: =IF(CU_NUMBER="","N/A",CU_NUMBER) -> N/A
A3: =IF(Request_Date=0,"N/A",Request_Date) -> 05/15/2019 | C3: Count of CU : | D3: =IF(CountCu_C5=0,"N/A",CountCu_C5) -> 1999
A4: ="CU Name: "&IF(Cu_Name="","N/A",Cu_Name) -> CU Name: N/A | C4: Asset Range : | D4: =IF(AssetRange="","N/A",AssetRange) -> N/A
A5: ="Peer Group: "&IF(Peer_Group="","N/A",IF(Peer_Group="0","N/A",Peer_Group)) -> Peer Group: N/A | C5: Criteria : | D5: =IF(_xlnm.Criteria="","N/A",_xlnm.Criteria) -> Region: Nation * Peer Group: All * Type Included: Federally Insured State Credit Union (FISCU) *
C6: Count of CU in Peer Group : | D6: =IF(NoCu_in_Peer_Group="","N/A",NoCu_in_Peer_Group) -> N/A | E6: =IF(CU_NUMBER>0,"",IF(RetPop=0,"Retroactive Population","")) -> 
B8: =(CycDat_C1) -> 2014-12-31 | C8: =(CycDat_C2) -> 2015-12-31 | D8: % Chg | E8: =(CycDat_C3) -> 2016-12-31 | F8: % Chg | G8: =(CycDat_C4) -> 2017-12-31 | H8: % Chg | I8: =(CycDat_C5) -> 2018-12-31 | J8: % Chg
A9: DELINQUENT LOANS BY CATEGORY 1
A10: ALL REAL ESTATE LOANS
A11: 30 to 59 Days Delinquent | B11: =A751_C1 + A771_C1 + A755_C1 + A775_C1 -> 1931461898 | C11: =A751_C2 + A771_C2 + A755_C2 + A775_C2 -> 1840897568 | D11: =IF(C11="N/A", " ", IF(B11="N/A", " ",IF(AND(B11=0,C11=0,),"N/A",IF(ABS(B11)=0, "N/A", ((C11-B11)/ABS(B11))*100)))) -> -4.688900676 | E11: =A751_C3 + A771_C3 + A755_C3 + A775_C3 -> 1839621734 | F11: =IF(E11="N/A", " ", IF(C11="N/A", " ",IF(AND(C11=0,E11=0,),"N/A",IF(ABS(C11)=0, "N/A", ((E11-C11)/ABS(C11))*100)))) -> -0.06930499677 | G11: =A751_C4 + A771_C4 + A755_C4 + A775_C4 -> 1914076291 | H11: =IF(G11="N/A", " ", IF(E11="N/A", " ",IF(AND(E11=0,G11=0,),"N/A",IF(ABS(E11)=0, "N/A", ((G11-E11)/ABS(E11))*100)))) -> 4.047275351 | I11: =A751_C5 + A771_C5 + A755_C5 + A775_C5 -> 2073659818 | J11: =IF(I11="N/A", " ", IF(G11="N/A", " ",IF(AND(G11=0,I11=0,),"N/A",IF(ABS(G11)=0, "N/A", ((I11-G11)/ABS(G11))*100)))) -> 8.337365013
A12: 60 to 179 Days Delinquent | B12: =A752_C1 + A772_C1 + A756_C1 + A776_C1 -> 978554350 | C12: =A752_C2 + A772_C2 + A756_C2 + A776_C2 -> 912425296 | D12: =IF(C12="N/A", " ", IF(B12="N/A", " ",IF(AND(B12=0,C12=0,),"N/A",IF(ABS(B12)=0, "N/A", ((C12-B12)/ABS(B12))*100)))) -> -6.757831489 | E12: =A752_C3 + A772_C3 + A756_C3 + A776_C3 -> 855257611 | F12: =IF(E12="N/A", " ", IF(C12="N/A", " ",IF(AND(C12=0,E12=0,),"N/A",IF(ABS(C12)=0, "N/A", ((E12-C12)/ABS(C12))*100)))) -> -6.265464718 | G12: =A752_C4 + A772_C4 + A756_C4 + A776_C4 -> 990937086 | H12: =IF(G12="N/A", " ", IF(E12="N/A", " ",IF(AND(E12=0,G12=0,),"N/A",IF(ABS(E12)=0, "N/A", ((G12-E12)/ABS(E12))*100)))) -> 15.86416458 | I12: =A752_C5 + A772_C5 + A756_C5 + A776_C5 -> 963149123 | J12: =IF(I12="N/A", " ", IF(G12="N/A", " ",IF(AND(G12=0,I12=0,),"N/A",IF(ABS(G12)=0, "N/A", ((I12-G12)/ABS(G12))*100)))) -> -2.80421062
A13: 180 to 359 Days Delinquent | B13: =A753_C1 + A773_C1 + A757_C1 + A777_C1 -> 325205653 | C13: =A753_C2 + A773_C2 + A757_C2 + A777_C2 -> 286521911 | D13: =IF(C13="N/A", " ", IF(B13="N/A", " ",IF(AND(B13=0,C13=0,),"N/A",IF(ABS(B13)=0, "N/A", ((C13-B13)/ABS(B13))*100)))) -> -11.89516284 | E13: =A753_C3 + A773_C3 + A757_C3 + A777_C3 -> 250810683 | F13: =IF(E13="N/A", " ", IF(C13="N/A", " ",IF(AND(C13=0,E13=0,),"N/A",IF(ABS(C13)=0, "N/A", ((E13-C13)/ABS(C13))*100)))) -> -12.46369881 | G13: =A753_C4 + A773_C4 + A757_C4 + A777_C4 -> 239142798 | H13: -4.652068588 | I13: =A753_C5 + A773_C5 + A757_C5 + A777_C5 -> 249298126 | J13: 4.246553977
A14: > = 360 Days Delinquent | B14: =A754_C1 + A774_C1 + A758_C1 + A778_C1 -> 314579547 | C14: =A754_C2 + A774_C2 + A758_C2 + A778_C2 -> 273093214 | D14: -13.18786723 | E14: =A754_C3 + A774_C3 + A758_C3 + A778_C3 -> 215991287 | F14: =IF(E14="N/A", " ", IF(C14="N/A", " ",IF(AND(C14=0,E14=0,),"N/A",IF(ABS(C14)=0, "N/A", ((E14-C14)/ABS(C14))*100)))) -> -20.90931743 | G14: =A754_C4 + A774_C4 + A758_C4 + A778_C4 -> 184576859 | H14: -14.54430335 | I14: =A754_C5 + A774_C5 + A758_C5 + A778_C5 -> 182999757 | J14: -0.8544418886
A15: Total Del Real Estate Loans (> = 60 Days) | B15: =A713A_C1 + A714A_C1 + A715A_C1 + A716A_C1 -> 1618339550 | C15: =A713A_C2 + A714A_C2 + A715A_C2 + A716A_C2 -> 1472040421 | D15: -9.040076231 | E15: =A713A_C3 + A714A_C3 + A715A_C3 + A716A_C3 -> 1322059581 | F15: -10.18863598 | G15: =A713A_C4 + A714A_C4 + A715A_C4 + A716A_C4 -> 1414656743 | H15: 7.004008241 | I15: =A713A_C5 + A714A_C5 + A715A_C5 + A716A_C5 -> 1395447006 | J15: -1.357907994
A16: % Total Real Estate Loans DQ >= 30 Days / Total Real Estate Loans | B16: =IF(B8<DATEVALUE("06/30/2006"),Calc((A713_C1+A714_C1+A715_C1+A716_C1),A710_C1)*100,Calc((A713A_C1+A714A_C1+A715A_C1+A716A_C1+A751_C1+A771_C1+A755_C1+A775_C1),A710_C1) * 100) ->  | C16: =IF(C8<DATEVALUE("06/30/2006"),Calc((A713_C2+A714_C2+A715_C2+A716_C2),A710_C2)*100,Calc((A713A_C2+A714A_C2+A715A_C2+A716A_C2+A751_C2+A771_C2+A755_C2+A775_C2),A710_C2) * 100) ->  | E16: =IF(E8<DATEVALUE("06/30/2006"), Calc((A713_C3+A714_C3+A715_C3+A716_C3),A710_C3)*100,Calc((A713A_C3+A714A_C3+A715A_C3+A716A_C3+A751_C3+A771_C3+A755_C3+A775_C3),A710_C3) * 100) ->  | G16: =IF(G8<DATEVALUE("06/30/2006"), Calc((A713_C4+A714_C4+A715_C4+A716_C4),A710_C4)*100,Calc((A713A_C4+A714A_C4+A715A_C4+A716A_C4+A751_C4+A771_C4+A755_C4+A775_C4),A710_C4) * 100) ->  | I16: =IF(I8<DATEVALUE("06/30/2006"), Calc((A713_C5+A714_C5+A715_C5+A716_C5),A710_C5)*100,Calc((A713A_C5+A714A_C5+A715A_C5+A716A_C5+A751_C5+A771_C5+A755_C5+A775_C5),A710_C5) * 100) -> 
A17: % Total Real Estate Loans DQ >= 60 Days / Total Real Estate Loans | B17: =IF(B8<DATEVALUE("06/30/2006"), Calc((A752_C1+A753_C1+A754_C1+A756_C1+A757_C1+A758_C1+A772_C1+A773_C1+A774_C1+A776_C1+A777_C1+A778_C1),A710_C1) * 100,Calc((A713A_C1+A714A_C1+A715A_C1+A716A_C1),A710_C1) * 100) ->  | C17: =IF(C8<DATEVALUE("06/30/2006"), Calc((A752_C2+A753_C2+A754_C2+A756_C2+A757_C2+A758_C2+A772_C2+A773_C2+A774_C2+A776_C2+A777_C2+A778_C2),A710_C2) * 100,Calc((A713A_C2+A714A_C2+A715A_C2+A716A_C2),A710_C2) * 100) ->  | E17: =IF(E8<DATEVALUE("06/30/2006"), Calc((A752_C3+A753_C3+A754_C3+A756_C3+A757_C3+A758_C3+A772_C3+A773_C3+A774_C3+A776_C3+A777_C3+A778_C3),A710_C3) * 100,Calc((A713A_C3+A714A_C3+A715A_C3+A716A_C3),A710_C3) * 100) ->  | G17: =IF(G8<DATEVALUE("06/30/2006"), Calc((A752_C4+A753_C4+A754_C4+A756_C4+A757_C4+A758_C4+A772_C4+A773_C4+A774_C4+A776_C4+A777_C4+A778_C4),A710_C4) * 100,Calc((A713A_C4+A714A_C4+A715A_C4+A716A_C4),A710_C4) * 100) ->  | I17: =IF(I8<DATEVALUE("06/30/2006"), Calc((A752_C5+A753_C5+A754_C5+A756_C5+A757_C5+A758_C5+A772_C5+A773_C5+A774_C5+A776_C5+A777_C5+A778_C5),A710_C5) * 100,Calc((A713A_C5+A714A_C5+A715A_C5+A716A_C5),A710_C5) * 100) -> 
A18: 1st Mortgage Fixed Rate and Hybrid/Balloon > 5 years
A19: 30 to 59 Days Delinquent | B19: =A751_C1 -> 925265194 | C19: =A751_C2 -> 913093231 | D19: =IF(C19="N/A", " ", IF(B19="N/A", " ",IF(AND(B19=0,C19=0,),"N/A",IF(ABS(B19)=0, "N/A", ((C19-B19)/ABS(B19))*100)))) -> -1.31551074 | E19: =A751_C3 -> 876801217 | F19: -3.974623047 | G19: =A751_C4 -> 863976680 | H19: -1.462650456 | I19: =A751_C5 -> 940597654 | J19: 8.868407652
A20: 60 to 179 Days Delinquent | B20: =A752_C1 -> 417002009 | C20: =A752_C2 -> 402960984 | D20: -3.367136056 | E20: =A752_C3 -> 359720978 | F20: -10.73056889 | G20: =A752_C4 -> 419292769 | H20: 16.56055516 | I20: =A752_C5 -> 376884616 | J20: -10.11421044
A21: 180 to 359 Days Delinquent | B21: =A753_C1 -> 162522614 | C21: =A753_C2 -> 123526183 | D21: -23.99446455 | E21: =A753_C3 -> 103921528 | F21: -15.87084983 | G21: =A753_C4 -> 106886646 | H21: 2.85322787 | I21: =A753_C5 -> 93330854 | J21: -12.68240001
A22: > = 360 Days Delinquent | B22: =A754_C1 -> 151759231 | C22: =A754_C2 -> 134330712 | D22: -11.48432216 | E22: =A754_C3 -> 108449728 | F22: -19.26661715 | G22: =A754_C4 -> 101301857 | H22: -6.590953368 | I22: =A754_C5 -> 82568761 | J22: -18.49235202
A23: Total Del 1st Mtg Fixed and Hybrid/Balloon Lns > 5yrs (> = 60 Days) | B23: =A752_C1+A753_C1+A754_C1 -> 731283854 | C23: =A752_C2+A753_C2+A754_C2 -> 660817879 | D23: -9.635926544 | E23: =A752_C3+A753_C3+A754_C3 -> 572092234 | F23: -13.42664111 | G23: =A752_C4+A753_C4+A754_C4 -> 627481272 | H23: 9.681837072 | I23: =A752_C5+A753_C5+A754_C5 -> 552784231 | J23: -11.9042662
A24: %1st Mortgage Fixed and Hybrid/Balloon (> 5 yrs) Delinquent >= 60 Days / Total 1st Mtg Fixed and Hybrid/Balloons > 5 yrs | B24: =IF(B8>=DATEVALUE("06/30/2006"),Calc(A713A_C1,A704A_C1+A704B_C1+A704C_C1+A704E_C1)*100,IF(B8>=DATEVALUE("03/31/2004"),Calc(A713_C1,A704A_C1+A704B_C1+A704C_C1+A704E_C1)*100,"N/A")) ->  | C24: =IF(C8>=DATEVALUE("06/30/2006"),Calc(A713A_C2,A704A_C2+A704B_C2+A704C_C2+A704E_C2)*100,IF(C8>=DATEVALUE("03/31/2004"),Calc(A713_C2,A704A_C2+A704B_C2+A704C_C2+A704E_C2)*100,"N/A")) ->  | E24: =IF(E8>=DATEVALUE("06/30/2006"),Calc(A713A_C3,A704A_C3+A704B_C3+A704C_C3+A704E_C3)*100,IF(E8>=DATEVALUE("03/31/2004"),Calc(A713_C3,A704A_C3+A704B_C3+A704C_C3+A704E_C3)*100,"N/A")) ->  | G24: =IF(G8>=DATEVALUE("06/30/2006"),Calc(A713A_C4,A704A_C4+A704B_C4+A704C_C4+A704E_C4)*100,IF(G8>=DATEVALUE("03/31/2004"),Calc(A713_C4,A704A_C4+A704B_C4+A704C_C4+A704E_C4)*100,"N/A")) ->  | I24: =IF(I8>=DATEVALUE("06/30/2006"),Calc(A713A_C5,A704A_C5+A704B_C5+A704C_C5+A704E_C5)*100,IF(I8>=DATEVALUE("03/31/2004"),Calc(A713_C5,A704A_C5+A704B_C5+A704C_C5+A704E_C5)*100,"N/A")) -> 
A25: 1st Mortgage Adjustable Rate Loans and Hybrid/Balloons < 5 years
A26: 30 to 59 Days Delinquent | B26: =A771_C1 -> 728415280 | C26: =A771_C2 -> 682257340 | D26: -6.336761634 | E26: =A771_C3 -> 733653781 | F26: 7.533292496 | G26: =A771_C4 -> 801961496 | H26: 9.310619909 | I26: =A771_C5 -> 851863153 | J26: 6.222450485
A27: 60 to 179 Days Delinquent | B27: =A772_C1 -> 422394981 | C27: =A772_C2 -> 382908446 | D27: -9.348249098 | E27: =A772_C3 -> 382030108 | F27: -0.2293859039 | G27: =A772_C4 -> 458041347 | H27: 19.89666191 | I27: =A772_C5 -> 464441737 | J27: 1.397338918
A28: 180 to 359 Days Delinquent | B28: =A773_C1 -> 120086188 | C28: =A773_C2 -> 122858043 | D28: 2.308221325 | E28: =A773_C3 -> 115086089 | F28: -6.325962721 | G28: =A773_C4 -> 99883796 | H28: -13.20949659 | I28: =A773_C5 -> 121472260 | J28: 21.61357984
A29: > = 360 Days Delinquent | B29: =A774_C1 -> 123229020 | C29: =A774_C2 -> 104729253 | D29: -15.01250842 | E29: =A774_C3 -> 77048418 | F29: -26.43085309 | G29: =A774_C4 -> 62286045 | H29: -19.15986516 | I29: =A774_C5 -> 78660279 | J29: 26.28876821
A30: Total Del 1st Mtg Adj Rate Lns (> = 60 Days) | B30: =A772_C1+A773_C1+A774_C1 -> 665710189 | C30: =A772_C2+A773_C2+A774_C2 -> 610495742 | D30: -8.294066684 | E30: =A772_C3+A773_C3+A774_C3 -> 574164615 | F30: -5.95108606 | G30: =A772_C4+A773_C4+A774_C4 -> 620211188 | H30: 8.019751095 | I30: =A772_C5+A773_C5+A774_C5 -> 664574276 | J30: 7.152900312
A31: %1st Mortgage Adjustable Rate Loans and Hybrid/Balloons (< 5 years) Delinquent >= 60 Days / Total 1st Mortgage Adjustable Rate Loans and Hybrids/Balloons < 5 yrs | B31: =IF(B8>=DATEVALUE("6/30/2006"),Calc(A714A_C1,A705A_C1+A705B_C1+A704D_C1)*100,IF(B8>=DATEVALUE("03/31/2004"),Calc(A772_C1+A773_C1+A774_C1,A705A_C1+A705B_C1+A704D_C1)*100,"N/A")) ->  | C31: =IF(C8>=DATEVALUE("6/30/2006"),Calc(A714A_C2,A705A_C2+A705B_C2+A704D_C2)*100,IF(C8>=DATEVALUE("03/31/2004"),Calc(A772_C2+A773_C2+A774_C2,A705A_C2+A705B_C2+A704D_C2)*100,"N/A")) ->  | E31: =IF(E8>=DATEVALUE("6/30/2006"),Calc(A714A_C3,A705A_C3+A705B_C3+A704D_C3)*100,IF(E8>=DATEVALUE("03/31/2004"),Calc(A772_C3+A773_C3+A774_C3,A705A_C3+A705B_C3+A704D_C3)*100,"N/A")) ->  | G31: =IF(G8>=DATEVALUE("6/30/2006"),Calc(A714A_C4,A705A_C4+A705B_C4+A704D_C4)*100,IF(G8>=DATEVALUE("03/31/2004"),Calc(A772_C4+A773_C4+A774_C4,A705A_C4+A705B_C4+A704D_C4)*100,"N/A")) ->  | I31: =IF(I8>=DATEVALUE("6/30/2006"),Calc(A714A_C5,A705A_C5+A705B_C5+A704D_C5)*100,IF(I8>=DATEVALUE("03/31/2004"),Calc(A772_C5+A773_C5+A774_C5,A705A_C5+A705B_C5+A704D_C5)*100,"N/A")) -> 
A32: Other Real Estate Fixed Rate/Hybrid/Balloon
A33: 30 to 59 Days Delinquent | B33: =A755_C1 -> 131136057 | C33: =A755_C2 -> 109392147 | D33: -16.58118331 | E33: =A755_C3 -> 95691918 | F33: -12.52396024 | G33: =A755_C4 -> 95560922 | H33: -0.1368934835 | I33: =A755_C5 -> 98761554 | J33: 3.349310506
A34: 60 to 179 Days Delinquent | B34: =A756_C1 -> 64284020 | C34: =A756_C2 -> 57703899 | D34: -10.23601355 | E34: =A756_C3 -> 44357529 | F34: -23.129061 | G34: =A756_C4 -> 42138299 | H34: -5.003051455 | I34: =A756_C5 -> 45604390 | J34: 8.225512378
A35: 180 to 359 Days Delinquent | B35: =A757_C1 -> 20569134 | C35: =A757_C2 -> 17049925 | D35: -17.10917436 | E35: =A757_C3 -> 12919417 | F35: -24.22595994 | G35: =A757_C4 -> 12451683 | H35: -3.620395564 | I35: =A757_C5 -> 12348279 | J35: -0.8304419571
A36: > = 360 Days Delinquent | B36: =A758_C1 -> 19927010 | C36: =A758_C2 -> 16181123 | D36: -18.79803844 | E36: =A758_C3 -> 13863604 | F36: -14.32236193 | G36: =A758_C4 -> 8882242 | H36: -35.93121962 | I36: =A758_C5 -> 8864350 | J36: -0.2014356285
A37: Total Del Other RE Fixed/Hybrid/Balloon Lns (> = 60 Days) | B37: =A756_C1+A757_C1+A758_C1 -> 104780164 | C37: =A756_C2+A757_C2+A758_C2 -> 90934947 | D37: -13.21358592 | E37: =A756_C3+A757_C3+A758_C3 -> 71140550 | F37: -21.76764561 | G37: =A756_C4+A757_C4+A758_C4 -> 63472224 | H37: -10.77912105 | I37: =A756_C5+A757_C5+A758_C5 -> 66817019 | J37: 5.269698758
A38: %Other Real Estate Fixed/Hybrid/Balloon Loans Delinquent >= 60 Days / Total Other RE Fixed/Hybrid/Balloon Loans | B38: =IF(B8<DATEVALUE("6/30/2006"),IF((A706_C1+A708B_C1)=0,0,((A756_C1+A757_C1+A758_C1)/(A706_C1+A708B_C1))*100), IF((A706_C1+A708B_C1)=0,0,((A715A_C1)/(A706_C1+A708B_C1))*100)) -> 0.925639927 | C38: =IF(C8<DATEVALUE("6/30/2006"),IF((A706_C2+A708B_C2)=0,0,((A756_C2+A757_C2+A758_C2)/(A706_C2+A708B_C2))*100), IF((A706_C2+A708B_C2)=0,0,((A715A_C2)/(A706_C2+A708B_C2))*100)) -> 0.79672808 | D38: -13.92678116 | E38: =IF(E8<DATEVALUE("6/30/2006"),IF((A706_C3+A708B_C3)=0,0,((A756_C3+A757_C3+A758_C3)/(A706_C3+A708B_C3))*100), IF((A706_C3+A708B_C3)=0,0,((A715A_C3)/(A706_C3+A708B_C3))*100)) -> 0.6496714733 | F38: -18.45756544 | G38: =IF(G8<DATEVALUE("6/30/2006"),IF((A706_C4+A708B_C4)=0,0,((A756_C4+A757_C4+A758_C4)/(A706_C4+A708B_C4))*100), IF((A706_C4+A708B_C4)=0,0,((A715A_C4)/(A706_C4+A708B_C4))*100)) -> 0.5464283821 | H38: -15.89158451 | I38: =IF(I8<DATEVALUE("6/30/2006"),IF((A706_C5+A708B_C5)=0,0,((A756_C5+A757_C5+A758_C5)/(A706_C5+A708B_C5))*100), IF((A706_C5+A708B_C5)=0,0,((A715A_C5)/(A706_C5+A708B_C5))*100)) -> 0.5110014829 | J38: -6.483356338
A39: Other Real Estate Adjustable Rate
A40: 30 to 59 Days Delinquent | B40: =A775_C1 -> 146645367 | C40: =A775_C2 -> 136154850 | D40: -7.153664118 | E40: =A775_C3 -> 133474818 | F40: -1.968370572 | G40: =A775_C4 -> 152577193 | H40: 14.31159472 | I40: =A775_C5 -> 182437457 | J40: 19.57059467
A41: 60 to 179 Days Delinquent | B41: =A776_C1 -> 74873340 | C41: =A776_C2 -> 68851967 | D41: -8.042078796 | E41: =A776_C3 -> 69148996 | F41: 0.4314023447 | G41: =A776_C4 -> 71464671 | H41: 3.34881941 | I41: =A776_C5 -> 76218380 | J41: 6.651830805
A42: 180 to 359 Days Delinquent | B42: =A777_C1 -> 22027717 | C42: =A777_C2 -> 23087760 | D42: 4.812314413 | E42: =A777_C3 -> 18883649 | F42: -18.20926326 | G42: =A777_C4 -> 19920673 | H42: 5.491650475 | I42: =A777_C5 -> 22146733 | J42: 11.17462246
A43: > = 360 Days Delinquent | B43: =A778_C1 -> 19664286 | C43: =A778_C2 -> 17852126 | D43: -9.215488424 | E43: =A778_C3 -> 16629537 | F43: -6.848422423 | G43: =A778_C4 -> 12106715 | H43: -27.1975221 | I43: =A778_C5 -> 12906367 | J43: 6.605028697
A44: Total Del Other RE Adj Rate Lns (> = 60 Days) | B44: =A776_C1+A777_C1+A778_C1 -> 116565343 | C44: =A776_C2+A777_C2+A778_C2 -> 109791853 | D44: -5.810895268 | E44: =A776_C3+A777_C3+A778_C3 -> 104662182 | F44: -4.672178181 | G44: =A776_C4+A777_C4+A778_C4 -> 103492059 | H44: -1.117999814 | I44: =A776_C5+A777_C5+A778_C5 -> 111271480 | J44: 7.516925526
A45: %Other Real Estate Adjustable Rate Loans Delinquent > = 60 Days / Total Other RE Adjustable Rate Loans | B45: =IF(B8>DATEVALUE("12/31/2007"),IF((A707_C1+A708_C1)=0,0,((A716A_C1)/(A707_C1+A708_C1))*100),IF(B8>DATEVALUE("03/31/2006"),IF((A707_C1+A708_C1+A709_C1)=0,0,((A716A_C1)/(A707_C1+A708_C1+A709_C1))*100),IF((A707_C1+A708_C1+A709_C1)=0,0,((A776_C1+A777_C1+A778_C1)/(A707_C1+A708_C1+A709_C1))*100))) -> 0.5487805 | C45: =IF(C8>DATEVALUE("12/31/2007"),IF((A707_C2+A708_C2)=0,0,((A716A_C2)/(A707_C2+A708_C2))*100),IF(C8>DATEVALUE("03/31/2006"),IF((A707_C2+A708_C2+A709_C2)=0,0,((A716A_C2)/(A707_C2+A708_C2+A709_C2))*100),IF((A707_C2+A708_C2+A709_C2)=0,0,((A776_C2+A777_C2+A778_C2)/(A707_C2+A708_C2+A709_C2))*100))) -> 0.4802875608 | D45: -12.48093531 | E45: =IF(E8>DATEVALUE("12/31/2007"),IF((A707_C3+A708_C3)=0,0,((A716A_C3)/(A707_C3+A708_C3))*100),IF(E8>DATEVALUE("03/31/2006"),IF((A707_C3+A708_C3+A709_C3)=0,0,((A716A_C3)/(A707_C3+A708_C3+A709_C3))*100),IF((A707_C3+A708_C3+A709_C3)=0,0,((A776_C3+A777_C3+A778_C3)/(A707_C3+A708_C3+A709_C3))*100))) -> 0.4341746608 | F45: -9.601102284 | G45: =IF(G8>DATEVALUE("12/31/2007"),IF((A707_C4+A708_C4)=0,0,((A716A_C4)/(A707_C4+A708_C4))*100),IF(G8>DATEVALUE("03/31/2006"),IF((A707_C4+A708_C4+A709_C4)=0,0,((A716A_C4)/(A707_C4+A708_C4+A709_C4))*100),IF((A707_C4+A708_C4+A709_C4)=0,0,((A776_C4+A777_C4+A778_C4)/(A707_C4+A708_C4+A709_C4))*100))) -> 0.4121575426 | H45: -5.071027892 | I45: =IF(I8>DATEVALUE("12/31/2007"),IF((A707_C5+A708_C5)=0,0,((A716A_C5)/(A707_C5+A708_C5))*100),IF(I8>DATEVALUE("03/31/2006"),IF((A707_C5+A708_C5+A709_C5)=0,0,((A716A_C5)/(A707_C5+A708_C5+A709_C5))*100),IF((A707_C5+A708_C5+A709_C5)=0,0,((A776_C5+A777_C5+A778_C5)/(A707_C5+A708_C5+A709_C5))*100))) -> 0.4124393832 | J45: 0.06838175016
A46: COMMERCIAL LOAN DELINQUENCY - RE & NON-RE SECURED 2
A47: Member Commercial Loans Secured By RE
A48: 30 to 59 Days Delinquent | B48: =IF(B8>DATEVALUE("6/30/2017"), A020G3_C1,IF(B8<DATEVALUE("06/30/2013"),"N/A",A020G1_C1)) -> 142390276 | C48: =IF(C8>DATEVALUE("6/30/2017"), A020G3_C2,IF(C8<DATEVALUE("06/30/2013"),"N/A",A020G1_C2)) -> 144364590 | D48: 1.386551143 | E48: =IF(E8>DATEVALUE("6/30/2017"), A020G3_C3,IF(E8<DATEVALUE("06/30/2013"),"N/A",A020G1_C3)) -> 133026308 | F48: -7.853921796 | G48: =IF(G8>DATEVALUE("6/30/2017"), A020G3_C4,IF(G8<DATEVALUE("06/30/2013"),"N/A",A020G1_C4)) -> 84298469 | H48: -36.63022731 | I48: =IF(I8>DATEVALUE("6/30/2017"), A020G3_C5,IF(I8<DATEVALUE("06/30/2013"),"N/A",A020G1_C5)) -> 166166763 | J48: 97.11717777
A49: 60 to 179 Days Delinquent | B49: =IF(B8>DATEVALUE("6/30/2017"), A021G3_C1,IF(B8<DATEVALUE("06/30/2013"),"N/A",A021G1_C1)) -> 77707509 | C49: =IF(C8>DATEVALUE("6/30/2017"), A021G3_C2,IF(C8<DATEVALUE("06/30/2013"),"N/A",A021G1_C2)) -> 72753377 | D49: -6.375358139 | E49: =IF(E8>DATEVALUE("6/30/2017"), A021G3_C3,IF(E8<DATEVALUE("06/30/2013"),"N/A",A021G1_C3)) -> 60284196 | F49: -17.13897212 | G49: =IF(G8>DATEVALUE("6/30/2017"), A021G3_C4,IF(G8<DATEVALUE("06/30/2013"),"N/A",A021G1_C4)) -> 68330212 | H49: 13.34680818 | I49: =IF(I8>DATEVALUE("6/30/2017"), A021G3_C5,IF(I8<DATEVALUE("06/30/2013"),"N/A",A021G1_C5)) -> 68446899 | J49: 0.1707692638
A50: 180 to 359 Days Delinquent | B50: =IF(B8>DATEVALUE("6/30/2017"), A022G3_C1,IF(B8<DATEVALUE("06/30/2013"),"N/A",A022G1_C1)) -> 46657335 | C50: =IF(C8>DATEVALUE("6/30/2017"), A022G3_C2,IF(C8<DATEVALUE("06/30/2013"),"N/A",A022G1_C2)) -> 30920829 | D50: -33.72782865 | E50: =IF(E8>DATEVALUE("6/30/2017"), A022G3_C3,IF(E8<DATEVALUE("06/30/2013"),"N/A",A022G1_C3)) -> 23498215 | F50: -24.00522315 | G50: =IF(G8>DATEVALUE("6/30/2017"), A022G3_C4,IF(G8<DATEVALUE("06/30/2013"),"N/A",A022G1_C4)) -> 18943739 | H50: -19.38222116 | I50: =IF(I8>DATEVALUE("6/30/2017"), A022G3_C5,IF(I8<DATEVALUE("06/30/2013"),"N/A",A022G1_C5)) -> 27843100 | J50: 46.97784846
A51: > = 360 Days Delinquent | B51: =IF(B8>DATEVALUE("6/30/2017"), A023G3_C1,IF(B8<DATEVALUE("06/30/2013"),"N/A",A023G1_C1)) -> 52894343 | C51: =IF(C8>DATEVALUE("6/30/2017"), A023G3_C2,IF(C8<DATEVALUE("06/30/2013"),"N/A",A023G1_C2)) -> 57690685 | D51: 9.06777876 | E51: =IF(E8>DATEVALUE("6/30/2017"), A023G3_C3,IF(E8<DATEVALUE("06/30/2013"),"N/A",A023G1_C3)) -> 34105912 | F51: -40.88142306 | G51: =IF(G8>DATEVALUE("6/30/2017"), A023G3_C4,IF(G8<DATEVALUE("06/30/2013"),"N/A",A023G1_C4)) -> 26696248 | H51: -21.72545335 | I51: =IF(I8>DATEVALUE("6/30/2017"), A023G3_C5,IF(I8<DATEVALUE("06/30/2013"),"N/A",A023G1_C5)) -> 28963347 | J51: 8.492200852
A52: Total Del Member Commercial Loans Secured by RE (> = 60 Days) | B52: =IF(B8>DATEVALUE("6/30/2017"), A041G3_C1,IF(B8<DATEVALUE("06/30/2013"),"N/A",A041G1_C1)) -> 177259187 | C52: =IF(C8>DATEVALUE("6/30/2017"), A041G3_C2,IF(C8<DATEVALUE("06/30/2013"),"N/A",A041G1_C2)) -> 161364891 | D52: -8.966698014 | E52: =IF(E8>DATEVALUE("6/30/2017"), A041G3_C3,IF(E8<DATEVALUE("06/30/2013"),"N/A",A041G1_C3)) -> 117888323 | F52: -26.94301575 | G52: =IF(G8>DATEVALUE("6/30/2017"), A041G3_C4,IF(G8<DATEVALUE("06/30/2013"),"N/A",A041G1_C4)) -> 113970199 | H52: -3.323589564 | I52: =IF(I8>DATEVALUE("6/30/2017"), A041G3_C5,IF(I8<DATEVALUE("06/30/2013"),"N/A",A041G1_C5)) -> 125253346 | J52: 9.900085372
A53: %Member Commercial Loans Secured by RE Delinquent >= 60 Days / Total Member Commercial Loans Secured by RE | B53: =IF(B8>DATEVALUE("6/30/2017"), Calc( A041G3_C1,A718A3_C1) * 100, IF(B8<DATEVALUE("6/30/2013"),"N/A", Calc(A041G1_C1, (A718A1_C1 - A814D_C1)) * 100)) ->  | C53: =IF(C8>DATEVALUE("6/30/2017"), Calc( A041G3_C2,A718A3_C2) * 100, IF(C8<DATEVALUE("6/30/2013"),"N/A", Calc(A041G1_C2, (A718A1_C2 - A814D_C2)) * 100)) ->  | E53: =IF(E8>DATEVALUE("6/30/2017"),Calc( A041G3_C3,A718A3_C3) * 100, IF(E8<DATEVALUE("6/30/2013"),"N/A", Calc(A041G1_C3, (A718A1_C3 - A814D_C3)) * 100)) ->  | G53: =IF(G8>DATEVALUE("6/30/2017"), Calc( A041G3_C4,A718A3_C4) * 100, IF(G8<DATEVALUE("6/30/2013"),"N/A", Calc(A041G1_C4, (A718A1_C4 - A814D_C4)) * 100)) ->  | I53: =IF(I8>DATEVALUE("6/30/2017"), Calc( A041G3_C5,A718A3_C5) * 100, IF(I8<DATEVALUE("6/30/2013"),"N/A", Calc(A041G1_C5, (A718A1_C5 - A814D_C5)) * 100)) -> 
A54: Member Commercial Loans NOT Secured By RE
A55: 30 to 59 Days Delinquent | B55: =IF(B8>DATEVALUE("6/30/2017"), A020G4_C1,IF(B8<DATEVALUE("06/30/2013"),"N/A", A020G2_C1)) -> 49197130 | C55: =IF(C8>DATEVALUE("6/30/2017"), A020G4_C2,IF(C8<DATEVALUE("06/30/2013"),"N/A", A020G2_C2)) -> 136401541 | D55: =IF(C55="N/A", " ", IF(B55="N/A", " ",IF(AND(B55=0,C55=0,),"N/A",IF(ABS(B55)=0, "N/A", ((C55-B55)/ABS(B55))*100)))) -> 177.2550777 | E55: =IF(E8>DATEVALUE("6/30/2017"), A020G4_C3,IF(E8<DATEVALUE("06/30/2013"),"N/A", A020G2_C3)) -> 87953277 | F55: =IF(E55="N/A", " ", IF(C55="N/A", " ",IF(AND(C55=0,E55=0,),"N/A",IF(ABS(C55)=0, "N/A", ((E55-C55)/ABS(C55))*100)))) -> -35.51885385 | G55: =IF(G8>DATEVALUE("6/30/2017"), A020G4_C4,IF(G8<DATEVALUE("06/30/2013"),"N/A", A020G2_C4)) -> 42453640 | H55: =IF(G55="N/A", " ", IF(E55="N/A", " ",IF(AND(E55=0,G55=0,),"N/A",IF(ABS(E55)=0, "N/A", ((G55-E55)/ABS(E55))*100)))) -> -51.73159949 | I55: =IF(I8>DATEVALUE("6/30/2017"), A020G4_C5,IF(I8<DATEVALUE("06/30/2013"),"N/A", A020G2_C5)) -> 33786393 | J55: =IF(I55="N/A", " ", IF(G55="N/A", " ",IF(AND(G55=0,I55=0,),"N/A",IF(ABS(G55)=0, "N/A", ((I55-G55)/ABS(G55))*100)))) -> -20.41579238
A56: 60 to 179 Days Delinquent | B56: =IF(B8>DATEVALUE("6/30/2017"), A021G4_C1,IF(B8<DATEVALUE("06/30/2013"),"N/A", A021G2_C1)) -> 13458354 | C56: =IF(C8>DATEVALUE("6/30/2017"), A021G4_C2,IF(C8<DATEVALUE("06/30/2013"),"N/A", A021G2_C2)) -> 129059589 | D56: 858.9552259 | E56: =IF(E8>DATEVALUE("6/30/2017"), A021G4_C3,IF(E8<DATEVALUE("06/30/2013"),"N/A", A021G2_C3)) -> 247812876 | F56: 92.01430744 | G56: =IF(G8>DATEVALUE("6/30/2017"), A021G4_C4,IF(G8<DATEVALUE("06/30/2013"),"N/A", A021G2_C4)) -> 104980357 | H56: -57.63724682 | I56: =IF(I8>DATEVALUE("6/30/2017"), A021G4_C5,IF(I8<DATEVALUE("06/30/2013"),"N/A", A021G2_C5)) -> 38252016 | J56: -63.56269202
A57: 180 to 359 Days Delinquent | B57: =IF(B8>DATEVALUE("6/30/2017"), A022G4_C1,IF(B8<DATEVALUE("06/30/2013"),"N/A", A022G2_C1)) -> 5169013 | C57: =IF(C8>DATEVALUE("6/30/2017"), A022G4_C2,IF(C8<DATEVALUE("06/30/2013"),"N/A", A022G2_C2)) -> 74472296 | D57: 1340.744993 | E57: =IF(E8>DATEVALUE("6/30/2017"), A022G4_C3,IF(E8<DATEVALUE("06/30/2013"),"N/A", A022G2_C3)) -> 232195392 | F57: 211.7876103 | G57: =IF(G8>DATEVALUE("6/30/2017"), A022G4_C4,IF(G8<DATEVALUE("06/30/2013"),"N/A", A022G2_C4)) -> 105442380 | H57: -54.58894378 | I57: =IF(I8>DATEVALUE("6/30/2017"), A022G4_C5,IF(I8<DATEVALUE("06/30/2013"),"N/A", A022G2_C5)) -> 22622496 | J57: -78.54515803
A58: > = 360 Days Delinquent | B58: =IF(B8>DATEVALUE("6/30/2017"), A023G4_C1,IF(B8<DATEVALUE("06/30/2013"),"N/A", A023G2_C1)) -> 8677560 | C58: =IF(C8>DATEVALUE("6/30/2017"), A023G4_C2,IF(C8<DATEVALUE("06/30/2013"),"N/A", A023G2_C2)) -> 12597066 | D58: 45.16829616 | E58: =IF(E8>DATEVALUE("6/30/2017"), A023G4_C3,IF(E8<DATEVALUE("06/30/2013"),"N/A", A023G2_C3)) -> 111436455 | F58: 784.6223001 | G58: =IF(G8>DATEVALUE("6/30/2017"), A023G4_C4,IF(G8<DATEVALUE("06/30/2013"),"N/A", A023G2_C4)) -> 317792956 | H58: 185.1786303 | I58: =IF(I8>DATEVALUE("6/30/2017"), A023G4_C5,IF(I8<DATEVALUE("06/30/2013"),"N/A", A023G2_C5)) -> 30158809 | J58: -90.50991898
A59: Total Del Member Commercial Loans NOT Secured By RE(> = 60 Days) | B59: =IF(B8>DATEVALUE("6/30/2017"), A041G4_C1,IF(B8<DATEVALUE("06/30/2013"),"N/A", A041G2_C1)) -> 27304927 | C59: =IF(C8>DATEVALUE("6/30/2017"), A041G4_C2,IF(C8<DATEVALUE("06/30/2013"),"N/A", A041G2_C2)) -> 216128951 | D59: 691.5382854 | E59: =IF(E8>DATEVALUE("6/30/2017"), A041G4_C3,IF(E8<DATEVALUE("06/30/2013"),"N/A", A041G2_C3)) -> 591444723 | F59: 173.6536314 | G59: =IF(G8>DATEVALUE("6/30/2017"), A041G4_C4,IF(G8<DATEVALUE("06/30/2013"),"N/A", A041G2_C4)) -> 528215693 | H59: -10.69060684 | I59: =IF(I8>DATEVALUE("6/30/2017"), A041G4_C5,IF(I8<DATEVALUE("06/30/2013"),"N/A", A041G2_C5)) -> 91033321 | J59: -82.76588102
A60: %Member Commercial Loans NOT Secured By RE Delinquent >= 60 Days / Total Member Commercial Loans NOT Secured By RE | B60: =IF(B8>DATEVALUE("6/30/2017"), Calc(A041G4_C1,(A042A6_C1+A400L2_C1+A400C5_C1+A400C6_C1))*100,IF(B8<DATEVALUE("06/30/2013"),"N/A", Calc(A041G2_C1,(A042A2_C1+A400L_C1+A400C1_C1+A400C2_C1-A814F_C1))*100)) ->  | C60: =IF(C8>DATEVALUE("6/30/2017"), Calc(A041G4_C2,(A042A6_C2+A400L2_C2+A400C5_C2+A400C6_C2))*100,IF(C8<DATEVALUE("06/30/2013"),"N/A", Calc(A041G2_C2,(A042A2_C2+A400L_C2+A400C1_C2+A400C2_C2-A814F_C2))*100)) ->  | E60: =IF(E8>DATEVALUE("6/30/2017"), Calc(A041G4_C3,(A042A6_C3+A400L2_C3+A400C5_C3+A400C6_C3))*100,IF(E8<DATEVALUE("06/30/2013"),"N/A", Calc(A041G2_C3,(A042A2_C3+A400L_C3+A400C1_C3+A400C2_C3-A814F_C3))*100)) ->  | G60: =IF(G8>DATEVALUE("6/30/2017"), Calc(A041G4_C4,(A042A6_C4+A400L2_C4+A400C5_C4+A400C6_C4))*100,IF(G8<DATEVALUE("06/30/2013"),"N/A", Calc(A041G2_C4,(A042A2_C4+A400L_C4+A400C1_C4+A400C2_C4-A814F_C4))*100)) ->  | I60: =IF(I8>DATEVALUE("6/30/2017"), Calc(A041G4_C5,(A042A6_C5+A400L2_C5+A400C5_C5+A400C6_C5))*100,IF(I8<DATEVALUE("06/30/2013"),"N/A", Calc(A041G2_C5,(A042A2_C5+A400L_C5+A400C1_C5+A400C2_C5-A814F_C5))*100)) -> 
A61: NonMember Commercial Loans Secured By RE
A62: 30 to 59 Days Delinquent | B62: =IF(B8>DATEVALUE("6/30/2017"), A020P3_C1,IF(B8<DATEVALUE("06/30/2013"),"N/A", A020P1_C1)) -> 63189270 | C62: =IF(C8>DATEVALUE("6/30/2017"), A020P3_C2,IF(C8<DATEVALUE("06/30/2013"),"N/A", A020P1_C2)) -> 20957490 | D62: =IF(C62="N/A", " ", IF(B62="N/A", " ",IF(AND(B62=0,C62=0,),"N/A",IF(ABS(B62)=0, "N/A", ((C62-B62)/ABS(B62))*100)))) -> -66.83378365 | E62: =IF(E8>DATEVALUE("6/30/2017"), A020P3_C3,IF(E8<DATEVALUE("06/30/2013"),"N/A", A020P1_C3)) -> 22677597 | F62: =IF(E62="N/A", " ", IF(C62="N/A", " ",IF(AND(C62=0,E62=0,),"N/A",IF(ABS(C62)=0, "N/A", ((E62-C62)/ABS(C62))*100)))) -> 8.207600242 | G62: =IF(G8>DATEVALUE("6/30/2017"), A020P3_C4,IF(G8<DATEVALUE("06/30/2013"),"N/A", A020P1_C4)) -> 6303682 | H62: =IF(G62="N/A", " ", IF(E62="N/A", " ",IF(AND(E62=0,G62=0,),"N/A",IF(ABS(E62)=0, "N/A", ((G62-E62)/ABS(E62))*100)))) -> -72.2030425 | I62: =IF(I8>DATEVALUE("6/30/2017"), A020P3_C5,IF(I8<DATEVALUE("06/30/2013"),"N/A", A020P1_C5)) -> 6036258 | J62: =IF(I62="N/A", " ", IF(G62="N/A", " ",IF(AND(G62=0,I62=0,),"N/A",IF(ABS(G62)=0, "N/A", ((I62-G62)/ABS(G62))*100)))) -> -4.242345981
A63: 60 to 179 Days Delinquent | B63: =IF(B8>DATEVALUE("6/30/2017"), A021P3_C1,IF(B8<DATEVALUE("06/30/2013"),"N/A", A021P1_C1)) -> 10357662 | C63: =IF(C8>DATEVALUE("6/30/2017"), A021P3_C2,IF(C8<DATEVALUE("06/30/2013"),"N/A", A021P1_C2)) -> 6512340 | D63: -37.12538602 | E63: =IF(E8>DATEVALUE("6/30/2017"), A021P3_C3,IF(E8<DATEVALUE("06/30/2013"),"N/A", A021P1_C3)) -> 1583514 | F63: -75.68440837 | G63: =IF(G8>DATEVALUE("6/30/2017"), A021P3_C4,IF(G8<DATEVALUE("06/30/2013"),"N/A", A021P1_C4)) -> 3605112 | H63: 127.6653064 | I63: =IF(I8>DATEVALUE("6/30/2017"), A021P3_C5,IF(I8<DATEVALUE("06/30/2013"),"N/A", A021P1_C5)) -> 6391591 | J63: 77.29243918
A64: 180 to 359 Days Delinquent | B64: =IF(B8>DATEVALUE("6/30/2017"), A022P3_C1,IF(B8<DATEVALUE("06/30/2013"),"N/A", A022P1_C1)) -> 6416717 | C64: =IF(C8>DATEVALUE("6/30/2017"), A022P3_C2,IF(C8<DATEVALUE("06/30/2013"),"N/A", A022P1_C2)) -> 3933912 | D64: -38.69276142 | E64: =IF(E8>DATEVALUE("6/30/2017"), A022P3_C3,IF(E8<DATEVALUE("06/30/2013"),"N/A", A022P1_C3)) -> 2580918 | F64: -34.39309268 | G64: =IF(G8>DATEVALUE("6/30/2017"), A022P3_C4,IF(G8<DATEVALUE("06/30/2013"),"N/A", A022P1_C4)) -> 7924452 | H64: 207.0400532 | I64: =IF(I8>DATEVALUE("6/30/2017"), A022P3_C5,IF(I8<DATEVALUE("06/30/2013"),"N/A", A022P1_C5)) -> 2286541 | J64: -71.14575241
A65: > = 360 Days Delinquent | B65: =IF(B8>DATEVALUE("6/30/2017"), A023P3_C1,IF(B8<DATEVALUE("06/30/2013"),"N/A", A023P1_C1)) -> 22284245 | C65: =IF(C8>DATEVALUE("6/30/2017"), A023P3_C2,IF(C8<DATEVALUE("06/30/2013"),"N/A", A023P1_C2)) -> 8605377 | D65: -61.38358289 | E65: =IF(E8>DATEVALUE("6/30/2017"), A023P3_C3,IF(E8<DATEVALUE("06/30/2013"),"N/A", A023P1_C3)) -> 4266478 | F65: -50.42078923 | G65: =IF(G8>DATEVALUE("6/30/2017"), A023P3_C4,IF(G8<DATEVALUE("06/30/2013"),"N/A", A023P1_C4)) -> 7636798 | H65: 78.99536808 | I65: =IF(I8>DATEVALUE("6/30/2017"), A023P3_C5,IF(I8<DATEVALUE("06/30/2013"),"N/A", A023P1_C5)) -> 3085845 | J65: -59.59242342
A66: Total Del NonMember Commercial Lns Secured by RE (>= 60 Days) | B66: =IF(B8>DATEVALUE("6/30/2017"), A041P3_C1,IF(B8<DATEVALUE("06/30/2013"),"N/A", A041P1_C1)) -> 39058624 | C66: =IF(C8>DATEVALUE("6/30/2017"), A041P3_C2,IF(C8<DATEVALUE("06/30/2013"),"N/A", A041P1_C2)) -> 19051629 | D66: -51.22298983 | E66: =IF(E8>DATEVALUE("6/30/2017"), A041P3_C3,IF(E8<DATEVALUE("06/30/2013"),"N/A", A041P1_C3)) -> 8430910 | F66: -55.74703874 | G66: =IF(G8>DATEVALUE("6/30/2017"), A041P3_C4,IF(G8<DATEVALUE("06/30/2013"),"N/A", A041P1_C4)) -> 19166362 | H66: 127.3344396 | I66: =IF(I8>DATEVALUE("6/30/2017"), A041P3_C5,IF(I8<DATEVALUE("06/30/2013"),"N/A", A041P1_C5)) -> 11763977 | J66: -38.62175305
A67: %NonMember Commercial Loans Secured by RE Delinquent >= 60 Days / Total NonMember Commercial Loans Secured by RE | B67: =IF(B8>DATEVALUE("6/30/2017"), Calc(A041P3_C1,A718A4_C1)*100,IF(B8<DATEVALUE("06/30/2013"),"N/A", Calc(A041P1_C1,(A718A2_C1-A814G_C1))*100)) ->  | C67: =IF(C8>DATEVALUE("6/30/2017"), Calc(A041P3_C2,A718A4_C2)*100,IF(C8<DATEVALUE("06/30/2013"),"N/A", Calc(A041P1_C2,(A718A2_C2-A814G_C2))*100)) ->  | E67: =IF(E8>DATEVALUE("6/30/2017"), Calc(A041P3_C3,A718A4_C3)*100,IF(E8<DATEVALUE("06/30/2013"),"N/A", Calc(A041P1_C3,(A718A2_C3-A814G_C3))*100)) ->  | G67: =IF(G8>DATEVALUE("6/30/2017"), Calc(A041P3_C4,A718A4_C4)*100,IF(G8<DATEVALUE("06/30/2013"),"N/A", Calc(A041P1_C4,(A718A2_C4-A814G_C4))*100)) ->  | I67: =IF(I8>DATEVALUE("6/30/2017"), Calc(A041P3_C5,A718A4_C5)*100,IF(I8<DATEVALUE("06/30/2013"),"N/A", Calc(A041P1_C5,(A718A2_C5-A814G_C5))*100)) -> 
A68: NonMember Commercial Loans NOT Secured By RE
A69: 30 to 59 Days Delinquent | B69: =IF(B8>DATEVALUE("6/30/2017"), A020P4_C1,IF(B8<DATEVALUE("06/30/2013"),"N/A", A020P2_C1)) -> 122279 | C69: =IF(C8>DATEVALUE("6/30/2017"), A020P4_C2,IF(C8<DATEVALUE("06/30/2013"),"N/A", A020P2_C2)) -> 2180731 | D69: =IF(C69="N/A", " ", IF(B69="N/A", " ",IF(AND(B69=0,C69=0,),"N/A",IF(ABS(B69)=0, "N/A", ((C69-B69)/ABS(B69))*100)))) -> 1683.405981 | E69: =IF(E8>DATEVALUE("6/30/2017"), A020P4_C3,IF(E8<DATEVALUE("06/30/2013"),"N/A", A020P2_C3)) -> 4849690 | F69: =IF(E69="N/A", " ", IF(C69="N/A", " ",IF(AND(C69=0,E69=0,),"N/A",IF(ABS(C69)=0, "N/A", ((E69-C69)/ABS(C69))*100)))) -> 122.3882726 | G69: =IF(G8>DATEVALUE("6/30/2017"), A020P4_C4,IF(G8<DATEVALUE("06/30/2013"),"N/A", A020P2_C4)) -> 4339449 | H69: =IF(G69="N/A", " ", IF(E69="N/A", " ",IF(AND(E69=0,G69=0,),"N/A",IF(ABS(E69)=0, "N/A", ((G69-E69)/ABS(E69))*100)))) -> -10.52110547 | I69: =IF(I8>DATEVALUE("6/30/2017"), A020P4_C5,IF(I8<DATEVALUE("06/30/2013"),"N/A", A020P2_C5)) -> 1891838 | J69: =IF(I69="N/A", " ", IF(G69="N/A", " ",IF(AND(G69=0,I69=0,),"N/A",IF(ABS(G69)=0, "N/A", ((I69-G69)/ABS(G69))*100)))) -> -56.40372775
A70: 60 to 179 Days Delinquent | B70: =IF(B8>DATEVALUE("6/30/2017"), A021P4_C1,IF(B8<DATEVALUE("06/30/2013"),"N/A", A021P2_C1)) -> 0 | C70: =IF(C8>DATEVALUE("6/30/2017"), A021P4_C2,IF(C8<DATEVALUE("06/30/2013"),"N/A", A021P2_C2)) -> 5115171 | D70: N/A | E70: =IF(E8>DATEVALUE("6/30/2017"), A021P4_C3,IF(E8<DATEVALUE("06/30/2013"),"N/A", A021P2_C3)) -> 7389832 | F70: 44.46891414 | G70: =IF(G8>DATEVALUE("6/30/2017"), A021P4_C4,IF(G8<DATEVALUE("06/30/2013"),"N/A", A021P2_C4)) -> 20943274 | H70: 183.4066322 | I70: =IF(I8>DATEVALUE("6/30/2017"), A021P4_C5,IF(I8<DATEVALUE("06/30/2013"),"N/A", A021P2_C5)) -> 10443125 | J70: -50.13613917
A71: 180 to 359 Days Delinquent | B71: =IF(B8>DATEVALUE("6/30/2017"), A022P4_C1,IF(B8<DATEVALUE("06/30/2013"),"N/A", A022P2_C1)) -> 63444 | C71: =IF(C8>DATEVALUE("6/30/2017"), A022P4_C2,IF(C8<DATEVALUE("06/30/2013"),"N/A", A022P2_C2)) -> 322702 | D71: 408.640691 | E71: =IF(E8>DATEVALUE("6/30/2017"), A022P4_C3,IF(E8<DATEVALUE("06/30/2013"),"N/A", A022P2_C3)) -> 8433536 | F71: 2513.412994 | G71: =IF(G8>DATEVALUE("6/30/2017"), A022P4_C4,IF(G8<DATEVALUE("06/30/2013"),"N/A", A022P2_C4)) -> 4206406 | H71: -50.12286661 | I71: =IF(I8>DATEVALUE("6/30/2017"), A022P4_C5,IF(I8<DATEVALUE("06/30/2013"),"N/A", A022P2_C5)) -> 4765550 | J71: 13.29267788
A72: > = 360 Days Delinquent | B72: =IF(B8>DATEVALUE("6/30/2017"), A023P4_C1,IF(B8<DATEVALUE("06/30/2013"),"N/A", A023P2_C1)) -> 156016 | C72: =IF(C8>DATEVALUE("6/30/2017"), A023P4_C2,IF(C8<DATEVALUE("06/30/2013"),"N/A", A023P2_C2)) -> 161986 | D72: 3.826530612 | E72: =IF(E8>DATEVALUE("6/30/2017"), A023P4_C3,IF(E8<DATEVALUE("06/30/2013"),"N/A", A023P2_C3)) -> 0 | F72: -100 | G72: =IF(G8>DATEVALUE("6/30/2017"), A023P4_C4,IF(G8<DATEVALUE("06/30/2013"),"N/A", A023P2_C4)) -> 2474267 | H72: N/A | I72: =IF(I8>DATEVALUE("6/30/2017"), A023P4_C5,IF(I8<DATEVALUE("06/30/2013"),"N/A", A023P2_C5)) -> 3221465 | J72: 30.1987619
A73: Total Del Other RE Fixed/Hybrid/Balloon NonMember Commercial Lns Secured by RE (> = 60 Days) | B73: =IF(B8>DATEVALUE("6/30/2017"), A041P4_C1,IF(B8<DATEVALUE("06/30/2013"),"N/A", A041P2_C1)) -> 219460 | C73: =IF(C8>DATEVALUE("6/30/2017"), A041P4_C2,IF(C8<DATEVALUE("06/30/2013"),"N/A", A041P2_C2)) -> 5599859 | D73: 2451.653604 | E73: =IF(E8>DATEVALUE("6/30/2017"), A041P4_C3,IF(E8<DATEVALUE("06/30/2013"),"N/A", A041P2_C3)) -> 15823368 | F73: 182.5672575 | G73: =IF(G8>DATEVALUE("6/30/2017"), A041P4_C4,IF(G8<DATEVALUE("06/30/2013"),"N/A", A041P2_C4)) -> 27623947 | H73: 74.57691055 | I73: =IF(I8>DATEVALUE("6/30/2017"), A041P4_C5,IF(I8<DATEVALUE("06/30/2013"),"N/A", A041P2_C5)) -> 18430140 | J73: -33.28201795
A74: %NonMember Commercial Loans NOT Secured by RE Delinquent >= 60 Days / Total NonMember Commercial Loans NOT Secured by RE | B74: =IF(B8>DATEVALUE("6/30/2017"), Calc(A041P4_C1,(A042A8_C1+A400L3_C1+A400C7_C1+A400C8_C1) )*100, IF(B8<DATEVALUE("06/30/2013"),"N/A",Calc(A041P2_C1, (A042A4_C1+A400L1_C1+A400C3_C1+A400C4_C1-A814H_C1) )*100)) ->  | C74: =IF(C8>DATEVALUE("6/30/2017"), Calc(A041P4_C2,(A042A8_C2+A400L3_C2+A400C7_C2+A400C8_C2) )*100, IF(C8<DATEVALUE("06/30/2013"),"N/A",Calc(A041P2_C2, (A042A4_C2+A400L1_C2+A400C3_C2+A400C4_C2-A814H_C2) )*100)) ->  | E74: =IF(E8>DATEVALUE("6/30/2017"), Calc(A041P4_C3,(A042A8_C3+A400L3_C3+A400C7_C3+A400C8_C3) )*100, IF(E8<DATEVALUE("06/30/2013"),"N/A",Calc(A041P2_C3, (A042A4_C3+A400L1_C3+A400C3_C3+A400C4_C3-A814H_C3) )*100)) ->  | G74: =IF(G8>DATEVALUE("6/30/2017"), Calc(A041P4_C4,(A042A8_C4+A400L3_C4+A400C7_C4+A400C8_C4) )*100, IF(G8<DATEVALUE("06/30/2013"),"N/A",Calc(A041P2_C4, (A042A4_C4+A400L1_C4+A400C3_C4+A400C4_C4-A814H_C4) )*100)) ->  | I74: =IF(I8>DATEVALUE("6/30/2017"), Calc(A041P4_C5,(A042A8_C5+A400L3_C5+A400C7_C5+A400C8_C5) )*100, IF(I8<DATEVALUE("06/30/2013"),"N/A",Calc(A041P2_C5, (A042A4_C5+A400L1_C5+A400C3_C5+A400C4_C5-A814H_C5) )*100)) -> 
A75: # Means the number is too large to display in the cell
A76: 1 The NCUA Board approved a regulatory/policy change in May 2012 revising the delinquency reporting requirements for troubled debt restructured (TDR) loans. This policy change may result in a decline in delinquent loans reported as of June 2012.
A77: 2 Reporting requirements for loans were changed with September 2017 cycle to accommodate the regulatory definition of commercial loans. This policy change may cause fluctuations from prior cycles. | J77: 8. Delinquent Loan Information 2

Sheet 9.LoanLoss&BK&TDRs
C1: Loan Losses, Bankruptcy Information, and Troubled Debt Restructured Loans
A2: Return to cover | C2: For Charter : | D2: =IF(CU_NUMBER="","N/A",CU_NUMBER) -> N/A
A3: =IF(Request_Date=0,"N/A",Request_Date) -> 05/15/2019 | C3: Count of CU : | D3: =IF(CountCu_C5=0,"N/A",CountCu_C5) -> 1999
A4: ="CU Name: "&IF(Cu_Name="","N/A",Cu_Name) -> CU Name: N/A | C4: Asset Range : | D4: =IF(AssetRange="","N/A",AssetRange) -> N/A
A5: ="Peer Group: "&IF(Peer_Group="","N/A",IF(Peer_Group="0","N/A",Peer_Group)) -> Peer Group: N/A | C5: Criteria : | D5: =IF(_xlnm.Criteria="","N/A",_xlnm.Criteria) -> Region: Nation * Peer Group: All * Type Included: Federally Insured State Credit Union (FISCU) *
C6: Count of CU in Peer Group : | D6: =IF(NoCu_in_Peer_Group="","N/A",NoCu_in_Peer_Group) -> N/A | E6: =IF(CU_NUMBER>0,"",IF(RetPop=0,"Retroactive Population","")) -> 
B8: =(CycDat_C1) -> 2014-12-31 | C8: =(CycDat_C2) -> 2015-12-31 | D8: % Chg | E8: =(CycDat_C3) -> 2016-12-31 | F8: % Chg | G8: =(CycDat_C4) -> 2017-12-31 | H8: % Chg | I8: =(CycDat_C5) -> 2018-12-31 | J8: % Chg
A10: LOAN LOSS SUMMARY (TOTAL FOR ALL LOAN TYPES)
A11: * Total Loans Charged Off | B11: =A550_C1 -> 1815528304 | C11: =A550_C2 -> 1855563562 | D11: =IF(C11="N/A", " ", IF(B11="N/A", " ",IF(AND(B11=0,C11=0,),"N/A",IF(ABS(B11)=0, "N/A", ((C11*Anu_C2-B11*Anu_C1)/ABS(B11*Anu_C1))*100)))) -> 2.205157469 | E11: =A550_C3 -> 2369778240 | F11: =IF(E11="N/A", " ", IF(C11="N/A", " ",IF(AND(C11=0,E11=0,),"N/A",IF(ABS(C11)=0, "N/A", ((E11*Anu_C3-C11*Anu_C2)/ABS(C11*Anu_C2))*100)))) -> 27.7120487 | G11: =A550_C4 -> 2746334165 | H11: =IF(G11="N/A", " ", IF(E11="N/A", " ",IF(AND(E11=0,G11=0,),"N/A",IF(ABS(E11)=0, "N/A", ((G11*Anu_C4-E11*Anu_C3)/ABS(E11*Anu_C3))*100)))) -> 15.88992247 | I11: =A550_C5 -> 2795406472 | J11: =IF(I11="N/A", " ", IF(G11="N/A", " ",IF(AND(G11=0,I11=0,),"N/A",IF(ABS(G11)=0, "N/A", ((I11*Anu_C5-G11*Anu_C4)/ABS(G11*Anu_C4))*100)))) -> 1.786829426
A12: * Total Loans Recovered | B12: =A551_C1 -> 413409221 | C12: =A551_C2 -> 428680962 | D12: =IF(C12="N/A", " ", IF(B12="N/A", " ",IF(AND(B12=0,C12=0,),"N/A",IF(ABS(B12)=0, "N/A", ((C12*Anu_C2-B12*Anu_C1)/ABS(B12*Anu_C1))*100)))) -> 3.694097815 | E12: =A551_C3 -> 454140447 | F12: =IF(E12="N/A", " ", IF(C12="N/A", " ",IF(AND(C12=0,E12=0,),"N/A",IF(ABS(C12)=0, "N/A", ((E12*Anu_C3-C12*Anu_C2)/ABS(C12*Anu_C2))*100)))) -> 5.939028615 | G12: =A551_C4 -> 504811283 | H12: =IF(G12="N/A", " ", IF(E12="N/A", " ",IF(AND(E12=0,G12=0,),"N/A",IF(ABS(E12)=0, "N/A", ((G12*Anu_C4-E12*Anu_C3)/ABS(E12*Anu_C3))*100)))) -> 11.15752546 | I12: =A551_C5 -> 568425300 | J12: =IF(I12="N/A", " ", IF(G12="N/A", " ",IF(AND(G12=0,I12=0,),"N/A",IF(ABS(G12)=0, "N/A", ((I12*Anu_C5-G12*Anu_C4)/ABS(G12*Anu_C4))*100)))) -> 12.60154421
A13: * NET CHARGE OFFS ($$) | B13: =(A550_C1-A551_C1) -> 1402119083 | C13: =(A550_C2-A551_C2) -> 1426882600 | D13: =IF(C13="N/A", " ", IF(B13="N/A", " ",IF(AND(B13=0,C13=0,),"N/A",IF(ABS(B13)=0, "N/A", ((C13*Anu_C2-B13*Anu_C1)/ABS(B13*Anu_C1))*100)))) -> 1.766149345 | E13: =(A550_C3-A551_C3) -> 1915637793 | F13: =IF(E13="N/A", " ", IF(C13="N/A", " ",IF(AND(C13=0,E13=0,),"N/A",IF(ABS(C13)=0, "N/A", ((E13*Anu_C3-C13*Anu_C2)/ABS(C13*Anu_C2))*100)))) -> 34.25335714 | G13: =(A550_C4-A551_C4) -> 2241522882 | H13: =IF(G13="N/A", " ", IF(E13="N/A", " ",IF(AND(E13=0,G13=0,),"N/A",IF(ABS(E13)=0, "N/A", ((G13*Anu_C4-E13*Anu_C3)/ABS(E13*Anu_C3))*100)))) -> 17.01183231 | I13: =(A550_C5-A551_C5) -> 2226981172 | J13: =IF(I13="N/A", " ", IF(G13="N/A", " ",IF(AND(G13=0,I13=0,),"N/A",IF(ABS(G13)=0, "N/A", ((I13*Anu_C5-G13*Anu_C4)/ABS(G13*Anu_C4))*100)))) -> -0.6487424294
A14: **%Net Charge-Offs / Average Loans | B14: =IF((A025B_C1+pA025B_C1)/2=0,0,(((A550_C1-A551_C1)/((A025B_C1+pA025B_C1)/2)*100)*Anu_C1)) -> 0.4379316329 | C14: =IF((A025B_C2+pA025B_C2)/2=0,0,(((A550_C2-A551_C2)/((A025B_C2+pA025B_C2)/2)*100)*Anu_C2)) -> 0.3956825027 | D14: =IF(C14="N/A", " ", IF(B14="N/A", " ",IF(AND(B14=0,C14=0,),"N/A",IF(ABS(B14)=0, "N/A", ((C14-B14)/ABS(B14))*100)))) -> -9.647426016 | E14: =IF((A025B_C3+pA025B_C3)/2=0,0,(((A550_C3-A551_C3)/((A025B_C3+pA025B_C3)/2)*100)*Anu_C3)) -> 0.4748265351 | F14: =IF(E14="N/A", " ", IF(C14="N/A", " ",IF(AND(C14=0,E14=0,),"N/A",IF(ABS(C14)=0, "N/A", ((E14-C14)/ABS(C14))*100)))) -> 20.00190352 | G14: =IF((A025B_C4+pA025B_C4)/2=0,0,(((A550_C4-A551_C4)/((A025B_C4+pA025B_C4)/2)*100)*Anu_C4)) -> 0.5027081476 | H14: =IF(G14="N/A", " ", IF(E14="N/A", " ",IF(AND(E14=0,G14=0,),"N/A",IF(ABS(E14)=0, "N/A", ((G14-E14)/ABS(E14))*100)))) -> 5.871957528 | I14: =IF((A025B_C5+pA025B_C5)/2=0,0,(((A550_C5-A551_C5)/((A025B_C5+pA025B_C5)/2)*100)*Anu_C5)) -> 0.4553842114 | J14: =IF(I14="N/A", " ", IF(G14="N/A", " ",IF(AND(G14=0,I14=0,),"N/A",IF(ABS(G14)=0, "N/A", ((I14-G14)/ABS(G14))*100)))) -> -9.413799309
A15: Total Del Loans & *Net Charge-Offs 1 | B15: =(A041B_C1+A550_C1-A551_C1) -> 4178691921 | C15: =(A041B_C2+A550_C2-A551_C2) -> 4411528797 | D15: =IF(C15="N/A", " ", IF(B15="N/A", " ",IF(AND(B15=0,C15=0,),"N/A",IF(ABS(B15)=0, "N/A", ((C15-B15)/ABS(B15))*100)))) -> 5.572003881 | E15: =(A041B_C3+A550_C3-A551_C3) -> 5368591717 | F15: =IF(E15="N/A", " ", IF(C15="N/A", " ",IF(AND(C15=0,E15=0,),"N/A",IF(ABS(C15)=0, "N/A", ((E15-C15)/ABS(C15))*100)))) -> 21.69458625 | G15: =(A041B_C4+A550_C4-A551_C4) -> 5918489662 | H15: =IF(G15="N/A", " ", IF(E15="N/A", " ",IF(AND(E15=0,G15=0,),"N/A",IF(ABS(E15)=0, "N/A", ((G15-E15)/ABS(E15))*100)))) -> 10.24287139 | I15: =(A041B_C5+A550_C5-A551_C5) -> 5542775233 | J15: =IF(I15="N/A", " ", IF(G15="N/A", " ",IF(AND(G15=0,I15=0,),"N/A",IF(ABS(G15)=0, "N/A", ((I15-G15)/ABS(G15))*100)))) -> -6.348147086
A16: Combined Delinquency and Net Charge Off Ratio 1 | B16: =IF(A025B_C1=0,0,(A041B_C1/A025B_C1)*100)+IF((A025B_C1+pA025B_C1)/2=0,0,(((A550_C1-A551_C1)/((A025B_C1+pA025B_C1)/2)*100)*Anu_C1)) -> 1.257128911 | C16: =IF(A025B_C2=0,0,(A041B_C2/A025B_C2)*100)+IF((A025B_C2+pA025B_C2)/2=0,0,(((A550_C2-A551_C2)/((A025B_C2+pA025B_C2)/2)*100)*Anu_C2)) -> 1.176415314 | D16: =IF(C16="N/A", " ", IF(B16="N/A", " ",IF(AND(B16=0,C16=0,),"N/A",IF(ABS(B16)=0, "N/A", ((C16-B16)/ABS(B16))*100)))) -> -6.420471006 | E16: =IF(A025B_C3=0,0,(A041B_C3/A025B_C3)*100)+IF((A025B_C3+pA025B_C3)/2=0,0,(((A550_C3-A551_C3)/((A025B_C3+pA025B_C3)/2)*100)*Anu_C3)) -> 1.288068508 | F16: =IF(E16="N/A", " ", IF(C16="N/A", " ",IF(AND(C16=0,E16=0,),"N/A",IF(ABS(C16)=0, "N/A", ((E16-C16)/ABS(C16))*100)))) -> 9.490967411 | G16: =IF(A025B_C4=0,0,(A041B_C4/A025B_C4)*100)+IF((A025B_C4+pA025B_C4)/2=0,0,(((A550_C4-A551_C4)/((A025B_C4+pA025B_C4)/2)*100)*Anu_C4)) -> 1.28975069 | H16: =IF(G16="N/A", " ", IF(E16="N/A", " ",IF(AND(E16=0,G16=0,),"N/A",IF(ABS(E16)=0, "N/A", ((G16-E16)/ABS(E16))*100)))) -> 0.1305972325 | I16: =IF(A025B_C5=0,0,(A041B_C5/A025B_C5)*100)+IF((A025B_C5+pA025B_C5)/2=0,0,(((A550_C5-A551_C5)/((A025B_C5+pA025B_C5)/2)*100)*Anu_C5)) -> 1.104421126 | J16: =IF(I16="N/A", " ", IF(G16="N/A", " ",IF(AND(G16=0,I16=0,),"N/A",IF(ABS(G16)=0, "N/A", ((I16-G16)/ABS(G16))*100)))) -> -14.36940992
A17: LOAN LOSS SUMMARY BY LOAN TYPE
A18: * Unsecured Credit Card Lns Charged Off | B18: =A680_C1 -> 343002584 | C18: =(A680_C2) -> 346036157 | D18: =IF(C18="N/A", " ", IF(B18="N/A", " ",IF(AND(B18=0,C18=0,),"N/A",IF(ABS(B18)=0, "N/A", ((C18*Anu_C2-B18*Anu_C1)/ABS(B18*Anu_C1))*100)))) -> 0.8844169524 | E18: =A680_C3 -> 395419864 | F18: =IF(E18="N/A", " ", IF(C18="N/A", " ",IF(AND(C18=0,E18=0,),"N/A",IF(ABS(C18)=0, "N/A", ((E18*Anu_C3-C18*Anu_C2)/ABS(C18*Anu_C2))*100)))) -> 14.27125634 | G18: =A680_C4 -> 468574516 | H18: =IF(G18="N/A", " ", IF(E18="N/A", " ",IF(AND(E18=0,G18=0,),"N/A",IF(ABS(E18)=0, "N/A", ((G18*Anu_C4-E18*Anu_C3)/ABS(E18*Anu_C3))*100)))) -> 18.50050002 | I18: =A680_C5 -> 532218278 | J18: =IF(I18="N/A", " ", IF(G18="N/A", " ",IF(AND(G18=0,I18=0,),"N/A",IF(ABS(G18)=0, "N/A", ((I18*Anu_C5-G18*Anu_C4)/ABS(G18*Anu_C4))*100)))) -> 13.58242069
A19: * Unsecured Credit Card Lns Recovered | B19: =A681_C1 -> 71811491 | C19: =A681_C2 -> 74035693 | D19: =IF(C19="N/A", " ", IF(B19="N/A", " ",IF(AND(B19=0,C19=0,),"N/A",IF(ABS(B19)=0, "N/A", ((C19*Anu_C2-B19*Anu_C1)/ABS(B19*Anu_C1))*100)))) -> 3.097278679 | E19: =A681_C3 -> 74870205 | F19: =IF(E19="N/A", " ", IF(C19="N/A", " ",IF(AND(C19=0,E19=0,),"N/A",IF(ABS(C19)=0, "N/A", ((E19*Anu_C3-C19*Anu_C2)/ABS(C19*Anu_C2))*100)))) -> 1.12717524 | G19: =A681_C4 -> 79271095 | H19: =IF(G19="N/A", " ", IF(E19="N/A", " ",IF(AND(E19=0,G19=0,),"N/A",IF(ABS(E19)=0, "N/A", ((G19*Anu_C4-E19*Anu_C3)/ABS(E19*Anu_C3))*100)))) -> 5.878025845 | I19: =A681_C5 -> 85427791 | J19: =IF(I19="N/A", " ", IF(G19="N/A", " ",IF(AND(G19=0,I19=0,),"N/A",IF(ABS(G19)=0, "N/A", ((I19*Anu_C5-G19*Anu_C4)/ABS(G19*Anu_C4))*100)))) -> 7.766634232
A20: * NET UNSECURED CREDIT CARD C/Os | B20: =(A680_C1-A681_C1) -> 271191093 | C20: =(A680_C2-A681_C2) -> 272000464 | D20: =IF(C20="N/A", " ", IF(B20="N/A", " ",IF(AND(B20=0,C20=0,),"N/A",IF(ABS(B20)=0, "N/A", ((C20*Anu_C2-B20*Anu_C1)/ABS(B20*Anu_C1))*100)))) -> 0.2984504362 | E20: =(A680_C3-A681_C3) -> 320549659 | F20: =IF(E20="N/A", " ", IF(C20="N/A", " ",IF(AND(C20=0,E20=0,),"N/A",IF(ABS(C20)=0, "N/A", ((E20*Anu_C3-C20*Anu_C2)/ABS(C20*Anu_C2))*100)))) -> 17.8489383 | G20: =(A680_C4-A681_C4) -> 389303421 | H20: =IF(G20="N/A", " ", IF(E20="N/A", " ",IF(AND(E20=0,G20=0,),"N/A",IF(ABS(E20)=0, "N/A", ((G20*Anu_C4-E20*Anu_C3)/ABS(E20*Anu_C3))*100)))) -> 21.44870851 | I20: =(A680_C5-A681_C5) -> 446790487 | J20: =IF(I20="N/A", " ", IF(G20="N/A", " ",IF(AND(G20=0,I20=0,),"N/A",IF(ABS(G20)=0, "N/A", ((I20*Anu_C5-G20*Anu_C4)/ABS(G20*Anu_C4))*100)))) -> 14.76664804
A21: **Net Charge Offs - Credit Cards / Avg Credit Card Loans | B21: =IF(B8<DATEVALUE("3/31/2004"),"N/A",IF((A396_C1+pA396_C1)/2=0, 0, (((A680_C1-A681_C1)/((A396_C1+pA396_C1)/2))*100)*Anu_C1)) -> 1.636581693 | C21: =IF(C8<DATEVALUE("3/31/2004"),"N/A",IF((A396_C2+pA396_C2)/2=0, 0, (((A680_C2-A681_C2)/((A396_C2+pA396_C2)/2))*100)*Anu_C2)) -> 1.516668338 | D21: =IF(C21="N/A", " ", IF(B21="N/A", " ",IF(AND(B21=0,C21=0,),"N/A",IF(ABS(B21)=0, "N/A", ((C21-B21)/ABS(B21))*100)))) -> -7.32706199 | E21: =IF(E8<DATEVALUE("3/31/2004"),"N/A",IF((A396_C3+pA396_C3)/2=0, 0, (((A680_C3-A681_C3)/((A396_C3+pA396_C3)/2))*100)*Anu_C3)) -> 1.670515883 | F21: =IF(E21="N/A", " ", IF(C21="N/A", " ",IF(AND(C21=0,E21=0,),"N/A",IF(ABS(C21)=0, "N/A", ((E21-C21)/ABS(C21))*100)))) -> 10.14378298 | G21: =IF(G8<DATEVALUE("3/31/2004"),"N/A",IF((A396_C4+pA396_C4)/2=0, 0, (((A680_C4-A681_C4)/((A396_C4+pA396_C4)/2))*100)*Anu_C4)) -> 1.903197218 | H21: =IF(G21="N/A", " ", IF(E21="N/A", " ",IF(AND(E21=0,G21=0,),"N/A",IF(ABS(E21)=0, "N/A", ((G21-E21)/ABS(E21))*100)))) -> 13.92871132 | I21: =IF(I8<DATEVALUE("3/31/2004"),"N/A",IF((A396_C5+pA396_C5)/2=0, 0, (((A680_C5-A681_C5)/((A396_C5+pA396_C5)/2))*100)*Anu_C5)) -> 2.060151334 | J21: =IF(I21="N/A", " ", IF(G21="N/A", " ",IF(AND(G21=0,I21=0,),"N/A",IF(ABS(G21)=0, "N/A", ((I21-G21)/ABS(G21))*100)))) -> 8.24686556
A22: * Non-Federally Guaranteed Student Loans Charged Off | B22: =IF(B8<DATEVALUE("3/31/2011"),"N/A", A550T_C1) -> 3854589 | C22: =IF(C8<DATEVALUE("3/31/2011"),"N/A", A550T_C2) -> 3320007 | D22: =IF(C22="N/A", " ", IF(B22="N/A", " ",IF(AND(B22=0,C22=0,),"N/A",IF(ABS(B22)=0, "N/A", ((C22*Anu_C2-B22*Anu_C1)/ABS(B22*Anu_C1))*100)))) -> -13.86871596 | E22: =IF(E8<DATEVALUE("3/31/2011"),"N/A", A550T_C3) -> 22905989 | F22: =IF(E22="N/A", " ", IF(C22="N/A", " ",IF(AND(C22=0,E22=0,),"N/A",IF(ABS(C22)=0, "N/A", ((E22*Anu_C3-C22*Anu_C2)/ABS(C22*Anu_C2))*100)))) -> 589.937973 | G22: =IF(G8<DATEVALUE("3/31/2011"),"N/A", A550T_C4) -> 18982880 | H22: =IF(G22="N/A", " ", IF(E22="N/A", " ",IF(AND(E22=0,G22=0,),"N/A",IF(ABS(E22)=0, "N/A", ((G22*Anu_C4-E22*Anu_C3)/ABS(E22*Anu_C3))*100)))) -> -17.12700115 | I22: =IF(I8<DATEVALUE("3/31/2011"),"N/A", A550T_C5) -> 10895300 | J22: =IF(I22="N/A", " ", IF(G22="N/A", " ",IF(AND(G22=0,I22=0,),"N/A",IF(ABS(G22)=0, "N/A", ((I22*Anu_C5-G22*Anu_C4)/ABS(G22*Anu_C4))*100)))) -> -42.60459951
A23: * Non-Federally Guaranteed Student Loans Recovered | B23: =IF(B8<DATEVALUE("3/31/2011"),"N/A",A551T_C1) -> 798483 | C23: =IF(C8<DATEVALUE("3/31/2011"),"N/A", A551T_C2) -> 668042 | D23: =IF(C23="N/A", " ", IF(B23="N/A", " ",IF(AND(B23=0,C23=0,),"N/A",IF(ABS(B23)=0, "N/A", ((C23*Anu_C2-B23*Anu_C1)/ABS(B23*Anu_C1))*100)))) -> -16.33610233 | E23: =IF(E8<DATEVALUE("3/31/2011"),"N/A", A551T_C3) -> 1073797 | F23: =IF(E23="N/A", " ", IF(C23="N/A", " ",IF(AND(C23=0,E23=0,),"N/A",IF(ABS(C23)=0, "N/A", ((E23*Anu_C3-C23*Anu_C2)/ABS(C23*Anu_C2))*100)))) -> 60.73794761 | G23: =IF(G8<DATEVALUE("3/31/2011"),"N/A", A551T_C4) -> 2198179 | H23: =IF(G23="N/A", " ", IF(E23="N/A", " ",IF(AND(E23=0,G23=0,),"N/A",IF(ABS(E23)=0, "N/A", ((G23*Anu_C4-E23*Anu_C3)/ABS(E23*Anu_C3))*100)))) -> 104.7108532 | I23: =IF(I8<DATEVALUE("3/31/2011"),"N/A", A551T_C5) -> 2801017 | J23: =IF(I23="N/A", " ", IF(G23="N/A", " ",IF(AND(G23=0,I23=0,),"N/A",IF(ABS(G23)=0, "N/A", ((I23*Anu_C5-G23*Anu_C4)/ABS(G23*Anu_C4))*100)))) -> 27.42442722
A24: * Net Non-Federally Guaranteed Student Loans C/Os | B24: =IF(B8<DATEVALUE("3/31/2011"),"N/A", A550T_C1-A551T_C1) -> 3056106 | C24: =IF(C8<DATEVALUE("3/31/2011"),"N/A", A550T_C2-A551T_C2) -> 2651965 | D24: =IF(C24="N/A", " ", IF(B24="N/A", " ",IF(AND(B24=0,C24=0,),"N/A",IF(ABS(B24)=0, "N/A", ((C24*Anu_C2-B24*Anu_C1)/ABS(B24*Anu_C1))*100)))) -> -13.22405047 | E24: =IF(E8<DATEVALUE("3/31/2011"),"N/A", A550T_C3-A551T_C3) -> 21832192 | F24: =IF(E24="N/A", " ", IF(C24="N/A", " ",IF(AND(C24=0,E24=0,),"N/A",IF(ABS(C24)=0, "N/A", ((E24*Anu_C3-C24*Anu_C2)/ABS(C24*Anu_C2))*100)))) -> 723.2458573 | G24: =IF(G8<DATEVALUE("3/31/2011"),"N/A", A550T_C4-A551T_C4) -> 16784701 | H24: =IF(G24="N/A", " ", IF(E24="N/A", " ",IF(AND(E24=0,G24=0,),"N/A",IF(ABS(E24)=0, "N/A", ((G24*Anu_C4-E24*Anu_C3)/ABS(E24*Anu_C3))*100)))) -> -23.11948796 | I24: =IF(I8<DATEVALUE("3/31/2011"),"N/A", A550T_C5-A551T_C5) -> 8094283 | J24: =IF(I24="N/A", " ", IF(G24="N/A", " ",IF(AND(G24=0,I24=0,),"N/A",IF(ABS(G24)=0, "N/A", ((I24*Anu_C5-G24*Anu_C4)/ABS(G24*Anu_C4))*100)))) -> -51.77582848
A25: ** Net Charge Offs - Non-Federally Guaranteed Student Loans / Avg Non-Federally Guaranteed Student Loans | B25: =IF(B8<DATEVALUE("3/31/2012"),"N/A",IF((A698A_C1+pA698A_C1)=0,0,(((A550T_C1-A551T_C1)/((A698A_C1+pA698A_C1) /2) )*100)*Anu_C1)) -> 0.2447408516 | C25: =IF(C8<DATEVALUE("3/31/2012"),"N/A",IF((A698A_C2+pA698A_C2)=0,0,(((A550T_C2-A551T_C2)/((A698A_C2+pA698A_C2) /2) )*100)*Anu_C2)) -> 0.1872196426 | D25: =IF(C25="N/A", " ", IF(B25="N/A", " ",IF(AND(B25=0,C25=0,),"N/A",IF(ABS(B25)=0, "N/A", ((C25-B25)/ABS(B25))*100)))) -> -23.50290464 | E25: =IF(E8<DATEVALUE("3/31/2012"),"N/A",IF((A698A_C3+pA698A_C3)=0,0,(((A550T_C3-A551T_C3)/((A698A_C3+pA698A_C3) /2) )*100)*Anu_C3)) -> 1.410942966 | F25: =IF(E25="N/A", " ", IF(C25="N/A", " ",IF(AND(C25=0,E25=0,),"N/A",IF(ABS(C25)=0, "N/A", ((E25-C25)/ABS(C25))*100)))) -> 653.6297723 | G25: =IF(G8<DATEVALUE("3/31/2012"),"N/A",IF((A698A_C4+pA698A_C4)=0,0,(((A550T_C4-A551T_C4)/((A698A_C4+pA698A_C4) /2) )*100)*Anu_C4)) -> 0.9922231275 | H25: =IF(G25="N/A", " ", IF(E25="N/A", " ",IF(AND(E25=0,G25=0,),"N/A",IF(ABS(E25)=0, "N/A", ((G25-E25)/ABS(E25))*100)))) -> -29.67659564 | I25: =IF(I8<DATEVALUE("3/31/2012"),"N/A",IF((A698A_C5+pA698A_C5)=0,0,(((A550T_C5-A551T_C5)/((A698A_C5+pA698A_C5) /2) )*100)*Anu_C5)) -> 0.4392778112 | J25: =IF(I25="N/A", " ", IF(G25="N/A", " ",IF(AND(G25=0,I25=0,),"N/A",IF(ABS(G25)=0, "N/A", ((I25-G25)/ABS(G25))*100)))) -> -55.72792056
A26: * Total 1st Mortgage RE Loan/LOCs Charged Off | B26: =A548_C1 -> 234910772 | C26: =A548_C2 -> 141075080 | D26: =IF(C26="N/A", " ", IF(B26="N/A", " ",IF(AND(B26=0,C26=0,),"N/A",IF(ABS(B26)=0, "N/A", ((C26*Anu_C2-B26*Anu_C1)/ABS(B26*Anu_C1))*100)))) -> -39.94524866 | E26: =A548_C3 -> 104254790 | F26: =IF(E26="N/A", " ", IF(C26="N/A", " ",IF(AND(C26=0,E26=0,),"N/A",IF(ABS(C26)=0, "N/A", ((E26*Anu_C3-C26*Anu_C2)/ABS(C26*Anu_C2))*100)))) -> -26.09978318 | G26: =A548_C4 -> 59540815 | H26: =IF(G26="N/A", " ", IF(E26="N/A", " ",IF(AND(E26=0,G26=0,),"N/A",IF(ABS(E26)=0, "N/A", ((G26*Anu_C4-E26*Anu_C3)/ABS(E26*Anu_C3))*100)))) -> -42.88913248 | I26: =A548_C5 -> 49895892 | J26: =IF(I26="N/A", " ", IF(G26="N/A", " ",IF(AND(G26=0,I26=0,),"N/A",IF(ABS(G26)=0, "N/A", ((I26*Anu_C5-G26*Anu_C4)/ABS(G26*Anu_C4))*100)))) -> -16.19884276
A27: * Total 1st Mortgage RE Loans/LOCs Recovered | B27: =A607_C1 -> 27480326 | C27: =A607_C2 -> 19487706 | D27: =IF(C27="N/A", " ", IF(B27="N/A", " ",IF(AND(B27=0,C27=0,),"N/A",IF(ABS(B27)=0, "N/A", ((C27*Anu_C2-B27*Anu_C1)/ABS(B27*Anu_C1))*100)))) -> -29.08488058 | E27: =A607_C3 -> 19302604 | F27: =IF(E27="N/A", " ", IF(C27="N/A", " ",IF(AND(C27=0,E27=0,),"N/A",IF(ABS(C27)=0, "N/A", ((E27*Anu_C3-C27*Anu_C2)/ABS(C27*Anu_C2))*100)))) -> -0.9498398631 | G27: =A607_C4 -> 11777661 | H27: =IF(G27="N/A", " ", IF(E27="N/A", " ",IF(AND(E27=0,G27=0,),"N/A",IF(ABS(E27)=0, "N/A", ((G27*Anu_C4-E27*Anu_C3)/ABS(E27*Anu_C3))*100)))) -> -38.98408215 | I27: =A607_C5 -> 10544068 | J27: =IF(I27="N/A", " ", IF(G27="N/A", " ",IF(AND(G27=0,I27=0,),"N/A",IF(ABS(G27)=0, "N/A", ((I27*Anu_C5-G27*Anu_C4)/ABS(G27*Anu_C4))*100)))) -> -10.47400668
A28: * NET 1st MORTGAGE RE LOANS/LOCs C/Os | B28: =A548_C1-A607_C1 -> 207430446 | C28: =A548_C2-A607_C2 -> 121587374 | D28: =IF(C28="N/A", " ", IF(B28="N/A", " ",IF(AND(B28=0,C28=0,),"N/A",IF(ABS(B28)=0, "N/A", ((C28*Anu_C2-B28*Anu_C1)/ABS(B28*Anu_C1))*100)))) -> -41.38402711 | E28: =A548_C3-A607_C3 -> 84952186 | F28: =IF(E28="N/A", " ", IF(C28="N/A", " ",IF(AND(C28=0,E28=0,),"N/A",IF(ABS(C28)=0, "N/A", ((E28*Anu_C3-C28*Anu_C2)/ABS(C28*Anu_C2))*100)))) -> -30.13075025 | G28: =A548_C4-A607_C4 -> 47763154 | H28: =IF(G28="N/A", " ", IF(E28="N/A", " ",IF(AND(E28=0,G28=0,),"N/A",IF(ABS(E28)=0, "N/A", ((G28*Anu_C4-E28*Anu_C3)/ABS(E28*Anu_C3))*100)))) -> -43.77642737 | I28: =A548_C5-A607_C5 -> 39351824 | J28: =IF(I28="N/A", " ", IF(G28="N/A", " ",IF(AND(G28=0,I28=0,),"N/A",IF(ABS(G28)=0, "N/A", ((I28*Anu_C5-G28*Anu_C4)/ABS(G28*Anu_C4))*100)))) -> -17.61049951
A29: ** Net Charge Offs - 1st Mortgage RE Loans/LOCs / Avg 1st Mortgage RE Loans/LOCs | B29: =IF((pA703_C1+A703_C1)/2=0, 0, (((A548_C1-A607_C1)/((pA703_C1+A703_C1)/2))*100)*Anu_C1) -> 0.1500916979 | C29: =IF((pA703_C2+A703_C2)/2=0, 0, (((A548_C2-A607_C2)/((pA703_C2+A703_C2)/2))*100)*Anu_C2) -> 0.07944051629 | D29: =IF(C29="N/A", " ", IF(B29="N/A", " ",IF(AND(B29=0,C29=0,),"N/A",IF(ABS(B29)=0, "N/A", ((C29-B29)/ABS(B29))*100)))) -> -47.0720117 | E29: =IF((pA703_C3+A703_C3)/2=0, 0, (((A548_C3-A607_C3)/((pA703_C3+A703_C3)/2))*100)*Anu_C3) -> 0.05004676444 | F29: =IF(E29="N/A", " ", IF(C29="N/A", " ",IF(AND(C29=0,E29=0,),"N/A",IF(ABS(C29)=0, "N/A", ((E29-C29)/ABS(C29))*100)))) -> -37.00095773 | G29: =IF((pA703_C4+A703_C4)/2=0, 0, (((A548_C4-A607_C4)/((pA703_C4+A703_C4)/2))*100)*Anu_C4) -> 0.02552642958 | H29: =IF(G29="N/A", " ", IF(E29="N/A", " ",IF(AND(E29=0,G29=0,),"N/A",IF(ABS(E29)=0, "N/A", ((G29-E29)/ABS(E29))*100)))) -> -48.99484539 | I29: =IF((pA703_C5+A703_C5)/2=0, 0, (((A548_C5-A607_C5)/((pA703_C5+A703_C5)/2))*100)*Anu_C5) -> 0.01913204171 | J29: =IF(I29="N/A", " ", IF(G29="N/A", " ",IF(AND(G29=0,I29=0,),"N/A",IF(ABS(G29)=0, "N/A", ((I29-G29)/ABS(G29))*100)))) -> -25.05006761
A30: * Total Other RE Loans/LOCs Charged Off | B30: =A549_C1 -> 130837364 | C30: =A549_C2 -> 86373648 | D30: =IF(C30="N/A", " ", IF(B30="N/A", " ",IF(AND(B30=0,C30=0,),"N/A",IF(ABS(B30)=0, "N/A", ((C30*Anu_C2-B30*Anu_C1)/ABS(B30*Anu_C1))*100)))) -> -33.98395889 | E30: =A549_C3 -> 57783300 | F30: =IF(E30="N/A", " ", IF(C30="N/A", " ",IF(AND(C30=0,E30=0,),"N/A",IF(ABS(C30)=0, "N/A", ((E30*Anu_C3-C30*Anu_C2)/ABS(C30*Anu_C2))*100)))) -> -33.10077629 | G30: =A549_C4 -> 42313058 | H30: =IF(G30="N/A", " ", IF(E30="N/A", " ",IF(AND(E30=0,G30=0,),"N/A",IF(ABS(E30)=0, "N/A", ((G30*Anu_C4-E30*Anu_C3)/ABS(E30*Anu_C3))*100)))) -> -26.77285998 | I30: =A549_C5 -> 35688337 | J30: =IF(I30="N/A", " ", IF(G30="N/A", " ",IF(AND(G30=0,I30=0,),"N/A",IF(ABS(G30)=0, "N/A", ((I30*Anu_C5-G30*Anu_C4)/ABS(G30*Anu_C4))*100)))) -> -15.65644582
A31: * Total Other RE Loans/LOCs Recovered | B31: =A608_C1 -> 45393490 | C31: =A608_C2 -> 44519957 | D31: =IF(C31="N/A", " ", IF(B31="N/A", " ",IF(AND(B31=0,C31=0,),"N/A",IF(ABS(B31)=0, "N/A", ((C31*Anu_C2-B31*Anu_C1)/ABS(B31*Anu_C1))*100)))) -> -1.924357435 | E31: =A608_C3 -> 44393940 | F31: =IF(E31="N/A", " ", IF(C31="N/A", " ",IF(AND(C31=0,E31=0,),"N/A",IF(ABS(C31)=0, "N/A", ((E31*Anu_C3-C31*Anu_C2)/ABS(C31*Anu_C2))*100)))) -> -0.2830573264 | G31: =A608_C4 -> 47307289 | H31: =IF(G31="N/A", " ", IF(E31="N/A", " ",IF(AND(E31=0,G31=0,),"N/A",IF(ABS(E31)=0, "N/A", ((G31*Anu_C4-E31*Anu_C3)/ABS(E31*Anu_C3))*100)))) -> 6.562492538 | I31: =A608_C5 -> 42435660 | J31: =IF(I31="N/A", " ", IF(G31="N/A", " ",IF(AND(G31=0,I31=0,),"N/A",IF(ABS(G31)=0, "N/A", ((I31*Anu_C5-G31*Anu_C4)/ABS(G31*Anu_C4))*100)))) -> -10.29784015
A32: * NET OTHER RE LOANS/LOCs C/Os | B32: =A549_C1-A608_C1 -> 85443874 | C32: =A549_C2-A608_C2 -> 41853691 | D32: =IF(C32="N/A", " ", IF(B32="N/A", " ",IF(AND(B32=0,C32=0,),"N/A",IF(ABS(B32)=0, "N/A", ((C32*Anu_C2-B32*Anu_C1)/ABS(B32*Anu_C1))*100)))) -> -51.01615945 | E32: =A549_C3-A608_C3 -> 13389360 | F32: =IF(E32="N/A", " ", IF(C32="N/A", " ",IF(AND(C32=0,E32=0,),"N/A",IF(ABS(C32)=0, "N/A", ((E32*Anu_C3-C32*Anu_C2)/ABS(C32*Anu_C2))*100)))) -> -68.00912971 | G32: =A549_C4-A608_C4 -> -4994231 | H32: =IF(G32="N/A", " ", IF(E32="N/A", " ",IF(AND(E32=0,G32=0,),"N/A",IF(ABS(E32)=0, "N/A", ((G32*Anu_C4-E32*Anu_C3)/ABS(E32*Anu_C3))*100)))) -> -137.2999979 | I32: =A549_C5-A608_C5 -> -6747323 | J32: =IF(I32="N/A", " ", IF(G32="N/A", " ",IF(AND(G32=0,I32=0,),"N/A",IF(ABS(G32)=0, "N/A", ((I32*Anu_C5-G32*Anu_C4)/ABS(G32*Anu_C4))*100)))) -> -35.10234108
A33: **Net Charge Offs - Other RE Loans/LOCs / Avg Other RE Loans/LOCs | B33: =IF((pA386_C1+A386_C1)/2=0, 0, (((A549_C1-A608_C1)/((pA386_C1+A386_C1)/2))*100)*Anu_C1) -> 0.2684664318 | C33: =IF((pA386_C2+A386_C2)/2=0, 0, (((A549_C2-A608_C2)/((pA386_C2+A386_C2)/2))*100)*Anu_C2) -> 0.1252472547 | D33: =IF(C33="N/A", " ", IF(B33="N/A", " ",IF(AND(B33=0,C33=0,),"N/A",IF(ABS(B33)=0, "N/A", ((C33-B33)/ABS(B33))*100)))) -> -53.34714517 | E33: =IF((pA386_C3+A386_C3)/2=0, 0, (((A549_C3-A608_C3)/((pA386_C3+A386_C3)/2))*100)*Anu_C3) -> 0.03862534517 | F33: =IF(E33="N/A", " ", IF(C33="N/A", " ",IF(AND(C33=0,E33=0,),"N/A",IF(ABS(C33)=0, "N/A", ((E33-C33)/ABS(C33))*100)))) -> -69.16072511 | G33: =IF((pA386_C4+A386_C4)/2=0, 0, (((A549_C4-A608_C4)/((pA386_C4+A386_C4)/2))*100)*Anu_C4) -> -0.01391501297 | H33: =IF(G33="N/A", " ", IF(E33="N/A", " ",IF(AND(E33=0,G33=0,),"N/A",IF(ABS(E33)=0, "N/A", ((G33-E33)/ABS(E33))*100)))) -> -136.0256016 | I33: =IF((pA386_C5+A386_C5)/2=0, 0, (((A549_C5-A608_C5)/((pA386_C5+A386_C5)/2))*100)*Anu_C5) -> -0.01757567699 | J33: =IF(I33="N/A", " ", IF(G33="N/A", " ",IF(AND(G33=0,I33=0,),"N/A",IF(ABS(G33)=0, "N/A", ((I33-G33)/ABS(G33))*100)))) -> -26.30729868
A34: * Total Real Estate Loans Charged Off | B34: =A548_C1+A549_C1 -> 365748136 | C34: =A548_C2+A549_C2 -> 227448728 | D34: =IF(C34="N/A", " ", IF(B34="N/A", " ",IF(AND(B34=0,C34=0,),"N/A",IF(ABS(B34)=0, "N/A", ((C34*Anu_C2-B34*Anu_C1)/ABS(B34*Anu_C1))*100)))) -> -37.81274445 | E34: =A548_C3+A549_C3 -> 162038090 | F34: =IF(E34="N/A", " ", IF(C34="N/A", " ",IF(AND(C34=0,E34=0,),"N/A",IF(ABS(C34)=0, "N/A", ((E34*Anu_C3-C34*Anu_C2)/ABS(C34*Anu_C2))*100)))) -> -28.75841012 | G34: =A548_C4+A549_C4 -> 101853873 | H34: =IF(G34="N/A", " ", IF(E34="N/A", " ",IF(AND(E34=0,G34=0,),"N/A",IF(ABS(E34)=0, "N/A", ((G34*Anu_C4-E34*Anu_C3)/ABS(E34*Anu_C3))*100)))) -> -37.14201827 | I34: =A548_C5+A549_C5 -> 85584229 | J34: =IF(I34="N/A", " ", IF(G34="N/A", " ",IF(AND(G34=0,I34=0,),"N/A",IF(ABS(G34)=0, "N/A",((I34*Anu_C5-G34*Anu_C4)/ABS(G34*Anu_C4))*100)))) -> -15.97351531
A35: * Total Real Estate Lns Recovered | B35: =A607_C1+A608_C1 -> 72873816 | C35: =A607_C2+A608_C2 -> 64007663 | D35: =IF(C35="N/A", " ", IF(B35="N/A", " ",IF(AND(B35=0,C35=0,),"N/A",IF(ABS(B35)=0, "N/A", ((C35*Anu_C2-B35*Anu_C1)/ABS(B35*Anu_C1))*100)))) -> -12.16644535 | E35: =A607_C3+A608_C3 -> 63696544 | F35: =IF(E35="N/A", " ", IF(C35="N/A", " ",IF(AND(C35=0,E35=0,),"N/A",IF(ABS(C35)=0, "N/A", ((E35*Anu_C3-C35*Anu_C2)/ABS(C35*Anu_C2))*100)))) -> -0.4860652388 | G35: =A607_C4+A608_C4 -> 59084950 | H35: =IF(G35="N/A", " ", IF(E35="N/A", " ",IF(AND(E35=0,G35=0,),"N/A",IF(ABS(E35)=0, "N/A", ((G35*Anu_C4-E35*Anu_C3)/ABS(E35*Anu_C3))*100)))) -> -7.239943819 | I35: =A607_C5+A608_C5 -> 52979728 | J35: =IF(I35="N/A", " ", IF(G35="N/A", " ",IF(AND(G35=0,I35=0,),"N/A",IF(ABS(G35)=0, "N/A",((I35*Anu_C5-G35*Anu_C4)/ABS(G35*Anu_C4))*100)))) -> -10.33295619
A36: * NET Total Real Estate Loan C/Os | B36: =A548_C1+A549_C1-A607_C1-A608_C1 -> 292874320 | C36: =A548_C2+A549_C2-A607_C2-A608_C2 -> 163441065 | D36: =IF(C36="N/A", " ", IF(B36="N/A", " ",IF(AND(B36=0,C36=0,),"N/A",IF(ABS(B36)=0, "N/A", ((C36*Anu_C2-B36*Anu_C1)/ABS(B36*Anu_C1))*100)))) -> -44.19412907 | E36: =A548_C3+A549_C3-A607_C3-A608_C3 -> 98341546 | F36: =IF(E36="N/A", " ", IF(C36="N/A", " ",IF(AND(C36=0,E36=0,),"N/A",IF(ABS(C36)=0, "N/A", ((E36*Anu_C3-C36*Anu_C2)/ABS(C36*Anu_C2))*100)))) -> -39.83057685 | G36: =A548_C4+A549_C4-A607_C4-A608_C4 -> 42768923 | H36: =IF(G36="N/A", " ", IF(E36="N/A", " ",IF(AND(E36=0,G36=0,),"N/A",IF(ABS(E36)=0, "N/A", ((G36*Anu_C4-E36*Anu_C3)/ABS(E36*Anu_C3))*100)))) -> -56.50981224 | I36: =A548_C5+A549_C5-A607_C5-A608_C5 -> 32604501 | J36: =IF(I36="N/A", " ", IF(G36="N/A", " ",IF(AND(G36=0,I36=0,),"N/A",IF(ABS(G36)=0, "N/A",((I36*Anu_C5-G36*Anu_C4)/ABS(G36*Anu_C4))*100)))) -> -23.76590591
A37: ** Net Charge Offs - Total RE Loans / Avg Total RE Loans | B37: =IF((A710_C1+pA710_C1)/2=0, 0, (((A548_C1+A549_C1-A607_C1-A608_C1)/((A710_C1+pA710_C1)/2))*100)*Anu_C1) -> 0.1722494973 | C37: =IF((A710_C2+pA710_C2)/2=0, 0, (((A548_C2+A549_C2-A607_C2-A608_C2)/((A710_C2+pA710_C2)/2))*100)*Anu_C2) -> 0.08764937036 | D37: =IF(C37="N/A", " ", IF(B37="N/A", " ",IF(AND(B37=0,C37=0,),"N/A",IF(ABS(B37)=0, "N/A", ((C37-B37)/ABS(B37))*100)))) -> -49.11487595 | E37: =IF((A710_C3+pA710_C3)/2=0, 0, (((A548_C3+A549_C3-A607_C3-A608_C3)/((A710_C3+pA710_C3)/2))*100)*Anu_C3) -> 0.04810987549 | F37: =IF(E37="N/A", " ", IF(C37="N/A", " ",IF(AND(C37=0,E37=0,),"N/A",IF(ABS(C37)=0, "N/A", ((E37-C37)/ABS(C37))*100)))) -> -45.11098563 | G37: =IF((A710_C4+pA710_C4)/2=0, 0, (((A548_C4+A549_C4-A607_C4-A608_C4)/((A710_C4+pA710_C4)/2))*100)*Anu_C4) -> 0.01917858759 | H37: =IF(G37="N/A", " ", IF(E37="N/A", " ",IF(AND(E37=0,G37=0,),"N/A",IF(ABS(E37)=0, "N/A", ((G37-E37)/ABS(E37))*100)))) -> -60.13586109 | I37: =IF((A710_C5+pA710_C5)/2=0, 0, (((A548_C5+A549_C5-A607_C5-A608_C5)/((A710_C5+pA710_C5)/2))*100)*Anu_C5) -> 0.0133583639 | J37: =IF(I37="N/A", " ", IF(G37="N/A", " ",IF(AND(G37=0,I37=0,),"N/A",IF(ABS(G37)=0, "N/A",((I37-G37)/ABS(G37))*100)))) -> -30.34750951
A38: * Total TDR 1st & Other Real Estate Lns Charged Off | B38: =IF(B8<DATEVALUE("12/31/2012"),"N/A",A550U_C1+A550V_C1) -> 84368782 | C38: =IF(C8<DATEVALUE("12/31/2012"),"N/A",A550U_C2+A550V_C2) -> 47357632 | D38: =IF(C38="N/A", " ", IF(B38="N/A", " ",IF(AND(B38=0,C38=0,),"N/A",IF(ABS(B38)=0, "N/A", ((C38*Anu_C2-B38*Anu_C1)/ABS(B38*Anu_C1))*100)))) -> -43.86829953 | E38: =IF(E8<DATEVALUE("12/31/2012"),"N/A",A550U_C3+A550V_C3) -> 31819122 | F38: =IF(E38="N/A", " ", IF(C38="N/A", " ",IF(AND(C38=0,E38=0,),"N/A",IF(ABS(C38)=0, "N/A", ((E38*Anu_C3-C38*Anu_C2)/ABS(C38*Anu_C2))*100)))) -> -32.81099443 | G38: =IF(G8<DATEVALUE("12/31/2012"),"N/A",A550U_C4+A550V_C4) -> 19192555 | H38: =IF(G38="N/A", " ", IF(E38="N/A", " ",IF(AND(E38=0,G38=0,),"N/A",IF(ABS(E38)=0, "N/A", ((G38*Anu_C4-E38*Anu_C3)/ABS(E38*Anu_C3))*100)))) -> -39.68232373 | I38: =IF(I8<DATEVALUE("12/31/2012"),"N/A",A550U_C5+A550V_C5) -> 18696316 | J38: =IF(I38="N/A", " ", IF(G38="N/A", " ",IF(AND(G38=0,I38=0,),"N/A",IF(ABS(G38)=0, "N/A",((I38*Anu_C5-G38*Anu_C4)/ABS(G38*Anu_C4))*100)))) -> -2.585580711
A39: * Total TDR 1st & Other Real Estate Lns Recovered | B39: =IF(B8<DATEVALUE("12/31/2012"),"N/A",A551U_C1+A551V_C1) -> 6159989 | C39: =IF(C8<DATEVALUE("12/31/2012"),"N/A",A551U_C2+A551V_C2) -> 4022962 | D39: -34.6920587 | E39: =IF(E8<DATEVALUE("12/31/2012"),"N/A",A551U_C3+A551V_C3) -> 5633019 | F39: 40.02168054 | G39: =IF(G8<DATEVALUE("12/31/2012"),"N/A",A551U_C4+A551V_C4) -> 3661371 | H39: -35.00162169 | I39: =IF(I8<DATEVALUE("12/31/2012"),"N/A",A551U_C5+A551V_C5) -> 4765564 | J39: =IF(I39="N/A", " ", IF(G39="N/A", " ",IF(AND(G39=0,I39=0,),"N/A",IF(ABS(G39)=0, "N/A",((I39*Anu_C5-G39*Anu_C4)/ABS(G39*Anu_C4))*100)))) -> 30.15791079
